Workbook

Sheet Information
A1: Repex Model - Calibration (2015) Model - Standard Life Calibration
A3: Purpose
A4: Calibrate standard lives for asset categories as the age profile existed in 2015, using adjusted 2015 age profile (assets with no ongoing need removed), and updated calibration quantites.
A6: Context
A7: This worksheet utilises asset age profiles as at 2015, along with calibration quantities that are reflective of condition based need, to calibrate a standard life for each asset class.
A8: Average replacement rate (calibration quantity) is input on the Calibration worksheet, column D.
A9: The "Calibration" worksheet finds a standard life so that the average observed replacement rate equals the forecast replacement rate (2016 - 2020).
A10: The calibrated standard lives are listed on the "Results" sheet. These figures are used in the Forecast Repex (2020) model.
A11: Age profile information is in the "Asset Data" sheet: information from the age profile worksheets.
A12: Unit costs / financial information is not used in this file. (Refer to the forecast calibration model).

Sheet Asset data
A1: Meth all | D1: 2 | E1: =IF(D1=2,"all normal",IF(D1=1,"all deterministic","individual")) -> all normal | L1: Profile type: | M1: 3 | N1: =VLOOKUP(APtype,IDtable,4) -> Installation date
F3: Unit | J3: Quantities | CX3: Replacement Cost (NOT depreciated)
F4: Cost | G4: Replacement life | I4: Rep | J4: =VLOOKUP(APtype,IDtable,4) -> Installation date | CX4: =VLOOKUP(APtype,IDtable,4) -> Installation date
A5: ID | B5: ID | C5: ID | D5: Asset category | E5: Asset ID | F5: $ ('000) | G5: mean | H5: SD | I5: Meth | J5: =IF(OR(APtype=1,APtype=2),0,IF(APtype=3,Now,9999)) -> 2015 | K5: =IF(OR(APtype=1,APtype=2),J5+1,IF(APtype=3,J5-1,9999)) -> 2014 | L5: 2013 | M5: 2012 | N5: 2011 | O5: 2010 | P5: 2009 | Q5: 2008 | R5: 2007 | S5: 2006 | T5: 2005 | U5: 2004 | V5: 2003 | W5: 2002 | X5: 2001 | Y5: 2000 | Z5: 1999 | AA5: 1998 | AB5: 1997 | AC5: 1996 | AD5: 1995 | AE5: 1994 | AF5: 1993 | AG5: 1992 | AH5: 1991 | AI5: 1990 | AJ5: 1989 | AK5: 1988 | AL5: 1987 | AM5: 1986 | AN5: 1985 | AO5: 1984 | AP5: 1983 | AQ5: =IF(OR(APtype=1,APtype=2),AP5+1,IF(APtype=3,AP5-1,9999)) -> 1982 | AR5: 1981 | AS5: 1980 | AT5: 1979 | AU5: 1978 | AV5: 1977 | AW5: 1976 | AX5: 1975 | AY5: 1974 | AZ5: 1973 | BA5: 1972 | BB5: 1971 | BC5: 1970 | BD5: 1969 | BE5: 1968 | BF5: 1967 | BG5: 1966 | BH5: 1965 | BI5: 1964 | BJ5: 1963 | BK5: 1962 | BL5: 1961 | BM5: 1960 | BN5: 1959 | BO5: 1958 | BP5: 1957 | BQ5: 1956 | BR5: 1955 | BS5: 1954 | BT5: 1953 | BU5: 1952 | BV5: 1951 | BW5: =IF(OR(APtype=1,APtype=2),BV5+1,IF(APtype=3,BV5-1,9999)) -> 1950 | BX5: 1949 | BY5: 1948 | BZ5: 1947 | CA5: 1946 | CB5: 1945 | CC5: 1944 | CD5: 1943 | CE5: 1942 | CF5: 1941 | CG5: 1940 | CH5: 1939 | CI5: 1938 | CJ5: 1937 | CK5: 1936 | CL5: 1935 | CM5: 1934 | CN5: 1933 | CO5: 1932 | CP5: 1931 | CQ5: 1930 | CR5: 1929 | CS5: 1928 | CT5: 1927 | CU5: 1926 | CV5: 1925 | CX5: =J5 -> 2015 | CY5: =K5 -> 2014 | CZ5: 2013 | DA5: 2012 | DB5: 2011 | DC5: 2010 | DD5: 2009 | DE5: 2008 | DF5: 2007 | DG5: 2006 | DH5: 2005 | DI5: 2004 | DJ5: 2003 | DK5: 2002 | DL5: 2001 | DM5: 2000 | DN5: 1999 | DO5: 1998 | DP5: 1997 | DQ5: 1996 | DR5: 1995 | DS5: 1994 | DT5: 1993 | DU5: 1992 | DV5: 1991 | DW5: 1990 | DX5: 1989 | DY5: 1988 | DZ5: 1987 | EA5: 1986 | EB5: 1985 | EC5: 1984 | ED5: 1983 | EE5: 1982 | EF5: 1981 | EG5: 1980 | EH5: 1979 | EI5: 1978 | EJ5: 1977 | EK5: 1976 | EL5: 1975 | EM5: 1974 | EN5: 1973 | EO5: 1972 | EP5: 1971 | EQ5: 1970 | ER5: 1969 | ES5: 1968 | ET5: 1967 | EU5: 1966 | EV5: 1965 | EW5: 1964 | EX5: 1963 | EY5: 1962 | EZ5: 1961 | FA5: 1960 | FB5: 1959 | FC5: 1958 | FD5: 1957 | FE5: 1956 | FF5: 1955 | FG5: 1954 | FH5: 1953 | FI5: 1952 | FJ5: 1951 | FK5: =BW5 -> 1950 | FL5: 1949 | FM5: 1948 | FN5: 1947 | FO5: 1946 | FP5: 1945 | FQ5: 1944 | FR5: 1943 | FS5: 1942 | FT5: 1941 | FU5: 1940 | FV5: 1939 | FW5: 1938 | FX5: 1937 | FY5: 1936 | FZ5: 1935 | GA5: 1934 | GB5: 1933 | GC5: 1932 | GD5: 1931 | GE5: 1930 | GF5: 1929 | GG5: 1928 | GH5: 1927 | GI5: 1926 | GJ5: 1925
A21: 1 | D21: =IF(A21>0,VLOOKUP(A21,IDtable,2),"") -> Transmission Towers, by Corrosion Zone | E21: Towers in Corrosion Zone B | F21: 1 | G21: =Calibration!M21 -> 65.5594991 | H21: =SQRT(G21) -> 8.096882061 | I21: 2 | J21: 9 | K21: 11 | L21: 2 | M21: 9 | N21: 16 | O21: 0 | P21: 345 | Q21: 30 | R21: 14 | S21: 2 | T21: 249 | U21: 26 | V21: 1 | W21: 0 | X21: 0 | Y21: 0 | Z21: 0 | AA21: 0 | AB21: 0 | AC21: 0 | AD21: 0 | AE21: 0 | AF21: 16 | AG21: 0 | AH21: 0 | AI21: 0 | AJ21: 0 | AK21: 201 | AL21: 0 | AM21: 2 | AN21: 0 | AO21: 0 | AP21: 0 | AQ21: 0 | AR21: 0 | AS21: 0 | AT21: 2 | AU21: 410 | AV21: 127 | AW21: 0 | AX21: 0 | AY21: 209 | AZ21: 0 | BA21: 75 | BB21: 390 | BC21: 3 | BD21: 196 | BE21: 338 | BF21: 0 | BG21: 33 | BH21: 0 | BI21: 0 | BJ21: 56 | BK21: 0 | BL21: 0 | BM21: 0 | BN21: 0 | BO21: 0 | BP21: 0 | BQ21: 0 | BR21: 0 | BS21: 0 | BT21: 0 | BU21: 0 | BV21: 0 | BW21: 0 | BX21: 0 | BY21: 0 | BZ21: 0 | CA21: 0 | CB21: 0 | CC21: 0 | CD21: 0 | CE21: 0 | CF21: 0 | CG21: 0 | CH21: 0 | CI21: 0 | CX21: =$F21*J21 -> 9 | CY21: =$F21*K21 -> 11 | CZ21: =$F21*L21 -> 2 | DA21: =$F21*M21 -> 9 | DB21: =$F21*N21 -> 16 | DC21: =$F21*O21 -> 0 | DD21: =$F21*P21 -> 345 | DE21: =$F21*Q21 -> 30 | DF21: =$F21*R21 -> 14 | DG21: =$F21*S21 -> 2 | DH21: =$F21*T21 -> 249 | DI21: =$F21*U21 -> 26 | DJ21: =$F21*V21 -> 1 | DK21: =$F21*W21 -> 0 | DL21: =$F21*X21 -> 0 | DM21: =$F21*Y21 -> 0 | DN21: 0 | DO21: 0 | DP21: 0 | DQ21: 0 | DR21: 0 | DS21: 0 | DT21: 16 | DU21: 0 | DV21: 0 | DW21: 0 | DX21: 0 | DY21: 201 | DZ21: 0 | EA21: 2 | EB21: 0 | EC21: 0 | ED21: 0 | EE21: 0 | EF21: 0 | EG21: 0 | EH21: 2 | EI21: 410 | EJ21: 127 | EK21: 0 | EL21: 0 | EM21: 209 | EN21: 0 | EO21: 75 | EP21: 390 | EQ21: 3 | ER21: 196 | ES21: 338 | ET21: 0 | EU21: 33 | EV21: 0 | EW21: 0 | EX21: 56 | EY21: 0 | EZ21: 0 | FA21: 0 | FB21: 0 | FC21: 0 | FD21: 0 | FE21: 0 | FF21: 0 | FG21: 0 | FH21: 0 | FI21: 0 | FJ21: 0 | FK21: =$F21*BW21 -> 0 | FL21: 0 | FM21: 0 | FN21: 0 | FO21: 0 | FP21: 0 | FQ21: 0 | FR21: 0 | FS21: 0 | FT21: 0 | FU21: 0 | FV21: 0 | FW21: 0 | FX21: 0 | FY21: 0 | FZ21: 0 | GA21: 0 | GB21: 0 | GC21: 0 | GD21: 0 | GE21: 0 | GF21: 0 | GG21: 0 | GH21: 0 | GI21: 0 | GJ21: 0
A22: 1 | D22: Transmission Towers, by Corrosion Zone | E22: Towers in Corrosion Zone C | F22: 1 | G22: =Calibration!M22 -> 55.56478617 | H22: =SQRT(G22) -> 7.454179108 | I22: 2 | J22: 48 | K22: 385 | L22: 445 | M22: 11 | N22: 574 | O22: 573 | P22: 234 | Q22: 456 | R22: 247 | S22: 97 | T22: 244 | U22: 231 | V22: 280 | W22: 37 | X22: 831 | Y22: 532 | Z22: 800 | AA22: 7 | AB22: 31 | AC22: 161 | AD22: 151 | AE22: 52 | AF22: 708 | AG22: 7 | AH22: 19 | AI22: 10 | AJ22: 0 | AK22: 153 | AL22: 778 | AM22: 803 | AN22: 837 | AO22: 9 | AP22: 382 | AQ22: 510 | AR22: 1363 | AS22: 213 | AT22: 475 | AU22: 473 | AV22: 701 | AW22: 32 | AX22: 362 | AY22: 0 | AZ22: 658 | BA22: 39 | BB22: 53 | BC22: 88 | BD22: 0 | BE22: 162 | BF22: 200 | BG22: 30 | BH22: 128 | BI22: 10 | BJ22: 112 | BK22: 0 | BL22: 0 | BM22: 0 | BN22: 10 | BO22: 0 | BP22: 0 | BQ22: 0 | BR22: 0 | BS22: 0 | BT22: 0 | BU22: 0 | BV22: 0 | BW22: 0 | BX22: 0 | BY22: 0 | BZ22: 0 | CA22: 0 | CB22: 0 | CC22: 0 | CD22: 0 | CE22: 0 | CF22: 0 | CG22: 0 | CH22: 0 | CI22: 0 | CX22: 48 | CY22: 385 | CZ22: 445 | DA22: 11 | DB22: 574 | DC22: 573 | DD22: 234 | DE22: 456 | DF22: 247 | DG22: 97 | DH22: 244 | DI22: 231 | DJ22: 280 | DK22: 37 | DL22: 831 | DM22: =$F22*Y22 -> 532 | DN22: =$F22*Z22 -> 800 | DO22: =$F22*AA22 -> 7 | DP22: =$F22*AB22 -> 31 | DQ22: =$F22*AC22 -> 161 | DR22: =$F22*AD22 -> 151 | DS22: =$F22*AE22 -> 52 | DT22: =$F22*AF22 -> 708 | DU22: =$F22*AG22 -> 7 | DV22: =$F22*AH22 -> 19 | DW22: =$F22*AI22 -> 10 | DX22: =$F22*AJ22 -> 0 | DY22: =$F22*AK22 -> 153 | DZ22: =$F22*AL22 -> 778 | EA22: =$F22*AM22 -> 803 | EB22: =$F22*AN22 -> 837 | EC22: =$F22*AO22 -> 9 | ED22: =$F22*AP22 -> 382 | EE22: =$F22*AQ22 -> 510 | EF22: =$F22*AR22 -> 1363 | EG22: =$F22*AS22 -> 213 | EH22: =$F22*AT22 -> 475 | EI22: =$F22*AU22 -> 473 | EJ22: =$F22*AV22 -> 701 | EK22: =$F22*AW22 -> 32 | EL22: =$F22*AX22 -> 362 | EM22: =$F22*AY22 -> 0 | EN22: =$F22*AZ22 -> 658 | EO22: =$F22*BA22 -> 39 | EP22: =$F22*BB22 -> 53 | EQ22: =$F22*BC22 -> 88 | ER22: =$F22*BD22 -> 0 | ES22: =$F22*BE22 -> 162 | ET22: =$F22*BF22 -> 200 | EU22: =$F22*BG22 -> 30 | EV22: =$F22*BH22 -> 128 | EW22: =$F22*BI22 -> 10 | EX22: =$F22*BJ22 -> 112 | EY22: =$F22*BK22 -> 0 | EZ22: =$F22*BL22 -> 0 | FA22: =$F22*BM22 -> 0 | FB22: =$F22*BN22 -> 10 | FC22: =$F22*BO22 -> 0 | FD22: =$F22*BP22 -> 0 | FE22: =$F22*BQ22 -> 0 | FF22: =$F22*BR22 -> 0 | FG22: =$F22*BS22 -> 0 | FH22: =$F22*BT22 -> 0 | FI22: =$F22*BU22 -> 0 | FJ22: =$F22*BV22 -> 0 | FK22: =$F22*BW22 -> 0 | FL22: =$F22*BX22 -> 0 | FM22: =$F22*BY22 -> 0 | FN22: =$F22*BZ22 -> 0 | FO22: =$F22*CA22 -> 0 | FP22: =$F22*CB22 -> 0 | FQ22: =$F22*CC22 -> 0 | FR22: =$F22*CD22 -> 0 | FS22: =$F22*CE22 -> 0 | FT22: =$F22*CF22 -> 0 | FU22: =$F22*CG22 -> 0 | FV22: =$F22*CH22 -> 0 | FW22: =$F22*CI22 -> 0 | FX22: =$F22*CJ22 -> 0 | FY22: =$F22*CK22 -> 0 | FZ22: =$F22*CL22 -> 0 | GA22: =$F22*CM22 -> 0 | GB22: =$F22*CN22 -> 0 | GC22: =$F22*CO22 -> 0 | GD22: =$F22*CP22 -> 0 | GE22: =$F22*CQ22 -> 0 | GF22: =$F22*CR22 -> 0 | GG22: =$F22*CS22 -> 0 | GH22: =$F22*CT22 -> 0 | GI22: =$F22*CU22 -> 0 | GJ22: =$F22*CV22 -> 0
A23: 1 | D23: Transmission Towers, by Corrosion Zone | E23: Towers in Corrosion Zone DEF | F23: 1 | G23: =Calibration!M23 -> 43.59789487 | H23: 6.602870199 | I23: 2 | J23: 0 | K23: 113 | L23: 136 | M23: 216 | N23: 3 | O23: 211 | P23: 189 | Q23: 253 | R23: 0 | S23: 0 | T23: 24 | U23: 22 | V23: 0 | W23: 167 | X23: 0 | Y23: 0 | Z23: 0 | AA23: 155 | AB23: 0 | AC23: 0 | AD23: 0 | AE23: 0 | AF23: 0 | AG23: 0 | AH23: 17 | AI23: 0 | AJ23: 528 | AK23: 0 | AL23: 74 | AM23: 0 | AN23: 0 | AO23: 0 | AP23: 0 | AQ23: 120 | AR23: 39 | AS23: 4 | AT23: 0 | AU23: 0 | AV23: 297 | AW23: 0 | AX23: 0 | AY23: 0 | AZ23: 5 | BA23: 0 | BB23: 0 | BC23: 0 | BD23: 0 | BE23: 0 | BF23: 0 | BG23: 0 | BH23: 0 | BI23: 0 | BJ23: 0 | BK23: 0 | BL23: 0 | BM23: 0 | BN23: 0 | BO23: 3 | BP23: 0 | BQ23: 0 | BR23: 0 | BS23: 0 | BT23: 0 | BU23: 0 | BV23: 0 | BW23: 0 | BX23: 0 | BY23: 0 | BZ23: 0 | CA23: 0 | CB23: 0 | CC23: 0 | CD23: 0 | CE23: 0 | CF23: 0 | CG23: 0 | CH23: 0 | CI23: 0 | CX23: 0 | CY23: 113 | CZ23: 136 | DA23: 216 | DB23: 3 | DC23: 211 | DD23: 189 | DE23: 253 | DF23: 0 | DG23: 0 | DH23: 24 | DI23: 22 | DJ23: 0 | DK23: 167 | DL23: 0 | DM23: 0 | DN23: 0 | DO23: 155 | DP23: 0 | DQ23: 0 | DR23: 0 | DS23: 0 | DT23: 0 | DU23: 0 | DV23: 17 | DW23: 0 | DX23: 528 | DY23: 0 | DZ23: 74 | EA23: 0 | EB23: 0 | EC23: 0 | ED23: 0 | EE23: 120 | EF23: 39 | EG23: 4 | EH23: 0 | EI23: 0 | EJ23: 297 | EK23: 0 | EL23: 0 | EM23: 0 | EN23: 5 | EO23: 0 | EP23: 0 | EQ23: 0 | ER23: 0 | ES23: 0 | ET23: 0 | EU23: 0 | EV23: 0 | EW23: 0 | EX23: 0 | EY23: 0 | EZ23: 0 | FA23: 0 | FB23: 0 | FC23: 3 | FD23: 0 | FE23: 0 | FF23: 0 | FG23: 0 | FH23: 0 | FI23: 0 | FJ23: 0 | FK23: 0 | FL23: 0 | FM23: 0 | FN23: 0 | FO23: 0 | FP23: 0 | FQ23: 0 | FR23: 0 | FS23: 0 | FT23: 0 | FU23: 0 | FV23: 0 | FW23: 0 | FX23: 0 | FY23: 0 | FZ23: 0 | GA23: 0 | GB23: 0 | GC23: 0 | GD23: 0 | GE23: 0 | GF23: 0 | GG23: 0 | GH23: 0 | GI23: 0 | GJ23: 0
F24: 1 | I24: 2 | CX24: 0 | CY24: 0 | CZ24: 0 | DA24: 0 | DB24: 0 | DC24: 0 | DD24: 0 | DE24: 0 | DF24: 0 | DG24: 0 | DH24: 0 | DI24: 0 | DJ24: 0 | DK24: 0 | DL24: 0 | DM24: 0 | DN24: 0 | DO24: 0 | DP24: 0 | DQ24: 0 | DR24: 0 | DS24: 0 | DT24: 0 | DU24: 0 | DV24: 0 | DW24: 0 | DX24: 0 | DY24: 0 | DZ24: 0 | EA24: 0 | EB24: 0 | EC24: 0 | ED24: 0 | EE24: 0 | EF24: 0 | EG24: 0 | EH24: 0 | EI24: 0 | EJ24: 0 | EK24: 0 | EL24: 0 | EM24: 0 | EN24: 0 | EO24: 0 | EP24: 0 | EQ24: 0 | ER24: 0 | ES24: 0 | ET24: 0 | EU24: 0 | EV24: 0 | EW24: 0 | EX24: 0 | EY24: 0 | EZ24: 0 | FA24: 0 | FB24: 0 | FC24: 0 | FD24: 0 | FE24: 0 | FF24: 0 | FG24: 0 | FH24: 0 | FI24: 0 | FJ24: 0 | FK24: 0 | FL24: 0 | FM24: 0 | FN24: 0 | FO24: 0 | FP24: 0 | FQ24: 0 | FR24: 0 | FS24: 0 | FT24: 0 | FU24: 0 | FV24: 0 | FW24: 0 | FX24: 0 | FY24: 0 | FZ24: 0 | GA24: 0 | GB24: 0 | GC24: 0 | GD24: 0 | GE24: 0 | GF24: 0 | GG24: 0 | GH24: 0 | GI24: 0 | GJ24: 0
A25: 2 | D25: Substation Switchgear Equipment by Equipment Type | E25: CB - All Voltages | F25: 1 | G25: =Calibration!M25 -> 40.54518893 | H25: 6.367510419 | I25: 2 | J25: 24 | K25: 61 | L25: 65 | M25: 69 | N25: 33 | O25: 63 | P25: 91 | Q25: 69 | R25: 53 | S25: 44 | T25: 34 | U25: 7 | V25: 14 | W25: 16 | X25: 10 | Y25: 10 | Z25: 20 | AA25: 28 | AB25: 4 | AC25: 6 | AD25: 11 | AE25: 11 | AF25: 13 | AG25: 6 | AH25: 2 | AI25: 2 | AJ25: 25 | AK25: 17 | AL25: 21 | AM25: 14 | AN25: 22 | AO25: 10 | AP25: 8 | AQ25: 5 | AR25: 8 | AS25: 2 | AT25: 8 | AU25: 8 | AV25: 2 | AW25: 2 | AX25: 13 | AY25: 2 | AZ25: 0 | BA25: 0 | BB25: 0 | BC25: 3 | BD25: 0 | BE25: 3 | BF25: 0 | BG25: 0 | BH25: 0 | BI25: 0 | BJ25: 10 | BK25: 0 | BL25: 0 | BM25: 0 | BN25: 0 | BO25: 0 | BP25: 0 | BQ25: 0 | BR25: 0 | BS25: 0 | BT25: 0 | BU25: 0 | BV25: 0 | BW25: 0 | BX25: 0 | BY25: 0 | BZ25: 0 | CA25: 0 | CB25: 0 | CC25: 0 | CD25: 0 | CE25: 0 | CF25: 0 | CG25: 0 | CH25: 0 | CI25: 0 | CX25: 24 | CY25: 61 | CZ25: 65 | DA25: 69 | DB25: 33 | DC25: 63 | DD25: 91 | DE25: 69 | DF25: 53 | DG25: 44 | DH25: 34 | DI25: 7 | DJ25: 14 | DK25: 16 | DL25: 10 | DM25: 10 | DN25: 20 | DO25: 28 | DP25: 4 | DQ25: 6 | DR25: 11 | DS25: 11 | DT25: 13 | DU25: 6 | DV25: 2 | DW25: 2 | DX25: 25 | DY25: 17 | DZ25: 21 | EA25: 14 | EB25: 22 | EC25: 10 | ED25: 8 | EE25: 5 | EF25: 8 | EG25: 2 | EH25: 8 | EI25: 8 | EJ25: 2 | EK25: 2 | EL25: 13 | EM25: 2 | EN25: 0 | EO25: 0 | EP25: 0 | EQ25: 3 | ER25: 0 | ES25: 3 | ET25: 0 | EU25: 0 | EV25: 0 | EW25: 0 | EX25: 10 | EY25: 0 | EZ25: 0 | FA25: 0 | FB25: 0 | FC25: 0 | FD25: 0 | FE25: 0 | FF25: 0 | FG25: 0 | FH25: 0 | FI25: 0 | FJ25: 0 | FK25: 0 | FL25: 0 | FM25: 0 | FN25: 0 | FO25: 0 | FP25: 0 | FQ25: 0 | FR25: 0 | FS25: 0 | FT25: 0 | FU25: 0 | FV25: 0 | FW25: 0 | FX25: 0 | FY25: 0 | FZ25: 0 | GA25: 0 | GB25: 0 | GC25: 0 | GD25: 0 | GE25: 0 | GF25: 0 | GG25: 0 | GH25: 0 | GI25: 0 | GJ25: 0
A26: 2 | D26: Substation Switchgear Equipment by Equipment Type | E26: Isolator / ES - All Voltages | F26: 1 | G26: =Calibration!M26 -> 48.84757771 | H26: 6.989104213 | I26: 2 | J26: 119 | K26: 233 | L26: 284 | M26: 312 | N26: 120 | O26: 230 | P26: 341 | Q26: 325 | R26: 184 | S26: 159 | T26: 183 | U26: 68 | V26: 42 | W26: 58 | X26: 54 | Y26: 116 | Z26: 54 | AA26: 101 | AB26: 18 | AC26: 27 | AD26: 60 | AE26: 57 | AF26: 75 | AG26: 43 | AH26: 30 | AI26: 7 | AJ26: 53 | AK26: 16 | AL26: 64 | AM26: 56 | AN26: 77 | AO26: 118 | AP26: 41 | AQ26: 48 | AR26: 23 | AS26: 16 | AT26: 65 | AU26: 163 | AV26: 16 | AW26: 32 | AX26: 29 | AY26: 23 | AZ26: 16 | BA26: 33 | BB26: 27 | BC26: 28 | BD26: 5 | BE26: 11 | BF26: 0 | BG26: 5 | BH26: 16 | BI26: 43 | BJ26: 3 | BK26: 1 | BL26: 0 | BM26: 0 | BN26: 0 | BO26: 0 | BP26: 0 | BQ26: 0 | BR26: 0 | BS26: 0 | BT26: 0 | BU26: 0 | BV26: 0 | BW26: 0 | BX26: 0 | BY26: 0 | BZ26: 0 | CA26: 0 | CB26: 0 | CC26: 0 | CD26: 0 | CE26: 0 | CF26: 0 | CG26: 0 | CH26: 0 | CI26: 0 | CX26: 119 | CY26: 233 | CZ26: 284 | DA26: 312 | DB26: 120 | DC26: 230 | DD26: 341 | DE26: 325 | DF26: 184 | DG26: 159 | DH26: 183 | DI26: 68 | DJ26: 42 | DK26: 58 | DL26: 54 | DM26: 116 | DN26: 54 | DO26: 101 | DP26: 18 | DQ26: 27 | DR26: 60 | DS26: 57 | DT26: 75 | DU26: 43 | DV26: 30 | DW26: 7 | DX26: 53 | DY26: 16 | DZ26: 64 | EA26: 56 | EB26: 77 | EC26: 118 | ED26: 41 | EE26: 48 | EF26: 23 | EG26: 16 | EH26: 65 | EI26: 163 | EJ26: 16 | EK26: 32 | EL26: 29 | EM26: 23 | EN26: 16 | EO26: 33 | EP26: 27 | EQ26: 28 | ER26: 5 | ES26: 11 | ET26: 0 | EU26: 5 | EV26: 16 | EW26: 43 | EX26: 3 | EY26: 1 | EZ26: 0 | FA26: 0 | FB26: 0 | FC26: 0 | FD26: 0 | FE26: 0 | FF26: 0 | FG26: 0 | FH26: 0 | FI26: 0 | FJ26: 0 | FK26: 0 | FL26: 0 | FM26: 0 | FN26: 0 | FO26: 0 | FP26: 0 | FQ26: 0 | FR26: 0 | FS26: 0 | FT26: 0 | FU26: 0 | FV26: 0 | FW26: 0 | FX26: 0 | FY26: 0 | FZ26: 0 | GA26: 0 | GB26: 0 | GC26: 0 | GD26: 0 | GE26: 0 | GF26: 0 | GG26: 0 | GH26: 0 | GI26: 0 | GJ26: 0
A27: 2 | D27: Substation Switchgear Equipment by Equipment Type | E27: VT - All Voltages | F27: 1 | G27: =Calibration!M27 -> 39.02313645 | H27: 6.246850123 | I27: 2 | J27: 76 | K27: 158 | L27: 157 | M27: 122 | N27: 93 | O27: 157 | P27: 155 | Q27: 122 | R27: 151 | S27: 73 | T27: 86 | U27: 26 | V27: 93 | W27: 75 | X27: 32 | Y27: 82 | Z27: 22 | AA27: 52 | AB27: 35 | AC27: 5 | AD27: 13 | AE27: 11 | AF27: 8 | AG27: 5 | AH27: 3 | AI27: 0 | AJ27: 8 | AK27: 21 | AL27: 27 | AM27: 32 | AN27: 64 | AO27: 54 | AP27: 26 | AQ27: 14 | AR27: 1 | AS27: 0 | AT27: 4 | AU27: 38 | AV27: 0 | AW27: 11 | AX27: 13 | AY27: 11 | AZ27: 6 | BA27: 2 | BB27: 1 | BC27: 3 | BD27: 0 | BE27: 3 | BF27: 7 | BG27: 1 | BH27: 0 | BI27: 0 | BJ27: 2 | BK27: 0 | BL27: 0 | BM27: 0 | BN27: 0 | BO27: 0 | BP27: 0 | BQ27: 0 | BR27: 0 | BS27: 0 | BT27: 0 | BU27: 0 | BV27: 0 | BW27: 0 | BX27: 0 | BY27: 0 | BZ27: 0 | CA27: 0 | CB27: 0 | CC27: 0 | CD27: 0 | CE27: 0 | CF27: 0 | CG27: 0 | CH27: 0 | CI27: 0 | CX27: 76 | CY27: 158 | CZ27: 157 | DA27: 122 | DB27: 93 | DC27: 157 | DD27: 155 | DE27: 122 | DF27: 151 | DG27: 73 | DH27: 86 | DI27: =$F27*U27 -> 26 | DJ27: =$F27*V27 -> 93 | DK27: =$F27*W27 -> 75 | DL27: =$F27*X27 -> 32 | DM27: 82 | DN27: 22 | DO27: 52 | DP27: 35 | DQ27: 5 | DR27: 13 | DS27: 11 | DT27: 8 | DU27: 5 | DV27: 3 | DW27: 0 | DX27: 8 | DY27: 21 | DZ27: 27 | EA27: 32 | EB27: 64 | EC27: 54 | ED27: 26 | EE27: 14 | EF27: 1 | EG27: 0 | EH27: 4 | EI27: 38 | EJ27: 0 | EK27: 11 | EL27: 13 | EM27: 11 | EN27: 6 | EO27: 2 | EP27: 1 | EQ27: 3 | ER27: 0 | ES27: 3 | ET27: 7 | EU27: 1 | EV27: 0 | EW27: 0 | EX27: 2 | EY27: 0 | EZ27: 0 | FA27: 0 | FB27: 0 | FC27: 0 | FD27: 0 | FE27: 0 | FF27: 0 | FG27: 0 | FH27: 0 | FI27: 0 | FJ27: 0 | FK27: 0 | FL27: 0 | FM27: 0 | FN27: 0 | FO27: 0 | FP27: 0 | FQ27: 0 | FR27: 0 | FS27: 0 | FT27: 0 | FU27: 0 | FV27: 0 | FW27: 0 | FX27: 0 | FY27: 0 | FZ27: 0 | GA27: 0 | GB27: 0 | GC27: 0 | GD27: 0 | GE27: 0 | GF27: 0 | GG27: 0 | GH27: 0 | GI27: 0 | GJ27: 0
A28: 2 | D28: Substation Switchgear Equipment by Equipment Type | E28: CT - All Voltages | F28: 1 | G28: =Calibration!M28 -> 39.93573553 | H28: 6.319472726 | I28: 2 | J28: 181 | K28: 356 | L28: 301 | M28: 262 | N28: 63 | O28: 173 | P28: 219 | Q28: 174 | R28: 128 | S28: 149 | T28: 126 | U28: 25 | V28: 80 | W28: 52 | X28: 72 | Y28: 72 | Z28: 44 | AA28: 97 | AB28: 20 | AC28: 8 | AD28: 28 | AE28: 2 | AF28: 41 | AG28: 30 | AH28: 15 | AI28: 0 | AJ28: 35 | AK28: 18 | AL28: 43 | AM28: 48 | AN28: 75 | AO28: 53 | AP28: 49 | AQ28: 17 | AR28: 17 | AS28: 6 | AT28: 36 | AU28: 38 | AV28: 0 | AW28: 14 | AX28: 59 | AY28: 3 | AZ28: 2 | BA28: 0 | BB28: 3 | BC28: 1 | BD28: 6 | BE28: 8 | BF28: 3 | BG28: 5 | BH28: 0 | BI28: 0 | BJ28: 2 | BK28: 0 | BL28: 0 | BM28: 0 | BN28: 0 | BO28: 0 | BP28: 0 | BQ28: 0 | BR28: 0 | BS28: 0 | BT28: 0 | BU28: 0 | BV28: 0 | BW28: 0 | BX28: 0 | BY28: 0 | BZ28: 0 | CA28: 0 | CB28: 0 | CC28: 0 | CD28: 0 | CE28: 0 | CF28: 0 | CG28: 0 | CH28: 0 | CI28: 0 | CX28: 181 | CY28: 356 | CZ28: 301 | DA28: 262 | DB28: 63 | DC28: 173 | DD28: 219 | DE28: 174 | DF28: 128 | DG28: 149 | DH28: 126 | DI28: 25 | DJ28: 80 | DK28: 52 | DL28: 72 | DM28: 72 | DN28: 44 | DO28: 97 | DP28: 20 | DQ28: 8 | DR28: 28 | DS28: 2 | DT28: 41 | DU28: 30 | DV28: 15 | DW28: 0 | DX28: 35 | DY28: 18 | DZ28: 43 | EA28: 48 | EB28: 75 | EC28: 53 | ED28: 49 | EE28: 17 | EF28: 17 | EG28: 6 | EH28: 36 | EI28: 38 | EJ28: 0 | EK28: 14 | EL28: 59 | EM28: 3 | EN28: 2 | EO28: 0 | EP28: 3 | EQ28: 1 | ER28: 6 | ES28: 8 | ET28: 3 | EU28: 5 | EV28: 0 | EW28: 0 | EX28: 2 | EY28: 0 | EZ28: 0 | FA28: 0 | FB28: 0 | FC28: 0 | FD28: 0 | FE28: 0 | FF28: 0 | FG28: 0 | FH28: 0 | FI28: 0 | FJ28: 0 | FK28: 0 | FL28: 0 | FM28: 0 | FN28: 0 | FO28: 0 | FP28: 0 | FQ28: 0 | FR28: 0 | FS28: 0 | FT28: 0 | FU28: 0 | FV28: 0 | FW28: 0 | FX28: 0 | FY28: 0 | FZ28: 0 | GA28: 0 | GB28: 0 | GC28: 0 | GD28: 0 | GE28: 0 | GF28: 0 | GG28: 0 | GH28: 0 | GI28: 0 | GJ28: 0
F29: 1 | I29: 2 | CX29: =$F29*J29 -> 0 | CY29: 0 | CZ29: 0 | DA29: 0 | DB29: 0 | DC29: 0 | DD29: 0 | DE29: 0 | DF29: 0 | DG29: 0 | DH29: 0 | DI29: 0 | DJ29: 0 | DK29: 0 | DL29: 0 | DM29: 0 | DN29: 0 | DO29: 0 | DP29: 0 | DQ29: 0 | DR29: 0 | DS29: 0 | DT29: 0 | DU29: 0 | DV29: 0 | DW29: 0 | DX29: 0 | DY29: 0 | DZ29: 0 | EA29: 0 | EB29: 0 | EC29: 0 | ED29: 0 | EE29: 0 | EF29: 0 | EG29: 0 | EH29: 0 | EI29: 0 | EJ29: 0 | EK29: 0 | EL29: 0 | EM29: 0 | EN29: 0 | EO29: 0 | EP29: 0 | EQ29: 0 | ER29: 0 | ES29: 0 | ET29: 0 | EU29: 0 | EV29: 0 | EW29: 0 | EX29: 0 | EY29: 0 | EZ29: 0 | FA29: 0 | FB29: 0 | FC29: 0 | FD29: 0 | FE29: 0 | FF29: 0 | FG29: 0 | FH29: 0 | FI29: 0 | FJ29: 0 | FK29: 0 | FL29: 0 | FM29: 0 | FN29: 0 | FO29: 0 | FP29: 0 | FQ29: 0 | FR29: 0 | FS29: 0 | FT29: 0 | FU29: 0 | FV29: 0 | FW29: 0 | FX29: 0 | FY29: 0 | FZ29: 0 | GA29: 0 | GB29: 0 | GC29: 0 | GD29: 0 | GE29: 0 | GF29: 0 | GG29: 0 | GH29: 0 | GI29: 0 | GJ29: 0
A30: 3 | D30: Secondary Systems by Function | E30: Secondary Systems - Bay or Non-bay | F30: 1 | G30: =Calibration!M30 -> 21.6901574 | H30: 4.657269308 | I30: 2 | J30: 34 | K30: 126 | L30: 54 | M30: 169 | N30: 43 | O30: 120 | P30: 84 | Q30: 49 | R30: 67 | S30: 96 | T30: 56 | U30: 9 | V30: 79 | W30: 31 | X30: 53 | Y30: 34 | Z30: 28 | AA30: 23 | AB30: 39 | AC30: 30 | AD30: 7 | AE30: 12 | AF30: 3 | AG30: 17 | AH30: 6 | AI30: 1 | AJ30: 0 | AK30: 3 | AL30: 20 | AM30: 15 | AN30: 12 | AO30: 2 | AP30: 13 | AQ30: 8 | AR30: 3 | AS30: 2 | AT30: 5 | AU30: 0 | AV30: 0 | AW30: 0 | AX30: 0 | AY30: 0 | AZ30: 1 | BA30: 0 | BB30: 0 | BC30: 0 | BD30: 0 | BE30: 0 | BF30: 0 | BG30: 0 | BH30: 0 | BI30: 0 | BJ30: 0 | BK30: 0 | BL30: 0 | BM30: 0 | BN30: 0 | BO30: 0 | BP30: 0 | BQ30: 0 | BR30: 0 | BS30: 0 | BT30: 0 | BU30: 0 | BV30: 0 | BW30: 0 | BX30: 0 | BY30: 0 | BZ30: 0 | CA30: 0 | CB30: 0 | CC30: 0 | CD30: 0 | CE30: 0 | CF30: 0 | CG30: 0 | CH30: 0 | CI30: 0 | CX30: =$F30*J30 -> 34 | CY30: =$F30*K30 -> 126 | CZ30: =$F30*L30 -> 54 | DA30: =$F30*M30 -> 169 | DB30: =$F30*N30 -> 43 | DC30: =$F30*O30 -> 120 | DD30: =$F30*P30 -> 84 | DE30: =$F30*Q30 -> 49 | DF30: =$F30*R30 -> 67 | DG30: =$F30*S30 -> 96 | DH30: =$F30*T30 -> 56 | DI30: =$F30*U30 -> 9 | DJ30: =$F30*V30 -> 79 | DK30: =$F30*W30 -> 31 | DL30: =$F30*X30 -> 53 | DM30: =$F30*Y30 -> 34 | DN30: =$F30*Z30 -> 28 | DO30: =$F30*AA30 -> 23 | DP30: =$F30*AB30 -> 39 | DQ30: =$F30*AC30 -> 30 | DR30: =$F30*AD30 -> 7 | DS30: =$F30*AE30 -> 12 | DT30: =$F30*AF30 -> 3 | DU30: =$F30*AG30 -> 17 | DV30: =$F30*AH30 -> 6 | DW30: =$F30*AI30 -> 1 | DX30: =$F30*AJ30 -> 0 | DY30: =$F30*AK30 -> 3 | DZ30: =$F30*AL30 -> 20 | EA30: =$F30*AM30 -> 15 | EB30: =$F30*AN30 -> 12 | EC30: =$F30*AO30 -> 2 | ED30: =$F30*AP30 -> 13 | EE30: =$F30*AQ30 -> 8 | EF30: =$F30*AR30 -> 3 | EG30: =$F30*AS30 -> 2 | EH30: =$F30*AT30 -> 5 | EI30: =$F30*AU30 -> 0 | EJ30: =$F30*AV30 -> 0 | EK30: =$F30*AW30 -> 0 | EL30: =$F30*AX30 -> 0 | EM30: =$F30*AY30 -> 0 | EN30: =$F30*AZ30 -> 1 | EO30: =$F30*BA30 -> 0 | EP30: =$F30*BB30 -> 0 | EQ30: =$F30*BC30 -> 0 | ER30: =$F30*BD30 -> 0 | ES30: =$F30*BE30 -> 0 | ET30: =$F30*BF30 -> 0 | EU30: =$F30*BG30 -> 0 | EV30: =$F30*BH30 -> 0 | EW30: =$F30*BI30 -> 0 | EX30: =$F30*BJ30 -> 0 | EY30: =$F30*BK30 -> 0 | EZ30: =$F30*BL30 -> 0 | FA30: =$F30*BM30 -> 0 | FB30: =$F30*BN30 -> 0 | FC30: =$F30*BO30 -> 0 | FD30: =$F30*BP30 -> 0 | FE30: =$F30*BQ30 -> 0 | FF30: =$F30*BR30 -> 0 | FG30: =$F30*BS30 -> 0 | FH30: =$F30*BT30 -> 0 | FI30: =$F30*BU30 -> 0 | FJ30: =$F30*BV30 -> 0 | FK30: =$F30*BW30 -> 0 | FL30: =$F30*BX30 -> 0 | FM30: =$F30*BY30 -> 0 | FN30: =$F30*BZ30 -> 0 | FO30: =$F30*CA30 -> 0 | FP30: =$F30*CB30 -> 0 | FQ30: =$F30*CC30 -> 0 | FR30: =$F30*CD30 -> 0 | FS30: =$F30*CE30 -> 0 | FT30: =$F30*CF30 -> 0 | FU30: =$F30*CG30 -> 0 | FV30: =$F30*CH30 -> 0 | FW30: =$F30*CI30 -> 0 | FX30: =$F30*CJ30 -> 0 | FY30: =$F30*CK30 -> 0 | FZ30: =$F30*CL30 -> 0 | GA30: =$F30*CM30 -> 0 | GB30: =$F30*CN30 -> 0 | GC30: =$F30*CO30 -> 0 | GD30: =$F30*CP30 -> 0 | GE30: =$F30*CQ30 -> 0 | GF30: =$F30*CR30 -> 0 | GG30: =$F30*CS30 -> 0 | GH30: =$F30*CT30 -> 0 | GI30: =$F30*CU30 -> 0 | GJ30: =$F30*CV30 -> 0

Sheet RRR hist-forc
A1: Asset calcs | AY1: ="Replacement expenditure forecast - not valid expenditure" -> Replacement expenditure forecast - not valid expenditure | BS1: Weighted average age forecast (WAA) | DI1: Replacement quantity forecast
AY2: 1 | AZ2: 2 | BA2: 3 | BB2: 4 | BC2: 5 | BD2: 6 | BE2: 7 | BF2: 8 | BG2: 9 | BH2: 10 | BI2: 11 | BJ2: 12 | BK2: 13 | BL2: 14 | BM2: 15 | BN2: 16 | BO2: 17 | BP2: 18 | BQ2: 19 | BR2: 20 | BS2: 0 | BT2: 1 | BU2: 2 | BV2: 3 | BW2: 4 | BX2: 5 | BY2: 6 | BZ2: 7 | CA2: 8 | CB2: 9 | CC2: 10 | CD2: 11 | CE2: 12 | CF2: 13 | CG2: 14 | CH2: 15 | CI2: 16 | CJ2: 17 | CK2: 18 | CL2: 19 | CM2: 20 | DI2: 1 | DJ2: 2 | DK2: 3 | DL2: 4 | DM2: 5 | DN2: 6 | DO2: 7 | DP2: 8 | DQ2: 9 | DR2: 10 | DS2: 11 | DT2: 12 | DU2: 13 | DV2: 14 | DW2: 15 | DX2: 16 | DY2: 17 | DZ2: 18 | EA2: 19 | EB2: 20
Q3: DNSP
G4: Historical | Q4: Forcast | AO4: Model forecast
E5: year | G5: =H5-1 -> 2006 | H5: 2007 | I5: 2008 | J5: 2009 | K5: 2010 | L5: 2011 | M5: 2012 | N5: 2013 | O5: =P5-1 -> 2014 | P5: =IF(Tables!B19=1,Now,Now-1) -> 2015 | Q5: =P5+1 -> 2016 | R5: =Q5+1 -> 2017 | S5: 2018 | T5: 2019 | U5: 2020 | V5: 2021 | W5: 2022 | X5: 2023 | Y5: 2024 | Z5: 2025 | AA5: =Z5+1 -> 2026 | AB5: 2027 | AC5: 2028 | AD5: 2029 | AE5: 2030 | AF5: 2031 | AG5: 2032 | AH5: 2033 | AI5: 2034 | AJ5: 2035 | AO5: =G5 -> 2006 | AP5: 2007 | AQ5: 2008 | AR5: 2009 | AS5: 2010 | AT5: 2011 | AU5: 2012 | AV5: 2013 | AW5: 2014 | AX5: 2015 | AY5: =Q5 -> 2016 | AZ5: 2017 | BA5: 2018 | BB5: 2019 | BC5: 2020 | BD5: 2021 | BE5: 2022 | BF5: 2023 | BG5: 2024 | BH5: 2025 | BI5: 2026 | BJ5: 2027 | BK5: 2028 | BL5: 2029 | BM5: 2030 | BN5: 2031 | BO5: 2032 | BP5: 2033 | BQ5: 2034 | BR5: 2035 | BS5: =AX5 -> 2015 | BT5: =AY5 -> 2016 | BU5: 2017 | BV5: 2018 | BW5: 2019 | BX5: 2020 | BY5: 2021 | BZ5: 2022 | CA5: 2023 | CB5: 2024 | CC5: 2025 | CD5: 2026 | CE5: 2027 | CF5: 2028 | CG5: 2029 | CH5: 2030 | CI5: 2031 | CJ5: 2032 | CK5: 2033 | CL5: 2034 | CM5: 2035 | DI5: =AY5 -> 2016 | DJ5: =AZ5 -> 2017 | DK5: 2018 | DL5: 2019 | DM5: 2020 | DN5: 2021 | DO5: 2022 | DP5: 2023 | DQ5: 2024 | DR5: 2025 | DS5: 2026 | DT5: 2027 | DU5: 2028 | DV5: 2029 | DW5: 2030 | DX5: 2031 | DY5: 2032 | DZ5: 2033 | EA5: 2034 | EB5: 2035
A6: 1 | D6: =VLOOKUP(A6,IDtable,2) -> Transmission Towers, by Corrosion Zone | E6: =D6 -> Transmission Towers, by Corrosion Zone | AN6: =D6 & " (mod)" -> Transmission Towers, by Corrosion Zone (mod) | AY6: =SUMIF($A$21:$A$199,$A6,AY$21:AY$199) -> 89.18337343 | AZ6: 103.8704606 | BA6: 120.062483 | BB6: 137.7573974 | BC6: 156.9515124 | BD6: 177.6353234 | BE6: 199.7840624 | BF6: 223.3434328 | BG6: 248.2120704 | BH6: 274.2232323 | BI6: =SUMIF($A$21:$A$199,$A6,BI$21:BI$199) -> 301.1288453 | BJ6: 328.5891819 | BK6: 356.1710036 | BL6: 383.3560434 | BM6: 409.5603567 | BN6: 434.1635689 | BO6: 456.5456575 | BP6: 476.1278509 | BQ6: 492.4136615 | BR6: 505.0260379 | DI6: =SUMIF($A$21:$A$199,$A6,DI$21:DI$199) -> 89.18337343 | DJ6: 103.8704606 | DK6: 120.062483 | DL6: 137.7573974 | DM6: 156.9515124 | DN6: 177.6353234 | DO6: 199.7840624 | DP6: 223.3434328 | DQ6: 248.2120704 | DR6: 274.2232323 | DS6: =SUMIF($A$21:$A$199,$A6,DS$21:DS$199) -> 301.1288453 | DT6: 328.5891819 | DU6: 356.1710036 | DV6: 383.3560434 | DW6: 409.5603567 | DX6: 434.1635689 | DY6: 456.5456575 | DZ6: 476.1278509 | EA6: 492.4136615 | EB6: 505.0260379
A7: 2 | D7: Substation Switchgear Equipment by Equipment Type | E7: Substation Switchgear Equipment by Equipment Type | AN7: =D7 & " (mod)" -> Substation Switchgear Equipment by Equipment Type (mod) | AY7: 94.25402444 | AZ7: 96.60855099 | BA7: 99.15921409 | BB7: 101.8210504 | BC7: 104.4964245 | BD7: 107.086029 | BE7: 109.5007669 | BF7: 111.6737898 | BG7: 113.5716451 | BH7: 115.2032703 | BI7: 116.625581 | BJ7: 117.9447037 | BK7: 119.3124612 | BL7: 120.9184195 | BM7: 122.9784783 | BN7: 125.7214618 | BO7: 129.3753193 | BP7: 134.1543406 | BQ7: 140.2482851 | BR7: 147.8136546 | DI7: 94.25402444 | DJ7: 96.60855099 | DK7: 99.15921409 | DL7: 101.8210504 | DM7: 104.4964245 | DN7: 107.086029 | DO7: 109.5007669 | DP7: 111.6737898 | DQ7: 113.5716451 | DR7: 115.2032703 | DS7: 116.625581 | DT7: 117.9447037 | DU7: 119.3124612 | DV7: 120.9184195 | DW7: 122.9784783 | DX7: 125.7214618 | DY7: 129.3753193 | DZ7: 134.1543406 | EA7: 140.2482851 | EB7: 147.8136546
A8: 3 | D8: Secondary Systems by Function | E8: Secondary Systems by Function | AN8: Secondary Systems by Function (mod) | AY8: 60.51904409 | AZ8: 50.08752875 | BA8: 44.43740066 | BB8: 42.03060102 | BC8: 41.7817296 | BD8: 42.95198169 | BE8: 45.05915872 | BF8: 47.79929771 | BG8: 50.97972463 | BH8: 54.46438819 | BI8: 58.13221409 | BJ8: 61.84892158 | BK8: 65.4525137 | BL8: 68.75231919 | BM8: 71.54072064 | BN8: 73.61537148 | BO8: 74.80791761 | BP8: 75.01351148 | BQ8: 74.21448509 | BR8: 72.49210842 | DI8: 60.51904409 | DJ8: 50.08752875 | DK8: 44.43740066 | DL8: 42.03060102 | DM8: 41.7817296 | DN8: 42.95198169 | DO8: 45.05915872 | DP8: 47.79929771 | DQ8: 50.97972463 | DR8: 54.46438819 | DS8: 58.13221409 | DT8: 61.84892158 | DU8: 65.4525137 | DV8: 68.75231919 | DW8: 71.54072064 | DX8: 73.61537148 | DY8: 74.80791761 | DZ8: 75.01351148 | EA8: 74.21448509 | EB8: 72.49210842
A9: 4 | D9: Not used | E9: Not used | AN9: Not used (mod) | AY9: 0 | AZ9: 0 | BA9: 0 | BB9: 0 | BC9: 0 | BD9: 0 | BE9: 0 | BF9: 0 | BG9: 0 | BH9: 0 | BI9: 0 | BJ9: 0 | BK9: 0 | BL9: 0 | BM9: 0 | BN9: 0 | BO9: 0 | BP9: 0 | BQ9: 0 | BR9: 0 | DI9: 0 | DJ9: 0 | DK9: 0 | DL9: 0 | DM9: 0 | DN9: 0 | DO9: 0 | DP9: 0 | DQ9: 0 | DR9: 0 | DS9: 0 | DT9: 0 | DU9: 0 | DV9: 0 | DW9: 0 | DX9: 0 | DY9: 0 | DZ9: 0 | EA9: 0 | EB9: 0
A10: 5 | D10: Not used | E10: Not used | AN10: Not used (mod) | AY10: 0 | AZ10: 0 | BA10: 0 | BB10: 0 | BC10: 0 | BD10: 0 | BE10: 0 | BF10: 0 | BG10: 0 | BH10: 0 | BI10: 0 | BJ10: 0 | BK10: 0 | BL10: 0 | BM10: 0 | BN10: 0 | BO10: 0 | BP10: 0 | BQ10: 0 | BR10: 0 | DI10: 0 | DJ10: 0 | DK10: 0 | DL10: 0 | DM10: 0 | DN10: 0 | DO10: 0 | DP10: 0 | DQ10: 0 | DR10: 0 | DS10: 0 | DT10: 0 | DU10: 0 | DV10: 0 | DW10: 0 | DX10: 0 | DY10: 0 | DZ10: 0 | EA10: 0 | EB10: 0
A11: 6 | D11: Not used | E11: Not used | AN11: Not used (mod) | AY11: 0 | AZ11: 0 | BA11: 0 | BB11: 0 | BC11: 0 | BD11: 0 | BE11: 0 | BF11: 0 | BG11: 0 | BH11: 0 | BI11: 0 | BJ11: 0 | BK11: 0 | BL11: 0 | BM11: 0 | BN11: 0 | BO11: 0 | BP11: 0 | BQ11: 0 | BR11: 0 | DI11: 0 | DJ11: 0 | DK11: 0 | DL11: 0 | DM11: 0 | DN11: 0 | DO11: 0 | DP11: 0 | DQ11: 0 | DR11: 0 | DS11: 0 | DT11: 0 | DU11: 0 | DV11: 0 | DW11: 0 | DX11: 0 | DY11: 0 | DZ11: 0 | EA11: 0 | EB11: 0
A12: 7 | D12: Not used | E12: Not used | AN12: Not used (mod) | AY12: 0 | AZ12: 0 | BA12: 0 | BB12: 0 | BC12: 0 | BD12: 0 | BE12: 0 | BF12: 0 | BG12: 0 | BH12: 0 | BI12: 0 | BJ12: 0 | BK12: 0 | BL12: 0 | BM12: 0 | BN12: 0 | BO12: 0 | BP12: 0 | BQ12: 0 | BR12: 0 | DI12: 0 | DJ12: 0 | DK12: 0 | DL12: 0 | DM12: 0 | DN12: 0 | DO12: 0 | DP12: 0 | DQ12: 0 | DR12: 0 | DS12: 0 | DT12: 0 | DU12: 0 | DV12: 0 | DW12: 0 | DX12: 0 | DY12: 0 | DZ12: 0 | EA12: 0 | EB12: 0
A13: 8 | D13: Not used | E13: Not used | AN13: Not used (mod) | AY13: 0 | AZ13: 0 | BA13: 0 | BB13: 0 | BC13: 0 | BD13: 0 | BE13: 0 | BF13: 0 | BG13: 0 | BH13: 0 | BI13: 0 | BJ13: 0 | BK13: 0 | BL13: 0 | BM13: 0 | BN13: 0 | BO13: 0 | BP13: 0 | BQ13: 0 | BR13: 0 | DI13: 0 | DJ13: 0 | DK13: 0 | DL13: 0 | DM13: 0 | DN13: 0 | DO13: 0 | DP13: 0 | DQ13: 0 | DR13: 0 | DS13: 0 | DT13: 0 | DU13: 0 | DV13: 0 | DW13: 0 | DX13: 0 | DY13: 0 | DZ13: 0 | EA13: 0 | EB13: 0
A14: 9 | D14: =VLOOKUP(A14,IDtable,2) -> Not used | E14: =D14 -> Not used | AN14: =D14 & " (mod)" -> Not used (mod) | AY14: 0 | AZ14: 0 | BA14: 0 | BB14: 0 | BC14: 0 | BD14: 0 | BE14: 0 | BF14: 0 | BG14: 0 | BH14: 0 | BI14: 0 | BJ14: 0 | BK14: 0 | BL14: 0 | BM14: 0 | BN14: 0 | BO14: 0 | BP14: 0 | BQ14: 0 | BR14: 0 | DI14: 0 | DJ14: 0 | DK14: 0 | DL14: 0 | DM14: 0 | DN14: 0 | DO14: 0 | DP14: 0 | DQ14: 0 | DR14: 0 | DS14: 0 | DT14: 0 | DU14: 0 | DV14: 0 | DW14: 0 | DX14: 0 | DY14: 0 | DZ14: 0 | EA14: 0 | EB14: 0
A15: 10 | D15: =VLOOKUP(A15,IDtable,2) -> Not used | E15: =D15 -> Not used | AN15: =D15 & " (mod)" -> Not used (mod) | AY15: 0 | AZ15: 0 | BA15: 0 | BB15: 0 | BC15: 0 | BD15: 0 | BE15: 0 | BF15: 0 | BG15: 0 | BH15: 0 | BI15: 0 | BJ15: 0 | BK15: 0 | BL15: 0 | BM15: 0 | BN15: 0 | BO15: 0 | BP15: 0 | BQ15: 0 | BR15: 0 | DI15: 0 | DJ15: 0 | DK15: 0 | DL15: 0 | DM15: 0 | DN15: 0 | DO15: 0 | DP15: 0 | DQ15: 0 | DR15: 0 | DS15: 0 | DT15: 0 | DU15: 0 | DV15: 0 | DW15: 0 | DX15: 0 | DY15: 0 | DZ15: 0 | EA15: 0 | EB15: 0
A16: 11 | D16: =VLOOKUP(A16,IDtable,2) -> Not used | E16: =D16 -> Not used | AN16: =D16 & " (mod)" -> Not used (mod) | AY16: 0 | AZ16: 0 | BA16: 0 | BB16: 0 | BC16: 0 | BD16: 0 | BE16: 0 | BF16: 0 | BG16: 0 | BH16: 0 | BI16: 0 | BJ16: 0 | BK16: 0 | BL16: 0 | BM16: 0 | BN16: 0 | BO16: 0 | BP16: 0 | BQ16: 0 | BR16: 0 | DI16: 0 | DJ16: 0 | DK16: 0 | DL16: 0 | DM16: 0 | DN16: 0 | DO16: 0 | DP16: 0 | DQ16: 0 | DR16: 0 | DS16: 0 | DT16: 0 | DU16: 0 | DV16: 0 | DW16: 0 | DX16: 0 | DY16: 0 | DZ16: 0 | EA16: 0 | EB16: 0
A17: 12 | D17: =VLOOKUP(A17,IDtable,2) -> Not used | E17: =D17 -> Not used | AN17: =D17 & " (mod)" -> Not used (mod) | AY17: 0 | AZ17: 0 | BA17: 0 | BB17: 0 | BC17: 0 | BD17: 0 | BE17: 0 | BF17: 0 | BG17: 0 | BH17: 0 | BI17: 0 | BJ17: 0 | BK17: 0 | BL17: 0 | BM17: 0 | BN17: 0 | BO17: 0 | BP17: 0 | BQ17: 0 | BR17: 0 | DI17: 0 | DJ17: 0 | DK17: 0 | DL17: 0 | DM17: 0 | DN17: 0 | DO17: 0 | DP17: 0 | DQ17: 0 | DR17: 0 | DS17: 0 | DT17: 0 | DU17: 0 | DV17: 0 | DW17: 0 | DX17: 0 | DY17: 0 | DZ17: 0 | EA17: 0 | EB17: 0
D18: Total | G18: =SUM(G6:G14) -> 0 | H18: =SUM(H6:H14) -> 0 | I18: 0 | J18: 0 | K18: 0 | L18: 0 | M18: 0 | N18: 0 | O18: 0 | P18: 0 | Q18: 0 | R18: 0 | S18: 0 | T18: 0 | U18: 0 | V18: 0 | W18: 0 | X18: 0 | Y18: 0 | Z18: 0 | AA18: 0 | AB18: 0 | AC18: 0 | AD18: 0 | AE18: 0 | AF18: 0 | AG18: 0 | AH18: 0 | AI18: 0 | AJ18: 0 | AN18: Total (mod) | AO18: 0 | AP18: 0 | AQ18: 0 | AR18: 0 | AS18: 0 | AT18: 0 | AU18: 0 | AV18: 0 | AW18: 0 | AX18: 0 | AY18: =SUM(AY6:AY17) -> 243.956442 | AZ18: 250.5665403 | BA18: 263.6590977 | BB18: 281.6090488 | BC18: 303.2296665 | BD18: 327.673334 | BE18: 354.343988 | BF18: 382.8165203 | BG18: 412.7634401 | BH18: 443.8908908 | BI18: 475.8866404 | BJ18: 508.3828072 | BK18: 540.9359785 | BL18: 573.026782 | BM18: 604.0795556 | BN18: 633.5004021 | BO18: 660.7288943 | BP18: 685.295703 | BQ18: 706.8764317 | BR18: 725.3318009 | DI18: =SUM(DI6:DI17) -> 243.956442 | DJ18: 250.5665403 | DK18: 263.6590977 | DL18: 281.6090488 | DM18: 303.2296665 | DN18: 327.673334 | DO18: 354.343988 | DP18: 382.8165203 | DQ18: 412.7634401 | DR18: 443.8908908 | DS18: 475.8866404 | DT18: 508.3828072 | DU18: 540.9359785 | DV18: 573.026782 | DW18: 604.0795556 | DX18: 633.5004021 | DY18: 660.7288943 | DZ18: 685.295703 | EA18: 706.8764317 | EB18: 725.3318009
D20: asset categories | F20: Std life | G20: Rep life | H20: SD | I20: Life (S/R) | J20: Meth (D/P) | K20: M life | L20: =IF(Tables!B18=1,TRUE,FALSE) -> TRUE | M20: =IF(Tables!B19=1,TRUE,FALSE) -> TRUE | AY20: % of RC ↑ | AZ20: =AZ18/AY18 -> 1.027095404 | BA20: =BA18/AZ18 -> 1.052251819 | BB20: 1.068080151 | BC20: 1.076775295 | BD20: 1.080611069 | BE20: 1.081394033 | BF20: 1.080352802 | BS20: % of total life ↑
A21: ='Asset data'!A21 -> 1 | B21: ='Asset data'!B21 -> 0 | C21: ='Asset data'!C21 -> 0 | D21: ='Asset data'!E21 -> Towers in Corrosion Zone B | E21: =IF(A21>0,VLOOKUP(A21,IDtable,2),0) -> Transmission Towers, by Corrosion Zone | F21: ='Asset data'!G21 -> 65.5594991 | G21: =F21 -> 65.5594991 | H21: ='Asset data'!H21 -> 8.096882061 | I21: S | J21: =IF(A21=0,0,IF('Asset data'!$D$1=1,1,IF('Asset data'!$D$1=2,2,'Asset data'!I21))) -> 2 | K21: =IF(A21>0,IF(I21="S",F21,IF(I21="R",G21,9999)),0) -> 65.5594991 | AY21: =repcalc('Age profile (Inst)'!CT21:GF21,J21,K21,H21,20,$L$20,$M$20) -> 4.584496751 | AZ21: 5.959000395 | BA21: 7.646596782 | BB21: 9.686937152 | BC21: 12.11548491 | BD21: 14.96049599 | BE21: 18.23977731 | BF21: 21.95744512 | BG21: 26.10095319 | BH21: 30.63868861 | BI21: 35.51843273 | BJ21: 40.66695166 | BK21: 45.99091341 | BL21: 51.37923122 | BM21: 56.7068128 | BN21: 61.83956477 | BO21: 66.640376 | BP21: 70.97569692 | BQ21: 74.72225775 | BR21: 77.77343738 | BS21: 32.86976912 | BT21: 33.79050992 | BU21: 34.68632135 | BV21: 35.55131194 | BW21: 36.378874 | BX21: 37.161817 | BY21: 37.89258127 | BZ21: 38.56353525 | CA21: 39.16735073 | CB21: 39.6974393 | CC21: 40.14842161 | CD21: 40.51659085 | CE21: 40.80032523 | CF21: 41.00040429 | CG21: 41.12019075 | CH21: 41.16565381 | CI21: 41.14522832 | CJ21: 41.06952373 | CK21: 40.9509123 | CL21: 40.80303547 | CM21: 40.64026875 | DI21: =IF('Asset data'!$F21=0,0,AY21/'Asset data'!$F21) -> 4.584496751 | DJ21: =IF('Asset data'!$F21=0,0,AZ21/'Asset data'!$F21) -> 5.959000395 | DK21: =IF('Asset data'!$F21=0,0,BA21/'Asset data'!$F21) -> 7.646596782 | DL21: =IF('Asset data'!$F21=0,0,BB21/'Asset data'!$F21) -> 9.686937152 | DM21: =IF('Asset data'!$F21=0,0,BC21/'Asset data'!$F21) -> 12.11548491 | DN21: =IF('Asset data'!$F21=0,0,BD21/'Asset data'!$F21) -> 14.96049599 | DO21: =IF('Asset data'!$F21=0,0,BE21/'Asset data'!$F21) -> 18.23977731 | DP21: =IF('Asset data'!$F21=0,0,BF21/'Asset data'!$F21) -> 21.95744512 | DQ21: =IF('Asset data'!$F21=0,0,BG21/'Asset data'!$F21) -> 26.10095319 | DR21: =IF('Asset data'!$F21=0,0,BH21/'Asset data'!$F21) -> 30.63868861 | DS21: =IF('Asset data'!$F21=0,0,BI21/'Asset data'!$F21) -> 35.51843273 | DT21: =IF('Asset data'!$F21=0,0,BJ21/'Asset data'!$F21) -> 40.66695166 | DU21: =IF('Asset data'!$F21=0,0,BK21/'Asset data'!$F21) -> 45.99091341 | DV21: =IF('Asset data'!$F21=0,0,BL21/'Asset data'!$F21) -> 51.37923122 | DW21: =IF('Asset data'!$F21=0,0,BM21/'Asset data'!$F21) -> 56.7068128 | DX21: =IF('Asset data'!$F21=0,0,BN21/'Asset data'!$F21) -> 61.83956477 | DY21: =IF('Asset data'!$F21=0,0,BO21/'Asset data'!$F21) -> 66.640376 | DZ21: =IF('Asset data'!$F21=0,0,BP21/'Asset data'!$F21) -> 70.97569692 | EA21: =IF('Asset data'!$F21=0,0,BQ21/'Asset data'!$F21) -> 74.72225775 | EB21: =IF('Asset data'!$F21=0,0,BR21/'Asset data'!$F21) -> 77.77343738
A22: ='Asset data'!A22 -> 1 | B22: ='Asset data'!B22 -> 0 | C22: ='Asset data'!C22 -> 0 | D22: ='Asset data'!E22 -> Towers in Corrosion Zone C | E22: Transmission Towers, by Corrosion Zone | F22: ='Asset data'!G22 -> 55.56478617 | G22: 55.56478617 | H22: ='Asset data'!H22 -> 7.454179108 | I22: S | J22: =IF(A22=0,0,IF('Asset data'!$D$1=1,1,IF('Asset data'!$D$1=2,2,'Asset data'!I22))) -> 2 | K22: 55.56478617 | AY22: =repcalc('Age profile (Inst)'!CT22:GF22,J22,K22,H22,20,$L$20,$M$20) -> 59.34349563 | AZ22: 69.50944342 | BA22: 80.81260869 | BB22: 93.30168116 | BC22: 107.0162669 | BD22: 121.9810566 | BE22: 138.1980434 | BF22: 155.6371389 | BG22: 174.2259002 | BH22: 193.8394235 | BI22: 214.2917185 | BJ22: 235.3300085 | BK22: 256.6333511 | BL22: 277.8167402 | BM22: 298.4414222 | BN22: 318.0315838 | BO22: 336.0968854 | BP22: 352.159614 | BQ22: 365.7845747 | BR22: 376.6093335 | BS22: 24.71489335 | BT22: 25.5395282 | BU22: 26.34020574 | BV22: 27.11500837 | BW22: 27.86179411 | BX22: 28.57817907 | BY22: 29.2615657 | BZ22: 29.90922591 | CA22: 30.51844029 | CB22: 31.08668756 | CC22: 31.61187086 | CD22: 32.0925627 | CE22: 32.52824661 | CF22: 32.91953239 | CG22: 33.26832169 | CH22: 33.57790328 | CI22: 33.85296162 | CJ22: 34.09948868 | CK22: 34.32459715 | CL22: 34.53624138 | CM22: 34.74286099 | DI22: =IF('Asset data'!$F22=0,0,AY22/'Asset data'!$F22) -> 59.34349563 | DJ22: =IF('Asset data'!$F22=0,0,AZ22/'Asset data'!$F22) -> 69.50944342 | DK22: =IF('Asset data'!$F22=0,0,BA22/'Asset data'!$F22) -> 80.81260869 | DL22: =IF('Asset data'!$F22=0,0,BB22/'Asset data'!$F22) -> 93.30168116 | DM22: =IF('Asset data'!$F22=0,0,BC22/'Asset data'!$F22) -> 107.0162669 | DN22: =IF('Asset data'!$F22=0,0,BD22/'Asset data'!$F22) -> 121.9810566 | DO22: =IF('Asset data'!$F22=0,0,BE22/'Asset data'!$F22) -> 138.1980434 | DP22: =IF('Asset data'!$F22=0,0,BF22/'Asset data'!$F22) -> 155.6371389 | DQ22: =IF('Asset data'!$F22=0,0,BG22/'Asset data'!$F22) -> 174.2259002 | DR22: =IF('Asset data'!$F22=0,0,BH22/'Asset data'!$F22) -> 193.8394235 | DS22: =IF('Asset data'!$F22=0,0,BI22/'Asset data'!$F22) -> 214.2917185 | DT22: =IF('Asset data'!$F22=0,0,BJ22/'Asset data'!$F22) -> 235.3300085 | DU22: =IF('Asset data'!$F22=0,0,BK22/'Asset data'!$F22) -> 256.6333511 | DV22: =IF('Asset data'!$F22=0,0,BL22/'Asset data'!$F22) -> 277.8167402 | DW22: =IF('Asset data'!$F22=0,0,BM22/'Asset data'!$F22) -> 298.4414222 | DX22: =IF('Asset data'!$F22=0,0,BN22/'Asset data'!$F22) -> 318.0315838 | DY22: =IF('Asset data'!$F22=0,0,BO22/'Asset data'!$F22) -> 336.0968854 | DZ22: =IF('Asset data'!$F22=0,0,BP22/'Asset data'!$F22) -> 352.159614 | EA22: =IF('Asset data'!$F22=0,0,BQ22/'Asset data'!$F22) -> 365.7845747 | EB22: =IF('Asset data'!$F22=0,0,BR22/'Asset data'!$F22) -> 376.6093335
A23: ='Asset data'!A23 -> 1 | B23: ='Asset data'!B23 -> 0 | C23: ='Asset data'!C23 -> 0 | D23: ='Asset data'!E23 -> Towers in Corrosion Zone DEF | E23: =IF(A23>0,VLOOKUP(A23,IDtable,2),0) -> Transmission Towers, by Corrosion Zone | F23: ='Asset data'!G23 -> 43.59789487 | G23: =F23 -> 43.59789487 | H23: ='Asset data'!H23 -> 6.602870199 | I23: S | J23: =IF(A23=0,0,IF('Asset data'!$D$1=1,1,IF('Asset data'!$D$1=2,2,'Asset data'!I23))) -> 2 | K23: =IF(A23>0,IF(I23="S",F23,IF(I23="R",G23,9999)),0) -> 43.59789487 | AY23: =repcalc('Age profile (Inst)'!CT23:GF23,J23,K23,H23,20,$L$20,$M$20) -> 25.25538104 | AZ23: 28.40201676 | BA23: 31.60327749 | BB23: 34.76877904 | BC23: 37.81976055 | BD23: 40.69377076 | BE23: 43.3462417 | BF23: 45.74884882 | BG23: 47.88521698 | BH23: 49.74512026 | BI23: 51.31869407 | BJ23: 52.59222173 | BK23: 53.54673902 | BL23: 54.16007196 | BM23: 54.41212165 | BN23: 54.29242032 | BO23: 53.80839604 | BP23: 52.99254003 | BQ23: 51.90682898 | BR23: 50.64326705 | BS23: 17.42313665 | BT23: 18.04805562 | BU23: 18.64809659 | BV23: 19.22220338 | BW23: 19.77336741 | BX23: 20.30555569 | BY23: 20.82242952 | BZ23: 21.32681576 | CA23: 21.82066088 | CB23: 22.30533353 | CC23: 22.78213889 | CD23: 23.25288594 | CE23: 23.72034382 | CF23: 24.1884498 | CG23: 24.66219245 | CH23: 25.14717873 | CI23: 25.64897836 | CJ23: 26.1723967 | CK23: 26.72083654 | CL23: 27.29587049 | CM23: 27.89707553 | DI23: =IF('Asset data'!$F23=0,0,AY23/'Asset data'!$F23) -> 25.25538104 | DJ23: =IF('Asset data'!$F23=0,0,AZ23/'Asset data'!$F23) -> 28.40201676 | DK23: =IF('Asset data'!$F23=0,0,BA23/'Asset data'!$F23) -> 31.60327749 | DL23: =IF('Asset data'!$F23=0,0,BB23/'Asset data'!$F23) -> 34.76877904 | DM23: =IF('Asset data'!$F23=0,0,BC23/'Asset data'!$F23) -> 37.81976055 | DN23: =IF('Asset data'!$F23=0,0,BD23/'Asset data'!$F23) -> 40.69377076 | DO23: =IF('Asset data'!$F23=0,0,BE23/'Asset data'!$F23) -> 43.3462417 | DP23: =IF('Asset data'!$F23=0,0,BF23/'Asset data'!$F23) -> 45.74884882 | DQ23: =IF('Asset data'!$F23=0,0,BG23/'Asset data'!$F23) -> 47.88521698 | DR23: =IF('Asset data'!$F23=0,0,BH23/'Asset data'!$F23) -> 49.74512026 | DS23: =IF('Asset data'!$F23=0,0,BI23/'Asset data'!$F23) -> 51.31869407 | DT23: =IF('Asset data'!$F23=0,0,BJ23/'Asset data'!$F23) -> 52.59222173 | DU23: =IF('Asset data'!$F23=0,0,BK23/'Asset data'!$F23) -> 53.54673902 | DV23: =IF('Asset data'!$F23=0,0,BL23/'Asset data'!$F23) -> 54.16007196 | DW23: =IF('Asset data'!$F23=0,0,BM23/'Asset data'!$F23) -> 54.41212165 | DX23: =IF('Asset data'!$F23=0,0,BN23/'Asset data'!$F23) -> 54.29242032 | DY23: =IF('Asset data'!$F23=0,0,BO23/'Asset data'!$F23) -> 53.80839604 | DZ23: =IF('Asset data'!$F23=0,0,BP23/'Asset data'!$F23) -> 52.99254003 | EA23: =IF('Asset data'!$F23=0,0,BQ23/'Asset data'!$F23) -> 51.90682898 | EB23: =IF('Asset data'!$F23=0,0,BR23/'Asset data'!$F23) -> 50.64326705
A25: ='Asset data'!A25 -> 2 | B25: ='Asset data'!B25 -> 0 | C25: ='Asset data'!C25 -> 0 | D25: ='Asset data'!E25 -> CB - All Voltages | E25: Substation Switchgear Equipment by Equipment Type | F25: ='Asset data'!G25 -> 40.54518893 | G25: 40.54518893 | H25: ='Asset data'!H25 -> 6.367510419 | I25: S | J25: =IF(A25=0,0,IF('Asset data'!$D$1=1,1,IF('Asset data'!$D$1=2,2,'Asset data'!I25))) -> 2 | K25: 40.54518893 | AY25: =repcalc('Age profile (Inst)'!CT25:GF25,J25,K25,H25,20,$L$20,$M$20) -> 10.58895257 | AZ25: 10.21784315 | BA25: 10.03923471 | BB25: 10.02250049 | BC25: 10.13324214 | BD25: 10.33621701 | BE25: 10.59765402 | BF25: 10.88708537 | BG25: 11.17884008 | BH25: 11.45329956 | BI25: 11.69793877 | BJ25: 11.90810448 | BK25: 12.08744011 | BL25: 12.24786731 | BM25: 12.40907217 | BN25: 12.59750078 | BO25: 12.84492198 | BP25: 13.18664435 | BQ25: 13.65947088 | BR25: 14.29944397 | BS25: 12.83298209 | BT25: 13.36020288 | BU25: 13.98328365 | BV25: 14.6510795 | BW25: 15.34079064 | BX25: 16.04092617 | BY25: 16.74539128 | BZ25: 17.45111871 | CA25: 18.15694905 | CB25: 18.86296219 | CC25: 19.56996754 | CD25: 20.27905805 | CE25: 20.99121598 | CF25: 21.70698737 | CG25: 22.42624302 | CH25: 23.14802932 | CI25: 23.87049577 | CJ25: 24.59087421 | CK25: 25.30548363 | CL25: 26.00974387 | CM25: 26.69819971 | DI25: =IF('Asset data'!$F25=0,0,AY25/'Asset data'!$F25) -> 10.58895257 | DJ25: =IF('Asset data'!$F25=0,0,AZ25/'Asset data'!$F25) -> 10.21784315 | DK25: =IF('Asset data'!$F25=0,0,BA25/'Asset data'!$F25) -> 10.03923471 | DL25: =IF('Asset data'!$F25=0,0,BB25/'Asset data'!$F25) -> 10.02250049 | DM25: =IF('Asset data'!$F25=0,0,BC25/'Asset data'!$F25) -> 10.13324214 | DN25: =IF('Asset data'!$F25=0,0,BD25/'Asset data'!$F25) -> 10.33621701 | DO25: =IF('Asset data'!$F25=0,0,BE25/'Asset data'!$F25) -> 10.59765402 | DP25: =IF('Asset data'!$F25=0,0,BF25/'Asset data'!$F25) -> 10.88708537 | DQ25: =IF('Asset data'!$F25=0,0,BG25/'Asset data'!$F25) -> 11.17884008 | DR25: =IF('Asset data'!$F25=0,0,BH25/'Asset data'!$F25) -> 11.45329956 | DS25: =IF('Asset data'!$F25=0,0,BI25/'Asset data'!$F25) -> 11.69793877 | DT25: =IF('Asset data'!$F25=0,0,BJ25/'Asset data'!$F25) -> 11.90810448 | DU25: =IF('Asset data'!$F25=0,0,BK25/'Asset data'!$F25) -> 12.08744011 | DV25: =IF('Asset data'!$F25=0,0,BL25/'Asset data'!$F25) -> 12.24786731 | DW25: =IF('Asset data'!$F25=0,0,BM25/'Asset data'!$F25) -> 12.40907217 | DX25: =IF('Asset data'!$F25=0,0,BN25/'Asset data'!$F25) -> 12.59750078 | DY25: =IF('Asset data'!$F25=0,0,BO25/'Asset data'!$F25) -> 12.84492198 | DZ25: =IF('Asset data'!$F25=0,0,BP25/'Asset data'!$F25) -> 13.18664435 | EA25: =IF('Asset data'!$F25=0,0,BQ25/'Asset data'!$F25) -> 13.65947088 | EB25: =IF('Asset data'!$F25=0,0,BR25/'Asset data'!$F25) -> 14.29944397
A26: ='Asset data'!A26 -> 2 | B26: ='Asset data'!B26 -> 0 | C26: ='Asset data'!C26 -> 0 | D26: ='Asset data'!E26 -> Isolator / ES - All Voltages | E26: Substation Switchgear Equipment by Equipment Type | F26: ='Asset data'!G26 -> 48.84757771 | G26: 48.84757771 | H26: ='Asset data'!H26 -> 6.989104213 | I26: S | J26: =IF(A26=0,0,IF('Asset data'!$D$1=1,1,IF('Asset data'!$D$1=2,2,'Asset data'!I26))) -> 2 | K26: 48.84757771 | AY26: =repcalc('Age profile (Inst)'!CT26:GF26,J26,K26,H26,20,$L$20,$M$20) -> 26.51359816 | AZ26: 28.45609566 | BA26: 30.40784098 | BB26: 32.37048314 | BC26: 34.34168766 | BD26: 36.31338122 | BE26: 38.27078466 | BF26: 40.19241176 | BG26: 42.05107994 | BH26: 43.81584823 | BI26: 45.45468706 | BJ26: 46.93760679 | BK26: 48.23993294 | BL26: 49.34541691 | BM26: 50.24890494 | BN26: 50.95834779 | BO26: 51.49600977 | BP26: 51.89881827 | BQ26: 52.21787532 | BR26: 52.51722116 | BS26: 15.00254159 | BT26: 15.72521969 | BU26: 16.45067887 | BV26: 17.17604063 | BW26: 17.89878981 | BX26: 18.61692566 | BY26: 19.32903353 | BZ26: 20.03430085 | CA26: 20.73249307 | CB26: 21.42390069 | CC26: 22.10926546 | CD26: 22.78969288 | CE26: 23.46655547 | CF26: 24.14138853 | CG26: 24.81577768 | CH26: 25.49123793 | CI26: 26.16908666 | CJ26: 26.85031791 | CK26: 27.5354885 | CL26: 28.22462661 | CM26: 28.91716967 | DI26: =IF('Asset data'!$F26=0,0,AY26/'Asset data'!$F26) -> 26.51359816 | DJ26: =IF('Asset data'!$F26=0,0,AZ26/'Asset data'!$F26) -> 28.45609566 | DK26: =IF('Asset data'!$F26=0,0,BA26/'Asset data'!$F26) -> 30.40784098 | DL26: =IF('Asset data'!$F26=0,0,BB26/'Asset data'!$F26) -> 32.37048314 | DM26: =IF('Asset data'!$F26=0,0,BC26/'Asset data'!$F26) -> 34.34168766 | DN26: =IF('Asset data'!$F26=0,0,BD26/'Asset data'!$F26) -> 36.31338122 | DO26: =IF('Asset data'!$F26=0,0,BE26/'Asset data'!$F26) -> 38.27078466 | DP26: =IF('Asset data'!$F26=0,0,BF26/'Asset data'!$F26) -> 40.19241176 | DQ26: =IF('Asset data'!$F26=0,0,BG26/'Asset data'!$F26) -> 42.05107994 | DR26: =IF('Asset data'!$F26=0,0,BH26/'Asset data'!$F26) -> 43.81584823 | DS26: =IF('Asset data'!$F26=0,0,BI26/'Asset data'!$F26) -> 45.45468706 | DT26: =IF('Asset data'!$F26=0,0,BJ26/'Asset data'!$F26) -> 46.93760679 | DU26: =IF('Asset data'!$F26=0,0,BK26/'Asset data'!$F26) -> 48.23993294 | DV26: =IF('Asset data'!$F26=0,0,BL26/'Asset data'!$F26) -> 49.34541691 | DW26: =IF('Asset data'!$F26=0,0,BM26/'Asset data'!$F26) -> 50.24890494 | DX26: =IF('Asset data'!$F26=0,0,BN26/'Asset data'!$F26) -> 50.95834779 | DY26: =IF('Asset data'!$F26=0,0,BO26/'Asset data'!$F26) -> 51.49600977 | DZ26: =IF('Asset data'!$F26=0,0,BP26/'Asset data'!$F26) -> 51.89881827 | EA26: =IF('Asset data'!$F26=0,0,BQ26/'Asset data'!$F26) -> 52.21787532 | EB26: =IF('Asset data'!$F26=0,0,BR26/'Asset data'!$F26) -> 52.51722116
A27: ='Asset data'!A27 -> 2 | B27: ='Asset data'!B27 -> 0 | C27: ='Asset data'!C27 -> 0 | D27: ='Asset data'!E27 -> VT - All Voltages | E27: Substation Switchgear Equipment by Equipment Type | F27: ='Asset data'!G27 -> 39.02313645 | G27: 39.02313645 | H27: ='Asset data'!H27 -> 6.246850123 | I27: S | J27: =IF(A27=0,0,IF('Asset data'!$D$1=1,1,IF('Asset data'!$D$1=2,2,'Asset data'!I27))) -> 2 | K27: 39.02313645 | AY27: =repcalc('Age profile (Inst)'!CT27:GF27,J27,K27,H27,20,$L$20,$M$20) -> 23.55832681 | AZ27: 23.66734815 | BA27: 23.81465077 | BB27: 23.96923854 | BC27: 24.09692369 | BD27: 24.16597606 | BE27: 24.15320394 | BF27: 24.04977765 | BG27: 23.8659862 | BH27: 23.63413252 | BI27: 23.40895387 | BJ27: 23.26528575 | BK27: 23.29310892 | BL27: 23.5905404 | BM27: 24.25565379 | BN27: 25.37816735 | BO27: 27.03198667 | BP27: 29.26934889 | BQ27: 32.11695073 | BR27: 35.57404322 | BS27: 12.00023137 | BT27: 12.57628911 | BU27: 13.20681905 | BV27: 13.86867604 | BW27: 14.55099726 | BX27: 15.24866415 | BY27: 15.95964593 | BZ27: 16.68356463 | CA27: 17.42070307 | CB27: 18.17123572 | CC27: 18.93464402 | CD27: 19.70932511 | CE27: 20.49239845 | CF27: 21.27969511 | CG27: 22.06589584 | CH27: 22.8447736 | CI27: 23.60949426 | CJ27: 24.35293407 | CK27: 25.0679814 | CL27: 25.74780354 | CM27: 26.38607427 | DI27: =IF('Asset data'!$F27=0,0,AY27/'Asset data'!$F27) -> 23.55832681 | DJ27: =IF('Asset data'!$F27=0,0,AZ27/'Asset data'!$F27) -> 23.66734815 | DK27: =IF('Asset data'!$F27=0,0,BA27/'Asset data'!$F27) -> 23.81465077 | DL27: =IF('Asset data'!$F27=0,0,BB27/'Asset data'!$F27) -> 23.96923854 | DM27: =IF('Asset data'!$F27=0,0,BC27/'Asset data'!$F27) -> 24.09692369 | DN27: =IF('Asset data'!$F27=0,0,BD27/'Asset data'!$F27) -> 24.16597606 | DO27: =IF('Asset data'!$F27=0,0,BE27/'Asset data'!$F27) -> 24.15320394 | DP27: =IF('Asset data'!$F27=0,0,BF27/'Asset data'!$F27) -> 24.04977765 | DQ27: =IF('Asset data'!$F27=0,0,BG27/'Asset data'!$F27) -> 23.8659862 | DR27: =IF('Asset data'!$F27=0,0,BH27/'Asset data'!$F27) -> 23.63413252 | DS27: =IF('Asset data'!$F27=0,0,BI27/'Asset data'!$F27) -> 23.40895387 | DT27: =IF('Asset data'!$F27=0,0,BJ27/'Asset data'!$F27) -> 23.26528575 | DU27: =IF('Asset data'!$F27=0,0,BK27/'Asset data'!$F27) -> 23.29310892 | DV27: =IF('Asset data'!$F27=0,0,BL27/'Asset data'!$F27) -> 23.5905404 | DW27: =IF('Asset data'!$F27=0,0,BM27/'Asset data'!$F27) -> 24.25565379 | DX27: =IF('Asset data'!$F27=0,0,BN27/'Asset data'!$F27) -> 25.37816735 | DY27: =IF('Asset data'!$F27=0,0,BO27/'Asset data'!$F27) -> 27.03198667 | DZ27: =IF('Asset data'!$F27=0,0,BP27/'Asset data'!$F27) -> 29.26934889 | EA27: =IF('Asset data'!$F27=0,0,BQ27/'Asset data'!$F27) -> 32.11695073 | EB27: =IF('Asset data'!$F27=0,0,BR27/'Asset data'!$F27) -> 35.57404322
A28: ='Asset data'!A28 -> 2 | B28: ='Asset data'!B28 -> 0 | C28: ='Asset data'!C28 -> 0 | D28: ='Asset data'!E28 -> CT - All Voltages | E28: Substation Switchgear Equipment by Equipment Type | F28: ='Asset data'!G28 -> 39.93573553 | G28: 39.93573553 | H28: ='Asset data'!H28 -> 6.319472726 | I28: S | J28: =IF(A28=0,0,IF('Asset data'!$D$1=1,1,IF('Asset data'!$D$1=2,2,'Asset data'!I28))) -> 2 | K28: 39.93573553 | AY28: =repcalc('Age profile (Inst)'!CT28:GF28,J28,K28,H28,20,$L$20,$M$20) -> 33.59314691 | AZ28: 34.26726403 | BA28: 34.89748763 | BB28: 35.45882823 | BC28: 35.92457099 | BD28: 36.27045467 | BE28: 36.47912429 | BF28: 36.54451502 | BG28: 36.4757389 | BH28: 36.29998999 | BI28: 36.06400127 | BJ28: 35.83370667 | BK28: 35.69197924 | BL28: 35.73459485 | BM28: 36.06484737 | BN28: 36.78744586 | BO28: 38.00240083 | BP28: 39.79952905 | BQ28: 42.25398818 | BR28: 45.42294621 | BS28: 11.6613992 | BT28: 12.25820889 | BU28: 12.89561481 | BV28: 13.55798909 | BW28: 14.23756992 | BX28: 14.93038982 | BY28: 15.63456874 | BZ28: 16.34943866 | CA28: 17.07496877 | CB28: 17.81131073 | CC28: 18.55841898 | CD28: 19.31575076 | CE28: 20.08205933 | CF28: 20.85528552 | CG28: 21.63254065 | CH28: 22.41016367 | CI28: 23.18383036 | CJ28: 23.94869105 | CK28: 24.69951455 | CL28: 25.43082076 | CM28: 26.136993 | DI28: =IF('Asset data'!$F28=0,0,AY28/'Asset data'!$F28) -> 33.59314691 | DJ28: =IF('Asset data'!$F28=0,0,AZ28/'Asset data'!$F28) -> 34.26726403 | DK28: =IF('Asset data'!$F28=0,0,BA28/'Asset data'!$F28) -> 34.89748763 | DL28: =IF('Asset data'!$F28=0,0,BB28/'Asset data'!$F28) -> 35.45882823 | DM28: =IF('Asset data'!$F28=0,0,BC28/'Asset data'!$F28) -> 35.92457099 | DN28: =IF('Asset data'!$F28=0,0,BD28/'Asset data'!$F28) -> 36.27045467 | DO28: =IF('Asset data'!$F28=0,0,BE28/'Asset data'!$F28) -> 36.47912429 | DP28: =IF('Asset data'!$F28=0,0,BF28/'Asset data'!$F28) -> 36.54451502 | DQ28: =IF('Asset data'!$F28=0,0,BG28/'Asset data'!$F28) -> 36.4757389 | DR28: =IF('Asset data'!$F28=0,0,BH28/'Asset data'!$F28) -> 36.29998999 | DS28: =IF('Asset data'!$F28=0,0,BI28/'Asset data'!$F28) -> 36.06400127 | DT28: =IF('Asset data'!$F28=0,0,BJ28/'Asset data'!$F28) -> 35.83370667 | DU28: =IF('Asset data'!$F28=0,0,BK28/'Asset data'!$F28) -> 35.69197924 | DV28: =IF('Asset data'!$F28=0,0,BL28/'Asset data'!$F28) -> 35.73459485 | DW28: =IF('Asset data'!$F28=0,0,BM28/'Asset data'!$F28) -> 36.06484737 | DX28: =IF('Asset data'!$F28=0,0,BN28/'Asset data'!$F28) -> 36.78744586 | DY28: =IF('Asset data'!$F28=0,0,BO28/'Asset data'!$F28) -> 38.00240083 | DZ28: =IF('Asset data'!$F28=0,0,BP28/'Asset data'!$F28) -> 39.79952905 | EA28: =IF('Asset data'!$F28=0,0,BQ28/'Asset data'!$F28) -> 42.25398818 | EB28: =IF('Asset data'!$F28=0,0,BR28/'Asset data'!$F28) -> 45.42294621
A30: ='Asset data'!A30 -> 3 | B30: ='Asset data'!B30 -> 0 | C30: ='Asset data'!C30 -> 0 | D30: ='Asset data'!E30 -> Secondary Systems - Bay or Non-bay | E30: Secondary Systems by Function | F30: ='Asset data'!G30 -> 21.6901574 | G30: 21.6901574 | H30: ='Asset data'!H30 -> 4.657269308 | I30: S | J30: =IF(A30=0,0,IF('Asset data'!$D$1=1,1,IF('Asset data'!$D$1=2,2,'Asset data'!I30))) -> 2 | K30: 21.6901574 | AY30: =repcalc('Age profile (Inst)'!CT30:GF30,J30,K30,H30,20,$L$20,$M$20) -> 60.51904409 | AZ30: 50.08752875 | BA30: 44.43740066 | BB30: 42.03060102 | BC30: 41.7817296 | BD30: 42.95198169 | BE30: 45.05915872 | BF30: 47.79929771 | BG30: 50.97972463 | BH30: 54.46438819 | BI30: 58.13221409 | BJ30: 61.84892158 | BK30: 65.4525137 | BL30: 68.75231919 | BM30: 71.54072064 | BN30: 73.61537148 | BO30: 74.80791761 | BP30: 75.01351148 | BQ30: 74.21448509 | BR30: 72.49210842 | BS30: 9.896602659 | BT30: 9.710458147 | BU30: 10.0500204 | BV30: 10.55252975 | BW30: 11.12001568 | BX30: 11.71292499 | BY30: 12.31143201 | BZ30: 12.90401649 | CA30: 13.4832561 | CB30: 14.04415632 | CC30: 14.58361887 | CD30: 15.10052729 | CE30: 15.59619259 | CF30: 16.07497881 | CG30: 16.54491533 | CH30: 17.01804167 | CI30: 17.51019663 | CJ30: 18.04003995 | CK30: 18.62730808 | CL30: 19.29059135 | CM30: 20.04514655 | DI30: =IF('Asset data'!$F30=0,0,AY30/'Asset data'!$F30) -> 60.51904409 | DJ30: =IF('Asset data'!$F30=0,0,AZ30/'Asset data'!$F30) -> 50.08752875 | DK30: =IF('Asset data'!$F30=0,0,BA30/'Asset data'!$F30) -> 44.43740066 | DL30: =IF('Asset data'!$F30=0,0,BB30/'Asset data'!$F30) -> 42.03060102 | DM30: =IF('Asset data'!$F30=0,0,BC30/'Asset data'!$F30) -> 41.7817296 | DN30: =IF('Asset data'!$F30=0,0,BD30/'Asset data'!$F30) -> 42.95198169 | DO30: =IF('Asset data'!$F30=0,0,BE30/'Asset data'!$F30) -> 45.05915872 | DP30: =IF('Asset data'!$F30=0,0,BF30/'Asset data'!$F30) -> 47.79929771 | DQ30: =IF('Asset data'!$F30=0,0,BG30/'Asset data'!$F30) -> 50.97972463 | DR30: =IF('Asset data'!$F30=0,0,BH30/'Asset data'!$F30) -> 54.46438819 | DS30: =IF('Asset data'!$F30=0,0,BI30/'Asset data'!$F30) -> 58.13221409 | DT30: =IF('Asset data'!$F30=0,0,BJ30/'Asset data'!$F30) -> 61.84892158 | DU30: =IF('Asset data'!$F30=0,0,BK30/'Asset data'!$F30) -> 65.4525137 | DV30: =IF('Asset data'!$F30=0,0,BL30/'Asset data'!$F30) -> 68.75231919 | DW30: =IF('Asset data'!$F30=0,0,BM30/'Asset data'!$F30) -> 71.54072064 | DX30: =IF('Asset data'!$F30=0,0,BN30/'Asset data'!$F30) -> 73.61537148 | DY30: =IF('Asset data'!$F30=0,0,BO30/'Asset data'!$F30) -> 74.80791761 | DZ30: =IF('Asset data'!$F30=0,0,BP30/'Asset data'!$F30) -> 75.01351148 | EA30: =IF('Asset data'!$F30=0,0,BQ30/'Asset data'!$F30) -> 74.21448509 | EB30: =IF('Asset data'!$F30=0,0,BR30/'Asset data'!$F30) -> 72.49210842
G200: =F200+VLOOKUP(A200,IDtable,5) -> 
DI202: =#REF!+#REF! ->  | DJ202: =#REF!+#REF! ->  | DK202: =#REF!+#REF! ->  | DL202: =#REF!+#REF! ->  | DM202: =#REF!+#REF! ->  | DN202: =#REF!+#REF! ->  | DO202: =#REF!+#REF! ->  | DP202: =#REF!+#REF! ->  | DQ202: =#REF!+#REF! ->  | DR202: =#REF!+#REF! ->  | DS202: =#REF!+#REF! ->  | DT202: =#REF!+#REF! ->  | DU202: =#REF!+#REF! ->  | DV202: =#REF!+#REF! ->  | DW202: =#REF!+#REF! ->  | DX202: =#REF!+#REF! ->  | DY202: =#REF!+#REF! ->  | DZ202: =#REF!+#REF! ->  | EA202: =#REF!+#REF! ->  | EB202: =#REF!+#REF! -> 
DI203: =#REF!+#REF! ->  | DJ203: =#REF!+#REF! ->  | DK203: =#REF!+#REF! ->  | DL203: =#REF!+#REF! ->  | DM203: =#REF!+#REF! ->  | DN203: =#REF!+#REF! ->  | DO203: =#REF!+#REF! ->  | DP203: =#REF!+#REF! ->  | DQ203: =#REF!+#REF! ->  | DR203: =#REF!+#REF! ->  | DS203: =#REF!+#REF! ->  | DT203: =#REF!+#REF! ->  | DU203: =#REF!+#REF! ->  | DV203: =#REF!+#REF! ->  | DW203: =#REF!+#REF! ->  | DX203: =#REF!+#REF! ->  | DY203: =#REF!+#REF! ->  | DZ203: =#REF!+#REF! ->  | EA203: =#REF!+#REF! ->  | EB203: =#REF!+#REF! -> 
DI204: =#REF!+#REF! ->  | DJ204: =#REF!+#REF! ->  | DK204: =#REF!+#REF! ->  | DL204: =#REF!+#REF! ->  | DM204: =#REF!+#REF! ->  | DN204: =#REF!+#REF! ->  | DO204: =#REF!+#REF! ->  | DP204: =#REF!+#REF! ->  | DQ204: =#REF!+#REF! ->  | DR204: =#REF!+#REF! ->  | DS204: =#REF!+#REF! ->  | DT204: =#REF!+#REF! ->  | DU204: =#REF!+#REF! ->  | DV204: =#REF!+#REF! ->  | DW204: =#REF!+#REF! ->  | DX204: =#REF!+#REF! ->  | DY204: =#REF!+#REF! ->  | DZ204: =#REF!+#REF! ->  | EA204: =#REF!+#REF! ->  | EB204: =#REF!+#REF! -> 
G209: =F209+VLOOKUP(A209,IDtable,5) -> 

Sheet Tables
A1: ID | B1: Asset cat | D1: Profile type
A2: 1 | B2: Transmission Towers, by Corrosion Zone | D2: Remaining life
A3: 2 | B3: Substation Switchgear Equipment by Equipment Type | D3: Age
A4: 3 | B4: Secondary Systems by Function | D4: Installation date
A5: 4 | B5: Not used
A6: 5 | B6: Not used
A7: 6 | B7: Not used
A8: 7 | B8: Not used
A9: 8 | B9: Not used
A10: 9 | B10: Not used
A11: 10 | B11: Not used
A12: 11 | B12: Not used
A13: 12 | B13: Not used
A17: Now | B17: 2015 | C17: latest age profile data
A18: Recursive | B18: 1 | C18: =IF(B18=1,"recursive replacement calcs","non-recursive - only appropriate for short to medium term forecast") -> recursive replacement calcs
A19: 1st year | B19: 1 | C19: =IF(B19=1,"Ist year of forecast is year after latest age profile","1st year of forecast is same year as latest age profile data") -> Ist year of forecast is year after latest age profile

Sheet Age profile (Inst)
A1: Asset calcs
F3: Installation date
E4: St life | F4: Quantity | CT4: RC
A5: ID | B5: ID | C5: ID | D5: EDB ID | F5: =Now -> 2015 | G5: =F5-1 -> 2014 | H5: =G5-1 -> 2013 | I5: 2012 | J5: 2011 | K5: 2010 | L5: 2009 | M5: 2008 | N5: 2007 | O5: 2006 | P5: 2005 | Q5: 2004 | R5: 2003 | S5: 2002 | T5: 2001 | U5: 2000 | V5: 1999 | W5: 1998 | X5: 1997 | Y5: 1996 | Z5: 1995 | AA5: 1994 | AB5: 1993 | AC5: 1992 | AD5: 1991 | AE5: 1990 | AF5: 1989 | AG5: 1988 | AH5: 1987 | AI5: 1986 | AJ5: 1985 | AK5: 1984 | AL5: 1983 | AM5: 1982 | AN5: 1981 | AO5: 1980 | AP5: 1979 | AQ5: 1978 | AR5: 1977 | AS5: 1976 | AT5: 1975 | AU5: 1974 | AV5: 1973 | AW5: 1972 | AX5: 1971 | AY5: 1970 | AZ5: 1969 | BA5: 1968 | BB5: 1967 | BC5: 1966 | BD5: 1965 | BE5: 1964 | BF5: 1963 | BG5: 1962 | BH5: 1961 | BI5: 1960 | BJ5: 1959 | BK5: 1958 | BL5: 1957 | BM5: 1956 | BN5: 1955 | BO5: 1954 | BP5: 1953 | BQ5: 1952 | BR5: 1951 | BS5: 1950 | BT5: =BS5-1 -> 1949 | BU5: 1948 | BV5: 1947 | BW5: 1946 | BX5: 1945 | BY5: 1944 | BZ5: 1943 | CA5: 1942 | CB5: 1941 | CC5: 1940 | CD5: 1939 | CE5: 1938 | CF5: 1937 | CG5: 1936 | CH5: 1935 | CI5: 1934 | CJ5: 1933 | CK5: 1932 | CL5: 1931 | CM5: 1930 | CN5: 1929 | CO5: 1928 | CP5: 1927 | CQ5: 1926 | CR5: 1925 | CT5: =F5 -> 2015 | CU5: =G5 -> 2014 | CV5: 2013 | CW5: 2012 | CX5: 2011 | CY5: 2010 | CZ5: 2009 | DA5: 2008 | DB5: 2007 | DC5: 2006 | DD5: 2005 | DE5: 2004 | DF5: 2003 | DG5: 2002 | DH5: 2001 | DI5: 2000 | DJ5: 1999 | DK5: 1998 | DL5: 1997 | DM5: 1996 | DN5: 1995 | DO5: 1994 | DP5: 1993 | DQ5: 1992 | DR5: 1991 | DS5: 1990 | DT5: 1989 | DU5: 1988 | DV5: 1987 | DW5: 1986 | DX5: 1985 | DY5: 1984 | DZ5: 1983 | EA5: 1982 | EB5: 1981 | EC5: 1980 | ED5: 1979 | EE5: 1978 | EF5: 1977 | EG5: 1976 | EH5: 1975 | EI5: 1974 | EJ5: 1973 | EK5: 1972 | EL5: 1971 | EM5: 1970 | EN5: 1969 | EO5: 1968 | EP5: 1967 | EQ5: 1966 | ER5: 1965 | ES5: 1964 | ET5: 1963 | EU5: 1962 | EV5: 1961 | EW5: 1960 | EX5: 1959 | EY5: 1958 | EZ5: 1957 | FA5: 1956 | FB5: 1955 | FC5: 1954 | FD5: 1953 | FE5: 1952 | FF5: 1951 | FG5: =BS5 -> 1950 | FH5: 1949 | FI5: 1948 | FJ5: 1947 | FK5: 1946 | FL5: 1945 | FM5: 1944 | FN5: 1943 | FO5: 1942 | FP5: 1941 | FQ5: 1940 | FR5: 1939 | FS5: 1938 | FT5: 1937 | FU5: 1936 | FV5: 1935 | FW5: 1934 | FX5: 1933 | FY5: 1932 | FZ5: 1931 | GA5: 1930 | GB5: 1929 | GC5: 1928 | GD5: 1927 | GE5: 1926 | GF5: 1925
A6: 1 | D6: =VLOOKUP(A6,IDtable,2) -> Transmission Towers, by Corrosion Zone | E6: =0.5*SUM(G6:K6)/5 -> 270.5 | F6: =SUMIF($A$19:$A$200,$A6,F$19:F$200) -> 57 | G6: 509 | H6: 583 | I6: 236 | J6: 593 | K6: 784 | L6: 768 | M6: 739 | N6: 261 | O6: 99 | P6: =SUMIF($A$19:$A$200,$A6,P$19:P$200) -> 517 | Q6: 279 | R6: 281 | S6: 204 | T6: 831 | U6: 532 | V6: 800 | W6: 162 | X6: 31 | Y6: 161 | Z6: =SUMIF($A$19:$A$200,$A6,Z$19:Z$200) -> 151 | AA6: 52 | AB6: 724 | AC6: 7 | AD6: 36 | AE6: 10 | AF6: 528 | AG6: 354 | AH6: 852 | AI6: 805 | AJ6: =SUMIF($A$19:$A$200,$A6,AJ$19:AJ$200) -> 837 | AK6: 9 | AL6: 382 | AM6: 630 | AN6: 1402 | AO6: 217 | AP6: 477 | AQ6: 883 | AR6: 1125 | AS6: 32 | AT6: =SUMIF($A$19:$A$200,$A6,AT$19:AT$200) -> 362 | AU6: 209 | AV6: 663 | AW6: 114 | AX6: 443 | AY6: 91 | AZ6: 196 | BA6: 500 | BB6: 200 | BC6: 63 | BD6: =SUMIF($A$19:$A$200,$A6,BD$19:BD$200) -> 128 | BE6: 10 | BF6: 168 | BG6: 0 | BH6: 0 | BI6: 0 | BJ6: 10 | BK6: 3 | BL6: 0 | BM6: 0 | BN6: =SUMIF($A$19:$A$200,$A6,BN$19:BN$200) -> 0 | BO6: 0 | BP6: 0 | BQ6: 0 | BR6: 0 | BS6: 0 | BT6: 0 | BU6: 0 | BV6: 0 | BW6: 0 | BX6: =SUMIF($A$19:$A$200,$A6,BX$19:BX$200) -> 0 | BY6: 0 | BZ6: 0 | CA6: 0 | CB6: 0 | CC6: 0 | CD6: 0 | CE6: 0 | CF6: 0 | CG6: 0 | CH6: =SUMIF($A$19:$A$200,$A6,CH$19:CH$200) -> 0 | CI6: 0 | CJ6: 0 | CK6: 0 | CL6: 0 | CM6: 0 | CN6: 0 | CO6: 0 | CP6: 0 | CQ6: 0 | CR6: 0 | CT6: =SUMIF($A$19:$A$200,$A6,CT$19:CT$200) -> 57 | CU6: 509 | CV6: 583 | CW6: 236 | CX6: 593 | CY6: 784 | CZ6: 768 | DA6: 739 | DB6: 261 | DC6: 99 | DD6: =SUMIF($A$19:$A$200,$A6,DD$19:DD$200) -> 517 | DE6: 279 | DF6: 281 | DG6: 204 | DH6: 831 | DI6: 532 | DJ6: 800 | DK6: 162 | DL6: 31 | DM6: 161 | DN6: =SUMIF($A$19:$A$200,$A6,DN$19:DN$200) -> 151 | DO6: 52 | DP6: 724 | DQ6: 7 | DR6: 36 | DS6: 10 | DT6: 528 | DU6: 354 | DV6: 852 | DW6: 805 | DX6: =SUMIF($A$19:$A$200,$A6,DX$19:DX$200) -> 837 | DY6: 9 | DZ6: 382 | EA6: 630 | EB6: 1402 | EC6: 217 | ED6: 477 | EE6: 883 | EF6: 1125 | EG6: 32 | EH6: =SUMIF($A$19:$A$200,$A6,EH$19:EH$200) -> 362 | EI6: 209 | EJ6: 663 | EK6: 114 | EL6: 443 | EM6: 91 | EN6: 196 | EO6: 500 | EP6: 200 | EQ6: 63 | ER6: =SUMIF($A$19:$A$200,$A6,ER$19:ER$200) -> 128 | ES6: 10 | ET6: 168 | EU6: 0 | EV6: 0 | EW6: 0 | EX6: 10 | EY6: 3 | EZ6: 0 | FA6: 0 | FB6: =SUMIF($A$19:$A$200,$A6,FB$19:FB$200) -> 0 | FC6: 0 | FD6: 0 | FE6: 0 | FF6: 0 | FG6: 0 | FH6: 0 | FI6: 0 | FJ6: 0 | FK6: 0 | FL6: =SUMIF($A$19:$A$200,$A6,FL$19:FL$200) -> 0 | FM6: 0 | FN6: 0 | FO6: 0 | FP6: 0 | FQ6: 0 | FR6: 0 | FS6: 0 | FT6: 0 | FU6: 0 | FV6: =SUMIF($A$19:$A$200,$A6,FV$19:FV$200) -> 0 | FW6: 0 | FX6: 0 | FY6: 0 | FZ6: 0 | GA6: 0 | GB6: 0 | GC6: 0 | GD6: 0 | GE6: 0 | GF6: 0
A7: 2 | D7: Substation Switchgear Equipment by Equipment Type | E7: =0.5*SUM(G7:K7)/5 -> 331.2 | F7: 400 | G7: 808 | H7: 807 | I7: 765 | J7: 309 | K7: 623 | L7: 806 | M7: 690 | N7: 516 | O7: 425 | P7: 429 | Q7: 126 | R7: 229 | S7: 201 | T7: 168 | U7: 280 | V7: 140 | W7: 278 | X7: 77 | Y7: 46 | Z7: 112 | AA7: 81 | AB7: 137 | AC7: 84 | AD7: 50 | AE7: 9 | AF7: 121 | AG7: 72 | AH7: 155 | AI7: 150 | AJ7: 238 | AK7: 235 | AL7: 124 | AM7: 84 | AN7: 49 | AO7: 24 | AP7: 113 | AQ7: 247 | AR7: 18 | AS7: 59 | AT7: 114 | AU7: 39 | AV7: 24 | AW7: 35 | AX7: 31 | AY7: 35 | AZ7: 11 | BA7: 25 | BB7: 10 | BC7: 11 | BD7: 16 | BE7: 43 | BF7: 17 | BG7: 1 | BH7: 0 | BI7: 0 | BJ7: 0 | BK7: 0 | BL7: 0 | BM7: 0 | BN7: 0 | BO7: 0 | BP7: 0 | BQ7: 0 | BR7: 0 | BS7: 0 | BT7: 0 | BU7: 0 | BV7: 0 | BW7: 0 | BX7: 0 | BY7: 0 | BZ7: 0 | CA7: 0 | CB7: 0 | CC7: 0 | CD7: 0 | CE7: 0 | CF7: 0 | CG7: 0 | CH7: 0 | CI7: 0 | CJ7: 0 | CK7: 0 | CL7: 0 | CM7: 0 | CN7: 0 | CO7: 0 | CP7: 0 | CQ7: 0 | CR7: 0 | CT7: 400 | CU7: 808 | CV7: 807 | CW7: 765 | CX7: 309 | CY7: 623 | CZ7: 806 | DA7: 690 | DB7: 516 | DC7: 425 | DD7: 429 | DE7: 126 | DF7: 229 | DG7: 201 | DH7: 168 | DI7: 280 | DJ7: 140 | DK7: 278 | DL7: 77 | DM7: 46 | DN7: 112 | DO7: 81 | DP7: 137 | DQ7: 84 | DR7: 50 | DS7: 9 | DT7: 121 | DU7: 72 | DV7: 155 | DW7: 150 | DX7: 238 | DY7: 235 | DZ7: 124 | EA7: 84 | EB7: 49 | EC7: 24 | ED7: 113 | EE7: 247 | EF7: 18 | EG7: 59 | EH7: 114 | EI7: 39 | EJ7: 24 | EK7: 35 | EL7: 31 | EM7: 35 | EN7: 11 | EO7: 25 | EP7: 10 | EQ7: 11 | ER7: 16 | ES7: 43 | ET7: 17 | EU7: 1 | EV7: 0 | EW7: 0 | EX7: 0 | EY7: 0 | EZ7: 0 | FA7: 0 | FB7: 0 | FC7: 0 | FD7: 0 | FE7: 0 | FF7: 0 | FG7: 0 | FH7: 0 | FI7: 0 | FJ7: 0 | FK7: 0 | FL7: 0 | FM7: 0 | FN7: 0 | FO7: 0 | FP7: 0 | FQ7: 0 | FR7: 0 | FS7: 0 | FT7: 0 | FU7: 0 | FV7: 0 | FW7: 0 | FX7: 0 | FY7: 0 | FZ7: 0 | GA7: 0 | GB7: 0 | GC7: 0 | GD7: 0 | GE7: 0 | GF7: 0
A8: 3 | D8: Secondary Systems by Function | E8: 51.2 | F8: 34 | G8: 126 | H8: 54 | I8: 169 | J8: 43 | K8: 120 | L8: 84 | M8: 49 | N8: 67 | O8: 96 | P8: 56 | Q8: 9 | R8: 79 | S8: 31 | T8: 53 | U8: 34 | V8: 28 | W8: 23 | X8: 39 | Y8: 30 | Z8: 7 | AA8: 12 | AB8: 3 | AC8: 17 | AD8: 6 | AE8: 1 | AF8: 0 | AG8: 3 | AH8: 20 | AI8: 15 | AJ8: 12 | AK8: 2 | AL8: 13 | AM8: 8 | AN8: 3 | AO8: 2 | AP8: 5 | AQ8: 0 | AR8: 0 | AS8: 0 | AT8: 0 | AU8: 0 | AV8: 1 | AW8: 0 | AX8: 0 | AY8: 0 | AZ8: 0 | BA8: 0 | BB8: 0 | BC8: 0 | BD8: 0 | BE8: 0 | BF8: 0 | BG8: 0 | BH8: 0 | BI8: 0 | BJ8: 0 | BK8: 0 | BL8: 0 | BM8: 0 | BN8: 0 | BO8: 0 | BP8: 0 | BQ8: 0 | BR8: 0 | BS8: 0 | BT8: 0 | BU8: 0 | BV8: 0 | BW8: 0 | BX8: 0 | BY8: 0 | BZ8: 0 | CA8: 0 | CB8: 0 | CC8: 0 | CD8: 0 | CE8: 0 | CF8: 0 | CG8: 0 | CH8: 0 | CI8: 0 | CJ8: 0 | CK8: 0 | CL8: 0 | CM8: 0 | CN8: 0 | CO8: 0 | CP8: 0 | CQ8: 0 | CR8: 0 | CT8: 34 | CU8: 126 | CV8: 54 | CW8: 169 | CX8: 43 | CY8: 120 | CZ8: 84 | DA8: 49 | DB8: 67 | DC8: 96 | DD8: 56 | DE8: 9 | DF8: 79 | DG8: 31 | DH8: 53 | DI8: 34 | DJ8: 28 | DK8: 23 | DL8: 39 | DM8: 30 | DN8: 7 | DO8: 12 | DP8: 3 | DQ8: 17 | DR8: 6 | DS8: 1 | DT8: 0 | DU8: 3 | DV8: 20 | DW8: 15 | DX8: 12 | DY8: 2 | DZ8: 13 | EA8: 8 | EB8: 3 | EC8: 2 | ED8: 5 | EE8: 0 | EF8: 0 | EG8: 0 | EH8: 0 | EI8: 0 | EJ8: 1 | EK8: 0 | EL8: 0 | EM8: 0 | EN8: 0 | EO8: 0 | EP8: 0 | EQ8: 0 | ER8: 0 | ES8: 0 | ET8: 0 | EU8: 0 | EV8: 0 | EW8: 0 | EX8: 0 | EY8: 0 | EZ8: 0 | FA8: 0 | FB8: 0 | FC8: 0 | FD8: 0 | FE8: 0 | FF8: 0 | FG8: 0 | FH8: 0 | FI8: 0 | FJ8: 0 | FK8: 0 | FL8: 0 | FM8: 0 | FN8: 0 | FO8: 0 | FP8: 0 | FQ8: 0 | FR8: 0 | FS8: 0 | FT8: 0 | FU8: 0 | FV8: 0 | FW8: 0 | FX8: 0 | FY8: 0 | FZ8: 0 | GA8: 0 | GB8: 0 | GC8: 0 | GD8: 0 | GE8: 0 | GF8: 0
A9: 4 | D9: Not used | E9: 0 | F9: 0 | G9: 0 | H9: 0 | I9: 0 | J9: 0 | K9: 0 | L9: 0 | M9: 0 | N9: 0 | O9: 0 | P9: 0 | Q9: 0 | R9: 0 | S9: 0 | T9: 0 | U9: 0 | V9: 0 | W9: 0 | X9: 0 | Y9: 0 | Z9: 0 | AA9: 0 | AB9: 0 | AC9: 0 | AD9: 0 | AE9: 0 | AF9: 0 | AG9: 0 | AH9: 0 | AI9: 0 | AJ9: 0 | AK9: 0 | AL9: 0 | AM9: 0 | AN9: 0 | AO9: 0 | AP9: 0 | AQ9: 0 | AR9: 0 | AS9: 0 | AT9: 0 | AU9: 0 | AV9: 0 | AW9: 0 | AX9: 0 | AY9: 0 | AZ9: 0 | BA9: 0 | BB9: 0 | BC9: 0 | BD9: 0 | BE9: 0 | BF9: 0 | BG9: 0 | BH9: 0 | BI9: 0 | BJ9: 0 | BK9: 0 | BL9: 0 | BM9: 0 | BN9: 0 | BO9: 0 | BP9: 0 | BQ9: 0 | BR9: 0 | BS9: 0 | BT9: 0 | BU9: 0 | BV9: 0 | BW9: 0 | BX9: 0 | BY9: 0 | BZ9: 0 | CA9: 0 | CB9: 0 | CC9: 0 | CD9: 0 | CE9: 0 | CF9: 0 | CG9: 0 | CH9: 0 | CI9: 0 | CJ9: 0 | CK9: 0 | CL9: 0 | CM9: 0 | CN9: 0 | CO9: 0 | CP9: 0 | CQ9: 0 | CR9: 0 | CT9: 0 | CU9: 0 | CV9: 0 | CW9: 0 | CX9: 0 | CY9: 0 | CZ9: 0 | DA9: 0 | DB9: 0 | DC9: 0 | DD9: 0 | DE9: 0 | DF9: 0 | DG9: 0 | DH9: 0 | DI9: 0 | DJ9: 0 | DK9: 0 | DL9: 0 | DM9: 0 | DN9: 0 | DO9: 0 | DP9: 0 | DQ9: 0 | DR9: 0 | DS9: 0 | DT9: 0 | DU9: 0 | DV9: 0 | DW9: 0 | DX9: 0 | DY9: 0 | DZ9: 0 | EA9: 0 | EB9: 0 | EC9: 0 | ED9: 0 | EE9: 0 | EF9: 0 | EG9: 0 | EH9: 0 | EI9: 0 | EJ9: 0 | EK9: 0 | EL9: 0 | EM9: 0 | EN9: 0 | EO9: 0 | EP9: 0 | EQ9: 0 | ER9: 0 | ES9: 0 | ET9: 0 | EU9: 0 | EV9: 0 | EW9: 0 | EX9: 0 | EY9: 0 | EZ9: 0 | FA9: 0 | FB9: 0 | FC9: 0 | FD9: 0 | FE9: 0 | FF9: 0 | FG9: 0 | FH9: 0 | FI9: 0 | FJ9: 0 | FK9: 0 | FL9: 0 | FM9: 0 | FN9: 0 | FO9: 0 | FP9: 0 | FQ9: 0 | FR9: 0 | FS9: 0 | FT9: 0 | FU9: 0 | FV9: 0 | FW9: 0 | FX9: 0 | FY9: 0 | FZ9: 0 | GA9: 0 | GB9: 0 | GC9: 0 | GD9: 0 | GE9: 0 | GF9: 0
A10: 5 | D10: Not used | E10: 0 | F10: 0 | G10: 0 | H10: 0 | I10: 0 | J10: 0 | K10: 0 | L10: 0 | M10: 0 | N10: 0 | O10: 0 | P10: 0 | Q10: 0 | R10: 0 | S10: 0 | T10: 0 | U10: 0 | V10: 0 | W10: 0 | X10: 0 | Y10: 0 | Z10: 0 | AA10: 0 | AB10: 0 | AC10: 0 | AD10: 0 | AE10: 0 | AF10: 0 | AG10: 0 | AH10: 0 | AI10: 0 | AJ10: 0 | AK10: 0 | AL10: 0 | AM10: 0 | AN10: 0 | AO10: 0 | AP10: 0 | AQ10: 0 | AR10: 0 | AS10: 0 | AT10: 0 | AU10: 0 | AV10: 0 | AW10: 0 | AX10: 0 | AY10: 0 | AZ10: 0 | BA10: 0 | BB10: 0 | BC10: 0 | BD10: 0 | BE10: 0 | BF10: 0 | BG10: 0 | BH10: 0 | BI10: 0 | BJ10: 0 | BK10: 0 | BL10: 0 | BM10: 0 | BN10: 0 | BO10: 0 | BP10: 0 | BQ10: 0 | BR10: 0 | BS10: 0 | BT10: 0 | BU10: 0 | BV10: 0 | BW10: 0 | BX10: 0 | BY10: 0 | BZ10: 0 | CA10: 0 | CB10: 0 | CC10: 0 | CD10: 0 | CE10: 0 | CF10: 0 | CG10: 0 | CH10: 0 | CI10: 0 | CJ10: 0 | CK10: 0 | CL10: 0 | CM10: 0 | CN10: 0 | CO10: 0 | CP10: 0 | CQ10: 0 | CR10: 0 | CT10: 0 | CU10: 0 | CV10: 0 | CW10: 0 | CX10: 0 | CY10: 0 | CZ10: 0 | DA10: 0 | DB10: 0 | DC10: 0 | DD10: 0 | DE10: 0 | DF10: 0 | DG10: 0 | DH10: 0 | DI10: 0 | DJ10: 0 | DK10: 0 | DL10: 0 | DM10: 0 | DN10: 0 | DO10: 0 | DP10: 0 | DQ10: 0 | DR10: 0 | DS10: 0 | DT10: 0 | DU10: 0 | DV10: 0 | DW10: 0 | DX10: 0 | DY10: 0 | DZ10: 0 | EA10: 0 | EB10: 0 | EC10: 0 | ED10: 0 | EE10: 0 | EF10: 0 | EG10: 0 | EH10: 0 | EI10: 0 | EJ10: 0 | EK10: 0 | EL10: 0 | EM10: 0 | EN10: 0 | EO10: 0 | EP10: 0 | EQ10: 0 | ER10: 0 | ES10: 0 | ET10: 0 | EU10: 0 | EV10: 0 | EW10: 0 | EX10: 0 | EY10: 0 | EZ10: 0 | FA10: 0 | FB10: 0 | FC10: 0 | FD10: 0 | FE10: 0 | FF10: 0 | FG10: 0 | FH10: 0 | FI10: 0 | FJ10: 0 | FK10: 0 | FL10: 0 | FM10: 0 | FN10: 0 | FO10: 0 | FP10: 0 | FQ10: 0 | FR10: 0 | FS10: 0 | FT10: 0 | FU10: 0 | FV10: 0 | FW10: 0 | FX10: 0 | FY10: 0 | FZ10: 0 | GA10: 0 | GB10: 0 | GC10: 0 | GD10: 0 | GE10: 0 | GF10: 0
A11: 6 | D11: Not used | E11: 0 | F11: 0 | G11: 0 | H11: 0 | I11: 0 | J11: 0 | K11: 0 | L11: 0 | M11: 0 | N11: 0 | O11: 0 | P11: 0 | Q11: 0 | R11: 0 | S11: 0 | T11: 0 | U11: 0 | V11: 0 | W11: 0 | X11: 0 | Y11: 0 | Z11: 0 | AA11: 0 | AB11: 0 | AC11: 0 | AD11: 0 | AE11: 0 | AF11: 0 | AG11: 0 | AH11: 0 | AI11: 0 | AJ11: 0 | AK11: 0 | AL11: 0 | AM11: 0 | AN11: 0 | AO11: 0 | AP11: 0 | AQ11: 0 | AR11: 0 | AS11: 0 | AT11: 0 | AU11: 0 | AV11: 0 | AW11: 0 | AX11: 0 | AY11: 0 | AZ11: 0 | BA11: 0 | BB11: 0 | BC11: 0 | BD11: 0 | BE11: 0 | BF11: 0 | BG11: 0 | BH11: 0 | BI11: 0 | BJ11: 0 | BK11: 0 | BL11: 0 | BM11: 0 | BN11: 0 | BO11: 0 | BP11: 0 | BQ11: 0 | BR11: 0 | BS11: 0 | BT11: 0 | BU11: 0 | BV11: 0 | BW11: 0 | BX11: 0 | BY11: 0 | BZ11: 0 | CA11: 0 | CB11: 0 | CC11: 0 | CD11: 0 | CE11: 0 | CF11: 0 | CG11: 0 | CH11: 0 | CI11: 0 | CJ11: 0 | CK11: 0 | CL11: 0 | CM11: 0 | CN11: 0 | CO11: 0 | CP11: 0 | CQ11: 0 | CR11: 0 | CT11: 0 | CU11: 0 | CV11: 0 | CW11: 0 | CX11: 0 | CY11: 0 | CZ11: 0 | DA11: 0 | DB11: 0 | DC11: 0 | DD11: 0 | DE11: 0 | DF11: 0 | DG11: 0 | DH11: 0 | DI11: 0 | DJ11: 0 | DK11: 0 | DL11: 0 | DM11: 0 | DN11: 0 | DO11: 0 | DP11: 0 | DQ11: 0 | DR11: 0 | DS11: 0 | DT11: 0 | DU11: 0 | DV11: 0 | DW11: 0 | DX11: 0 | DY11: 0 | DZ11: 0 | EA11: 0 | EB11: 0 | EC11: 0 | ED11: 0 | EE11: 0 | EF11: 0 | EG11: 0 | EH11: 0 | EI11: 0 | EJ11: 0 | EK11: 0 | EL11: 0 | EM11: 0 | EN11: 0 | EO11: 0 | EP11: 0 | EQ11: 0 | ER11: 0 | ES11: 0 | ET11: 0 | EU11: 0 | EV11: 0 | EW11: 0 | EX11: 0 | EY11: 0 | EZ11: 0 | FA11: 0 | FB11: 0 | FC11: 0 | FD11: 0 | FE11: 0 | FF11: 0 | FG11: 0 | FH11: 0 | FI11: 0 | FJ11: 0 | FK11: 0 | FL11: 0 | FM11: 0 | FN11: 0 | FO11: 0 | FP11: 0 | FQ11: 0 | FR11: 0 | FS11: 0 | FT11: 0 | FU11: 0 | FV11: 0 | FW11: 0 | FX11: 0 | FY11: 0 | FZ11: 0 | GA11: 0 | GB11: 0 | GC11: 0 | GD11: 0 | GE11: 0 | GF11: 0
A12: 7 | D12: Not used | E12: 0 | F12: 0 | G12: 0 | H12: 0 | I12: 0 | J12: 0 | K12: 0 | L12: 0 | M12: 0 | N12: 0 | O12: 0 | P12: 0 | Q12: 0 | R12: 0 | S12: 0 | T12: 0 | U12: 0 | V12: 0 | W12: 0 | X12: 0 | Y12: 0 | Z12: 0 | AA12: 0 | AB12: 0 | AC12: 0 | AD12: 0 | AE12: 0 | AF12: 0 | AG12: 0 | AH12: 0 | AI12: 0 | AJ12: 0 | AK12: 0 | AL12: 0 | AM12: 0 | AN12: 0 | AO12: 0 | AP12: 0 | AQ12: 0 | AR12: 0 | AS12: 0 | AT12: 0 | AU12: 0 | AV12: 0 | AW12: 0 | AX12: 0 | AY12: 0 | AZ12: 0 | BA12: 0 | BB12: 0 | BC12: 0 | BD12: 0 | BE12: 0 | BF12: 0 | BG12: 0 | BH12: 0 | BI12: 0 | BJ12: 0 | BK12: 0 | BL12: 0 | BM12: 0 | BN12: 0 | BO12: 0 | BP12: 0 | BQ12: 0 | BR12: 0 | BS12: 0 | BT12: 0 | BU12: 0 | BV12: 0 | BW12: 0 | BX12: 0 | BY12: 0 | BZ12: 0 | CA12: 0 | CB12: 0 | CC12: 0 | CD12: 0 | CE12: 0 | CF12: 0 | CG12: 0 | CH12: 0 | CI12: 0 | CJ12: 0 | CK12: 0 | CL12: 0 | CM12: 0 | CN12: 0 | CO12: 0 | CP12: 0 | CQ12: 0 | CR12: 0 | CT12: 0 | CU12: 0 | CV12: 0 | CW12: 0 | CX12: 0 | CY12: 0 | CZ12: 0 | DA12: 0 | DB12: 0 | DC12: 0 | DD12: 0 | DE12: 0 | DF12: 0 | DG12: 0 | DH12: 0 | DI12: 0 | DJ12: 0 | DK12: 0 | DL12: 0 | DM12: 0 | DN12: 0 | DO12: 0 | DP12: 0 | DQ12: 0 | DR12: 0 | DS12: 0 | DT12: 0 | DU12: 0 | DV12: 0 | DW12: 0 | DX12: 0 | DY12: 0 | DZ12: 0 | EA12: 0 | EB12: 0 | EC12: 0 | ED12: 0 | EE12: 0 | EF12: 0 | EG12: 0 | EH12: 0 | EI12: 0 | EJ12: 0 | EK12: 0 | EL12: 0 | EM12: 0 | EN12: 0 | EO12: 0 | EP12: 0 | EQ12: 0 | ER12: 0 | ES12: 0 | ET12: 0 | EU12: 0 | EV12: 0 | EW12: 0 | EX12: 0 | EY12: 0 | EZ12: 0 | FA12: 0 | FB12: 0 | FC12: 0 | FD12: 0 | FE12: 0 | FF12: 0 | FG12: 0 | FH12: 0 | FI12: 0 | FJ12: 0 | FK12: 0 | FL12: 0 | FM12: 0 | FN12: 0 | FO12: 0 | FP12: 0 | FQ12: 0 | FR12: 0 | FS12: 0 | FT12: 0 | FU12: 0 | FV12: 0 | FW12: 0 | FX12: 0 | FY12: 0 | FZ12: 0 | GA12: 0 | GB12: 0 | GC12: 0 | GD12: 0 | GE12: 0 | GF12: 0
A13: 8 | D13: Not used | E13: 0 | F13: 0 | G13: 0 | H13: 0 | I13: 0 | J13: 0 | K13: 0 | L13: 0 | M13: 0 | N13: 0 | O13: 0 | P13: 0 | Q13: 0 | R13: 0 | S13: 0 | T13: 0 | U13: 0 | V13: 0 | W13: 0 | X13: 0 | Y13: 0 | Z13: 0 | AA13: 0 | AB13: 0 | AC13: 0 | AD13: 0 | AE13: 0 | AF13: 0 | AG13: 0 | AH13: 0 | AI13: 0 | AJ13: 0 | AK13: 0 | AL13: 0 | AM13: 0 | AN13: 0 | AO13: 0 | AP13: 0 | AQ13: 0 | AR13: 0 | AS13: 0 | AT13: 0 | AU13: 0 | AV13: 0 | AW13: 0 | AX13: 0 | AY13: 0 | AZ13: 0 | BA13: 0 | BB13: 0 | BC13: 0 | BD13: 0 | BE13: 0 | BF13: 0 | BG13: 0 | BH13: 0 | BI13: 0 | BJ13: 0 | BK13: 0 | BL13: 0 | BM13: 0 | BN13: 0 | BO13: 0 | BP13: 0 | BQ13: 0 | BR13: 0 | BS13: 0 | BT13: 0 | BU13: 0 | BV13: 0 | BW13: 0 | BX13: 0 | BY13: 0 | BZ13: 0 | CA13: 0 | CB13: 0 | CC13: 0 | CD13: 0 | CE13: 0 | CF13: 0 | CG13: 0 | CH13: 0 | CI13: 0 | CJ13: 0 | CK13: 0 | CL13: 0 | CM13: 0 | CN13: 0 | CO13: 0 | CP13: 0 | CQ13: 0 | CR13: 0 | CT13: 0 | CU13: 0 | CV13: 0 | CW13: 0 | CX13: 0 | CY13: 0 | CZ13: 0 | DA13: 0 | DB13: 0 | DC13: 0 | DD13: 0 | DE13: 0 | DF13: 0 | DG13: 0 | DH13: 0 | DI13: 0 | DJ13: 0 | DK13: 0 | DL13: 0 | DM13: 0 | DN13: 0 | DO13: 0 | DP13: 0 | DQ13: 0 | DR13: 0 | DS13: 0 | DT13: 0 | DU13: 0 | DV13: 0 | DW13: 0 | DX13: 0 | DY13: 0 | DZ13: 0 | EA13: 0 | EB13: 0 | EC13: 0 | ED13: 0 | EE13: 0 | EF13: 0 | EG13: 0 | EH13: 0 | EI13: 0 | EJ13: 0 | EK13: 0 | EL13: 0 | EM13: 0 | EN13: 0 | EO13: 0 | EP13: 0 | EQ13: 0 | ER13: 0 | ES13: 0 | ET13: 0 | EU13: 0 | EV13: 0 | EW13: 0 | EX13: 0 | EY13: 0 | EZ13: 0 | FA13: 0 | FB13: 0 | FC13: 0 | FD13: 0 | FE13: 0 | FF13: 0 | FG13: 0 | FH13: 0 | FI13: 0 | FJ13: 0 | FK13: 0 | FL13: 0 | FM13: 0 | FN13: 0 | FO13: 0 | FP13: 0 | FQ13: 0 | FR13: 0 | FS13: 0 | FT13: 0 | FU13: 0 | FV13: 0 | FW13: 0 | FX13: 0 | FY13: 0 | FZ13: 0 | GA13: 0 | GB13: 0 | GC13: 0 | GD13: 0 | GE13: 0 | GF13: 0
A14: 9 | D14: =VLOOKUP(A14,IDtable,2) -> Not used | E14: 0 | F14: 0 | G14: 0 | H14: 0 | I14: 0 | J14: 0 | K14: 0 | L14: 0 | M14: 0 | N14: 0 | O14: 0 | P14: 0 | Q14: 0 | R14: 0 | S14: 0 | T14: 0 | U14: 0 | V14: 0 | W14: 0 | X14: 0 | Y14: 0 | Z14: 0 | AA14: 0 | AB14: 0 | AC14: 0 | AD14: 0 | AE14: 0 | AF14: 0 | AG14: 0 | AH14: 0 | AI14: 0 | AJ14: 0 | AK14: 0 | AL14: 0 | AM14: 0 | AN14: 0 | AO14: 0 | AP14: 0 | AQ14: 0 | AR14: 0 | AS14: 0 | AT14: 0 | AU14: 0 | AV14: 0 | AW14: 0 | AX14: 0 | AY14: 0 | AZ14: 0 | BA14: 0 | BB14: 0 | BC14: 0 | BD14: 0 | BE14: 0 | BF14: 0 | BG14: 0 | BH14: 0 | BI14: 0 | BJ14: 0 | BK14: 0 | BL14: 0 | BM14: 0 | BN14: 0 | BO14: 0 | BP14: 0 | BQ14: 0 | BR14: 0 | BS14: 0 | BT14: 0 | BU14: 0 | BV14: 0 | BW14: 0 | BX14: 0 | BY14: 0 | BZ14: 0 | CA14: 0 | CB14: 0 | CC14: 0 | CD14: 0 | CE14: 0 | CF14: 0 | CG14: 0 | CH14: 0 | CI14: 0 | CJ14: 0 | CK14: 0 | CL14: 0 | CM14: 0 | CN14: 0 | CO14: 0 | CP14: 0 | CQ14: 0 | CR14: 0 | CT14: 0 | CU14: 0 | CV14: 0 | CW14: 0 | CX14: 0 | CY14: 0 | CZ14: 0 | DA14: 0 | DB14: 0 | DC14: 0 | DD14: 0 | DE14: 0 | DF14: 0 | DG14: 0 | DH14: 0 | DI14: 0 | DJ14: 0 | DK14: 0 | DL14: 0 | DM14: 0 | DN14: 0 | DO14: 0 | DP14: 0 | DQ14: 0 | DR14: 0 | DS14: 0 | DT14: 0 | DU14: 0 | DV14: 0 | DW14: 0 | DX14: 0 | DY14: 0 | DZ14: 0 | EA14: 0 | EB14: 0 | EC14: 0 | ED14: 0 | EE14: 0 | EF14: 0 | EG14: 0 | EH14: 0 | EI14: 0 | EJ14: 0 | EK14: 0 | EL14: 0 | EM14: 0 | EN14: 0 | EO14: 0 | EP14: 0 | EQ14: 0 | ER14: 0 | ES14: 0 | ET14: 0 | EU14: 0 | EV14: 0 | EW14: 0 | EX14: 0 | EY14: 0 | EZ14: 0 | FA14: 0 | FB14: 0 | FC14: 0 | FD14: 0 | FE14: 0 | FF14: 0 | FG14: 0 | FH14: 0 | FI14: 0 | FJ14: 0 | FK14: 0 | FL14: 0 | FM14: 0 | FN14: 0 | FO14: 0 | FP14: 0 | FQ14: 0 | FR14: 0 | FS14: 0 | FT14: 0 | FU14: 0 | FV14: 0 | FW14: 0 | FX14: 0 | FY14: 0 | FZ14: 0 | GA14: 0 | GB14: 0 | GC14: 0 | GD14: 0 | GE14: 0 | GF14: 0
A15: 10 | D15: =VLOOKUP(A15,IDtable,2) -> Not used | E15: 0 | F15: 0 | G15: 0 | H15: 0 | I15: 0 | J15: 0 | K15: 0 | L15: 0 | M15: 0 | N15: 0 | O15: 0 | P15: 0 | Q15: 0 | R15: 0 | S15: 0 | T15: 0 | U15: 0 | V15: 0 | W15: 0 | X15: 0 | Y15: 0 | Z15: 0 | AA15: 0 | AB15: 0 | AC15: 0 | AD15: 0 | AE15: 0 | AF15: 0 | AG15: 0 | AH15: 0 | AI15: 0 | AJ15: 0 | AK15: 0 | AL15: 0 | AM15: 0 | AN15: 0 | AO15: 0 | AP15: 0 | AQ15: 0 | AR15: 0 | AS15: 0 | AT15: 0 | AU15: 0 | AV15: 0 | AW15: 0 | AX15: 0 | AY15: 0 | AZ15: 0 | BA15: 0 | BB15: 0 | BC15: 0 | BD15: 0 | BE15: 0 | BF15: 0 | BG15: 0 | BH15: 0 | BI15: 0 | BJ15: 0 | BK15: 0 | BL15: 0 | BM15: 0 | BN15: 0 | BO15: 0 | BP15: 0 | BQ15: 0 | BR15: 0 | BS15: 0 | BT15: 0 | BU15: 0 | BV15: 0 | BW15: 0 | BX15: 0 | BY15: 0 | BZ15: 0 | CA15: 0 | CB15: 0 | CC15: 0 | CD15: 0 | CE15: 0 | CF15: 0 | CG15: 0 | CH15: 0 | CI15: 0 | CJ15: 0 | CK15: 0 | CL15: 0 | CM15: 0 | CN15: 0 | CO15: 0 | CP15: 0 | CQ15: 0 | CR15: 0 | CT15: 0 | CU15: 0 | CV15: 0 | CW15: 0 | CX15: 0 | CY15: 0 | CZ15: 0 | DA15: 0 | DB15: 0 | DC15: 0 | DD15: 0 | DE15: 0 | DF15: 0 | DG15: 0 | DH15: 0 | DI15: 0 | DJ15: 0 | DK15: 0 | DL15: 0 | DM15: 0 | DN15: 0 | DO15: 0 | DP15: 0 | DQ15: 0 | DR15: 0 | DS15: 0 | DT15: 0 | DU15: 0 | DV15: 0 | DW15: 0 | DX15: 0 | DY15: 0 | DZ15: 0 | EA15: 0 | EB15: 0 | EC15: 0 | ED15: 0 | EE15: 0 | EF15: 0 | EG15: 0 | EH15: 0 | EI15: 0 | EJ15: 0 | EK15: 0 | EL15: 0 | EM15: 0 | EN15: 0 | EO15: 0 | EP15: 0 | EQ15: 0 | ER15: 0 | ES15: 0 | ET15: 0 | EU15: 0 | EV15: 0 | EW15: 0 | EX15: 0 | EY15: 0 | EZ15: 0 | FA15: 0 | FB15: 0 | FC15: 0 | FD15: 0 | FE15: 0 | FF15: 0 | FG15: 0 | FH15: 0 | FI15: 0 | FJ15: 0 | FK15: 0 | FL15: 0 | FM15: 0 | FN15: 0 | FO15: 0 | FP15: 0 | FQ15: 0 | FR15: 0 | FS15: 0 | FT15: 0 | FU15: 0 | FV15: 0 | FW15: 0 | FX15: 0 | FY15: 0 | FZ15: 0 | GA15: 0 | GB15: 0 | GC15: 0 | GD15: 0 | GE15: 0 | GF15: 0
A16: 11 | D16: =VLOOKUP(A16,IDtable,2) -> Not used | E16: 0 | F16: 0 | G16: 0 | H16: 0 | I16: 0 | J16: 0 | K16: 0 | L16: 0 | M16: 0 | N16: 0 | O16: 0 | P16: 0 | Q16: 0 | R16: 0 | S16: 0 | T16: 0 | U16: 0 | V16: 0 | W16: 0 | X16: 0 | Y16: 0 | Z16: 0 | AA16: 0 | AB16: 0 | AC16: 0 | AD16: 0 | AE16: 0 | AF16: 0 | AG16: 0 | AH16: 0 | AI16: 0 | AJ16: 0 | AK16: 0 | AL16: 0 | AM16: 0 | AN16: 0 | AO16: 0 | AP16: 0 | AQ16: 0 | AR16: 0 | AS16: 0 | AT16: 0 | AU16: 0 | AV16: 0 | AW16: 0 | AX16: 0 | AY16: 0 | AZ16: 0 | BA16: 0 | BB16: 0 | BC16: 0 | BD16: 0 | BE16: 0 | BF16: 0 | BG16: 0 | BH16: 0 | BI16: 0 | BJ16: 0 | BK16: 0 | BL16: 0 | BM16: 0 | BN16: 0 | BO16: 0 | BP16: 0 | BQ16: 0 | BR16: 0 | BS16: 0 | BT16: 0 | BU16: 0 | BV16: 0 | BW16: 0 | BX16: 0 | BY16: 0 | BZ16: 0 | CA16: 0 | CB16: 0 | CC16: 0 | CD16: 0 | CE16: 0 | CF16: 0 | CG16: 0 | CH16: 0 | CI16: 0 | CJ16: 0 | CK16: 0 | CL16: 0 | CM16: 0 | CN16: 0 | CO16: 0 | CP16: 0 | CQ16: 0 | CR16: 0 | CT16: 0 | CU16: 0 | CV16: 0 | CW16: 0 | CX16: 0 | CY16: 0 | CZ16: 0 | DA16: 0 | DB16: 0 | DC16: 0 | DD16: 0 | DE16: 0 | DF16: 0 | DG16: 0 | DH16: 0 | DI16: 0 | DJ16: 0 | DK16: 0 | DL16: 0 | DM16: 0 | DN16: 0 | DO16: 0 | DP16: 0 | DQ16: 0 | DR16: 0 | DS16: 0 | DT16: 0 | DU16: 0 | DV16: 0 | DW16: 0 | DX16: 0 | DY16: 0 | DZ16: 0 | EA16: 0 | EB16: 0 | EC16: 0 | ED16: 0 | EE16: 0 | EF16: 0 | EG16: 0 | EH16: 0 | EI16: 0 | EJ16: 0 | EK16: 0 | EL16: 0 | EM16: 0 | EN16: 0 | EO16: 0 | EP16: 0 | EQ16: 0 | ER16: 0 | ES16: 0 | ET16: 0 | EU16: 0 | EV16: 0 | EW16: 0 | EX16: 0 | EY16: 0 | EZ16: 0 | FA16: 0 | FB16: 0 | FC16: 0 | FD16: 0 | FE16: 0 | FF16: 0 | FG16: 0 | FH16: 0 | FI16: 0 | FJ16: 0 | FK16: 0 | FL16: 0 | FM16: 0 | FN16: 0 | FO16: 0 | FP16: 0 | FQ16: 0 | FR16: 0 | FS16: 0 | FT16: 0 | FU16: 0 | FV16: 0 | FW16: 0 | FX16: 0 | FY16: 0 | FZ16: 0 | GA16: 0 | GB16: 0 | GC16: 0 | GD16: 0 | GE16: 0 | GF16: 0
A17: 12 | D17: =VLOOKUP(A17,IDtable,2) -> Not used | E17: 0 | F17: 0 | G17: 0 | H17: 0 | I17: 0 | J17: 0 | K17: 0 | L17: 0 | M17: 0 | N17: 0 | O17: 0 | P17: 0 | Q17: 0 | R17: 0 | S17: 0 | T17: 0 | U17: 0 | V17: 0 | W17: 0 | X17: 0 | Y17: 0 | Z17: 0 | AA17: 0 | AB17: 0 | AC17: 0 | AD17: 0 | AE17: 0 | AF17: 0 | AG17: 0 | AH17: 0 | AI17: 0 | AJ17: 0 | AK17: 0 | AL17: 0 | AM17: 0 | AN17: 0 | AO17: 0 | AP17: 0 | AQ17: 0 | AR17: 0 | AS17: 0 | AT17: 0 | AU17: 0 | AV17: 0 | AW17: 0 | AX17: 0 | AY17: 0 | AZ17: 0 | BA17: 0 | BB17: 0 | BC17: 0 | BD17: 0 | BE17: 0 | BF17: 0 | BG17: 0 | BH17: 0 | BI17: 0 | BJ17: 0 | BK17: 0 | BL17: 0 | BM17: 0 | BN17: 0 | BO17: 0 | BP17: 0 | BQ17: 0 | BR17: 0 | BS17: 0 | BT17: 0 | BU17: 0 | BV17: 0 | BW17: 0 | BX17: 0 | BY17: 0 | BZ17: 0 | CA17: 0 | CB17: 0 | CC17: 0 | CD17: 0 | CE17: 0 | CF17: 0 | CG17: 0 | CH17: 0 | CI17: 0 | CJ17: 0 | CK17: 0 | CL17: 0 | CM17: 0 | CN17: 0 | CO17: 0 | CP17: 0 | CQ17: 0 | CR17: 0 | CT17: 0 | CU17: 0 | CV17: 0 | CW17: 0 | CX17: 0 | CY17: 0 | CZ17: 0 | DA17: 0 | DB17: 0 | DC17: 0 | DD17: 0 | DE17: 0 | DF17: 0 | DG17: 0 | DH17: 0 | DI17: 0 | DJ17: 0 | DK17: 0 | DL17: 0 | DM17: 0 | DN17: 0 | DO17: 0 | DP17: 0 | DQ17: 0 | DR17: 0 | DS17: 0 | DT17: 0 | DU17: 0 | DV17: 0 | DW17: 0 | DX17: 0 | DY17: 0 | DZ17: 0 | EA17: 0 | EB17: 0 | EC17: 0 | ED17: 0 | EE17: 0 | EF17: 0 | EG17: 0 | EH17: 0 | EI17: 0 | EJ17: 0 | EK17: 0 | EL17: 0 | EM17: 0 | EN17: 0 | EO17: 0 | EP17: 0 | EQ17: 0 | ER17: 0 | ES17: 0 | ET17: 0 | EU17: 0 | EV17: 0 | EW17: 0 | EX17: 0 | EY17: 0 | EZ17: 0 | FA17: 0 | FB17: 0 | FC17: 0 | FD17: 0 | FE17: 0 | FF17: 0 | FG17: 0 | FH17: 0 | FI17: 0 | FJ17: 0 | FK17: 0 | FL17: 0 | FM17: 0 | FN17: 0 | FO17: 0 | FP17: 0 | FQ17: 0 | FR17: 0 | FS17: 0 | FT17: 0 | FU17: 0 | FV17: 0 | FW17: 0 | FX17: 0 | FY17: 0 | FZ17: 0 | GA17: 0 | GB17: 0 | GC17: 0 | GD17: 0 | GE17: 0 | GF17: 0
D18: Total | F18: =SUM(F6:F17) -> 491 | G18: 1443 | H18: 1444 | I18: 1170 | J18: 945 | K18: 1527 | L18: 1658 | M18: 1478 | N18: 844 | O18: 620 | P18: 1002 | Q18: 414 | R18: 589 | S18: 436 | T18: 1052 | U18: 846 | V18: 968 | W18: 463 | X18: 147 | Y18: 237 | Z18: 270 | AA18: 145 | AB18: 864 | AC18: 108 | AD18: 92 | AE18: 20 | AF18: 649 | AG18: 429 | AH18: 1027 | AI18: 970 | AJ18: 1087 | AK18: 246 | AL18: 519 | AM18: 722 | AN18: 1454 | AO18: 243 | AP18: 595 | AQ18: 1130 | AR18: 1143 | AS18: 91 | AT18: 476 | AU18: 248 | AV18: 688 | AW18: 149 | AX18: 474 | AY18: 126 | AZ18: 207 | BA18: 525 | BB18: 210 | BC18: 74 | BD18: 144 | BE18: 53 | BF18: 185 | BG18: 1 | BH18: 0 | BI18: 0 | BJ18: 10 | BK18: 3 | BL18: 0 | BM18: 0 | BN18: 0 | BO18: 0 | BP18: 0 | BQ18: 0 | BR18: =SUM(BR6:BR17) -> 0 | BS18: 0 | BT18: 0 | BU18: 0 | BV18: 0 | BW18: 0 | BX18: 0 | BY18: 0 | BZ18: 0 | CA18: 0 | CB18: 0 | CC18: 0 | CD18: 0 | CE18: 0 | CF18: 0 | CG18: 0 | CH18: 0 | CI18: 0 | CJ18: 0 | CK18: 0 | CL18: 0 | CM18: 0 | CN18: 0 | CO18: 0 | CP18: 0 | CQ18: 0 | CR18: 0 | CS18: 0 | CT18: 491 | CU18: 1443 | CV18: 1444 | CW18: 1170 | CX18: 945 | CY18: 1527 | CZ18: 1658 | DA18: 1478 | DB18: 844 | DC18: 620 | DD18: 1002 | DE18: 414 | DF18: 589 | DG18: 436 | DH18: 1052 | DI18: 846 | DJ18: 968 | DK18: 463 | DL18: 147 | DM18: 237 | DN18: 270 | DO18: 145 | DP18: 864 | DQ18: 108 | DR18: 92 | DS18: 20 | DT18: 649 | DU18: 429 | DV18: 1027 | DW18: 970 | DX18: 1087 | DY18: 246 | DZ18: 519 | EA18: 722 | EB18: 1454 | EC18: 243 | ED18: =SUM(ED6:ED17) -> 595 | EE18: 1130 | EF18: 1143 | EG18: 91 | EH18: 476 | EI18: 248 | EJ18: 688 | EK18: 149 | EL18: 474 | EM18: 126 | EN18: 207 | EO18: 525 | EP18: 210 | EQ18: 74 | ER18: 144 | ES18: 53 | ET18: 185 | EU18: 1 | EV18: 0 | EW18: 0 | EX18: 10 | EY18: 3 | EZ18: 0 | FA18: 0 | FB18: 0 | FC18: 0 | FD18: 0 | FE18: 0 | FF18: 0 | FG18: 0 | FH18: 0 | FI18: 0 | FJ18: 0 | FK18: 0 | FL18: 0 | FM18: 0 | FN18: 0 | FO18: 0 | FP18: 0 | FQ18: 0 | FR18: 0 | FS18: 0 | FT18: 0 | FU18: 0 | FV18: 0 | FW18: 0 | FX18: 0 | FY18: 0 | FZ18: 0 | GA18: 0 | GB18: 0 | GC18: 0 | GD18: 0 | GE18: 0 | GF18: =SUM(GF6:GF17) -> 0
D20: EDB categories
A21: ='Asset data'!A21 -> 1 | B21: ='Asset data'!B21 -> 0 | C21: ='Asset data'!C21 -> 0 | D21: ='Asset data'!E21 -> Towers in Corrosion Zone B | E21: ='Asset data'!G21 -> 65.5594991 | F21: =IF($A21>0,IF(ISNA(MATCH(F$5,'Age profile (years)'!$F21:$CR21,0)),0,INDEX('Asset data'!$J21:$CV21,1,MATCH(F$5,'Age profile (years)'!$F21:$CR21,0))),0) -> 9 | G21: =IF($A21>0,IF(ISNA(MATCH(G$5,'Age profile (years)'!$F21:$CR21,0)),0,INDEX('Asset data'!$J21:$CV21,1,MATCH(G$5,'Age profile (years)'!$F21:$CR21,0))),0) -> 11 | H21: =IF($A21>0,IF(ISNA(MATCH(H$5,'Age profile (years)'!$F21:$CR21,0)),0,INDEX('Asset data'!$J21:$CV21,1,MATCH(H$5,'Age profile (years)'!$F21:$CR21,0))),0) -> 2 | I21: =IF($A21>0,IF(ISNA(MATCH(I$5,'Age profile (years)'!$F21:$CR21,0)),0,INDEX('Asset data'!$J21:$CV21,1,MATCH(I$5,'Age profile (years)'!$F21:$CR21,0))),0) -> 9 | J21: =IF($A21>0,IF(ISNA(MATCH(J$5,'Age profile (years)'!$F21:$CR21,0)),0,INDEX('Asset data'!$J21:$CV21,1,MATCH(J$5,'Age profile (years)'!$F21:$CR21,0))),0) -> 16 | K21: =IF($A21>0,IF(ISNA(MATCH(K$5,'Age profile (years)'!$F21:$CR21,0)),0,INDEX('Asset data'!$J21:$CV21,1,MATCH(K$5,'Age profile (years)'!$F21:$CR21,0))),0) -> 0 | L21: =IF($A21>0,IF(ISNA(MATCH(L$5,'Age profile (years)'!$F21:$CR21,0)),0,INDEX('Asset data'!$J21:$CV21,1,MATCH(L$5,'Age profile (years)'!$F21:$CR21,0))),0) -> 345 | M21: =IF($A21>0,IF(ISNA(MATCH(M$5,'Age profile (years)'!$F21:$CR21,0)),0,INDEX('Asset data'!$J21:$CV21,1,MATCH(M$5,'Age profile (years)'!$F21:$CR21,0))),0) -> 30 | N21: =IF($A21>0,IF(ISNA(MATCH(N$5,'Age profile (years)'!$F21:$CR21,0)),0,INDEX('Asset data'!$J21:$CV21,1,MATCH(N$5,'Age profile (years)'!$F21:$CR21,0))),0) -> 14 | O21: =IF($A21>0,IF(ISNA(MATCH(O$5,'Age profile (years)'!$F21:$CR21,0)),0,INDEX('Asset data'!$J21:$CV21,1,MATCH(O$5,'Age profile (years)'!$F21:$CR21,0))),0) -> 2 | P21: =IF($A21>0,IF(ISNA(MATCH(P$5,'Age profile (years)'!$F21:$CR21,0)),0,INDEX('Asset data'!$J21:$CV21,1,MATCH(P$5,'Age profile (years)'!$F21:$CR21,0))),0) -> 249 | Q21: =IF($A21>0,IF(ISNA(MATCH(Q$5,'Age profile (years)'!$F21:$CR21,0)),0,INDEX('Asset data'!$J21:$CV21,1,MATCH(Q$5,'Age profile (years)'!$F21:$CR21,0))),0) -> 26 | R21: =IF($A21>0,IF(ISNA(MATCH(R$5,'Age profile (years)'!$F21:$CR21,0)),0,INDEX('Asset data'!$J21:$CV21,1,MATCH(R$5,'Age profile (years)'!$F21:$CR21,0))),0) -> 1 | S21: =IF($A21>0,IF(ISNA(MATCH(S$5,'Age profile (years)'!$F21:$CR21,0)),0,INDEX('Asset data'!$J21:$CV21,1,MATCH(S$5,'Age profile (years)'!$F21:$CR21,0))),0) -> 0 | T21: =IF($A21>0,IF(ISNA(MATCH(T$5,'Age profile (years)'!$F21:$CR21,0)),0,INDEX('Asset data'!$J21:$CV21,1,MATCH(T$5,'Age profile (years)'!$F21:$CR21,0))),0) -> 0 | U21: =IF($A21>0,IF(ISNA(MATCH(U$5,'Age profile (years)'!$F21:$CR21,0)),0,INDEX('Asset data'!$J21:$CV21,1,MATCH(U$5,'Age profile (years)'!$F21:$CR21,0))),0) -> 0 | V21: =IF($A21>0,IF(ISNA(MATCH(V$5,'Age profile (years)'!$F21:$CR21,0)),0,INDEX('Asset data'!$J21:$CV21,1,MATCH(V$5,'Age profile (years)'!$F21:$CR21,0))),0) -> 0 | W21: =IF($A21>0,IF(ISNA(MATCH(W$5,'Age profile (years)'!$F21:$CR21,0)),0,INDEX('Asset data'!$J21:$CV21,1,MATCH(W$5,'Age profile (years)'!$F21:$CR21,0))),0) -> 0 | X21: =IF($A21>0,IF(ISNA(MATCH(X$5,'Age profile (years)'!$F21:$CR21,0)),0,INDEX('Asset data'!$J21:$CV21,1,MATCH(X$5,'Age profile (years)'!$F21:$CR21,0))),0) -> 0 | Y21: =IF($A21>0,IF(ISNA(MATCH(Y$5,'Age profile (years)'!$F21:$CR21,0)),0,INDEX('Asset data'!$J21:$CV21,1,MATCH(Y$5,'Age profile (years)'!$F21:$CR21,0))),0) -> 0 | Z21: =IF($A21>0,IF(ISNA(MATCH(Z$5,'Age profile (years)'!$F21:$CR21,0)),0,INDEX('Asset data'!$J21:$CV21,1,MATCH(Z$5,'Age profile (years)'!$F21:$CR21,0))),0) -> 0 | AA21: =IF($A21>0,IF(ISNA(MATCH(AA$5,'Age profile (years)'!$F21:$CR21,0)),0,INDEX('Asset data'!$J21:$CV21,1,MATCH(AA$5,'Age profile (years)'!$F21:$CR21,0))),0) -> 0 | AB21: =IF($A21>0,IF(ISNA(MATCH(AB$5,'Age profile (years)'!$F21:$CR21,0)),0,INDEX('Asset data'!$J21:$CV21,1,MATCH(AB$5,'Age profile (years)'!$F21:$CR21,0))),0) -> 16 | AC21: =IF($A21>0,IF(ISNA(MATCH(AC$5,'Age profile (years)'!$F21:$CR21,0)),0,INDEX('Asset data'!$J21:$CV21,1,MATCH(AC$5,'Age profile (years)'!$F21:$CR21,0))),0) -> 0 | AD21: =IF($A21>0,IF(ISNA(MATCH(AD$5,'Age profile (years)'!$F21:$CR21,0)),0,INDEX('Asset data'!$J21:$CV21,1,MATCH(AD$5,'Age profile (years)'!$F21:$CR21,0))),0) -> 0 | AE21: =IF($A21>0,IF(ISNA(MATCH(AE$5,'Age profile (years)'!$F21:$CR21,0)),0,INDEX('Asset data'!$J21:$CV21,1,MATCH(AE$5,'Age profile (years)'!$F21:$CR21,0))),0) -> 0 | AF21: =IF($A21>0,IF(ISNA(MATCH(AF$5,'Age profile (years)'!$F21:$CR21,0)),0,INDEX('Asset data'!$J21:$CV21,1,MATCH(AF$5,'Age profile (years)'!$F21:$CR21,0))),0) -> 0 | AG21: =IF($A21>0,IF(ISNA(MATCH(AG$5,'Age profile (years)'!$F21:$CR21,0)),0,INDEX('Asset data'!$J21:$CV21,1,MATCH(AG$5,'Age profile (years)'!$F21:$CR21,0))),0) -> 201 | AH21: =IF($A21>0,IF(ISNA(MATCH(AH$5,'Age profile (years)'!$F21:$CR21,0)),0,INDEX('Asset data'!$J21:$CV21,1,MATCH(AH$5,'Age profile (years)'!$F21:$CR21,0))),0) -> 0 | AI21: =IF($A21>0,IF(ISNA(MATCH(AI$5,'Age profile (years)'!$F21:$CR21,0)),0,INDEX('Asset data'!$J21:$CV21,1,MATCH(AI$5,'Age profile (years)'!$F21:$CR21,0))),0) -> 2 | AJ21: =IF($A21>0,IF(ISNA(MATCH(AJ$5,'Age profile (years)'!$F21:$CR21,0)),0,INDEX('Asset data'!$J21:$CV21,1,MATCH(AJ$5,'Age profile (years)'!$F21:$CR21,0))),0) -> 0 | AK21: =IF($A21>0,IF(ISNA(MATCH(AK$5,'Age profile (years)'!$F21:$CR21,0)),0,INDEX('Asset data'!$J21:$CV21,1,MATCH(AK$5,'Age profile (years)'!$F21:$CR21,0))),0) -> 0 | AL21: =IF($A21>0,IF(ISNA(MATCH(AL$5,'Age profile (years)'!$F21:$CR21,0)),0,INDEX('Asset data'!$J21:$CV21,1,MATCH(AL$5,'Age profile (years)'!$F21:$CR21,0))),0) -> 0 | AM21: =IF($A21>0,IF(ISNA(MATCH(AM$5,'Age profile (years)'!$F21:$CR21,0)),0,INDEX('Asset data'!$J21:$CV21,1,MATCH(AM$5,'Age profile (years)'!$F21:$CR21,0))),0) -> 0 | AN21: =IF($A21>0,IF(ISNA(MATCH(AN$5,'Age profile (years)'!$F21:$CR21,0)),0,INDEX('Asset data'!$J21:$CV21,1,MATCH(AN$5,'Age profile (years)'!$F21:$CR21,0))),0) -> 0 | AO21: =IF($A21>0,IF(ISNA(MATCH(AO$5,'Age profile (years)'!$F21:$CR21,0)),0,INDEX('Asset data'!$J21:$CV21,1,MATCH(AO$5,'Age profile (years)'!$F21:$CR21,0))),0) -> 0 | AP21: =IF($A21>0,IF(ISNA(MATCH(AP$5,'Age profile (years)'!$F21:$CR21,0)),0,INDEX('Asset data'!$J21:$CV21,1,MATCH(AP$5,'Age profile (years)'!$F21:$CR21,0))),0) -> 2 | AQ21: =IF($A21>0,IF(ISNA(MATCH(AQ$5,'Age profile (years)'!$F21:$CR21,0)),0,INDEX('Asset data'!$J21:$CV21,1,MATCH(AQ$5,'Age profile (years)'!$F21:$CR21,0))),0) -> 410 | AR21: =IF($A21>0,IF(ISNA(MATCH(AR$5,'Age profile (years)'!$F21:$CR21,0)),0,INDEX('Asset data'!$J21:$CV21,1,MATCH(AR$5,'Age profile (years)'!$F21:$CR21,0))),0) -> 127 | AS21: =IF($A21>0,IF(ISNA(MATCH(AS$5,'Age profile (years)'!$F21:$CR21,0)),0,INDEX('Asset data'!$J21:$CV21,1,MATCH(AS$5,'Age profile (years)'!$F21:$CR21,0))),0) -> 0 | AT21: =IF($A21>0,IF(ISNA(MATCH(AT$5,'Age profile (years)'!$F21:$CR21,0)),0,INDEX('Asset data'!$J21:$CV21,1,MATCH(AT$5,'Age profile (years)'!$F21:$CR21,0))),0) -> 0 | AU21: =IF($A21>0,IF(ISNA(MATCH(AU$5,'Age profile (years)'!$F21:$CR21,0)),0,INDEX('Asset data'!$J21:$CV21,1,MATCH(AU$5,'Age profile (years)'!$F21:$CR21,0))),0) -> 209 | AV21: =IF($A21>0,IF(ISNA(MATCH(AV$5,'Age profile (years)'!$F21:$CR21,0)),0,INDEX('Asset data'!$J21:$CV21,1,MATCH(AV$5,'Age profile (years)'!$F21:$CR21,0))),0) -> 0 | AW21: =IF($A21>0,IF(ISNA(MATCH(AW$5,'Age profile (years)'!$F21:$CR21,0)),0,INDEX('Asset data'!$J21:$CV21,1,MATCH(AW$5,'Age profile (years)'!$F21:$CR21,0))),0) -> 75 | AX21: =IF($A21>0,IF(ISNA(MATCH(AX$5,'Age profile (years)'!$F21:$CR21,0)),0,INDEX('Asset data'!$J21:$CV21,1,MATCH(AX$5,'Age profile (years)'!$F21:$CR21,0))),0) -> 390 | AY21: =IF($A21>0,IF(ISNA(MATCH(AY$5,'Age profile (years)'!$F21:$CR21,0)),0,INDEX('Asset data'!$J21:$CV21,1,MATCH(AY$5,'Age profile (years)'!$F21:$CR21,0))),0) -> 3 | AZ21: =IF($A21>0,IF(ISNA(MATCH(AZ$5,'Age profile (years)'!$F21:$CR21,0)),0,INDEX('Asset data'!$J21:$CV21,1,MATCH(AZ$5,'Age profile (years)'!$F21:$CR21,0))),0) -> 196 | BA21: =IF($A21>0,IF(ISNA(MATCH(BA$5,'Age profile (years)'!$F21:$CR21,0)),0,INDEX('Asset data'!$J21:$CV21,1,MATCH(BA$5,'Age profile (years)'!$F21:$CR21,0))),0) -> 338 | BB21: =IF($A21>0,IF(ISNA(MATCH(BB$5,'Age profile (years)'!$F21:$CR21,0)),0,INDEX('Asset data'!$J21:$CV21,1,MATCH(BB$5,'Age profile (years)'!$F21:$CR21,0))),0) -> 0 | BC21: =IF($A21>0,IF(ISNA(MATCH(BC$5,'Age profile (years)'!$F21:$CR21,0)),0,INDEX('Asset data'!$J21:$CV21,1,MATCH(BC$5,'Age profile (years)'!$F21:$CR21,0))),0) -> 33 | BD21: =IF($A21>0,IF(ISNA(MATCH(BD$5,'Age profile (years)'!$F21:$CR21,0)),0,INDEX('Asset data'!$J21:$CV21,1,MATCH(BD$5,'Age profile (years)'!$F21:$CR21,0))),0) -> 0 | BE21: =IF($A21>0,IF(ISNA(MATCH(BE$5,'Age profile (years)'!$F21:$CR21,0)),0,INDEX('Asset data'!$J21:$CV21,1,MATCH(BE$5,'Age profile (years)'!$F21:$CR21,0))),0) -> 0 | BF21: =IF($A21>0,IF(ISNA(MATCH(BF$5,'Age profile (years)'!$F21:$CR21,0)),0,INDEX('Asset data'!$J21:$CV21,1,MATCH(BF$5,'Age profile (years)'!$F21:$CR21,0))),0) -> 56 | BG21: =IF($A21>0,IF(ISNA(MATCH(BG$5,'Age profile (years)'!$F21:$CR21,0)),0,INDEX('Asset data'!$J21:$CV21,1,MATCH(BG$5,'Age profile (years)'!$F21:$CR21,0))),0) -> 0 | BH21: =IF($A21>0,IF(ISNA(MATCH(BH$5,'Age profile (years)'!$F21:$CR21,0)),0,INDEX('Asset data'!$J21:$CV21,1,MATCH(BH$5,'Age profile (years)'!$F21:$CR21,0))),0) -> 0 | BI21: =IF($A21>0,IF(ISNA(MATCH(BI$5,'Age profile (years)'!$F21:$CR21,0)),0,INDEX('Asset data'!$J21:$CV21,1,MATCH(BI$5,'Age profile (years)'!$F21:$CR21,0))),0) -> 0 | BJ21: =IF($A21>0,IF(ISNA(MATCH(BJ$5,'Age profile (years)'!$F21:$CR21,0)),0,INDEX('Asset data'!$J21:$CV21,1,MATCH(BJ$5,'Age profile (years)'!$F21:$CR21,0))),0) -> 0 | BK21: =IF($A21>0,IF(ISNA(MATCH(BK$5,'Age profile (years)'!$F21:$CR21,0)),0,INDEX('Asset data'!$J21:$CV21,1,MATCH(BK$5,'Age profile (years)'!$F21:$CR21,0))),0) -> 0 | BL21: =IF($A21>0,IF(ISNA(MATCH(BL$5,'Age profile (years)'!$F21:$CR21,0)),0,INDEX('Asset data'!$J21:$CV21,1,MATCH(BL$5,'Age profile (years)'!$F21:$CR21,0))),0) -> 0 | BM21: =IF($A21>0,IF(ISNA(MATCH(BM$5,'Age profile (years)'!$F21:$CR21,0)),0,INDEX('Asset data'!$J21:$CV21,1,MATCH(BM$5,'Age profile (years)'!$F21:$CR21,0))),0) -> 0 | BN21: =IF($A21>0,IF(ISNA(MATCH(BN$5,'Age profile (years)'!$F21:$CR21,0)),0,INDEX('Asset data'!$J21:$CV21,1,MATCH(BN$5,'Age profile (years)'!$F21:$CR21,0))),0) -> 0 | BO21: =IF($A21>0,IF(ISNA(MATCH(BO$5,'Age profile (years)'!$F21:$CR21,0)),0,INDEX('Asset data'!$J21:$CV21,1,MATCH(BO$5,'Age profile (years)'!$F21:$CR21,0))),0) -> 0 | BP21: =IF($A21>0,IF(ISNA(MATCH(BP$5,'Age profile (years)'!$F21:$CR21,0)),0,INDEX('Asset data'!$J21:$CV21,1,MATCH(BP$5,'Age profile (years)'!$F21:$CR21,0))),0) -> 0 | BQ21: =IF($A21>0,IF(ISNA(MATCH(BQ$5,'Age profile (years)'!$F21:$CR21,0)),0,INDEX('Asset data'!$J21:$CV21,1,MATCH(BQ$5,'Age profile (years)'!$F21:$CR21,0))),0) -> 0 | BR21: =IF($A21>0,IF(ISNA(MATCH(BR$5,'Age profile (years)'!$F21:$CR21,0)),0,INDEX('Asset data'!$J21:$CV21,1,MATCH(BR$5,'Age profile (years)'!$F21:$CR21,0))),0) -> 0 | BS21: =IF($A21>0,IF(ISNA(MATCH(BS$5,'Age profile (years)'!$F21:$CR21,0)),0,INDEX('Asset data'!$J21:$CV21,1,MATCH(BS$5,'Age profile (years)'!$F21:$CR21,0))),0) -> 0 | BT21: =IF($A21>0,IF(ISNA(MATCH(BT$5,'Age profile (years)'!$F21:$CR21,0)),0,INDEX('Asset data'!$J21:$CV21,1,MATCH(BT$5,'Age profile (years)'!$F21:$CR21,0))),0) -> 0 | BU21: =IF($A21>0,IF(ISNA(MATCH(BU$5,'Age profile (years)'!$F21:$CR21,0)),0,INDEX('Asset data'!$J21:$CV21,1,MATCH(BU$5,'Age profile (years)'!$F21:$CR21,0))),0) -> 0 | BV21: =IF($A21>0,IF(ISNA(MATCH(BV$5,'Age profile (years)'!$F21:$CR21,0)),0,INDEX('Asset data'!$J21:$CV21,1,MATCH(BV$5,'Age profile (years)'!$F21:$CR21,0))),0) -> 0 | BW21: =IF($A21>0,IF(ISNA(MATCH(BW$5,'Age profile (years)'!$F21:$CR21,0)),0,INDEX('Asset data'!$J21:$CV21,1,MATCH(BW$5,'Age profile (years)'!$F21:$CR21,0))),0) -> 0 | BX21: =IF($A21>0,IF(ISNA(MATCH(BX$5,'Age profile (years)'!$F21:$CR21,0)),0,INDEX('Asset data'!$J21:$CV21,1,MATCH(BX$5,'Age profile (years)'!$F21:$CR21,0))),0) -> 0 | BY21: =IF($A21>0,IF(ISNA(MATCH(BY$5,'Age profile (years)'!$F21:$CR21,0)),0,INDEX('Asset data'!$J21:$CV21,1,MATCH(BY$5,'Age profile (years)'!$F21:$CR21,0))),0) -> 0 | BZ21: =IF($A21>0,IF(ISNA(MATCH(BZ$5,'Age profile (years)'!$F21:$CR21,0)),0,INDEX('Asset data'!$J21:$CV21,1,MATCH(BZ$5,'Age profile (years)'!$F21:$CR21,0))),0) -> 0 | CA21: =IF($A21>0,IF(ISNA(MATCH(CA$5,'Age profile (years)'!$F21:$CR21,0)),0,INDEX('Asset data'!$J21:$CV21,1,MATCH(CA$5,'Age profile (years)'!$F21:$CR21,0))),0) -> 0 | CB21: =IF($A21>0,IF(ISNA(MATCH(CB$5,'Age profile (years)'!$F21:$CR21,0)),0,INDEX('Asset data'!$J21:$CV21,1,MATCH(CB$5,'Age profile (years)'!$F21:$CR21,0))),0) -> 0 | CC21: =IF($A21>0,IF(ISNA(MATCH(CC$5,'Age profile (years)'!$F21:$CR21,0)),0,INDEX('Asset data'!$J21:$CV21,1,MATCH(CC$5,'Age profile (years)'!$F21:$CR21,0))),0) -> 0 | CD21: =IF($A21>0,IF(ISNA(MATCH(CD$5,'Age profile (years)'!$F21:$CR21,0)),0,INDEX('Asset data'!$J21:$CV21,1,MATCH(CD$5,'Age profile (years)'!$F21:$CR21,0))),0) -> 0 | CE21: =IF($A21>0,IF(ISNA(MATCH(CE$5,'Age profile (years)'!$F21:$CR21,0)),0,INDEX('Asset data'!$J21:$CV21,1,MATCH(CE$5,'Age profile (years)'!$F21:$CR21,0))),0) -> 0 | CF21: =IF($A21>0,IF(ISNA(MATCH(CF$5,'Age profile (years)'!$F21:$CR21,0)),0,INDEX('Asset data'!$J21:$CV21,1,MATCH(CF$5,'Age profile (years)'!$F21:$CR21,0))),0) -> 0 | CG21: =IF($A21>0,IF(ISNA(MATCH(CG$5,'Age profile (years)'!$F21:$CR21,0)),0,INDEX('Asset data'!$J21:$CV21,1,MATCH(CG$5,'Age profile (years)'!$F21:$CR21,0))),0) -> 0 | CH21: =IF($A21>0,IF(ISNA(MATCH(CH$5,'Age profile (years)'!$F21:$CR21,0)),0,INDEX('Asset data'!$J21:$CV21,1,MATCH(CH$5,'Age profile (years)'!$F21:$CR21,0))),0) -> 0 | CI21: =IF($A21>0,IF(ISNA(MATCH(CI$5,'Age profile (years)'!$F21:$CR21,0)),0,INDEX('Asset data'!$J21:$CV21,1,MATCH(CI$5,'Age profile (years)'!$F21:$CR21,0))),0) -> 0 | CJ21: =IF($A21>0,IF(ISNA(MATCH(CJ$5,'Age profile (years)'!$F21:$CR21,0)),0,INDEX('Asset data'!$J21:$CV21,1,MATCH(CJ$5,'Age profile (years)'!$F21:$CR21,0))),0) -> 0 | CK21: =IF($A21>0,IF(ISNA(MATCH(CK$5,'Age profile (years)'!$F21:$CR21,0)),0,INDEX('Asset data'!$J21:$CV21,1,MATCH(CK$5,'Age profile (years)'!$F21:$CR21,0))),0) -> 0 | CL21: =IF($A21>0,IF(ISNA(MATCH(CL$5,'Age profile (years)'!$F21:$CR21,0)),0,INDEX('Asset data'!$J21:$CV21,1,MATCH(CL$5,'Age profile (years)'!$F21:$CR21,0))),0) -> 0 | CM21: =IF($A21>0,IF(ISNA(MATCH(CM$5,'Age profile (years)'!$F21:$CR21,0)),0,INDEX('Asset data'!$J21:$CV21,1,MATCH(CM$5,'Age profile (years)'!$F21:$CR21,0))),0) -> 0 | CN21: =IF($A21>0,IF(ISNA(MATCH(CN$5,'Age profile (years)'!$F21:$CR21,0)),0,INDEX('Asset data'!$J21:$CV21,1,MATCH(CN$5,'Age profile (years)'!$F21:$CR21,0))),0) -> 0 | CO21: =IF($A21>0,IF(ISNA(MATCH(CO$5,'Age profile (years)'!$F21:$CR21,0)),0,INDEX('Asset data'!$J21:$CV21,1,MATCH(CO$5,'Age profile (years)'!$F21:$CR21,0))),0) -> 0 | CP21: =IF($A21>0,IF(ISNA(MATCH(CP$5,'Age profile (years)'!$F21:$CR21,0)),0,INDEX('Asset data'!$J21:$CV21,1,MATCH(CP$5,'Age profile (years)'!$F21:$CR21,0))),0) -> 0 | CQ21: =IF($A21>0,IF(ISNA(MATCH(CQ$5,'Age profile (years)'!$F21:$CR21,0)),0,INDEX('Asset data'!$J21:$CV21,1,MATCH(CQ$5,'Age profile (years)'!$F21:$CR21,0))),0) -> 0 | CR21: =IF($A21>0,IF(ISNA(MATCH(CR$5,'Age profile (years)'!$F21:$CR21,0)),0,INDEX('Asset data'!$J21:$CV21,1,MATCH(CR$5,'Age profile (years)'!$F21:$CR21,0))),0) -> 0 | CT21: =IF($A21>0,IF(ISNA(MATCH(F$5,'Age profile (years)'!$F21:$CR21,0)),0,INDEX('Asset data'!$CX21:$GJ21,1,MATCH(F$5,'Age profile (years)'!$F21:$CR21,0))),0) -> 9 | CU21: =IF($A21>0,IF(ISNA(MATCH(G$5,'Age profile (years)'!$F21:$CR21,0)),0,INDEX('Asset data'!$CX21:$GJ21,1,MATCH(G$5,'Age profile (years)'!$F21:$CR21,0))),0) -> 11 | CV21: =IF($A21>0,IF(ISNA(MATCH(H$5,'Age profile (years)'!$F21:$CR21,0)),0,INDEX('Asset data'!$CX21:$GJ21,1,MATCH(H$5,'Age profile (years)'!$F21:$CR21,0))),0) -> 2 | CW21: =IF($A21>0,IF(ISNA(MATCH(I$5,'Age profile (years)'!$F21:$CR21,0)),0,INDEX('Asset data'!$CX21:$GJ21,1,MATCH(I$5,'Age profile (years)'!$F21:$CR21,0))),0) -> 9 | CX21: =IF($A21>0,IF(ISNA(MATCH(J$5,'Age profile (years)'!$F21:$CR21,0)),0,INDEX('Asset data'!$CX21:$GJ21,1,MATCH(J$5,'Age profile (years)'!$F21:$CR21,0))),0) -> 16 | CY21: =IF($A21>0,IF(ISNA(MATCH(K$5,'Age profile (years)'!$F21:$CR21,0)),0,INDEX('Asset data'!$CX21:$GJ21,1,MATCH(K$5,'Age profile (years)'!$F21:$CR21,0))),0) -> 0 | CZ21: =IF($A21>0,IF(ISNA(MATCH(L$5,'Age profile (years)'!$F21:$CR21,0)),0,INDEX('Asset data'!$CX21:$GJ21,1,MATCH(L$5,'Age profile (years)'!$F21:$CR21,0))),0) -> 345 | DA21: =IF($A21>0,IF(ISNA(MATCH(M$5,'Age profile (years)'!$F21:$CR21,0)),0,INDEX('Asset data'!$CX21:$GJ21,1,MATCH(M$5,'Age profile (years)'!$F21:$CR21,0))),0) -> 30 | DB21: =IF($A21>0,IF(ISNA(MATCH(N$5,'Age profile (years)'!$F21:$CR21,0)),0,INDEX('Asset data'!$CX21:$GJ21,1,MATCH(N$5,'Age profile (years)'!$F21:$CR21,0))),0) -> 14 | DC21: =IF($A21>0,IF(ISNA(MATCH(O$5,'Age profile (years)'!$F21:$CR21,0)),0,INDEX('Asset data'!$CX21:$GJ21,1,MATCH(O$5,'Age profile (years)'!$F21:$CR21,0))),0) -> 2 | DD21: =IF($A21>0,IF(ISNA(MATCH(P$5,'Age profile (years)'!$F21:$CR21,0)),0,INDEX('Asset data'!$CX21:$GJ21,1,MATCH(P$5,'Age profile (years)'!$F21:$CR21,0))),0) -> 249 | DE21: =IF($A21>0,IF(ISNA(MATCH(Q$5,'Age profile (years)'!$F21:$CR21,0)),0,INDEX('Asset data'!$CX21:$GJ21,1,MATCH(Q$5,'Age profile (years)'!$F21:$CR21,0))),0) -> 26 | DF21: =IF($A21>0,IF(ISNA(MATCH(R$5,'Age profile (years)'!$F21:$CR21,0)),0,INDEX('Asset data'!$CX21:$GJ21,1,MATCH(R$5,'Age profile (years)'!$F21:$CR21,0))),0) -> 1 | DG21: =IF($A21>0,IF(ISNA(MATCH(S$5,'Age profile (years)'!$F21:$CR21,0)),0,INDEX('Asset data'!$CX21:$GJ21,1,MATCH(S$5,'Age profile (years)'!$F21:$CR21,0))),0) -> 0 | DH21: =IF($A21>0,IF(ISNA(MATCH(T$5,'Age profile (years)'!$F21:$CR21,0)),0,INDEX('Asset data'!$CX21:$GJ21,1,MATCH(T$5,'Age profile (years)'!$F21:$CR21,0))),0) -> 0 | DI21: =IF($A21>0,IF(ISNA(MATCH(U$5,'Age profile (years)'!$F21:$CR21,0)),0,INDEX('Asset data'!$CX21:$GJ21,1,MATCH(U$5,'Age profile (years)'!$F21:$CR21,0))),0) -> 0 | DJ21: =IF($A21>0,IF(ISNA(MATCH(V$5,'Age profile (years)'!$F21:$CR21,0)),0,INDEX('Asset data'!$CX21:$GJ21,1,MATCH(V$5,'Age profile (years)'!$F21:$CR21,0))),0) -> 0 | DK21: =IF($A21>0,IF(ISNA(MATCH(W$5,'Age profile (years)'!$F21:$CR21,0)),0,INDEX('Asset data'!$CX21:$GJ21,1,MATCH(W$5,'Age profile (years)'!$F21:$CR21,0))),0) -> 0 | DL21: =IF($A21>0,IF(ISNA(MATCH(X$5,'Age profile (years)'!$F21:$CR21,0)),0,INDEX('Asset data'!$CX21:$GJ21,1,MATCH(X$5,'Age profile (years)'!$F21:$CR21,0))),0) -> 0 | DM21: =IF($A21>0,IF(ISNA(MATCH(Y$5,'Age profile (years)'!$F21:$CR21,0)),0,INDEX('Asset data'!$CX21:$GJ21,1,MATCH(Y$5,'Age profile (years)'!$F21:$CR21,0))),0) -> 0 | DN21: =IF($A21>0,IF(ISNA(MATCH(Z$5,'Age profile (years)'!$F21:$CR21,0)),0,INDEX('Asset data'!$CX21:$GJ21,1,MATCH(Z$5,'Age profile (years)'!$F21:$CR21,0))),0) -> 0 | DO21: =IF($A21>0,IF(ISNA(MATCH(AA$5,'Age profile (years)'!$F21:$CR21,0)),0,INDEX('Asset data'!$CX21:$GJ21,1,MATCH(AA$5,'Age profile (years)'!$F21:$CR21,0))),0) -> 0 | DP21: =IF($A21>0,IF(ISNA(MATCH(AB$5,'Age profile (years)'!$F21:$CR21,0)),0,INDEX('Asset data'!$CX21:$GJ21,1,MATCH(AB$5,'Age profile (years)'!$F21:$CR21,0))),0) -> 16 | DQ21: =IF($A21>0,IF(ISNA(MATCH(AC$5,'Age profile (years)'!$F21:$CR21,0)),0,INDEX('Asset data'!$CX21:$GJ21,1,MATCH(AC$5,'Age profile (years)'!$F21:$CR21,0))),0) -> 0 | DR21: =IF($A21>0,IF(ISNA(MATCH(AD$5,'Age profile (years)'!$F21:$CR21,0)),0,INDEX('Asset data'!$CX21:$GJ21,1,MATCH(AD$5,'Age profile (years)'!$F21:$CR21,0))),0) -> 0 | DS21: =IF($A21>0,IF(ISNA(MATCH(AE$5,'Age profile (years)'!$F21:$CR21,0)),0,INDEX('Asset data'!$CX21:$GJ21,1,MATCH(AE$5,'Age profile (years)'!$F21:$CR21,0))),0) -> 0 | DT21: =IF($A21>0,IF(ISNA(MATCH(AF$5,'Age profile (years)'!$F21:$CR21,0)),0,INDEX('Asset data'!$CX21:$GJ21,1,MATCH(AF$5,'Age profile (years)'!$F21:$CR21,0))),0) -> 0 | DU21: =IF($A21>0,IF(ISNA(MATCH(AG$5,'Age profile (years)'!$F21:$CR21,0)),0,INDEX('Asset data'!$CX21:$GJ21,1,MATCH(AG$5,'Age profile (years)'!$F21:$CR21,0))),0) -> 201 | DV21: =IF($A21>0,IF(ISNA(MATCH(AH$5,'Age profile (years)'!$F21:$CR21,0)),0,INDEX('Asset data'!$CX21:$GJ21,1,MATCH(AH$5,'Age profile (years)'!$F21:$CR21,0))),0) -> 0 | DW21: =IF($A21>0,IF(ISNA(MATCH(AI$5,'Age profile (years)'!$F21:$CR21,0)),0,INDEX('Asset data'!$CX21:$GJ21,1,MATCH(AI$5,'Age profile (years)'!$F21:$CR21,0))),0) -> 2 | DX21: =IF($A21>0,IF(ISNA(MATCH(AJ$5,'Age profile (years)'!$F21:$CR21,0)),0,INDEX('Asset data'!$CX21:$GJ21,1,MATCH(AJ$5,'Age profile (years)'!$F21:$CR21,0))),0) -> 0 | DY21: =IF($A21>0,IF(ISNA(MATCH(AK$5,'Age profile (years)'!$F21:$CR21,0)),0,INDEX('Asset data'!$CX21:$GJ21,1,MATCH(AK$5,'Age profile (years)'!$F21:$CR21,0))),0) -> 0 | DZ21: =IF($A21>0,IF(ISNA(MATCH(AL$5,'Age profile (years)'!$F21:$CR21,0)),0,INDEX('Asset data'!$CX21:$GJ21,1,MATCH(AL$5,'Age profile (years)'!$F21:$CR21,0))),0) -> 0 | EA21: =IF($A21>0,IF(ISNA(MATCH(AM$5,'Age profile (years)'!$F21:$CR21,0)),0,INDEX('Asset data'!$CX21:$GJ21,1,MATCH(AM$5,'Age profile (years)'!$F21:$CR21,0))),0) -> 0 | EB21: =IF($A21>0,IF(ISNA(MATCH(AN$5,'Age profile (years)'!$F21:$CR21,0)),0,INDEX('Asset data'!$CX21:$GJ21,1,MATCH(AN$5,'Age profile (years)'!$F21:$CR21,0))),0) -> 0 | EC21: =IF($A21>0,IF(ISNA(MATCH(AO$5,'Age profile (years)'!$F21:$CR21,0)),0,INDEX('Asset data'!$CX21:$GJ21,1,MATCH(AO$5,'Age profile (years)'!$F21:$CR21,0))),0) -> 0 | ED21: =IF($A21>0,IF(ISNA(MATCH(AP$5,'Age profile (years)'!$F21:$CR21,0)),0,INDEX('Asset data'!$CX21:$GJ21,1,MATCH(AP$5,'Age profile (years)'!$F21:$CR21,0))),0) -> 2 | EE21: =IF($A21>0,IF(ISNA(MATCH(AQ$5,'Age profile (years)'!$F21:$CR21,0)),0,INDEX('Asset data'!$CX21:$GJ21,1,MATCH(AQ$5,'Age profile (years)'!$F21:$CR21,0))),0) -> 410 | EF21: =IF($A21>0,IF(ISNA(MATCH(AR$5,'Age profile (years)'!$F21:$CR21,0)),0,INDEX('Asset data'!$CX21:$GJ21,1,MATCH(AR$5,'Age profile (years)'!$F21:$CR21,0))),0) -> 127 | EG21: =IF($A21>0,IF(ISNA(MATCH(AS$5,'Age profile (years)'!$F21:$CR21,0)),0,INDEX('Asset data'!$CX21:$GJ21,1,MATCH(AS$5,'Age profile (years)'!$F21:$CR21,0))),0) -> 0 | EH21: =IF($A21>0,IF(ISNA(MATCH(AT$5,'Age profile (years)'!$F21:$CR21,0)),0,INDEX('Asset data'!$CX21:$GJ21,1,MATCH(AT$5,'Age profile (years)'!$F21:$CR21,0))),0) -> 0 | EI21: =IF($A21>0,IF(ISNA(MATCH(AU$5,'Age profile (years)'!$F21:$CR21,0)),0,INDEX('Asset data'!$CX21:$GJ21,1,MATCH(AU$5,'Age profile (years)'!$F21:$CR21,0))),0) -> 209 | EJ21: =IF($A21>0,IF(ISNA(MATCH(AV$5,'Age profile (years)'!$F21:$CR21,0)),0,INDEX('Asset data'!$CX21:$GJ21,1,MATCH(AV$5,'Age profile (years)'!$F21:$CR21,0))),0) -> 0 | EK21: =IF($A21>0,IF(ISNA(MATCH(AW$5,'Age profile (years)'!$F21:$CR21,0)),0,INDEX('Asset data'!$CX21:$GJ21,1,MATCH(AW$5,'Age profile (years)'!$F21:$CR21,0))),0) -> 75 | EL21: =IF($A21>0,IF(ISNA(MATCH(AX$5,'Age profile (years)'!$F21:$CR21,0)),0,INDEX('Asset data'!$CX21:$GJ21,1,MATCH(AX$5,'Age profile (years)'!$F21:$CR21,0))),0) -> 390 | EM21: =IF($A21>0,IF(ISNA(MATCH(AY$5,'Age profile (years)'!$F21:$CR21,0)),0,INDEX('Asset data'!$CX21:$GJ21,1,MATCH(AY$5,'Age profile (years)'!$F21:$CR21,0))),0) -> 3 | EN21: =IF($A21>0,IF(ISNA(MATCH(AZ$5,'Age profile (years)'!$F21:$CR21,0)),0,INDEX('Asset data'!$CX21:$GJ21,1,MATCH(AZ$5,'Age profile (years)'!$F21:$CR21,0))),0) -> 196 | EO21: =IF($A21>0,IF(ISNA(MATCH(BA$5,'Age profile (years)'!$F21:$CR21,0)),0,INDEX('Asset data'!$CX21:$GJ21,1,MATCH(BA$5,'Age profile (years)'!$F21:$CR21,0))),0) -> 338 | EP21: =IF($A21>0,IF(ISNA(MATCH(BB$5,'Age profile (years)'!$F21:$CR21,0)),0,INDEX('Asset data'!$CX21:$GJ21,1,MATCH(BB$5,'Age profile (years)'!$F21:$CR21,0))),0) -> 0 | EQ21: =IF($A21>0,IF(ISNA(MATCH(BC$5,'Age profile (years)'!$F21:$CR21,0)),0,INDEX('Asset data'!$CX21:$GJ21,1,MATCH(BC$5,'Age profile (years)'!$F21:$CR21,0))),0) -> 33 | ER21: =IF($A21>0,IF(ISNA(MATCH(BD$5,'Age profile (years)'!$F21:$CR21,0)),0,INDEX('Asset data'!$CX21:$GJ21,1,MATCH(BD$5,'Age profile (years)'!$F21:$CR21,0))),0) -> 0 | ES21: =IF($A21>0,IF(ISNA(MATCH(BE$5,'Age profile (years)'!$F21:$CR21,0)),0,INDEX('Asset data'!$CX21:$GJ21,1,MATCH(BE$5,'Age profile (years)'!$F21:$CR21,0))),0) -> 0 | ET21: =IF($A21>0,IF(ISNA(MATCH(BF$5,'Age profile (years)'!$F21:$CR21,0)),0,INDEX('Asset data'!$CX21:$GJ21,1,MATCH(BF$5,'Age profile (years)'!$F21:$CR21,0))),0) -> 56 | EU21: =IF($A21>0,IF(ISNA(MATCH(BG$5,'Age profile (years)'!$F21:$CR21,0)),0,INDEX('Asset data'!$CX21:$GJ21,1,MATCH(BG$5,'Age profile (years)'!$F21:$CR21,0))),0) -> 0 | EV21: =IF($A21>0,IF(ISNA(MATCH(BH$5,'Age profile (years)'!$F21:$CR21,0)),0,INDEX('Asset data'!$CX21:$GJ21,1,MATCH(BH$5,'Age profile (years)'!$F21:$CR21,0))),0) -> 0 | EW21: =IF($A21>0,IF(ISNA(MATCH(BI$5,'Age profile (years)'!$F21:$CR21,0)),0,INDEX('Asset data'!$CX21:$GJ21,1,MATCH(BI$5,'Age profile (years)'!$F21:$CR21,0))),0) -> 0 | EX21: =IF($A21>0,IF(ISNA(MATCH(BJ$5,'Age profile (years)'!$F21:$CR21,0)),0,INDEX('Asset data'!$CX21:$GJ21,1,MATCH(BJ$5,'Age profile (years)'!$F21:$CR21,0))),0) -> 0 | EY21: =IF($A21>0,IF(ISNA(MATCH(BK$5,'Age profile (years)'!$F21:$CR21,0)),0,INDEX('Asset data'!$CX21:$GJ21,1,MATCH(BK$5,'Age profile (years)'!$F21:$CR21,0))),0) -> 0 | EZ21: =IF($A21>0,IF(ISNA(MATCH(BL$5,'Age profile (years)'!$F21:$CR21,0)),0,INDEX('Asset data'!$CX21:$GJ21,1,MATCH(BL$5,'Age profile (years)'!$F21:$CR21,0))),0) -> 0 | FA21: =IF($A21>0,IF(ISNA(MATCH(BM$5,'Age profile (years)'!$F21:$CR21,0)),0,INDEX('Asset data'!$CX21:$GJ21,1,MATCH(BM$5,'Age profile (years)'!$F21:$CR21,0))),0) -> 0 | FB21: =IF($A21>0,IF(ISNA(MATCH(BN$5,'Age profile (years)'!$F21:$CR21,0)),0,INDEX('Asset data'!$CX21:$GJ21,1,MATCH(BN$5,'Age profile (years)'!$F21:$CR21,0))),0) -> 0 | FC21: =IF($A21>0,IF(ISNA(MATCH(BO$5,'Age profile (years)'!$F21:$CR21,0)),0,INDEX('Asset data'!$CX21:$GJ21,1,MATCH(BO$5,'Age profile (years)'!$F21:$CR21,0))),0) -> 0 | FD21: =IF($A21>0,IF(ISNA(MATCH(BP$5,'Age profile (years)'!$F21:$CR21,0)),0,INDEX('Asset data'!$CX21:$GJ21,1,MATCH(BP$5,'Age profile (years)'!$F21:$CR21,0))),0) -> 0 | FE21: =IF($A21>0,IF(ISNA(MATCH(BQ$5,'Age profile (years)'!$F21:$CR21,0)),0,INDEX('Asset data'!$CX21:$GJ21,1,MATCH(BQ$5,'Age profile (years)'!$F21:$CR21,0))),0) -> 0 | FF21: =IF($A21>0,IF(ISNA(MATCH(BR$5,'Age profile (years)'!$F21:$CR21,0)),0,INDEX('Asset data'!$CX21:$GJ21,1,MATCH(BR$5,'Age profile (years)'!$F21:$CR21,0))),0) -> 0 | FG21: =IF($A21>0,IF(ISNA(MATCH(BS$5,'Age profile (years)'!$F21:$CR21,0)),0,INDEX('Asset data'!$CX21:$GJ21,1,MATCH(BS$5,'Age profile (years)'!$F21:$CR21,0))),0) -> 0 | FH21: =IF($A21>0,IF(ISNA(MATCH(BT$5,'Age profile (years)'!$F21:$CR21,0)),0,INDEX('Asset data'!$CX21:$GJ21,1,MATCH(BT$5,'Age profile (years)'!$F21:$CR21,0))),0) -> 0 | FI21: =IF($A21>0,IF(ISNA(MATCH(BU$5,'Age profile (years)'!$F21:$CR21,0)),0,INDEX('Asset data'!$CX21:$GJ21,1,MATCH(BU$5,'Age profile (years)'!$F21:$CR21,0))),0) -> 0 | FJ21: =IF($A21>0,IF(ISNA(MATCH(BV$5,'Age profile (years)'!$F21:$CR21,0)),0,INDEX('Asset data'!$CX21:$GJ21,1,MATCH(BV$5,'Age profile (years)'!$F21:$CR21,0))),0) -> 0 | FK21: =IF($A21>0,IF(ISNA(MATCH(BW$5,'Age profile (years)'!$F21:$CR21,0)),0,INDEX('Asset data'!$CX21:$GJ21,1,MATCH(BW$5,'Age profile (years)'!$F21:$CR21,0))),0) -> 0 | FL21: =IF($A21>0,IF(ISNA(MATCH(BX$5,'Age profile (years)'!$F21:$CR21,0)),0,INDEX('Asset data'!$CX21:$GJ21,1,MATCH(BX$5,'Age profile (years)'!$F21:$CR21,0))),0) -> 0 | FM21: =IF($A21>0,IF(ISNA(MATCH(BY$5,'Age profile (years)'!$F21:$CR21,0)),0,INDEX('Asset data'!$CX21:$GJ21,1,MATCH(BY$5,'Age profile (years)'!$F21:$CR21,0))),0) -> 0 | FN21: =IF($A21>0,IF(ISNA(MATCH(BZ$5,'Age profile (years)'!$F21:$CR21,0)),0,INDEX('Asset data'!$CX21:$GJ21,1,MATCH(BZ$5,'Age profile (years)'!$F21:$CR21,0))),0) -> 0 | FO21: =IF($A21>0,IF(ISNA(MATCH(CA$5,'Age profile (years)'!$F21:$CR21,0)),0,INDEX('Asset data'!$CX21:$GJ21,1,MATCH(CA$5,'Age profile (years)'!$F21:$CR21,0))),0) -> 0 | FP21: =IF($A21>0,IF(ISNA(MATCH(CB$5,'Age profile (years)'!$F21:$CR21,0)),0,INDEX('Asset data'!$CX21:$GJ21,1,MATCH(CB$5,'Age profile (years)'!$F21:$CR21,0))),0) -> 0 | FQ21: =IF($A21>0,IF(ISNA(MATCH(CC$5,'Age profile (years)'!$F21:$CR21,0)),0,INDEX('Asset data'!$CX21:$GJ21,1,MATCH(CC$5,'Age profile (years)'!$F21:$CR21,0))),0) -> 0 | FR21: =IF($A21>0,IF(ISNA(MATCH(CD$5,'Age profile (years)'!$F21:$CR21,0)),0,INDEX('Asset data'!$CX21:$GJ21,1,MATCH(CD$5,'Age profile (years)'!$F21:$CR21,0))),0) -> 0 | FS21: =IF($A21>0,IF(ISNA(MATCH(CE$5,'Age profile (years)'!$F21:$CR21,0)),0,INDEX('Asset data'!$CX21:$GJ21,1,MATCH(CE$5,'Age profile (years)'!$F21:$CR21,0))),0) -> 0 | FT21: =IF($A21>0,IF(ISNA(MATCH(CF$5,'Age profile (years)'!$F21:$CR21,0)),0,INDEX('Asset data'!$CX21:$GJ21,1,MATCH(CF$5,'Age profile (years)'!$F21:$CR21,0))),0) -> 0 | FU21: =IF($A21>0,IF(ISNA(MATCH(CG$5,'Age profile (years)'!$F21:$CR21,0)),0,INDEX('Asset data'!$CX21:$GJ21,1,MATCH(CG$5,'Age profile (years)'!$F21:$CR21,0))),0) -> 0 | FV21: =IF($A21>0,IF(ISNA(MATCH(CH$5,'Age profile (years)'!$F21:$CR21,0)),0,INDEX('Asset data'!$CX21:$GJ21,1,MATCH(CH$5,'Age profile (years)'!$F21:$CR21,0))),0) -> 0 | FW21: =IF($A21>0,IF(ISNA(MATCH(CI$5,'Age profile (years)'!$F21:$CR21,0)),0,INDEX('Asset data'!$CX21:$GJ21,1,MATCH(CI$5,'Age profile (years)'!$F21:$CR21,0))),0) -> 0 | FX21: =IF($A21>0,IF(ISNA(MATCH(CJ$5,'Age profile (years)'!$F21:$CR21,0)),0,INDEX('Asset data'!$CX21:$GJ21,1,MATCH(CJ$5,'Age profile (years)'!$F21:$CR21,0))),0) -> 0 | FY21: =IF($A21>0,IF(ISNA(MATCH(CK$5,'Age profile (years)'!$F21:$CR21,0)),0,INDEX('Asset data'!$CX21:$GJ21,1,MATCH(CK$5,'Age profile (years)'!$F21:$CR21,0))),0) -> 0 | FZ21: =IF($A21>0,IF(ISNA(MATCH(CL$5,'Age profile (years)'!$F21:$CR21,0)),0,INDEX('Asset data'!$CX21:$GJ21,1,MATCH(CL$5,'Age profile (years)'!$F21:$CR21,0))),0) -> 0 | GA21: =IF($A21>0,IF(ISNA(MATCH(CM$5,'Age profile (years)'!$F21:$CR21,0)),0,INDEX('Asset data'!$CX21:$GJ21,1,MATCH(CM$5,'Age profile (years)'!$F21:$CR21,0))),0) -> 0 | GB21: =IF($A21>0,IF(ISNA(MATCH(CN$5,'Age profile (years)'!$F21:$CR21,0)),0,INDEX('Asset data'!$CX21:$GJ21,1,MATCH(CN$5,'Age profile (years)'!$F21:$CR21,0))),0) -> 0 | GC21: =IF($A21>0,IF(ISNA(MATCH(CO$5,'Age profile (years)'!$F21:$CR21,0)),0,INDEX('Asset data'!$CX21:$GJ21,1,MATCH(CO$5,'Age profile (years)'!$F21:$CR21,0))),0) -> 0 | GD21: =IF($A21>0,IF(ISNA(MATCH(CP$5,'Age profile (years)'!$F21:$CR21,0)),0,INDEX('Asset data'!$CX21:$GJ21,1,MATCH(CP$5,'Age profile (years)'!$F21:$CR21,0))),0) -> 0 | GE21: =IF($A21>0,IF(ISNA(MATCH(CQ$5,'Age profile (years)'!$F21:$CR21,0)),0,INDEX('Asset data'!$CX21:$GJ21,1,MATCH(CQ$5,'Age profile (years)'!$F21:$CR21,0))),0) -> 0 | GF21: =IF($A21>0,IF(ISNA(MATCH(CR$5,'Age profile (years)'!$F21:$CR21,0)),0,INDEX('Asset data'!$CX21:$GJ21,1,MATCH(CR$5,'Age profile (years)'!$F21:$CR21,0))),0) -> 0
A22: ='Asset data'!A22 -> 1 | B22: ='Asset data'!B22 -> 0 | C22: ='Asset data'!C22 -> 0 | D22: ='Asset data'!E22 -> Towers in Corrosion Zone C | E22: ='Asset data'!G22 -> 55.56478617 | F22: =IF($A22>0,IF(ISNA(MATCH(F$5,'Age profile (years)'!$F22:$CR22,0)),0,INDEX('Asset data'!$J22:$CV22,1,MATCH(F$5,'Age profile (years)'!$F22:$CR22,0))),0) -> 48 | G22: =IF($A22>0,IF(ISNA(MATCH(G$5,'Age profile (years)'!$F22:$CR22,0)),0,INDEX('Asset data'!$J22:$CV22,1,MATCH(G$5,'Age profile (years)'!$F22:$CR22,0))),0) -> 385 | H22: =IF($A22>0,IF(ISNA(MATCH(H$5,'Age profile (years)'!$F22:$CR22,0)),0,INDEX('Asset data'!$J22:$CV22,1,MATCH(H$5,'Age profile (years)'!$F22:$CR22,0))),0) -> 445 | I22: =IF($A22>0,IF(ISNA(MATCH(I$5,'Age profile (years)'!$F22:$CR22,0)),0,INDEX('Asset data'!$J22:$CV22,1,MATCH(I$5,'Age profile (years)'!$F22:$CR22,0))),0) -> 11 | J22: =IF($A22>0,IF(ISNA(MATCH(J$5,'Age profile (years)'!$F22:$CR22,0)),0,INDEX('Asset data'!$J22:$CV22,1,MATCH(J$5,'Age profile (years)'!$F22:$CR22,0))),0) -> 574 | K22: =IF($A22>0,IF(ISNA(MATCH(K$5,'Age profile (years)'!$F22:$CR22,0)),0,INDEX('Asset data'!$J22:$CV22,1,MATCH(K$5,'Age profile (years)'!$F22:$CR22,0))),0) -> 573 | L22: =IF($A22>0,IF(ISNA(MATCH(L$5,'Age profile (years)'!$F22:$CR22,0)),0,INDEX('Asset data'!$J22:$CV22,1,MATCH(L$5,'Age profile (years)'!$F22:$CR22,0))),0) -> 234 | M22: =IF($A22>0,IF(ISNA(MATCH(M$5,'Age profile (years)'!$F22:$CR22,0)),0,INDEX('Asset data'!$J22:$CV22,1,MATCH(M$5,'Age profile (years)'!$F22:$CR22,0))),0) -> 456 | N22: =IF($A22>0,IF(ISNA(MATCH(N$5,'Age profile (years)'!$F22:$CR22,0)),0,INDEX('Asset data'!$J22:$CV22,1,MATCH(N$5,'Age profile (years)'!$F22:$CR22,0))),0) -> 247 | O22: =IF($A22>0,IF(ISNA(MATCH(O$5,'Age profile (years)'!$F22:$CR22,0)),0,INDEX('Asset data'!$J22:$CV22,1,MATCH(O$5,'Age profile (years)'!$F22:$CR22,0))),0) -> 97 | P22: =IF($A22>0,IF(ISNA(MATCH(P$5,'Age profile (years)'!$F22:$CR22,0)),0,INDEX('Asset data'!$J22:$CV22,1,MATCH(P$5,'Age profile (years)'!$F22:$CR22,0))),0) -> 244 | Q22: =IF($A22>0,IF(ISNA(MATCH(Q$5,'Age profile (years)'!$F22:$CR22,0)),0,INDEX('Asset data'!$J22:$CV22,1,MATCH(Q$5,'Age profile (years)'!$F22:$CR22,0))),0) -> 231 | R22: =IF($A22>0,IF(ISNA(MATCH(R$5,'Age profile (years)'!$F22:$CR22,0)),0,INDEX('Asset data'!$J22:$CV22,1,MATCH(R$5,'Age profile (years)'!$F22:$CR22,0))),0) -> 280 | S22: =IF($A22>0,IF(ISNA(MATCH(S$5,'Age profile (years)'!$F22:$CR22,0)),0,INDEX('Asset data'!$J22:$CV22,1,MATCH(S$5,'Age profile (years)'!$F22:$CR22,0))),0) -> 37 | T22: =IF($A22>0,IF(ISNA(MATCH(T$5,'Age profile (years)'!$F22:$CR22,0)),0,INDEX('Asset data'!$J22:$CV22,1,MATCH(T$5,'Age profile (years)'!$F22:$CR22,0))),0) -> 831 | U22: =IF($A22>0,IF(ISNA(MATCH(U$5,'Age profile (years)'!$F22:$CR22,0)),0,INDEX('Asset data'!$J22:$CV22,1,MATCH(U$5,'Age profile (years)'!$F22:$CR22,0))),0) -> 532 | V22: =IF($A22>0,IF(ISNA(MATCH(V$5,'Age profile (years)'!$F22:$CR22,0)),0,INDEX('Asset data'!$J22:$CV22,1,MATCH(V$5,'Age profile (years)'!$F22:$CR22,0))),0) -> 800 | W22: =IF($A22>0,IF(ISNA(MATCH(W$5,'Age profile (years)'!$F22:$CR22,0)),0,INDEX('Asset data'!$J22:$CV22,1,MATCH(W$5,'Age profile (years)'!$F22:$CR22,0))),0) -> 7 | X22: =IF($A22>0,IF(ISNA(MATCH(X$5,'Age profile (years)'!$F22:$CR22,0)),0,INDEX('Asset data'!$J22:$CV22,1,MATCH(X$5,'Age profile (years)'!$F22:$CR22,0))),0) -> 31 | Y22: =IF($A22>0,IF(ISNA(MATCH(Y$5,'Age profile (years)'!$F22:$CR22,0)),0,INDEX('Asset data'!$J22:$CV22,1,MATCH(Y$5,'Age profile (years)'!$F22:$CR22,0))),0) -> 161 | Z22: =IF($A22>0,IF(ISNA(MATCH(Z$5,'Age profile (years)'!$F22:$CR22,0)),0,INDEX('Asset data'!$J22:$CV22,1,MATCH(Z$5,'Age profile (years)'!$F22:$CR22,0))),0) -> 151 | AA22: =IF($A22>0,IF(ISNA(MATCH(AA$5,'Age profile (years)'!$F22:$CR22,0)),0,INDEX('Asset data'!$J22:$CV22,1,MATCH(AA$5,'Age profile (years)'!$F22:$CR22,0))),0) -> 52 | AB22: =IF($A22>0,IF(ISNA(MATCH(AB$5,'Age profile (years)'!$F22:$CR22,0)),0,INDEX('Asset data'!$J22:$CV22,1,MATCH(AB$5,'Age profile (years)'!$F22:$CR22,0))),0) -> 708 | AC22: =IF($A22>0,IF(ISNA(MATCH(AC$5,'Age profile (years)'!$F22:$CR22,0)),0,INDEX('Asset data'!$J22:$CV22,1,MATCH(AC$5,'Age profile (years)'!$F22:$CR22,0))),0) -> 7 | AD22: =IF($A22>0,IF(ISNA(MATCH(AD$5,'Age profile (years)'!$F22:$CR22,0)),0,INDEX('Asset data'!$J22:$CV22,1,MATCH(AD$5,'Age profile (years)'!$F22:$CR22,0))),0) -> 19 | AE22: =IF($A22>0,IF(ISNA(MATCH(AE$5,'Age profile (years)'!$F22:$CR22,0)),0,INDEX('Asset data'!$J22:$CV22,1,MATCH(AE$5,'Age profile (years)'!$F22:$CR22,0))),0) -> 10 | AF22: =IF($A22>0,IF(ISNA(MATCH(AF$5,'Age profile (years)'!$F22:$CR22,0)),0,INDEX('Asset data'!$J22:$CV22,1,MATCH(AF$5,'Age profile (years)'!$F22:$CR22,0))),0) -> 0 | AG22: =IF($A22>0,IF(ISNA(MATCH(AG$5,'Age profile (years)'!$F22:$CR22,0)),0,INDEX('Asset data'!$J22:$CV22,1,MATCH(AG$5,'Age profile (years)'!$F22:$CR22,0))),0) -> 153 | AH22: =IF($A22>0,IF(ISNA(MATCH(AH$5,'Age profile (years)'!$F22:$CR22,0)),0,INDEX('Asset data'!$J22:$CV22,1,MATCH(AH$5,'Age profile (years)'!$F22:$CR22,0))),0) -> 778 | AI22: =IF($A22>0,IF(ISNA(MATCH(AI$5,'Age profile (years)'!$F22:$CR22,0)),0,INDEX('Asset data'!$J22:$CV22,1,MATCH(AI$5,'Age profile (years)'!$F22:$CR22,0))),0) -> 803 | AJ22: =IF($A22>0,IF(ISNA(MATCH(AJ$5,'Age profile (years)'!$F22:$CR22,0)),0,INDEX('Asset data'!$J22:$CV22,1,MATCH(AJ$5,'Age profile (years)'!$F22:$CR22,0))),0) -> 837 | AK22: =IF($A22>0,IF(ISNA(MATCH(AK$5,'Age profile (years)'!$F22:$CR22,0)),0,INDEX('Asset data'!$J22:$CV22,1,MATCH(AK$5,'Age profile (years)'!$F22:$CR22,0))),0) -> 9 | AL22: =IF($A22>0,IF(ISNA(MATCH(AL$5,'Age profile (years)'!$F22:$CR22,0)),0,INDEX('Asset data'!$J22:$CV22,1,MATCH(AL$5,'Age profile (years)'!$F22:$CR22,0))),0) -> 382 | AM22: =IF($A22>0,IF(ISNA(MATCH(AM$5,'Age profile (years)'!$F22:$CR22,0)),0,INDEX('Asset data'!$J22:$CV22,1,MATCH(AM$5,'Age profile (years)'!$F22:$CR22,0))),0) -> 510 | AN22: =IF($A22>0,IF(ISNA(MATCH(AN$5,'Age profile (years)'!$F22:$CR22,0)),0,INDEX('Asset data'!$J22:$CV22,1,MATCH(AN$5,'Age profile (years)'!$F22:$CR22,0))),0) -> 1363 | AO22: =IF($A22>0,IF(ISNA(MATCH(AO$5,'Age profile (years)'!$F22:$CR22,0)),0,INDEX('Asset data'!$J22:$CV22,1,MATCH(AO$5,'Age profile (years)'!$F22:$CR22,0))),0) -> 213 | AP22: =IF($A22>0,IF(ISNA(MATCH(AP$5,'Age profile (years)'!$F22:$CR22,0)),0,INDEX('Asset data'!$J22:$CV22,1,MATCH(AP$5,'Age profile (years)'!$F22:$CR22,0))),0) -> 475 | AQ22: =IF($A22>0,IF(ISNA(MATCH(AQ$5,'Age profile (years)'!$F22:$CR22,0)),0,INDEX('Asset data'!$J22:$CV22,1,MATCH(AQ$5,'Age profile (years)'!$F22:$CR22,0))),0) -> 473 | AR22: =IF($A22>0,IF(ISNA(MATCH(AR$5,'Age profile (years)'!$F22:$CR22,0)),0,INDEX('Asset data'!$J22:$CV22,1,MATCH(AR$5,'Age profile (years)'!$F22:$CR22,0))),0) -> 701 | AS22: =IF($A22>0,IF(ISNA(MATCH(AS$5,'Age profile (years)'!$F22:$CR22,0)),0,INDEX('Asset data'!$J22:$CV22,1,MATCH(AS$5,'Age profile (years)'!$F22:$CR22,0))),0) -> 32 | AT22: =IF($A22>0,IF(ISNA(MATCH(AT$5,'Age profile (years)'!$F22:$CR22,0)),0,INDEX('Asset data'!$J22:$CV22,1,MATCH(AT$5,'Age profile (years)'!$F22:$CR22,0))),0) -> 362 | AU22: =IF($A22>0,IF(ISNA(MATCH(AU$5,'Age profile (years)'!$F22:$CR22,0)),0,INDEX('Asset data'!$J22:$CV22,1,MATCH(AU$5,'Age profile (years)'!$F22:$CR22,0))),0) -> 0 | AV22: =IF($A22>0,IF(ISNA(MATCH(AV$5,'Age profile (years)'!$F22:$CR22,0)),0,INDEX('Asset data'!$J22:$CV22,1,MATCH(AV$5,'Age profile (years)'!$F22:$CR22,0))),0) -> 658 | AW22: =IF($A22>0,IF(ISNA(MATCH(AW$5,'Age profile (years)'!$F22:$CR22,0)),0,INDEX('Asset data'!$J22:$CV22,1,MATCH(AW$5,'Age profile (years)'!$F22:$CR22,0))),0) -> 39 | AX22: =IF($A22>0,IF(ISNA(MATCH(AX$5,'Age profile (years)'!$F22:$CR22,0)),0,INDEX('Asset data'!$J22:$CV22,1,MATCH(AX$5,'Age profile (years)'!$F22:$CR22,0))),0) -> 53 | AY22: =IF($A22>0,IF(ISNA(MATCH(AY$5,'Age profile (years)'!$F22:$CR22,0)),0,INDEX('Asset data'!$J22:$CV22,1,MATCH(AY$5,'Age profile (years)'!$F22:$CR22,0))),0) -> 88 | AZ22: =IF($A22>0,IF(ISNA(MATCH(AZ$5,'Age profile (years)'!$F22:$CR22,0)),0,INDEX('Asset data'!$J22:$CV22,1,MATCH(AZ$5,'Age profile (years)'!$F22:$CR22,0))),0) -> 0 | BA22: =IF($A22>0,IF(ISNA(MATCH(BA$5,'Age profile (years)'!$F22:$CR22,0)),0,INDEX('Asset data'!$J22:$CV22,1,MATCH(BA$5,'Age profile (years)'!$F22:$CR22,0))),0) -> 162 | BB22: =IF($A22>0,IF(ISNA(MATCH(BB$5,'Age profile (years)'!$F22:$CR22,0)),0,INDEX('Asset data'!$J22:$CV22,1,MATCH(BB$5,'Age profile (years)'!$F22:$CR22,0))),0) -> 200 | BC22: =IF($A22>0,IF(ISNA(MATCH(BC$5,'Age profile (years)'!$F22:$CR22,0)),0,INDEX('Asset data'!$J22:$CV22,1,MATCH(BC$5,'Age profile (years)'!$F22:$CR22,0))),0) -> 30 | BD22: =IF($A22>0,IF(ISNA(MATCH(BD$5,'Age profile (years)'!$F22:$CR22,0)),0,INDEX('Asset data'!$J22:$CV22,1,MATCH(BD$5,'Age profile (years)'!$F22:$CR22,0))),0) -> 128 | BE22: =IF($A22>0,IF(ISNA(MATCH(BE$5,'Age profile (years)'!$F22:$CR22,0)),0,INDEX('Asset data'!$J22:$CV22,1,MATCH(BE$5,'Age profile (years)'!$F22:$CR22,0))),0) -> 10 | BF22: =IF($A22>0,IF(ISNA(MATCH(BF$5,'Age profile (years)'!$F22:$CR22,0)),0,INDEX('Asset data'!$J22:$CV22,1,MATCH(BF$5,'Age profile (years)'!$F22:$CR22,0))),0) -> 112 | BG22: =IF($A22>0,IF(ISNA(MATCH(BG$5,'Age profile (years)'!$F22:$CR22,0)),0,INDEX('Asset data'!$J22:$CV22,1,MATCH(BG$5,'Age profile (years)'!$F22:$CR22,0))),0) -> 0 | BH22: =IF($A22>0,IF(ISNA(MATCH(BH$5,'Age profile (years)'!$F22:$CR22,0)),0,INDEX('Asset data'!$J22:$CV22,1,MATCH(BH$5,'Age profile (years)'!$F22:$CR22,0))),0) -> 0 | BI22: =IF($A22>0,IF(ISNA(MATCH(BI$5,'Age profile (years)'!$F22:$CR22,0)),0,INDEX('Asset data'!$J22:$CV22,1,MATCH(BI$5,'Age profile (years)'!$F22:$CR22,0))),0) -> 0 | BJ22: =IF($A22>0,IF(ISNA(MATCH(BJ$5,'Age profile (years)'!$F22:$CR22,0)),0,INDEX('Asset data'!$J22:$CV22,1,MATCH(BJ$5,'Age profile (years)'!$F22:$CR22,0))),0) -> 10 | BK22: =IF($A22>0,IF(ISNA(MATCH(BK$5,'Age profile (years)'!$F22:$CR22,0)),0,INDEX('Asset data'!$J22:$CV22,1,MATCH(BK$5,'Age profile (years)'!$F22:$CR22,0))),0) -> 0 | BL22: =IF($A22>0,IF(ISNA(MATCH(BL$5,'Age profile (years)'!$F22:$CR22,0)),0,INDEX('Asset data'!$J22:$CV22,1,MATCH(BL$5,'Age profile (years)'!$F22:$CR22,0))),0) -> 0 | BM22: =IF($A22>0,IF(ISNA(MATCH(BM$5,'Age profile (years)'!$F22:$CR22,0)),0,INDEX('Asset data'!$J22:$CV22,1,MATCH(BM$5,'Age profile (years)'!$F22:$CR22,0))),0) -> 0 | BN22: =IF($A22>0,IF(ISNA(MATCH(BN$5,'Age profile (years)'!$F22:$CR22,0)),0,INDEX('Asset data'!$J22:$CV22,1,MATCH(BN$5,'Age profile (years)'!$F22:$CR22,0))),0) -> 0 | BO22: =IF($A22>0,IF(ISNA(MATCH(BO$5,'Age profile (years)'!$F22:$CR22,0)),0,INDEX('Asset data'!$J22:$CV22,1,MATCH(BO$5,'Age profile (years)'!$F22:$CR22,0))),0) -> 0 | BP22: =IF($A22>0,IF(ISNA(MATCH(BP$5,'Age profile (years)'!$F22:$CR22,0)),0,INDEX('Asset data'!$J22:$CV22,1,MATCH(BP$5,'Age profile (years)'!$F22:$CR22,0))),0) -> 0 | BQ22: =IF($A22>0,IF(ISNA(MATCH(BQ$5,'Age profile (years)'!$F22:$CR22,0)),0,INDEX('Asset data'!$J22:$CV22,1,MATCH(BQ$5,'Age profile (years)'!$F22:$CR22,0))),0) -> 0 | BR22: =IF($A22>0,IF(ISNA(MATCH(BR$5,'Age profile (years)'!$F22:$CR22,0)),0,INDEX('Asset data'!$J22:$CV22,1,MATCH(BR$5,'Age profile (years)'!$F22:$CR22,0))),0) -> 0 | BS22: =IF($A22>0,IF(ISNA(MATCH(BS$5,'Age profile (years)'!$F22:$CR22,0)),0,INDEX('Asset data'!$J22:$CV22,1,MATCH(BS$5,'Age profile (years)'!$F22:$CR22,0))),0) -> 0 | BT22: =IF($A22>0,IF(ISNA(MATCH(BT$5,'Age profile (years)'!$F22:$CR22,0)),0,INDEX('Asset data'!$J22:$CV22,1,MATCH(BT$5,'Age profile (years)'!$F22:$CR22,0))),0) -> 0 | BU22: =IF($A22>0,IF(ISNA(MATCH(BU$5,'Age profile (years)'!$F22:$CR22,0)),0,INDEX('Asset data'!$J22:$CV22,1,MATCH(BU$5,'Age profile (years)'!$F22:$CR22,0))),0) -> 0 | BV22: =IF($A22>0,IF(ISNA(MATCH(BV$5,'Age profile (years)'!$F22:$CR22,0)),0,INDEX('Asset data'!$J22:$CV22,1,MATCH(BV$5,'Age profile (years)'!$F22:$CR22,0))),0) -> 0 | BW22: =IF($A22>0,IF(ISNA(MATCH(BW$5,'Age profile (years)'!$F22:$CR22,0)),0,INDEX('Asset data'!$J22:$CV22,1,MATCH(BW$5,'Age profile (years)'!$F22:$CR22,0))),0) -> 0 | BX22: =IF($A22>0,IF(ISNA(MATCH(BX$5,'Age profile (years)'!$F22:$CR22,0)),0,INDEX('Asset data'!$J22:$CV22,1,MATCH(BX$5,'Age profile (years)'!$F22:$CR22,0))),0) -> 0 | BY22: =IF($A22>0,IF(ISNA(MATCH(BY$5,'Age profile (years)'!$F22:$CR22,0)),0,INDEX('Asset data'!$J22:$CV22,1,MATCH(BY$5,'Age profile (years)'!$F22:$CR22,0))),0) -> 0 | BZ22: =IF($A22>0,IF(ISNA(MATCH(BZ$5,'Age profile (years)'!$F22:$CR22,0)),0,INDEX('Asset data'!$J22:$CV22,1,MATCH(BZ$5,'Age profile (years)'!$F22:$CR22,0))),0) -> 0 | CA22: =IF($A22>0,IF(ISNA(MATCH(CA$5,'Age profile (years)'!$F22:$CR22,0)),0,INDEX('Asset data'!$J22:$CV22,1,MATCH(CA$5,'Age profile (years)'!$F22:$CR22,0))),0) -> 0 | CB22: =IF($A22>0,IF(ISNA(MATCH(CB$5,'Age profile (years)'!$F22:$CR22,0)),0,INDEX('Asset data'!$J22:$CV22,1,MATCH(CB$5,'Age profile (years)'!$F22:$CR22,0))),0) -> 0 | CC22: =IF($A22>0,IF(ISNA(MATCH(CC$5,'Age profile (years)'!$F22:$CR22,0)),0,INDEX('Asset data'!$J22:$CV22,1,MATCH(CC$5,'Age profile (years)'!$F22:$CR22,0))),0) -> 0 | CD22: =IF($A22>0,IF(ISNA(MATCH(CD$5,'Age profile (years)'!$F22:$CR22,0)),0,INDEX('Asset data'!$J22:$CV22,1,MATCH(CD$5,'Age profile (years)'!$F22:$CR22,0))),0) -> 0 | CE22: =IF($A22>0,IF(ISNA(MATCH(CE$5,'Age profile (years)'!$F22:$CR22,0)),0,INDEX('Asset data'!$J22:$CV22,1,MATCH(CE$5,'Age profile (years)'!$F22:$CR22,0))),0) -> 0 | CF22: =IF($A22>0,IF(ISNA(MATCH(CF$5,'Age profile (years)'!$F22:$CR22,0)),0,INDEX('Asset data'!$J22:$CV22,1,MATCH(CF$5,'Age profile (years)'!$F22:$CR22,0))),0) -> 0 | CG22: =IF($A22>0,IF(ISNA(MATCH(CG$5,'Age profile (years)'!$F22:$CR22,0)),0,INDEX('Asset data'!$J22:$CV22,1,MATCH(CG$5,'Age profile (years)'!$F22:$CR22,0))),0) -> 0 | CH22: =IF($A22>0,IF(ISNA(MATCH(CH$5,'Age profile (years)'!$F22:$CR22,0)),0,INDEX('Asset data'!$J22:$CV22,1,MATCH(CH$5,'Age profile (years)'!$F22:$CR22,0))),0) -> 0 | CI22: =IF($A22>0,IF(ISNA(MATCH(CI$5,'Age profile (years)'!$F22:$CR22,0)),0,INDEX('Asset data'!$J22:$CV22,1,MATCH(CI$5,'Age profile (years)'!$F22:$CR22,0))),0) -> 0 | CJ22: =IF($A22>0,IF(ISNA(MATCH(CJ$5,'Age profile (years)'!$F22:$CR22,0)),0,INDEX('Asset data'!$J22:$CV22,1,MATCH(CJ$5,'Age profile (years)'!$F22:$CR22,0))),0) -> 0 | CK22: =IF($A22>0,IF(ISNA(MATCH(CK$5,'Age profile (years)'!$F22:$CR22,0)),0,INDEX('Asset data'!$J22:$CV22,1,MATCH(CK$5,'Age profile (years)'!$F22:$CR22,0))),0) -> 0 | CL22: =IF($A22>0,IF(ISNA(MATCH(CL$5,'Age profile (years)'!$F22:$CR22,0)),0,INDEX('Asset data'!$J22:$CV22,1,MATCH(CL$5,'Age profile (years)'!$F22:$CR22,0))),0) -> 0 | CM22: =IF($A22>0,IF(ISNA(MATCH(CM$5,'Age profile (years)'!$F22:$CR22,0)),0,INDEX('Asset data'!$J22:$CV22,1,MATCH(CM$5,'Age profile (years)'!$F22:$CR22,0))),0) -> 0 | CN22: =IF($A22>0,IF(ISNA(MATCH(CN$5,'Age profile (years)'!$F22:$CR22,0)),0,INDEX('Asset data'!$J22:$CV22,1,MATCH(CN$5,'Age profile (years)'!$F22:$CR22,0))),0) -> 0 | CO22: =IF($A22>0,IF(ISNA(MATCH(CO$5,'Age profile (years)'!$F22:$CR22,0)),0,INDEX('Asset data'!$J22:$CV22,1,MATCH(CO$5,'Age profile (years)'!$F22:$CR22,0))),0) -> 0 | CP22: =IF($A22>0,IF(ISNA(MATCH(CP$5,'Age profile (years)'!$F22:$CR22,0)),0,INDEX('Asset data'!$J22:$CV22,1,MATCH(CP$5,'Age profile (years)'!$F22:$CR22,0))),0) -> 0 | CQ22: =IF($A22>0,IF(ISNA(MATCH(CQ$5,'Age profile (years)'!$F22:$CR22,0)),0,INDEX('Asset data'!$J22:$CV22,1,MATCH(CQ$5,'Age profile (years)'!$F22:$CR22,0))),0) -> 0 | CR22: =IF($A22>0,IF(ISNA(MATCH(CR$5,'Age profile (years)'!$F22:$CR22,0)),0,INDEX('Asset data'!$J22:$CV22,1,MATCH(CR$5,'Age profile (years)'!$F22:$CR22,0))),0) -> 0 | CT22: =IF($A22>0,IF(ISNA(MATCH(F$5,'Age profile (years)'!$F22:$CR22,0)),0,INDEX('Asset data'!$CX22:$GJ22,1,MATCH(F$5,'Age profile (years)'!$F22:$CR22,0))),0) -> 48 | CU22: =IF($A22>0,IF(ISNA(MATCH(G$5,'Age profile (years)'!$F22:$CR22,0)),0,INDEX('Asset data'!$CX22:$GJ22,1,MATCH(G$5,'Age profile (years)'!$F22:$CR22,0))),0) -> 385 | CV22: =IF($A22>0,IF(ISNA(MATCH(H$5,'Age profile (years)'!$F22:$CR22,0)),0,INDEX('Asset data'!$CX22:$GJ22,1,MATCH(H$5,'Age profile (years)'!$F22:$CR22,0))),0) -> 445 | CW22: =IF($A22>0,IF(ISNA(MATCH(I$5,'Age profile (years)'!$F22:$CR22,0)),0,INDEX('Asset data'!$CX22:$GJ22,1,MATCH(I$5,'Age profile (years)'!$F22:$CR22,0))),0) -> 11 | CX22: =IF($A22>0,IF(ISNA(MATCH(J$5,'Age profile (years)'!$F22:$CR22,0)),0,INDEX('Asset data'!$CX22:$GJ22,1,MATCH(J$5,'Age profile (years)'!$F22:$CR22,0))),0) -> 574 | CY22: =IF($A22>0,IF(ISNA(MATCH(K$5,'Age profile (years)'!$F22:$CR22,0)),0,INDEX('Asset data'!$CX22:$GJ22,1,MATCH(K$5,'Age profile (years)'!$F22:$CR22,0))),0) -> 573 | CZ22: =IF($A22>0,IF(ISNA(MATCH(L$5,'Age profile (years)'!$F22:$CR22,0)),0,INDEX('Asset data'!$CX22:$GJ22,1,MATCH(L$5,'Age profile (years)'!$F22:$CR22,0))),0) -> 234 | DA22: =IF($A22>0,IF(ISNA(MATCH(M$5,'Age profile (years)'!$F22:$CR22,0)),0,INDEX('Asset data'!$CX22:$GJ22,1,MATCH(M$5,'Age profile (years)'!$F22:$CR22,0))),0) -> 456 | DB22: =IF($A22>0,IF(ISNA(MATCH(N$5,'Age profile (years)'!$F22:$CR22,0)),0,INDEX('Asset data'!$CX22:$GJ22,1,MATCH(N$5,'Age profile (years)'!$F22:$CR22,0))),0) -> 247 | DC22: =IF($A22>0,IF(ISNA(MATCH(O$5,'Age profile (years)'!$F22:$CR22,0)),0,INDEX('Asset data'!$CX22:$GJ22,1,MATCH(O$5,'Age profile (years)'!$F22:$CR22,0))),0) -> 97 | DD22: =IF($A22>0,IF(ISNA(MATCH(P$5,'Age profile (years)'!$F22:$CR22,0)),0,INDEX('Asset data'!$CX22:$GJ22,1,MATCH(P$5,'Age profile (years)'!$F22:$CR22,0))),0) -> 244 | DE22: =IF($A22>0,IF(ISNA(MATCH(Q$5,'Age profile (years)'!$F22:$CR22,0)),0,INDEX('Asset data'!$CX22:$GJ22,1,MATCH(Q$5,'Age profile (years)'!$F22:$CR22,0))),0) -> 231 | DF22: =IF($A22>0,IF(ISNA(MATCH(R$5,'Age profile (years)'!$F22:$CR22,0)),0,INDEX('Asset data'!$CX22:$GJ22,1,MATCH(R$5,'Age profile (years)'!$F22:$CR22,0))),0) -> 280 | DG22: =IF($A22>0,IF(ISNA(MATCH(S$5,'Age profile (years)'!$F22:$CR22,0)),0,INDEX('Asset data'!$CX22:$GJ22,1,MATCH(S$5,'Age profile (years)'!$F22:$CR22,0))),0) -> 37 | DH22: =IF($A22>0,IF(ISNA(MATCH(T$5,'Age profile (years)'!$F22:$CR22,0)),0,INDEX('Asset data'!$CX22:$GJ22,1,MATCH(T$5,'Age profile (years)'!$F22:$CR22,0))),0) -> 831 | DI22: =IF($A22>0,IF(ISNA(MATCH(U$5,'Age profile (years)'!$F22:$CR22,0)),0,INDEX('Asset data'!$CX22:$GJ22,1,MATCH(U$5,'Age profile (years)'!$F22:$CR22,0))),0) -> 532 | DJ22: =IF($A22>0,IF(ISNA(MATCH(V$5,'Age profile (years)'!$F22:$CR22,0)),0,INDEX('Asset data'!$CX22:$GJ22,1,MATCH(V$5,'Age profile (years)'!$F22:$CR22,0))),0) -> 800 | DK22: =IF($A22>0,IF(ISNA(MATCH(W$5,'Age profile (years)'!$F22:$CR22,0)),0,INDEX('Asset data'!$CX22:$GJ22,1,MATCH(W$5,'Age profile (years)'!$F22:$CR22,0))),0) -> 7 | DL22: =IF($A22>0,IF(ISNA(MATCH(X$5,'Age profile (years)'!$F22:$CR22,0)),0,INDEX('Asset data'!$CX22:$GJ22,1,MATCH(X$5,'Age profile (years)'!$F22:$CR22,0))),0) -> 31 | DM22: =IF($A22>0,IF(ISNA(MATCH(Y$5,'Age profile (years)'!$F22:$CR22,0)),0,INDEX('Asset data'!$CX22:$GJ22,1,MATCH(Y$5,'Age profile (years)'!$F22:$CR22,0))),0) -> 161 | DN22: =IF($A22>0,IF(ISNA(MATCH(Z$5,'Age profile (years)'!$F22:$CR22,0)),0,INDEX('Asset data'!$CX22:$GJ22,1,MATCH(Z$5,'Age profile (years)'!$F22:$CR22,0))),0) -> 151 | DO22: =IF($A22>0,IF(ISNA(MATCH(AA$5,'Age profile (years)'!$F22:$CR22,0)),0,INDEX('Asset data'!$CX22:$GJ22,1,MATCH(AA$5,'Age profile (years)'!$F22:$CR22,0))),0) -> 52 | DP22: =IF($A22>0,IF(ISNA(MATCH(AB$5,'Age profile (years)'!$F22:$CR22,0)),0,INDEX('Asset data'!$CX22:$GJ22,1,MATCH(AB$5,'Age profile (years)'!$F22:$CR22,0))),0) -> 708 | DQ22: =IF($A22>0,IF(ISNA(MATCH(AC$5,'Age profile (years)'!$F22:$CR22,0)),0,INDEX('Asset data'!$CX22:$GJ22,1,MATCH(AC$5,'Age profile (years)'!$F22:$CR22,0))),0) -> 7 | DR22: =IF($A22>0,IF(ISNA(MATCH(AD$5,'Age profile (years)'!$F22:$CR22,0)),0,INDEX('Asset data'!$CX22:$GJ22,1,MATCH(AD$5,'Age profile (years)'!$F22:$CR22,0))),0) -> 19 | DS22: =IF($A22>0,IF(ISNA(MATCH(AE$5,'Age profile (years)'!$F22:$CR22,0)),0,INDEX('Asset data'!$CX22:$GJ22,1,MATCH(AE$5,'Age profile (years)'!$F22:$CR22,0))),0) -> 10 | DT22: =IF($A22>0,IF(ISNA(MATCH(AF$5,'Age profile (years)'!$F22:$CR22,0)),0,INDEX('Asset data'!$CX22:$GJ22,1,MATCH(AF$5,'Age profile (years)'!$F22:$CR22,0))),0) -> 0 | DU22: =IF($A22>0,IF(ISNA(MATCH(AG$5,'Age profile (years)'!$F22:$CR22,0)),0,INDEX('Asset data'!$CX22:$GJ22,1,MATCH(AG$5,'Age profile (years)'!$F22:$CR22,0))),0) -> 153 | DV22: =IF($A22>0,IF(ISNA(MATCH(AH$5,'Age profile (years)'!$F22:$CR22,0)),0,INDEX('Asset data'!$CX22:$GJ22,1,MATCH(AH$5,'Age profile (years)'!$F22:$CR22,0))),0) -> 778 | DW22: =IF($A22>0,IF(ISNA(MATCH(AI$5,'Age profile (years)'!$F22:$CR22,0)),0,INDEX('Asset data'!$CX22:$GJ22,1,MATCH(AI$5,'Age profile (years)'!$F22:$CR22,0))),0) -> 803 | DX22: =IF($A22>0,IF(ISNA(MATCH(AJ$5,'Age profile (years)'!$F22:$CR22,0)),0,INDEX('Asset data'!$CX22:$GJ22,1,MATCH(AJ$5,'Age profile (years)'!$F22:$CR22,0))),0) -> 837 | DY22: =IF($A22>0,IF(ISNA(MATCH(AK$5,'Age profile (years)'!$F22:$CR22,0)),0,INDEX('Asset data'!$CX22:$GJ22,1,MATCH(AK$5,'Age profile (years)'!$F22:$CR22,0))),0) -> 9 | DZ22: =IF($A22>0,IF(ISNA(MATCH(AL$5,'Age profile (years)'!$F22:$CR22,0)),0,INDEX('Asset data'!$CX22:$GJ22,1,MATCH(AL$5,'Age profile (years)'!$F22:$CR22,0))),0) -> 382 | EA22: =IF($A22>0,IF(ISNA(MATCH(AM$5,'Age profile (years)'!$F22:$CR22,0)),0,INDEX('Asset data'!$CX22:$GJ22,1,MATCH(AM$5,'Age profile (years)'!$F22:$CR22,0))),0) -> 510 | EB22: =IF($A22>0,IF(ISNA(MATCH(AN$5,'Age profile (years)'!$F22:$CR22,0)),0,INDEX('Asset data'!$CX22:$GJ22,1,MATCH(AN$5,'Age profile (years)'!$F22:$CR22,0))),0) -> 1363 | EC22: =IF($A22>0,IF(ISNA(MATCH(AO$5,'Age profile (years)'!$F22:$CR22,0)),0,INDEX('Asset data'!$CX22:$GJ22,1,MATCH(AO$5,'Age profile (years)'!$F22:$CR22,0))),0) -> 213 | ED22: =IF($A22>0,IF(ISNA(MATCH(AP$5,'Age profile (years)'!$F22:$CR22,0)),0,INDEX('Asset data'!$CX22:$GJ22,1,MATCH(AP$5,'Age profile (years)'!$F22:$CR22,0))),0) -> 475 | EE22: =IF($A22>0,IF(ISNA(MATCH(AQ$5,'Age profile (years)'!$F22:$CR22,0)),0,INDEX('Asset data'!$CX22:$GJ22,1,MATCH(AQ$5,'Age profile (years)'!$F22:$CR22,0))),0) -> 473 | EF22: =IF($A22>0,IF(ISNA(MATCH(AR$5,'Age profile (years)'!$F22:$CR22,0)),0,INDEX('Asset data'!$CX22:$GJ22,1,MATCH(AR$5,'Age profile (years)'!$F22:$CR22,0))),0) -> 701 | EG22: =IF($A22>0,IF(ISNA(MATCH(AS$5,'Age profile (years)'!$F22:$CR22,0)),0,INDEX('Asset data'!$CX22:$GJ22,1,MATCH(AS$5,'Age profile (years)'!$F22:$CR22,0))),0) -> 32 | EH22: =IF($A22>0,IF(ISNA(MATCH(AT$5,'Age profile (years)'!$F22:$CR22,0)),0,INDEX('Asset data'!$CX22:$GJ22,1,MATCH(AT$5,'Age profile (years)'!$F22:$CR22,0))),0) -> 362 | EI22: =IF($A22>0,IF(ISNA(MATCH(AU$5,'Age profile (years)'!$F22:$CR22,0)),0,INDEX('Asset data'!$CX22:$GJ22,1,MATCH(AU$5,'Age profile (years)'!$F22:$CR22,0))),0) -> 0 | EJ22: =IF($A22>0,IF(ISNA(MATCH(AV$5,'Age profile (years)'!$F22:$CR22,0)),0,INDEX('Asset data'!$CX22:$GJ22,1,MATCH(AV$5,'Age profile (years)'!$F22:$CR22,0))),0) -> 658 | EK22: =IF($A22>0,IF(ISNA(MATCH(AW$5,'Age profile (years)'!$F22:$CR22,0)),0,INDEX('Asset data'!$CX22:$GJ22,1,MATCH(AW$5,'Age profile (years)'!$F22:$CR22,0))),0) -> 39 | EL22: =IF($A22>0,IF(ISNA(MATCH(AX$5,'Age profile (years)'!$F22:$CR22,0)),0,INDEX('Asset data'!$CX22:$GJ22,1,MATCH(AX$5,'Age profile (years)'!$F22:$CR22,0))),0) -> 53 | EM22: =IF($A22>0,IF(ISNA(MATCH(AY$5,'Age profile (years)'!$F22:$CR22,0)),0,INDEX('Asset data'!$CX22:$GJ22,1,MATCH(AY$5,'Age profile (years)'!$F22:$CR22,0))),0) -> 88 | EN22: =IF($A22>0,IF(ISNA(MATCH(AZ$5,'Age profile (years)'!$F22:$CR22,0)),0,INDEX('Asset data'!$CX22:$GJ22,1,MATCH(AZ$5,'Age profile (years)'!$F22:$CR22,0))),0) -> 0 | EO22: =IF($A22>0,IF(ISNA(MATCH(BA$5,'Age profile (years)'!$F22:$CR22,0)),0,INDEX('Asset data'!$CX22:$GJ22,1,MATCH(BA$5,'Age profile (years)'!$F22:$CR22,0))),0) -> 162 | EP22: =IF($A22>0,IF(ISNA(MATCH(BB$5,'Age profile (years)'!$F22:$CR22,0)),0,INDEX('Asset data'!$CX22:$GJ22,1,MATCH(BB$5,'Age profile (years)'!$F22:$CR22,0))),0) -> 200 | EQ22: =IF($A22>0,IF(ISNA(MATCH(BC$5,'Age profile (years)'!$F22:$CR22,0)),0,INDEX('Asset data'!$CX22:$GJ22,1,MATCH(BC$5,'Age profile (years)'!$F22:$CR22,0))),0) -> 30 | ER22: =IF($A22>0,IF(ISNA(MATCH(BD$5,'Age profile (years)'!$F22:$CR22,0)),0,INDEX('Asset data'!$CX22:$GJ22,1,MATCH(BD$5,'Age profile (years)'!$F22:$CR22,0))),0) -> 128 | ES22: =IF($A22>0,IF(ISNA(MATCH(BE$5,'Age profile (years)'!$F22:$CR22,0)),0,INDEX('Asset data'!$CX22:$GJ22,1,MATCH(BE$5,'Age profile (years)'!$F22:$CR22,0))),0) -> 10 | ET22: =IF($A22>0,IF(ISNA(MATCH(BF$5,'Age profile (years)'!$F22:$CR22,0)),0,INDEX('Asset data'!$CX22:$GJ22,1,MATCH(BF$5,'Age profile (years)'!$F22:$CR22,0))),0) -> 112 | EU22: =IF($A22>0,IF(ISNA(MATCH(BG$5,'Age profile (years)'!$F22:$CR22,0)),0,INDEX('Asset data'!$CX22:$GJ22,1,MATCH(BG$5,'Age profile (years)'!$F22:$CR22,0))),0) -> 0 | EV22: =IF($A22>0,IF(ISNA(MATCH(BH$5,'Age profile (years)'!$F22:$CR22,0)),0,INDEX('Asset data'!$CX22:$GJ22,1,MATCH(BH$5,'Age profile (years)'!$F22:$CR22,0))),0) -> 0 | EW22: =IF($A22>0,IF(ISNA(MATCH(BI$5,'Age profile (years)'!$F22:$CR22,0)),0,INDEX('Asset data'!$CX22:$GJ22,1,MATCH(BI$5,'Age profile (years)'!$F22:$CR22,0))),0) -> 0 | EX22: =IF($A22>0,IF(ISNA(MATCH(BJ$5,'Age profile (years)'!$F22:$CR22,0)),0,INDEX('Asset data'!$CX22:$GJ22,1,MATCH(BJ$5,'Age profile (years)'!$F22:$CR22,0))),0) -> 10 | EY22: =IF($A22>0,IF(ISNA(MATCH(BK$5,'Age profile (years)'!$F22:$CR22,0)),0,INDEX('Asset data'!$CX22:$GJ22,1,MATCH(BK$5,'Age profile (years)'!$F22:$CR22,0))),0) -> 0 | EZ22: =IF($A22>0,IF(ISNA(MATCH(BL$5,'Age profile (years)'!$F22:$CR22,0)),0,INDEX('Asset data'!$CX22:$GJ22,1,MATCH(BL$5,'Age profile (years)'!$F22:$CR22,0))),0) -> 0 | FA22: =IF($A22>0,IF(ISNA(MATCH(BM$5,'Age profile (years)'!$F22:$CR22,0)),0,INDEX('Asset data'!$CX22:$GJ22,1,MATCH(BM$5,'Age profile (years)'!$F22:$CR22,0))),0) -> 0 | FB22: =IF($A22>0,IF(ISNA(MATCH(BN$5,'Age profile (years)'!$F22:$CR22,0)),0,INDEX('Asset data'!$CX22:$GJ22,1,MATCH(BN$5,'Age profile (years)'!$F22:$CR22,0))),0) -> 0 | FC22: =IF($A22>0,IF(ISNA(MATCH(BO$5,'Age profile (years)'!$F22:$CR22,0)),0,INDEX('Asset data'!$CX22:$GJ22,1,MATCH(BO$5,'Age profile (years)'!$F22:$CR22,0))),0) -> 0 | FD22: =IF($A22>0,IF(ISNA(MATCH(BP$5,'Age profile (years)'!$F22:$CR22,0)),0,INDEX('Asset data'!$CX22:$GJ22,1,MATCH(BP$5,'Age profile (years)'!$F22:$CR22,0))),0) -> 0 | FE22: =IF($A22>0,IF(ISNA(MATCH(BQ$5,'Age profile (years)'!$F22:$CR22,0)),0,INDEX('Asset data'!$CX22:$GJ22,1,MATCH(BQ$5,'Age profile (years)'!$F22:$CR22,0))),0) -> 0 | FF22: =IF($A22>0,IF(ISNA(MATCH(BR$5,'Age profile (years)'!$F22:$CR22,0)),0,INDEX('Asset data'!$CX22:$GJ22,1,MATCH(BR$5,'Age profile (years)'!$F22:$CR22,0))),0) -> 0 | FG22: =IF($A22>0,IF(ISNA(MATCH(BS$5,'Age profile (years)'!$F22:$CR22,0)),0,INDEX('Asset data'!$CX22:$GJ22,1,MATCH(BS$5,'Age profile (years)'!$F22:$CR22,0))),0) -> 0 | FH22: =IF($A22>0,IF(ISNA(MATCH(BT$5,'Age profile (years)'!$F22:$CR22,0)),0,INDEX('Asset data'!$CX22:$GJ22,1,MATCH(BT$5,'Age profile (years)'!$F22:$CR22,0))),0) -> 0 | FI22: =IF($A22>0,IF(ISNA(MATCH(BU$5,'Age profile (years)'!$F22:$CR22,0)),0,INDEX('Asset data'!$CX22:$GJ22,1,MATCH(BU$5,'Age profile (years)'!$F22:$CR22,0))),0) -> 0 | FJ22: =IF($A22>0,IF(ISNA(MATCH(BV$5,'Age profile (years)'!$F22:$CR22,0)),0,INDEX('Asset data'!$CX22:$GJ22,1,MATCH(BV$5,'Age profile (years)'!$F22:$CR22,0))),0) -> 0 | FK22: =IF($A22>0,IF(ISNA(MATCH(BW$5,'Age profile (years)'!$F22:$CR22,0)),0,INDEX('Asset data'!$CX22:$GJ22,1,MATCH(BW$5,'Age profile (years)'!$F22:$CR22,0))),0) -> 0 | FL22: =IF($A22>0,IF(ISNA(MATCH(BX$5,'Age profile (years)'!$F22:$CR22,0)),0,INDEX('Asset data'!$CX22:$GJ22,1,MATCH(BX$5,'Age profile (years)'!$F22:$CR22,0))),0) -> 0 | FM22: =IF($A22>0,IF(ISNA(MATCH(BY$5,'Age profile (years)'!$F22:$CR22,0)),0,INDEX('Asset data'!$CX22:$GJ22,1,MATCH(BY$5,'Age profile (years)'!$F22:$CR22,0))),0) -> 0 | FN22: =IF($A22>0,IF(ISNA(MATCH(BZ$5,'Age profile (years)'!$F22:$CR22,0)),0,INDEX('Asset data'!$CX22:$GJ22,1,MATCH(BZ$5,'Age profile (years)'!$F22:$CR22,0))),0) -> 0 | FO22: =IF($A22>0,IF(ISNA(MATCH(CA$5,'Age profile (years)'!$F22:$CR22,0)),0,INDEX('Asset data'!$CX22:$GJ22,1,MATCH(CA$5,'Age profile (years)'!$F22:$CR22,0))),0) -> 0 | FP22: =IF($A22>0,IF(ISNA(MATCH(CB$5,'Age profile (years)'!$F22:$CR22,0)),0,INDEX('Asset data'!$CX22:$GJ22,1,MATCH(CB$5,'Age profile (years)'!$F22:$CR22,0))),0) -> 0 | FQ22: =IF($A22>0,IF(ISNA(MATCH(CC$5,'Age profile (years)'!$F22:$CR22,0)),0,INDEX('Asset data'!$CX22:$GJ22,1,MATCH(CC$5,'Age profile (years)'!$F22:$CR22,0))),0) -> 0 | FR22: =IF($A22>0,IF(ISNA(MATCH(CD$5,'Age profile (years)'!$F22:$CR22,0)),0,INDEX('Asset data'!$CX22:$GJ22,1,MATCH(CD$5,'Age profile (years)'!$F22:$CR22,0))),0) -> 0 | FS22: =IF($A22>0,IF(ISNA(MATCH(CE$5,'Age profile (years)'!$F22:$CR22,0)),0,INDEX('Asset data'!$CX22:$GJ22,1,MATCH(CE$5,'Age profile (years)'!$F22:$CR22,0))),0) -> 0 | FT22: =IF($A22>0,IF(ISNA(MATCH(CF$5,'Age profile (years)'!$F22:$CR22,0)),0,INDEX('Asset data'!$CX22:$GJ22,1,MATCH(CF$5,'Age profile (years)'!$F22:$CR22,0))),0) -> 0 | FU22: =IF($A22>0,IF(ISNA(MATCH(CG$5,'Age profile (years)'!$F22:$CR22,0)),0,INDEX('Asset data'!$CX22:$GJ22,1,MATCH(CG$5,'Age profile (years)'!$F22:$CR22,0))),0) -> 0 | FV22: =IF($A22>0,IF(ISNA(MATCH(CH$5,'Age profile (years)'!$F22:$CR22,0)),0,INDEX('Asset data'!$CX22:$GJ22,1,MATCH(CH$5,'Age profile (years)'!$F22:$CR22,0))),0) -> 0 | FW22: =IF($A22>0,IF(ISNA(MATCH(CI$5,'Age profile (years)'!$F22:$CR22,0)),0,INDEX('Asset data'!$CX22:$GJ22,1,MATCH(CI$5,'Age profile (years)'!$F22:$CR22,0))),0) -> 0 | FX22: =IF($A22>0,IF(ISNA(MATCH(CJ$5,'Age profile (years)'!$F22:$CR22,0)),0,INDEX('Asset data'!$CX22:$GJ22,1,MATCH(CJ$5,'Age profile (years)'!$F22:$CR22,0))),0) -> 0 | FY22: =IF($A22>0,IF(ISNA(MATCH(CK$5,'Age profile (years)'!$F22:$CR22,0)),0,INDEX('Asset data'!$CX22:$GJ22,1,MATCH(CK$5,'Age profile (years)'!$F22:$CR22,0))),0) -> 0 | FZ22: =IF($A22>0,IF(ISNA(MATCH(CL$5,'Age profile (years)'!$F22:$CR22,0)),0,INDEX('Asset data'!$CX22:$GJ22,1,MATCH(CL$5,'Age profile (years)'!$F22:$CR22,0))),0) -> 0 | GA22: =IF($A22>0,IF(ISNA(MATCH(CM$5,'Age profile (years)'!$F22:$CR22,0)),0,INDEX('Asset data'!$CX22:$GJ22,1,MATCH(CM$5,'Age profile (years)'!$F22:$CR22,0))),0) -> 0 | GB22: =IF($A22>0,IF(ISNA(MATCH(CN$5,'Age profile (years)'!$F22:$CR22,0)),0,INDEX('Asset data'!$CX22:$GJ22,1,MATCH(CN$5,'Age profile (years)'!$F22:$CR22,0))),0) -> 0 | GC22: =IF($A22>0,IF(ISNA(MATCH(CO$5,'Age profile (years)'!$F22:$CR22,0)),0,INDEX('Asset data'!$CX22:$GJ22,1,MATCH(CO$5,'Age profile (years)'!$F22:$CR22,0))),0) -> 0 | GD22: =IF($A22>0,IF(ISNA(MATCH(CP$5,'Age profile (years)'!$F22:$CR22,0)),0,INDEX('Asset data'!$CX22:$GJ22,1,MATCH(CP$5,'Age profile (years)'!$F22:$CR22,0))),0) -> 0 | GE22: =IF($A22>0,IF(ISNA(MATCH(CQ$5,'Age profile (years)'!$F22:$CR22,0)),0,INDEX('Asset data'!$CX22:$GJ22,1,MATCH(CQ$5,'Age profile (years)'!$F22:$CR22,0))),0) -> 0 | GF22: =IF($A22>0,IF(ISNA(MATCH(CR$5,'Age profile (years)'!$F22:$CR22,0)),0,INDEX('Asset data'!$CX22:$GJ22,1,MATCH(CR$5,'Age profile (years)'!$F22:$CR22,0))),0) -> 0
A23: ='Asset data'!A23 -> 1 | B23: ='Asset data'!B23 -> 0 | C23: ='Asset data'!C23 -> 0 | D23: ='Asset data'!E23 -> Towers in Corrosion Zone DEF | E23: ='Asset data'!G23 -> 43.59789487 | F23: =IF($A23>0,IF(ISNA(MATCH(F$5,'Age profile (years)'!$F23:$CR23,0)),0,INDEX('Asset data'!$J23:$CV23,1,MATCH(F$5,'Age profile (years)'!$F23:$CR23,0))),0) -> 0 | G23: =IF($A23>0,IF(ISNA(MATCH(G$5,'Age profile (years)'!$F23:$CR23,0)),0,INDEX('Asset data'!$J23:$CV23,1,MATCH(G$5,'Age profile (years)'!$F23:$CR23,0))),0) -> 113 | H23: =IF($A23>0,IF(ISNA(MATCH(H$5,'Age profile (years)'!$F23:$CR23,0)),0,INDEX('Asset data'!$J23:$CV23,1,MATCH(H$5,'Age profile (years)'!$F23:$CR23,0))),0) -> 136 | I23: =IF($A23>0,IF(ISNA(MATCH(I$5,'Age profile (years)'!$F23:$CR23,0)),0,INDEX('Asset data'!$J23:$CV23,1,MATCH(I$5,'Age profile (years)'!$F23:$CR23,0))),0) -> 216 | J23: =IF($A23>0,IF(ISNA(MATCH(J$5,'Age profile (years)'!$F23:$CR23,0)),0,INDEX('Asset data'!$J23:$CV23,1,MATCH(J$5,'Age profile (years)'!$F23:$CR23,0))),0) -> 3 | K23: =IF($A23>0,IF(ISNA(MATCH(K$5,'Age profile (years)'!$F23:$CR23,0)),0,INDEX('Asset data'!$J23:$CV23,1,MATCH(K$5,'Age profile (years)'!$F23:$CR23,0))),0) -> 211 | L23: =IF($A23>0,IF(ISNA(MATCH(L$5,'Age profile (years)'!$F23:$CR23,0)),0,INDEX('Asset data'!$J23:$CV23,1,MATCH(L$5,'Age profile (years)'!$F23:$CR23,0))),0) -> 189 | M23: =IF($A23>0,IF(ISNA(MATCH(M$5,'Age profile (years)'!$F23:$CR23,0)),0,INDEX('Asset data'!$J23:$CV23,1,MATCH(M$5,'Age profile (years)'!$F23:$CR23,0))),0) -> 253 | N23: =IF($A23>0,IF(ISNA(MATCH(N$5,'Age profile (years)'!$F23:$CR23,0)),0,INDEX('Asset data'!$J23:$CV23,1,MATCH(N$5,'Age profile (years)'!$F23:$CR23,0))),0) -> 0 | O23: =IF($A23>0,IF(ISNA(MATCH(O$5,'Age profile (years)'!$F23:$CR23,0)),0,INDEX('Asset data'!$J23:$CV23,1,MATCH(O$5,'Age profile (years)'!$F23:$CR23,0))),0) -> 0 | P23: =IF($A23>0,IF(ISNA(MATCH(P$5,'Age profile (years)'!$F23:$CR23,0)),0,INDEX('Asset data'!$J23:$CV23,1,MATCH(P$5,'Age profile (years)'!$F23:$CR23,0))),0) -> 24 | Q23: =IF($A23>0,IF(ISNA(MATCH(Q$5,'Age profile (years)'!$F23:$CR23,0)),0,INDEX('Asset data'!$J23:$CV23,1,MATCH(Q$5,'Age profile (years)'!$F23:$CR23,0))),0) -> 22 | R23: =IF($A23>0,IF(ISNA(MATCH(R$5,'Age profile (years)'!$F23:$CR23,0)),0,INDEX('Asset data'!$J23:$CV23,1,MATCH(R$5,'Age profile (years)'!$F23:$CR23,0))),0) -> 0 | S23: =IF($A23>0,IF(ISNA(MATCH(S$5,'Age profile (years)'!$F23:$CR23,0)),0,INDEX('Asset data'!$J23:$CV23,1,MATCH(S$5,'Age profile (years)'!$F23:$CR23,0))),0) -> 167 | T23: =IF($A23>0,IF(ISNA(MATCH(T$5,'Age profile (years)'!$F23:$CR23,0)),0,INDEX('Asset data'!$J23:$CV23,1,MATCH(T$5,'Age profile (years)'!$F23:$CR23,0))),0) -> 0 | U23: =IF($A23>0,IF(ISNA(MATCH(U$5,'Age profile (years)'!$F23:$CR23,0)),0,INDEX('Asset data'!$J23:$CV23,1,MATCH(U$5,'Age profile (years)'!$F23:$CR23,0))),0) -> 0 | V23: =IF($A23>0,IF(ISNA(MATCH(V$5,'Age profile (years)'!$F23:$CR23,0)),0,INDEX('Asset data'!$J23:$CV23,1,MATCH(V$5,'Age profile (years)'!$F23:$CR23,0))),0) -> 0 | W23: =IF($A23>0,IF(ISNA(MATCH(W$5,'Age profile (years)'!$F23:$CR23,0)),0,INDEX('Asset data'!$J23:$CV23,1,MATCH(W$5,'Age profile (years)'!$F23:$CR23,0))),0) -> 155 | X23: =IF($A23>0,IF(ISNA(MATCH(X$5,'Age profile (years)'!$F23:$CR23,0)),0,INDEX('Asset data'!$J23:$CV23,1,MATCH(X$5,'Age profile (years)'!$F23:$CR23,0))),0) -> 0 | Y23: =IF($A23>0,IF(ISNA(MATCH(Y$5,'Age profile (years)'!$F23:$CR23,0)),0,INDEX('Asset data'!$J23:$CV23,1,MATCH(Y$5,'Age profile (years)'!$F23:$CR23,0))),0) -> 0 | Z23: =IF($A23>0,IF(ISNA(MATCH(Z$5,'Age profile (years)'!$F23:$CR23,0)),0,INDEX('Asset data'!$J23:$CV23,1,MATCH(Z$5,'Age profile (years)'!$F23:$CR23,0))),0) -> 0 | AA23: =IF($A23>0,IF(ISNA(MATCH(AA$5,'Age profile (years)'!$F23:$CR23,0)),0,INDEX('Asset data'!$J23:$CV23,1,MATCH(AA$5,'Age profile (years)'!$F23:$CR23,0))),0) -> 0 | AB23: =IF($A23>0,IF(ISNA(MATCH(AB$5,'Age profile (years)'!$F23:$CR23,0)),0,INDEX('Asset data'!$J23:$CV23,1,MATCH(AB$5,'Age profile (years)'!$F23:$CR23,0))),0) -> 0 | AC23: =IF($A23>0,IF(ISNA(MATCH(AC$5,'Age profile (years)'!$F23:$CR23,0)),0,INDEX('Asset data'!$J23:$CV23,1,MATCH(AC$5,'Age profile (years)'!$F23:$CR23,0))),0) -> 0 | AD23: =IF($A23>0,IF(ISNA(MATCH(AD$5,'Age profile (years)'!$F23:$CR23,0)),0,INDEX('Asset data'!$J23:$CV23,1,MATCH(AD$5,'Age profile (years)'!$F23:$CR23,0))),0) -> 17 | AE23: =IF($A23>0,IF(ISNA(MATCH(AE$5,'Age profile (years)'!$F23:$CR23,0)),0,INDEX('Asset data'!$J23:$CV23,1,MATCH(AE$5,'Age profile (years)'!$F23:$CR23,0))),0) -> 0 | AF23: =IF($A23>0,IF(ISNA(MATCH(AF$5,'Age profile (years)'!$F23:$CR23,0)),0,INDEX('Asset data'!$J23:$CV23,1,MATCH(AF$5,'Age profile (years)'!$F23:$CR23,0))),0) -> 528 | AG23: =IF($A23>0,IF(ISNA(MATCH(AG$5,'Age profile (years)'!$F23:$CR23,0)),0,INDEX('Asset data'!$J23:$CV23,1,MATCH(AG$5,'Age profile (years)'!$F23:$CR23,0))),0) -> 0 | AH23: =IF($A23>0,IF(ISNA(MATCH(AH$5,'Age profile (years)'!$F23:$CR23,0)),0,INDEX('Asset data'!$J23:$CV23,1,MATCH(AH$5,'Age profile (years)'!$F23:$CR23,0))),0) -> 74 | AI23: =IF($A23>0,IF(ISNA(MATCH(AI$5,'Age profile (years)'!$F23:$CR23,0)),0,INDEX('Asset data'!$J23:$CV23,1,MATCH(AI$5,'Age profile (years)'!$F23:$CR23,0))),0) -> 0 | AJ23: =IF($A23>0,IF(ISNA(MATCH(AJ$5,'Age profile (years)'!$F23:$CR23,0)),0,INDEX('Asset data'!$J23:$CV23,1,MATCH(AJ$5,'Age profile (years)'!$F23:$CR23,0))),0) -> 0 | AK23: =IF($A23>0,IF(ISNA(MATCH(AK$5,'Age profile (years)'!$F23:$CR23,0)),0,INDEX('Asset data'!$J23:$CV23,1,MATCH(AK$5,'Age profile (years)'!$F23:$CR23,0))),0) -> 0 | AL23: =IF($A23>0,IF(ISNA(MATCH(AL$5,'Age profile (years)'!$F23:$CR23,0)),0,INDEX('Asset data'!$J23:$CV23,1,MATCH(AL$5,'Age profile (years)'!$F23:$CR23,0))),0) -> 0 | AM23: =IF($A23>0,IF(ISNA(MATCH(AM$5,'Age profile (years)'!$F23:$CR23,0)),0,INDEX('Asset data'!$J23:$CV23,1,MATCH(AM$5,'Age profile (years)'!$F23:$CR23,0))),0) -> 120 | AN23: =IF($A23>0,IF(ISNA(MATCH(AN$5,'Age profile (years)'!$F23:$CR23,0)),0,INDEX('Asset data'!$J23:$CV23,1,MATCH(AN$5,'Age profile (years)'!$F23:$CR23,0))),0) -> 39 | AO23: =IF($A23>0,IF(ISNA(MATCH(AO$5,'Age profile (years)'!$F23:$CR23,0)),0,INDEX('Asset data'!$J23:$CV23,1,MATCH(AO$5,'Age profile (years)'!$F23:$CR23,0))),0) -> 4 | AP23: =IF($A23>0,IF(ISNA(MATCH(AP$5,'Age profile (years)'!$F23:$CR23,0)),0,INDEX('Asset data'!$J23:$CV23,1,MATCH(AP$5,'Age profile (years)'!$F23:$CR23,0))),0) -> 0 | AQ23: =IF($A23>0,IF(ISNA(MATCH(AQ$5,'Age profile (years)'!$F23:$CR23,0)),0,INDEX('Asset data'!$J23:$CV23,1,MATCH(AQ$5,'Age profile (years)'!$F23:$CR23,0))),0) -> 0 | AR23: =IF($A23>0,IF(ISNA(MATCH(AR$5,'Age profile (years)'!$F23:$CR23,0)),0,INDEX('Asset data'!$J23:$CV23,1,MATCH(AR$5,'Age profile (years)'!$F23:$CR23,0))),0) -> 297 | AS23: =IF($A23>0,IF(ISNA(MATCH(AS$5,'Age profile (years)'!$F23:$CR23,0)),0,INDEX('Asset data'!$J23:$CV23,1,MATCH(AS$5,'Age profile (years)'!$F23:$CR23,0))),0) -> 0 | AT23: =IF($A23>0,IF(ISNA(MATCH(AT$5,'Age profile (years)'!$F23:$CR23,0)),0,INDEX('Asset data'!$J23:$CV23,1,MATCH(AT$5,'Age profile (years)'!$F23:$CR23,0))),0) -> 0 | AU23: =IF($A23>0,IF(ISNA(MATCH(AU$5,'Age profile (years)'!$F23:$CR23,0)),0,INDEX('Asset data'!$J23:$CV23,1,MATCH(AU$5,'Age profile (years)'!$F23:$CR23,0))),0) -> 0 | AV23: =IF($A23>0,IF(ISNA(MATCH(AV$5,'Age profile (years)'!$F23:$CR23,0)),0,INDEX('Asset data'!$J23:$CV23,1,MATCH(AV$5,'Age profile (years)'!$F23:$CR23,0))),0) -> 5 | AW23: =IF($A23>0,IF(ISNA(MATCH(AW$5,'Age profile (years)'!$F23:$CR23,0)),0,INDEX('Asset data'!$J23:$CV23,1,MATCH(AW$5,'Age profile (years)'!$F23:$CR23,0))),0) -> 0 | AX23: =IF($A23>0,IF(ISNA(MATCH(AX$5,'Age profile (years)'!$F23:$CR23,0)),0,INDEX('Asset data'!$J23:$CV23,1,MATCH(AX$5,'Age profile (years)'!$F23:$CR23,0))),0) -> 0 | AY23: =IF($A23>0,IF(ISNA(MATCH(AY$5,'Age profile (years)'!$F23:$CR23,0)),0,INDEX('Asset data'!$J23:$CV23,1,MATCH(AY$5,'Age profile (years)'!$F23:$CR23,0))),0) -> 0 | AZ23: =IF($A23>0,IF(ISNA(MATCH(AZ$5,'Age profile (years)'!$F23:$CR23,0)),0,INDEX('Asset data'!$J23:$CV23,1,MATCH(AZ$5,'Age profile (years)'!$F23:$CR23,0))),0) -> 0 | BA23: =IF($A23>0,IF(ISNA(MATCH(BA$5,'Age profile (years)'!$F23:$CR23,0)),0,INDEX('Asset data'!$J23:$CV23,1,MATCH(BA$5,'Age profile (years)'!$F23:$CR23,0))),0) -> 0 | BB23: =IF($A23>0,IF(ISNA(MATCH(BB$5,'Age profile (years)'!$F23:$CR23,0)),0,INDEX('Asset data'!$J23:$CV23,1,MATCH(BB$5,'Age profile (years)'!$F23:$CR23,0))),0) -> 0 | BC23: =IF($A23>0,IF(ISNA(MATCH(BC$5,'Age profile (years)'!$F23:$CR23,0)),0,INDEX('Asset data'!$J23:$CV23,1,MATCH(BC$5,'Age profile (years)'!$F23:$CR23,0))),0) -> 0 | BD23: =IF($A23>0,IF(ISNA(MATCH(BD$5,'Age profile (years)'!$F23:$CR23,0)),0,INDEX('Asset data'!$J23:$CV23,1,MATCH(BD$5,'Age profile (years)'!$F23:$CR23,0))),0) -> 0 | BE23: =IF($A23>0,IF(ISNA(MATCH(BE$5,'Age profile (years)'!$F23:$CR23,0)),0,INDEX('Asset data'!$J23:$CV23,1,MATCH(BE$5,'Age profile (years)'!$F23:$CR23,0))),0) -> 0 | BF23: =IF($A23>0,IF(ISNA(MATCH(BF$5,'Age profile (years)'!$F23:$CR23,0)),0,INDEX('Asset data'!$J23:$CV23,1,MATCH(BF$5,'Age profile (years)'!$F23:$CR23,0))),0) -> 0 | BG23: =IF($A23>0,IF(ISNA(MATCH(BG$5,'Age profile (years)'!$F23:$CR23,0)),0,INDEX('Asset data'!$J23:$CV23,1,MATCH(BG$5,'Age profile (years)'!$F23:$CR23,0))),0) -> 0 | BH23: =IF($A23>0,IF(ISNA(MATCH(BH$5,'Age profile (years)'!$F23:$CR23,0)),0,INDEX('Asset data'!$J23:$CV23,1,MATCH(BH$5,'Age profile (years)'!$F23:$CR23,0))),0) -> 0 | BI23: =IF($A23>0,IF(ISNA(MATCH(BI$5,'Age profile (years)'!$F23:$CR23,0)),0,INDEX('Asset data'!$J23:$CV23,1,MATCH(BI$5,'Age profile (years)'!$F23:$CR23,0))),0) -> 0 | BJ23: =IF($A23>0,IF(ISNA(MATCH(BJ$5,'Age profile (years)'!$F23:$CR23,0)),0,INDEX('Asset data'!$J23:$CV23,1,MATCH(BJ$5,'Age profile (years)'!$F23:$CR23,0))),0) -> 0 | BK23: =IF($A23>0,IF(ISNA(MATCH(BK$5,'Age profile (years)'!$F23:$CR23,0)),0,INDEX('Asset data'!$J23:$CV23,1,MATCH(BK$5,'Age profile (years)'!$F23:$CR23,0))),0) -> 3 | BL23: =IF($A23>0,IF(ISNA(MATCH(BL$5,'Age profile (years)'!$F23:$CR23,0)),0,INDEX('Asset data'!$J23:$CV23,1,MATCH(BL$5,'Age profile (years)'!$F23:$CR23,0))),0) -> 0 | BM23: =IF($A23>0,IF(ISNA(MATCH(BM$5,'Age profile (years)'!$F23:$CR23,0)),0,INDEX('Asset data'!$J23:$CV23,1,MATCH(BM$5,'Age profile (years)'!$F23:$CR23,0))),0) -> 0 | BN23: =IF($A23>0,IF(ISNA(MATCH(BN$5,'Age profile (years)'!$F23:$CR23,0)),0,INDEX('Asset data'!$J23:$CV23,1,MATCH(BN$5,'Age profile (years)'!$F23:$CR23,0))),0) -> 0 | BO23: =IF($A23>0,IF(ISNA(MATCH(BO$5,'Age profile (years)'!$F23:$CR23,0)),0,INDEX('Asset data'!$J23:$CV23,1,MATCH(BO$5,'Age profile (years)'!$F23:$CR23,0))),0) -> 0 | BP23: =IF($A23>0,IF(ISNA(MATCH(BP$5,'Age profile (years)'!$F23:$CR23,0)),0,INDEX('Asset data'!$J23:$CV23,1,MATCH(BP$5,'Age profile (years)'!$F23:$CR23,0))),0) -> 0 | BQ23: =IF($A23>0,IF(ISNA(MATCH(BQ$5,'Age profile (years)'!$F23:$CR23,0)),0,INDEX('Asset data'!$J23:$CV23,1,MATCH(BQ$5,'Age profile (years)'!$F23:$CR23,0))),0) -> 0 | BR23: =IF($A23>0,IF(ISNA(MATCH(BR$5,'Age profile (years)'!$F23:$CR23,0)),0,INDEX('Asset data'!$J23:$CV23,1,MATCH(BR$5,'Age profile (years)'!$F23:$CR23,0))),0) -> 0 | BS23: =IF($A23>0,IF(ISNA(MATCH(BS$5,'Age profile (years)'!$F23:$CR23,0)),0,INDEX('Asset data'!$J23:$CV23,1,MATCH(BS$5,'Age profile (years)'!$F23:$CR23,0))),0) -> 0 | BT23: =IF($A23>0,IF(ISNA(MATCH(BT$5,'Age profile (years)'!$F23:$CR23,0)),0,INDEX('Asset data'!$J23:$CV23,1,MATCH(BT$5,'Age profile (years)'!$F23:$CR23,0))),0) -> 0 | BU23: =IF($A23>0,IF(ISNA(MATCH(BU$5,'Age profile (years)'!$F23:$CR23,0)),0,INDEX('Asset data'!$J23:$CV23,1,MATCH(BU$5,'Age profile (years)'!$F23:$CR23,0))),0) -> 0 | BV23: =IF($A23>0,IF(ISNA(MATCH(BV$5,'Age profile (years)'!$F23:$CR23,0)),0,INDEX('Asset data'!$J23:$CV23,1,MATCH(BV$5,'Age profile (years)'!$F23:$CR23,0))),0) -> 0 | BW23: =IF($A23>0,IF(ISNA(MATCH(BW$5,'Age profile (years)'!$F23:$CR23,0)),0,INDEX('Asset data'!$J23:$CV23,1,MATCH(BW$5,'Age profile (years)'!$F23:$CR23,0))),0) -> 0 | BX23: =IF($A23>0,IF(ISNA(MATCH(BX$5,'Age profile (years)'!$F23:$CR23,0)),0,INDEX('Asset data'!$J23:$CV23,1,MATCH(BX$5,'Age profile (years)'!$F23:$CR23,0))),0) -> 0 | BY23: =IF($A23>0,IF(ISNA(MATCH(BY$5,'Age profile (years)'!$F23:$CR23,0)),0,INDEX('Asset data'!$J23:$CV23,1,MATCH(BY$5,'Age profile (years)'!$F23:$CR23,0))),0) -> 0 | BZ23: =IF($A23>0,IF(ISNA(MATCH(BZ$5,'Age profile (years)'!$F23:$CR23,0)),0,INDEX('Asset data'!$J23:$CV23,1,MATCH(BZ$5,'Age profile (years)'!$F23:$CR23,0))),0) -> 0 | CA23: =IF($A23>0,IF(ISNA(MATCH(CA$5,'Age profile (years)'!$F23:$CR23,0)),0,INDEX('Asset data'!$J23:$CV23,1,MATCH(CA$5,'Age profile (years)'!$F23:$CR23,0))),0) -> 0 | CB23: =IF($A23>0,IF(ISNA(MATCH(CB$5,'Age profile (years)'!$F23:$CR23,0)),0,INDEX('Asset data'!$J23:$CV23,1,MATCH(CB$5,'Age profile (years)'!$F23:$CR23,0))),0) -> 0 | CC23: =IF($A23>0,IF(ISNA(MATCH(CC$5,'Age profile (years)'!$F23:$CR23,0)),0,INDEX('Asset data'!$J23:$CV23,1,MATCH(CC$5,'Age profile (years)'!$F23:$CR23,0))),0) -> 0 | CD23: =IF($A23>0,IF(ISNA(MATCH(CD$5,'Age profile (years)'!$F23:$CR23,0)),0,INDEX('Asset data'!$J23:$CV23,1,MATCH(CD$5,'Age profile (years)'!$F23:$CR23,0))),0) -> 0 | CE23: =IF($A23>0,IF(ISNA(MATCH(CE$5,'Age profile (years)'!$F23:$CR23,0)),0,INDEX('Asset data'!$J23:$CV23,1,MATCH(CE$5,'Age profile (years)'!$F23:$CR23,0))),0) -> 0 | CF23: =IF($A23>0,IF(ISNA(MATCH(CF$5,'Age profile (years)'!$F23:$CR23,0)),0,INDEX('Asset data'!$J23:$CV23,1,MATCH(CF$5,'Age profile (years)'!$F23:$CR23,0))),0) -> 0 | CG23: =IF($A23>0,IF(ISNA(MATCH(CG$5,'Age profile (years)'!$F23:$CR23,0)),0,INDEX('Asset data'!$J23:$CV23,1,MATCH(CG$5,'Age profile (years)'!$F23:$CR23,0))),0) -> 0 | CH23: =IF($A23>0,IF(ISNA(MATCH(CH$5,'Age profile (years)'!$F23:$CR23,0)),0,INDEX('Asset data'!$J23:$CV23,1,MATCH(CH$5,'Age profile (years)'!$F23:$CR23,0))),0) -> 0 | CI23: =IF($A23>0,IF(ISNA(MATCH(CI$5,'Age profile (years)'!$F23:$CR23,0)),0,INDEX('Asset data'!$J23:$CV23,1,MATCH(CI$5,'Age profile (years)'!$F23:$CR23,0))),0) -> 0 | CJ23: =IF($A23>0,IF(ISNA(MATCH(CJ$5,'Age profile (years)'!$F23:$CR23,0)),0,INDEX('Asset data'!$J23:$CV23,1,MATCH(CJ$5,'Age profile (years)'!$F23:$CR23,0))),0) -> 0 | CK23: =IF($A23>0,IF(ISNA(MATCH(CK$5,'Age profile (years)'!$F23:$CR23,0)),0,INDEX('Asset data'!$J23:$CV23,1,MATCH(CK$5,'Age profile (years)'!$F23:$CR23,0))),0) -> 0 | CL23: =IF($A23>0,IF(ISNA(MATCH(CL$5,'Age profile (years)'!$F23:$CR23,0)),0,INDEX('Asset data'!$J23:$CV23,1,MATCH(CL$5,'Age profile (years)'!$F23:$CR23,0))),0) -> 0 | CM23: =IF($A23>0,IF(ISNA(MATCH(CM$5,'Age profile (years)'!$F23:$CR23,0)),0,INDEX('Asset data'!$J23:$CV23,1,MATCH(CM$5,'Age profile (years)'!$F23:$CR23,0))),0) -> 0 | CN23: =IF($A23>0,IF(ISNA(MATCH(CN$5,'Age profile (years)'!$F23:$CR23,0)),0,INDEX('Asset data'!$J23:$CV23,1,MATCH(CN$5,'Age profile (years)'!$F23:$CR23,0))),0) -> 0 | CO23: =IF($A23>0,IF(ISNA(MATCH(CO$5,'Age profile (years)'!$F23:$CR23,0)),0,INDEX('Asset data'!$J23:$CV23,1,MATCH(CO$5,'Age profile (years)'!$F23:$CR23,0))),0) -> 0 | CP23: =IF($A23>0,IF(ISNA(MATCH(CP$5,'Age profile (years)'!$F23:$CR23,0)),0,INDEX('Asset data'!$J23:$CV23,1,MATCH(CP$5,'Age profile (years)'!$F23:$CR23,0))),0) -> 0 | CQ23: =IF($A23>0,IF(ISNA(MATCH(CQ$5,'Age profile (years)'!$F23:$CR23,0)),0,INDEX('Asset data'!$J23:$CV23,1,MATCH(CQ$5,'Age profile (years)'!$F23:$CR23,0))),0) -> 0 | CR23: =IF($A23>0,IF(ISNA(MATCH(CR$5,'Age profile (years)'!$F23:$CR23,0)),0,INDEX('Asset data'!$J23:$CV23,1,MATCH(CR$5,'Age profile (years)'!$F23:$CR23,0))),0) -> 0 | CT23: =IF($A23>0,IF(ISNA(MATCH(F$5,'Age profile (years)'!$F23:$CR23,0)),0,INDEX('Asset data'!$CX23:$GJ23,1,MATCH(F$5,'Age profile (years)'!$F23:$CR23,0))),0) -> 0 | CU23: =IF($A23>0,IF(ISNA(MATCH(G$5,'Age profile (years)'!$F23:$CR23,0)),0,INDEX('Asset data'!$CX23:$GJ23,1,MATCH(G$5,'Age profile (years)'!$F23:$CR23,0))),0) -> 113 | CV23: =IF($A23>0,IF(ISNA(MATCH(H$5,'Age profile (years)'!$F23:$CR23,0)),0,INDEX('Asset data'!$CX23:$GJ23,1,MATCH(H$5,'Age profile (years)'!$F23:$CR23,0))),0) -> 136 | CW23: =IF($A23>0,IF(ISNA(MATCH(I$5,'Age profile (years)'!$F23:$CR23,0)),0,INDEX('Asset data'!$CX23:$GJ23,1,MATCH(I$5,'Age profile (years)'!$F23:$CR23,0))),0) -> 216 | CX23: =IF($A23>0,IF(ISNA(MATCH(J$5,'Age profile (years)'!$F23:$CR23,0)),0,INDEX('Asset data'!$CX23:$GJ23,1,MATCH(J$5,'Age profile (years)'!$F23:$CR23,0))),0) -> 3 | CY23: =IF($A23>0,IF(ISNA(MATCH(K$5,'Age profile (years)'!$F23:$CR23,0)),0,INDEX('Asset data'!$CX23:$GJ23,1,MATCH(K$5,'Age profile (years)'!$F23:$CR23,0))),0) -> 211 | CZ23: =IF($A23>0,IF(ISNA(MATCH(L$5,'Age profile (years)'!$F23:$CR23,0)),0,INDEX('Asset data'!$CX23:$GJ23,1,MATCH(L$5,'Age profile (years)'!$F23:$CR23,0))),0) -> 189 | DA23: =IF($A23>0,IF(ISNA(MATCH(M$5,'Age profile (years)'!$F23:$CR23,0)),0,INDEX('Asset data'!$CX23:$GJ23,1,MATCH(M$5,'Age profile (years)'!$F23:$CR23,0))),0) -> 253 | DB23: =IF($A23>0,IF(ISNA(MATCH(N$5,'Age profile (years)'!$F23:$CR23,0)),0,INDEX('Asset data'!$CX23:$GJ23,1,MATCH(N$5,'Age profile (years)'!$F23:$CR23,0))),0) -> 0 | DC23: =IF($A23>0,IF(ISNA(MATCH(O$5,'Age profile (years)'!$F23:$CR23,0)),0,INDEX('Asset data'!$CX23:$GJ23,1,MATCH(O$5,'Age profile (years)'!$F23:$CR23,0))),0) -> 0 | DD23: =IF($A23>0,IF(ISNA(MATCH(P$5,'Age profile (years)'!$F23:$CR23,0)),0,INDEX('Asset data'!$CX23:$GJ23,1,MATCH(P$5,'Age profile (years)'!$F23:$CR23,0))),0) -> 24 | DE23: =IF($A23>0,IF(ISNA(MATCH(Q$5,'Age profile (years)'!$F23:$CR23,0)),0,INDEX('Asset data'!$CX23:$GJ23,1,MATCH(Q$5,'Age profile (years)'!$F23:$CR23,0))),0) -> 22 | DF23: =IF($A23>0,IF(ISNA(MATCH(R$5,'Age profile (years)'!$F23:$CR23,0)),0,INDEX('Asset data'!$CX23:$GJ23,1,MATCH(R$5,'Age profile (years)'!$F23:$CR23,0))),0) -> 0 | DG23: =IF($A23>0,IF(ISNA(MATCH(S$5,'Age profile (years)'!$F23:$CR23,0)),0,INDEX('Asset data'!$CX23:$GJ23,1,MATCH(S$5,'Age profile (years)'!$F23:$CR23,0))),0) -> 167 | DH23: =IF($A23>0,IF(ISNA(MATCH(T$5,'Age profile (years)'!$F23:$CR23,0)),0,INDEX('Asset data'!$CX23:$GJ23,1,MATCH(T$5,'Age profile (years)'!$F23:$CR23,0))),0) -> 0 | DI23: =IF($A23>0,IF(ISNA(MATCH(U$5,'Age profile (years)'!$F23:$CR23,0)),0,INDEX('Asset data'!$CX23:$GJ23,1,MATCH(U$5,'Age profile (years)'!$F23:$CR23,0))),0) -> 0 | DJ23: =IF($A23>0,IF(ISNA(MATCH(V$5,'Age profile (years)'!$F23:$CR23,0)),0,INDEX('Asset data'!$CX23:$GJ23,1,MATCH(V$5,'Age profile (years)'!$F23:$CR23,0))),0) -> 0 | DK23: =IF($A23>0,IF(ISNA(MATCH(W$5,'Age profile (years)'!$F23:$CR23,0)),0,INDEX('Asset data'!$CX23:$GJ23,1,MATCH(W$5,'Age profile (years)'!$F23:$CR23,0))),0) -> 155 | DL23: =IF($A23>0,IF(ISNA(MATCH(X$5,'Age profile (years)'!$F23:$CR23,0)),0,INDEX('Asset data'!$CX23:$GJ23,1,MATCH(X$5,'Age profile (years)'!$F23:$CR23,0))),0) -> 0 | DM23: =IF($A23>0,IF(ISNA(MATCH(Y$5,'Age profile (years)'!$F23:$CR23,0)),0,INDEX('Asset data'!$CX23:$GJ23,1,MATCH(Y$5,'Age profile (years)'!$F23:$CR23,0))),0) -> 0 | DN23: =IF($A23>0,IF(ISNA(MATCH(Z$5,'Age profile (years)'!$F23:$CR23,0)),0,INDEX('Asset data'!$CX23:$GJ23,1,MATCH(Z$5,'Age profile (years)'!$F23:$CR23,0))),0) -> 0 | DO23: =IF($A23>0,IF(ISNA(MATCH(AA$5,'Age profile (years)'!$F23:$CR23,0)),0,INDEX('Asset data'!$CX23:$GJ23,1,MATCH(AA$5,'Age profile (years)'!$F23:$CR23,0))),0) -> 0 | DP23: =IF($A23>0,IF(ISNA(MATCH(AB$5,'Age profile (years)'!$F23:$CR23,0)),0,INDEX('Asset data'!$CX23:$GJ23,1,MATCH(AB$5,'Age profile (years)'!$F23:$CR23,0))),0) -> 0 | DQ23: =IF($A23>0,IF(ISNA(MATCH(AC$5,'Age profile (years)'!$F23:$CR23,0)),0,INDEX('Asset data'!$CX23:$GJ23,1,MATCH(AC$5,'Age profile (years)'!$F23:$CR23,0))),0) -> 0 | DR23: =IF($A23>0,IF(ISNA(MATCH(AD$5,'Age profile (years)'!$F23:$CR23,0)),0,INDEX('Asset data'!$CX23:$GJ23,1,MATCH(AD$5,'Age profile (years)'!$F23:$CR23,0))),0) -> 17 | DS23: =IF($A23>0,IF(ISNA(MATCH(AE$5,'Age profile (years)'!$F23:$CR23,0)),0,INDEX('Asset data'!$CX23:$GJ23,1,MATCH(AE$5,'Age profile (years)'!$F23:$CR23,0))),0) -> 0 | DT23: =IF($A23>0,IF(ISNA(MATCH(AF$5,'Age profile (years)'!$F23:$CR23,0)),0,INDEX('Asset data'!$CX23:$GJ23,1,MATCH(AF$5,'Age profile (years)'!$F23:$CR23,0))),0) -> 528 | DU23: =IF($A23>0,IF(ISNA(MATCH(AG$5,'Age profile (years)'!$F23:$CR23,0)),0,INDEX('Asset data'!$CX23:$GJ23,1,MATCH(AG$5,'Age profile (years)'!$F23:$CR23,0))),0) -> 0 | DV23: =IF($A23>0,IF(ISNA(MATCH(AH$5,'Age profile (years)'!$F23:$CR23,0)),0,INDEX('Asset data'!$CX23:$GJ23,1,MATCH(AH$5,'Age profile (years)'!$F23:$CR23,0))),0) -> 74 | DW23: =IF($A23>0,IF(ISNA(MATCH(AI$5,'Age profile (years)'!$F23:$CR23,0)),0,INDEX('Asset data'!$CX23:$GJ23,1,MATCH(AI$5,'Age profile (years)'!$F23:$CR23,0))),0) -> 0 | DX23: =IF($A23>0,IF(ISNA(MATCH(AJ$5,'Age profile (years)'!$F23:$CR23,0)),0,INDEX('Asset data'!$CX23:$GJ23,1,MATCH(AJ$5,'Age profile (years)'!$F23:$CR23,0))),0) -> 0 | DY23: =IF($A23>0,IF(ISNA(MATCH(AK$5,'Age profile (years)'!$F23:$CR23,0)),0,INDEX('Asset data'!$CX23:$GJ23,1,MATCH(AK$5,'Age profile (years)'!$F23:$CR23,0))),0) -> 0 | DZ23: =IF($A23>0,IF(ISNA(MATCH(AL$5,'Age profile (years)'!$F23:$CR23,0)),0,INDEX('Asset data'!$CX23:$GJ23,1,MATCH(AL$5,'Age profile (years)'!$F23:$CR23,0))),0) -> 0 | EA23: =IF($A23>0,IF(ISNA(MATCH(AM$5,'Age profile (years)'!$F23:$CR23,0)),0,INDEX('Asset data'!$CX23:$GJ23,1,MATCH(AM$5,'Age profile (years)'!$F23:$CR23,0))),0) -> 120 | EB23: =IF($A23>0,IF(ISNA(MATCH(AN$5,'Age profile (years)'!$F23:$CR23,0)),0,INDEX('Asset data'!$CX23:$GJ23,1,MATCH(AN$5,'Age profile (years)'!$F23:$CR23,0))),0) -> 39 | EC23: =IF($A23>0,IF(ISNA(MATCH(AO$5,'Age profile (years)'!$F23:$CR23,0)),0,INDEX('Asset data'!$CX23:$GJ23,1,MATCH(AO$5,'Age profile (years)'!$F23:$CR23,0))),0) -> 4 | ED23: =IF($A23>0,IF(ISNA(MATCH(AP$5,'Age profile (years)'!$F23:$CR23,0)),0,INDEX('Asset data'!$CX23:$GJ23,1,MATCH(AP$5,'Age profile (years)'!$F23:$CR23,0))),0) -> 0 | EE23: =IF($A23>0,IF(ISNA(MATCH(AQ$5,'Age profile (years)'!$F23:$CR23,0)),0,INDEX('Asset data'!$CX23:$GJ23,1,MATCH(AQ$5,'Age profile (years)'!$F23:$CR23,0))),0) -> 0 | EF23: =IF($A23>0,IF(ISNA(MATCH(AR$5,'Age profile (years)'!$F23:$CR23,0)),0,INDEX('Asset data'!$CX23:$GJ23,1,MATCH(AR$5,'Age profile (years)'!$F23:$CR23,0))),0) -> 297 | EG23: =IF($A23>0,IF(ISNA(MATCH(AS$5,'Age profile (years)'!$F23:$CR23,0)),0,INDEX('Asset data'!$CX23:$GJ23,1,MATCH(AS$5,'Age profile (years)'!$F23:$CR23,0))),0) -> 0 | EH23: =IF($A23>0,IF(ISNA(MATCH(AT$5,'Age profile (years)'!$F23:$CR23,0)),0,INDEX('Asset data'!$CX23:$GJ23,1,MATCH(AT$5,'Age profile (years)'!$F23:$CR23,0))),0) -> 0 | EI23: =IF($A23>0,IF(ISNA(MATCH(AU$5,'Age profile (years)'!$F23:$CR23,0)),0,INDEX('Asset data'!$CX23:$GJ23,1,MATCH(AU$5,'Age profile (years)'!$F23:$CR23,0))),0) -> 0 | EJ23: =IF($A23>0,IF(ISNA(MATCH(AV$5,'Age profile (years)'!$F23:$CR23,0)),0,INDEX('Asset data'!$CX23:$GJ23,1,MATCH(AV$5,'Age profile (years)'!$F23:$CR23,0))),0) -> 5 | EK23: =IF($A23>0,IF(ISNA(MATCH(AW$5,'Age profile (years)'!$F23:$CR23,0)),0,INDEX('Asset data'!$CX23:$GJ23,1,MATCH(AW$5,'Age profile (years)'!$F23:$CR23,0))),0) -> 0 | EL23: =IF($A23>0,IF(ISNA(MATCH(AX$5,'Age profile (years)'!$F23:$CR23,0)),0,INDEX('Asset data'!$CX23:$GJ23,1,MATCH(AX$5,'Age profile (years)'!$F23:$CR23,0))),0) -> 0 | EM23: =IF($A23>0,IF(ISNA(MATCH(AY$5,'Age profile (years)'!$F23:$CR23,0)),0,INDEX('Asset data'!$CX23:$GJ23,1,MATCH(AY$5,'Age profile (years)'!$F23:$CR23,0))),0) -> 0 | EN23: =IF($A23>0,IF(ISNA(MATCH(AZ$5,'Age profile (years)'!$F23:$CR23,0)),0,INDEX('Asset data'!$CX23:$GJ23,1,MATCH(AZ$5,'Age profile (years)'!$F23:$CR23,0))),0) -> 0 | EO23: =IF($A23>0,IF(ISNA(MATCH(BA$5,'Age profile (years)'!$F23:$CR23,0)),0,INDEX('Asset data'!$CX23:$GJ23,1,MATCH(BA$5,'Age profile (years)'!$F23:$CR23,0))),0) -> 0 | EP23: =IF($A23>0,IF(ISNA(MATCH(BB$5,'Age profile (years)'!$F23:$CR23,0)),0,INDEX('Asset data'!$CX23:$GJ23,1,MATCH(BB$5,'Age profile (years)'!$F23:$CR23,0))),0) -> 0 | EQ23: =IF($A23>0,IF(ISNA(MATCH(BC$5,'Age profile (years)'!$F23:$CR23,0)),0,INDEX('Asset data'!$CX23:$GJ23,1,MATCH(BC$5,'Age profile (years)'!$F23:$CR23,0))),0) -> 0 | ER23: =IF($A23>0,IF(ISNA(MATCH(BD$5,'Age profile (years)'!$F23:$CR23,0)),0,INDEX('Asset data'!$CX23:$GJ23,1,MATCH(BD$5,'Age profile (years)'!$F23:$CR23,0))),0) -> 0 | ES23: =IF($A23>0,IF(ISNA(MATCH(BE$5,'Age profile (years)'!$F23:$CR23,0)),0,INDEX('Asset data'!$CX23:$GJ23,1,MATCH(BE$5,'Age profile (years)'!$F23:$CR23,0))),0) -> 0 | ET23: =IF($A23>0,IF(ISNA(MATCH(BF$5,'Age profile (years)'!$F23:$CR23,0)),0,INDEX('Asset data'!$CX23:$GJ23,1,MATCH(BF$5,'Age profile (years)'!$F23:$CR23,0))),0) -> 0 | EU23: =IF($A23>0,IF(ISNA(MATCH(BG$5,'Age profile (years)'!$F23:$CR23,0)),0,INDEX('Asset data'!$CX23:$GJ23,1,MATCH(BG$5,'Age profile (years)'!$F23:$CR23,0))),0) -> 0 | EV23: =IF($A23>0,IF(ISNA(MATCH(BH$5,'Age profile (years)'!$F23:$CR23,0)),0,INDEX('Asset data'!$CX23:$GJ23,1,MATCH(BH$5,'Age profile (years)'!$F23:$CR23,0))),0) -> 0 | EW23: =IF($A23>0,IF(ISNA(MATCH(BI$5,'Age profile (years)'!$F23:$CR23,0)),0,INDEX('Asset data'!$CX23:$GJ23,1,MATCH(BI$5,'Age profile (years)'!$F23:$CR23,0))),0) -> 0 | EX23: =IF($A23>0,IF(ISNA(MATCH(BJ$5,'Age profile (years)'!$F23:$CR23,0)),0,INDEX('Asset data'!$CX23:$GJ23,1,MATCH(BJ$5,'Age profile (years)'!$F23:$CR23,0))),0) -> 0 | EY23: =IF($A23>0,IF(ISNA(MATCH(BK$5,'Age profile (years)'!$F23:$CR23,0)),0,INDEX('Asset data'!$CX23:$GJ23,1,MATCH(BK$5,'Age profile (years)'!$F23:$CR23,0))),0) -> 3 | EZ23: =IF($A23>0,IF(ISNA(MATCH(BL$5,'Age profile (years)'!$F23:$CR23,0)),0,INDEX('Asset data'!$CX23:$GJ23,1,MATCH(BL$5,'Age profile (years)'!$F23:$CR23,0))),0) -> 0 | FA23: =IF($A23>0,IF(ISNA(MATCH(BM$5,'Age profile (years)'!$F23:$CR23,0)),0,INDEX('Asset data'!$CX23:$GJ23,1,MATCH(BM$5,'Age profile (years)'!$F23:$CR23,0))),0) -> 0 | FB23: =IF($A23>0,IF(ISNA(MATCH(BN$5,'Age profile (years)'!$F23:$CR23,0)),0,INDEX('Asset data'!$CX23:$GJ23,1,MATCH(BN$5,'Age profile (years)'!$F23:$CR23,0))),0) -> 0 | FC23: =IF($A23>0,IF(ISNA(MATCH(BO$5,'Age profile (years)'!$F23:$CR23,0)),0,INDEX('Asset data'!$CX23:$GJ23,1,MATCH(BO$5,'Age profile (years)'!$F23:$CR23,0))),0) -> 0 | FD23: =IF($A23>0,IF(ISNA(MATCH(BP$5,'Age profile (years)'!$F23:$CR23,0)),0,INDEX('Asset data'!$CX23:$GJ23,1,MATCH(BP$5,'Age profile (years)'!$F23:$CR23,0))),0) -> 0 | FE23: =IF($A23>0,IF(ISNA(MATCH(BQ$5,'Age profile (years)'!$F23:$CR23,0)),0,INDEX('Asset data'!$CX23:$GJ23,1,MATCH(BQ$5,'Age profile (years)'!$F23:$CR23,0))),0) -> 0 | FF23: =IF($A23>0,IF(ISNA(MATCH(BR$5,'Age profile (years)'!$F23:$CR23,0)),0,INDEX('Asset data'!$CX23:$GJ23,1,MATCH(BR$5,'Age profile (years)'!$F23:$CR23,0))),0) -> 0 | FG23: =IF($A23>0,IF(ISNA(MATCH(BS$5,'Age profile (years)'!$F23:$CR23,0)),0,INDEX('Asset data'!$CX23:$GJ23,1,MATCH(BS$5,'Age profile (years)'!$F23:$CR23,0))),0) -> 0 | FH23: =IF($A23>0,IF(ISNA(MATCH(BT$5,'Age profile (years)'!$F23:$CR23,0)),0,INDEX('Asset data'!$CX23:$GJ23,1,MATCH(BT$5,'Age profile (years)'!$F23:$CR23,0))),0) -> 0 | FI23: =IF($A23>0,IF(ISNA(MATCH(BU$5,'Age profile (years)'!$F23:$CR23,0)),0,INDEX('Asset data'!$CX23:$GJ23,1,MATCH(BU$5,'Age profile (years)'!$F23:$CR23,0))),0) -> 0 | FJ23: =IF($A23>0,IF(ISNA(MATCH(BV$5,'Age profile (years)'!$F23:$CR23,0)),0,INDEX('Asset data'!$CX23:$GJ23,1,MATCH(BV$5,'Age profile (years)'!$F23:$CR23,0))),0) -> 0 | FK23: =IF($A23>0,IF(ISNA(MATCH(BW$5,'Age profile (years)'!$F23:$CR23,0)),0,INDEX('Asset data'!$CX23:$GJ23,1,MATCH(BW$5,'Age profile (years)'!$F23:$CR23,0))),0) -> 0 | FL23: =IF($A23>0,IF(ISNA(MATCH(BX$5,'Age profile (years)'!$F23:$CR23,0)),0,INDEX('Asset data'!$CX23:$GJ23,1,MATCH(BX$5,'Age profile (years)'!$F23:$CR23,0))),0) -> 0 | FM23: =IF($A23>0,IF(ISNA(MATCH(BY$5,'Age profile (years)'!$F23:$CR23,0)),0,INDEX('Asset data'!$CX23:$GJ23,1,MATCH(BY$5,'Age profile (years)'!$F23:$CR23,0))),0) -> 0 | FN23: =IF($A23>0,IF(ISNA(MATCH(BZ$5,'Age profile (years)'!$F23:$CR23,0)),0,INDEX('Asset data'!$CX23:$GJ23,1,MATCH(BZ$5,'Age profile (years)'!$F23:$CR23,0))),0) -> 0 | FO23: =IF($A23>0,IF(ISNA(MATCH(CA$5,'Age profile (years)'!$F23:$CR23,0)),0,INDEX('Asset data'!$CX23:$GJ23,1,MATCH(CA$5,'Age profile (years)'!$F23:$CR23,0))),0) -> 0 | FP23: =IF($A23>0,IF(ISNA(MATCH(CB$5,'Age profile (years)'!$F23:$CR23,0)),0,INDEX('Asset data'!$CX23:$GJ23,1,MATCH(CB$5,'Age profile (years)'!$F23:$CR23,0))),0) -> 0 | FQ23: =IF($A23>0,IF(ISNA(MATCH(CC$5,'Age profile (years)'!$F23:$CR23,0)),0,INDEX('Asset data'!$CX23:$GJ23,1,MATCH(CC$5,'Age profile (years)'!$F23:$CR23,0))),0) -> 0 | FR23: =IF($A23>0,IF(ISNA(MATCH(CD$5,'Age profile (years)'!$F23:$CR23,0)),0,INDEX('Asset data'!$CX23:$GJ23,1,MATCH(CD$5,'Age profile (years)'!$F23:$CR23,0))),0) -> 0 | FS23: =IF($A23>0,IF(ISNA(MATCH(CE$5,'Age profile (years)'!$F23:$CR23,0)),0,INDEX('Asset data'!$CX23:$GJ23,1,MATCH(CE$5,'Age profile (years)'!$F23:$CR23,0))),0) -> 0 | FT23: =IF($A23>0,IF(ISNA(MATCH(CF$5,'Age profile (years)'!$F23:$CR23,0)),0,INDEX('Asset data'!$CX23:$GJ23,1,MATCH(CF$5,'Age profile (years)'!$F23:$CR23,0))),0) -> 0 | FU23: =IF($A23>0,IF(ISNA(MATCH(CG$5,'Age profile (years)'!$F23:$CR23,0)),0,INDEX('Asset data'!$CX23:$GJ23,1,MATCH(CG$5,'Age profile (years)'!$F23:$CR23,0))),0) -> 0 | FV23: =IF($A23>0,IF(ISNA(MATCH(CH$5,'Age profile (years)'!$F23:$CR23,0)),0,INDEX('Asset data'!$CX23:$GJ23,1,MATCH(CH$5,'Age profile (years)'!$F23:$CR23,0))),0) -> 0 | FW23: =IF($A23>0,IF(ISNA(MATCH(CI$5,'Age profile (years)'!$F23:$CR23,0)),0,INDEX('Asset data'!$CX23:$GJ23,1,MATCH(CI$5,'Age profile (years)'!$F23:$CR23,0))),0) -> 0 | FX23: =IF($A23>0,IF(ISNA(MATCH(CJ$5,'Age profile (years)'!$F23:$CR23,0)),0,INDEX('Asset data'!$CX23:$GJ23,1,MATCH(CJ$5,'Age profile (years)'!$F23:$CR23,0))),0) -> 0 | FY23: =IF($A23>0,IF(ISNA(MATCH(CK$5,'Age profile (years)'!$F23:$CR23,0)),0,INDEX('Asset data'!$CX23:$GJ23,1,MATCH(CK$5,'Age profile (years)'!$F23:$CR23,0))),0) -> 0 | FZ23: =IF($A23>0,IF(ISNA(MATCH(CL$5,'Age profile (years)'!$F23:$CR23,0)),0,INDEX('Asset data'!$CX23:$GJ23,1,MATCH(CL$5,'Age profile (years)'!$F23:$CR23,0))),0) -> 0 | GA23: =IF($A23>0,IF(ISNA(MATCH(CM$5,'Age profile (years)'!$F23:$CR23,0)),0,INDEX('Asset data'!$CX23:$GJ23,1,MATCH(CM$5,'Age profile (years)'!$F23:$CR23,0))),0) -> 0 | GB23: =IF($A23>0,IF(ISNA(MATCH(CN$5,'Age profile (years)'!$F23:$CR23,0)),0,INDEX('Asset data'!$CX23:$GJ23,1,MATCH(CN$5,'Age profile (years)'!$F23:$CR23,0))),0) -> 0 | GC23: =IF($A23>0,IF(ISNA(MATCH(CO$5,'Age profile (years)'!$F23:$CR23,0)),0,INDEX('Asset data'!$CX23:$GJ23,1,MATCH(CO$5,'Age profile (years)'!$F23:$CR23,0))),0) -> 0 | GD23: =IF($A23>0,IF(ISNA(MATCH(CP$5,'Age profile (years)'!$F23:$CR23,0)),0,INDEX('Asset data'!$CX23:$GJ23,1,MATCH(CP$5,'Age profile (years)'!$F23:$CR23,0))),0) -> 0 | GE23: =IF($A23>0,IF(ISNA(MATCH(CQ$5,'Age profile (years)'!$F23:$CR23,0)),0,INDEX('Asset data'!$CX23:$GJ23,1,MATCH(CQ$5,'Age profile (years)'!$F23:$CR23,0))),0) -> 0 | GF23: =IF($A23>0,IF(ISNA(MATCH(CR$5,'Age profile (years)'!$F23:$CR23,0)),0,INDEX('Asset data'!$CX23:$GJ23,1,MATCH(CR$5,'Age profile (years)'!$F23:$CR23,0))),0) -> 0
A24: ='Asset data'!A24 -> 0 | B24: ='Asset data'!B24 -> 0 | C24: ='Asset data'!C24 -> 0 | D24: ='Asset data'!E24 -> 0 | E24: ='Asset data'!G24 -> 0 | F24: =IF($A24>0,IF(ISNA(MATCH(F$5,'Age profile (years)'!$F24:$CR24,0)),0,INDEX('Asset data'!$J24:$CV24,1,MATCH(F$5,'Age profile (years)'!$F24:$CR24,0))),0) -> 0 | G24: =IF($A24>0,IF(ISNA(MATCH(G$5,'Age profile (years)'!$F24:$CR24,0)),0,INDEX('Asset data'!$J24:$CV24,1,MATCH(G$5,'Age profile (years)'!$F24:$CR24,0))),0) -> 0 | H24: =IF($A24>0,IF(ISNA(MATCH(H$5,'Age profile (years)'!$F24:$CR24,0)),0,INDEX('Asset data'!$J24:$CV24,1,MATCH(H$5,'Age profile (years)'!$F24:$CR24,0))),0) -> 0 | I24: =IF($A24>0,IF(ISNA(MATCH(I$5,'Age profile (years)'!$F24:$CR24,0)),0,INDEX('Asset data'!$J24:$CV24,1,MATCH(I$5,'Age profile (years)'!$F24:$CR24,0))),0) -> 0 | J24: =IF($A24>0,IF(ISNA(MATCH(J$5,'Age profile (years)'!$F24:$CR24,0)),0,INDEX('Asset data'!$J24:$CV24,1,MATCH(J$5,'Age profile (years)'!$F24:$CR24,0))),0) -> 0 | K24: =IF($A24>0,IF(ISNA(MATCH(K$5,'Age profile (years)'!$F24:$CR24,0)),0,INDEX('Asset data'!$J24:$CV24,1,MATCH(K$5,'Age profile (years)'!$F24:$CR24,0))),0) -> 0 | L24: =IF($A24>0,IF(ISNA(MATCH(L$5,'Age profile (years)'!$F24:$CR24,0)),0,INDEX('Asset data'!$J24:$CV24,1,MATCH(L$5,'Age profile (years)'!$F24:$CR24,0))),0) -> 0 | M24: =IF($A24>0,IF(ISNA(MATCH(M$5,'Age profile (years)'!$F24:$CR24,0)),0,INDEX('Asset data'!$J24:$CV24,1,MATCH(M$5,'Age profile (years)'!$F24:$CR24,0))),0) -> 0 | N24: =IF($A24>0,IF(ISNA(MATCH(N$5,'Age profile (years)'!$F24:$CR24,0)),0,INDEX('Asset data'!$J24:$CV24,1,MATCH(N$5,'Age profile (years)'!$F24:$CR24,0))),0) -> 0 | O24: =IF($A24>0,IF(ISNA(MATCH(O$5,'Age profile (years)'!$F24:$CR24,0)),0,INDEX('Asset data'!$J24:$CV24,1,MATCH(O$5,'Age profile (years)'!$F24:$CR24,0))),0) -> 0 | P24: =IF($A24>0,IF(ISNA(MATCH(P$5,'Age profile (years)'!$F24:$CR24,0)),0,INDEX('Asset data'!$J24:$CV24,1,MATCH(P$5,'Age profile (years)'!$F24:$CR24,0))),0) -> 0 | Q24: =IF($A24>0,IF(ISNA(MATCH(Q$5,'Age profile (years)'!$F24:$CR24,0)),0,INDEX('Asset data'!$J24:$CV24,1,MATCH(Q$5,'Age profile (years)'!$F24:$CR24,0))),0) -> 0 | R24: =IF($A24>0,IF(ISNA(MATCH(R$5,'Age profile (years)'!$F24:$CR24,0)),0,INDEX('Asset data'!$J24:$CV24,1,MATCH(R$5,'Age profile (years)'!$F24:$CR24,0))),0) -> 0 | S24: =IF($A24>0,IF(ISNA(MATCH(S$5,'Age profile (years)'!$F24:$CR24,0)),0,INDEX('Asset data'!$J24:$CV24,1,MATCH(S$5,'Age profile (years)'!$F24:$CR24,0))),0) -> 0 | T24: =IF($A24>0,IF(ISNA(MATCH(T$5,'Age profile (years)'!$F24:$CR24,0)),0,INDEX('Asset data'!$J24:$CV24,1,MATCH(T$5,'Age profile (years)'!$F24:$CR24,0))),0) -> 0 | U24: =IF($A24>0,IF(ISNA(MATCH(U$5,'Age profile (years)'!$F24:$CR24,0)),0,INDEX('Asset data'!$J24:$CV24,1,MATCH(U$5,'Age profile (years)'!$F24:$CR24,0))),0) -> 0 | V24: =IF($A24>0,IF(ISNA(MATCH(V$5,'Age profile (years)'!$F24:$CR24,0)),0,INDEX('Asset data'!$J24:$CV24,1,MATCH(V$5,'Age profile (years)'!$F24:$CR24,0))),0) -> 0 | W24: =IF($A24>0,IF(ISNA(MATCH(W$5,'Age profile (years)'!$F24:$CR24,0)),0,INDEX('Asset data'!$J24:$CV24,1,MATCH(W$5,'Age profile (years)'!$F24:$CR24,0))),0) -> 0 | X24: =IF($A24>0,IF(ISNA(MATCH(X$5,'Age profile (years)'!$F24:$CR24,0)),0,INDEX('Asset data'!$J24:$CV24,1,MATCH(X$5,'Age profile (years)'!$F24:$CR24,0))),0) -> 0 | Y24: =IF($A24>0,IF(ISNA(MATCH(Y$5,'Age profile (years)'!$F24:$CR24,0)),0,INDEX('Asset data'!$J24:$CV24,1,MATCH(Y$5,'Age profile (years)'!$F24:$CR24,0))),0) -> 0 | Z24: =IF($A24>0,IF(ISNA(MATCH(Z$5,'Age profile (years)'!$F24:$CR24,0)),0,INDEX('Asset data'!$J24:$CV24,1,MATCH(Z$5,'Age profile (years)'!$F24:$CR24,0))),0) -> 0 | AA24: =IF($A24>0,IF(ISNA(MATCH(AA$5,'Age profile (years)'!$F24:$CR24,0)),0,INDEX('Asset data'!$J24:$CV24,1,MATCH(AA$5,'Age profile (years)'!$F24:$CR24,0))),0) -> 0 | AB24: =IF($A24>0,IF(ISNA(MATCH(AB$5,'Age profile (years)'!$F24:$CR24,0)),0,INDEX('Asset data'!$J24:$CV24,1,MATCH(AB$5,'Age profile (years)'!$F24:$CR24,0))),0) -> 0 | AC24: =IF($A24>0,IF(ISNA(MATCH(AC$5,'Age profile (years)'!$F24:$CR24,0)),0,INDEX('Asset data'!$J24:$CV24,1,MATCH(AC$5,'Age profile (years)'!$F24:$CR24,0))),0) -> 0 | AD24: =IF($A24>0,IF(ISNA(MATCH(AD$5,'Age profile (years)'!$F24:$CR24,0)),0,INDEX('Asset data'!$J24:$CV24,1,MATCH(AD$5,'Age profile (years)'!$F24:$CR24,0))),0) -> 0 | AE24: =IF($A24>0,IF(ISNA(MATCH(AE$5,'Age profile (years)'!$F24:$CR24,0)),0,INDEX('Asset data'!$J24:$CV24,1,MATCH(AE$5,'Age profile (years)'!$F24:$CR24,0))),0) -> 0 | AF24: =IF($A24>0,IF(ISNA(MATCH(AF$5,'Age profile (years)'!$F24:$CR24,0)),0,INDEX('Asset data'!$J24:$CV24,1,MATCH(AF$5,'Age profile (years)'!$F24:$CR24,0))),0) -> 0 | AG24: =IF($A24>0,IF(ISNA(MATCH(AG$5,'Age profile (years)'!$F24:$CR24,0)),0,INDEX('Asset data'!$J24:$CV24,1,MATCH(AG$5,'Age profile (years)'!$F24:$CR24,0))),0) -> 0 | AH24: =IF($A24>0,IF(ISNA(MATCH(AH$5,'Age profile (years)'!$F24:$CR24,0)),0,INDEX('Asset data'!$J24:$CV24,1,MATCH(AH$5,'Age profile (years)'!$F24:$CR24,0))),0) -> 0 | AI24: =IF($A24>0,IF(ISNA(MATCH(AI$5,'Age profile (years)'!$F24:$CR24,0)),0,INDEX('Asset data'!$J24:$CV24,1,MATCH(AI$5,'Age profile (years)'!$F24:$CR24,0))),0) -> 0 | AJ24: =IF($A24>0,IF(ISNA(MATCH(AJ$5,'Age profile (years)'!$F24:$CR24,0)),0,INDEX('Asset data'!$J24:$CV24,1,MATCH(AJ$5,'Age profile (years)'!$F24:$CR24,0))),0) -> 0 | AK24: =IF($A24>0,IF(ISNA(MATCH(AK$5,'Age profile (years)'!$F24:$CR24,0)),0,INDEX('Asset data'!$J24:$CV24,1,MATCH(AK$5,'Age profile (years)'!$F24:$CR24,0))),0) -> 0 | AL24: =IF($A24>0,IF(ISNA(MATCH(AL$5,'Age profile (years)'!$F24:$CR24,0)),0,INDEX('Asset data'!$J24:$CV24,1,MATCH(AL$5,'Age profile (years)'!$F24:$CR24,0))),0) -> 0 | AM24: =IF($A24>0,IF(ISNA(MATCH(AM$5,'Age profile (years)'!$F24:$CR24,0)),0,INDEX('Asset data'!$J24:$CV24,1,MATCH(AM$5,'Age profile (years)'!$F24:$CR24,0))),0) -> 0 | AN24: =IF($A24>0,IF(ISNA(MATCH(AN$5,'Age profile (years)'!$F24:$CR24,0)),0,INDEX('Asset data'!$J24:$CV24,1,MATCH(AN$5,'Age profile (years)'!$F24:$CR24,0))),0) -> 0 | AO24: =IF($A24>0,IF(ISNA(MATCH(AO$5,'Age profile (years)'!$F24:$CR24,0)),0,INDEX('Asset data'!$J24:$CV24,1,MATCH(AO$5,'Age profile (years)'!$F24:$CR24,0))),0) -> 0 | AP24: =IF($A24>0,IF(ISNA(MATCH(AP$5,'Age profile (years)'!$F24:$CR24,0)),0,INDEX('Asset data'!$J24:$CV24,1,MATCH(AP$5,'Age profile (years)'!$F24:$CR24,0))),0) -> 0 | AQ24: =IF($A24>0,IF(ISNA(MATCH(AQ$5,'Age profile (years)'!$F24:$CR24,0)),0,INDEX('Asset data'!$J24:$CV24,1,MATCH(AQ$5,'Age profile (years)'!$F24:$CR24,0))),0) -> 0 | AR24: =IF($A24>0,IF(ISNA(MATCH(AR$5,'Age profile (years)'!$F24:$CR24,0)),0,INDEX('Asset data'!$J24:$CV24,1,MATCH(AR$5,'Age profile (years)'!$F24:$CR24,0))),0) -> 0 | AS24: =IF($A24>0,IF(ISNA(MATCH(AS$5,'Age profile (years)'!$F24:$CR24,0)),0,INDEX('Asset data'!$J24:$CV24,1,MATCH(AS$5,'Age profile (years)'!$F24:$CR24,0))),0) -> 0 | AT24: =IF($A24>0,IF(ISNA(MATCH(AT$5,'Age profile (years)'!$F24:$CR24,0)),0,INDEX('Asset data'!$J24:$CV24,1,MATCH(AT$5,'Age profile (years)'!$F24:$CR24,0))),0) -> 0 | AU24: =IF($A24>0,IF(ISNA(MATCH(AU$5,'Age profile (years)'!$F24:$CR24,0)),0,INDEX('Asset data'!$J24:$CV24,1,MATCH(AU$5,'Age profile (years)'!$F24:$CR24,0))),0) -> 0 | AV24: =IF($A24>0,IF(ISNA(MATCH(AV$5,'Age profile (years)'!$F24:$CR24,0)),0,INDEX('Asset data'!$J24:$CV24,1,MATCH(AV$5,'Age profile (years)'!$F24:$CR24,0))),0) -> 0 | AW24: =IF($A24>0,IF(ISNA(MATCH(AW$5,'Age profile (years)'!$F24:$CR24,0)),0,INDEX('Asset data'!$J24:$CV24,1,MATCH(AW$5,'Age profile (years)'!$F24:$CR24,0))),0) -> 0 | AX24: =IF($A24>0,IF(ISNA(MATCH(AX$5,'Age profile (years)'!$F24:$CR24,0)),0,INDEX('Asset data'!$J24:$CV24,1,MATCH(AX$5,'Age profile (years)'!$F24:$CR24,0))),0) -> 0 | AY24: =IF($A24>0,IF(ISNA(MATCH(AY$5,'Age profile (years)'!$F24:$CR24,0)),0,INDEX('Asset data'!$J24:$CV24,1,MATCH(AY$5,'Age profile (years)'!$F24:$CR24,0))),0) -> 0 | AZ24: =IF($A24>0,IF(ISNA(MATCH(AZ$5,'Age profile (years)'!$F24:$CR24,0)),0,INDEX('Asset data'!$J24:$CV24,1,MATCH(AZ$5,'Age profile (years)'!$F24:$CR24,0))),0) -> 0 | BA24: =IF($A24>0,IF(ISNA(MATCH(BA$5,'Age profile (years)'!$F24:$CR24,0)),0,INDEX('Asset data'!$J24:$CV24,1,MATCH(BA$5,'Age profile (years)'!$F24:$CR24,0))),0) -> 0 | BB24: =IF($A24>0,IF(ISNA(MATCH(BB$5,'Age profile (years)'!$F24:$CR24,0)),0,INDEX('Asset data'!$J24:$CV24,1,MATCH(BB$5,'Age profile (years)'!$F24:$CR24,0))),0) -> 0 | BC24: =IF($A24>0,IF(ISNA(MATCH(BC$5,'Age profile (years)'!$F24:$CR24,0)),0,INDEX('Asset data'!$J24:$CV24,1,MATCH(BC$5,'Age profile (years)'!$F24:$CR24,0))),0) -> 0 | BD24: =IF($A24>0,IF(ISNA(MATCH(BD$5,'Age profile (years)'!$F24:$CR24,0)),0,INDEX('Asset data'!$J24:$CV24,1,MATCH(BD$5,'Age profile (years)'!$F24:$CR24,0))),0) -> 0 | BE24: =IF($A24>0,IF(ISNA(MATCH(BE$5,'Age profile (years)'!$F24:$CR24,0)),0,INDEX('Asset data'!$J24:$CV24,1,MATCH(BE$5,'Age profile (years)'!$F24:$CR24,0))),0) -> 0 | BF24: =IF($A24>0,IF(ISNA(MATCH(BF$5,'Age profile (years)'!$F24:$CR24,0)),0,INDEX('Asset data'!$J24:$CV24,1,MATCH(BF$5,'Age profile (years)'!$F24:$CR24,0))),0) -> 0 | BG24: =IF($A24>0,IF(ISNA(MATCH(BG$5,'Age profile (years)'!$F24:$CR24,0)),0,INDEX('Asset data'!$J24:$CV24,1,MATCH(BG$5,'Age profile (years)'!$F24:$CR24,0))),0) -> 0 | BH24: =IF($A24>0,IF(ISNA(MATCH(BH$5,'Age profile (years)'!$F24:$CR24,0)),0,INDEX('Asset data'!$J24:$CV24,1,MATCH(BH$5,'Age profile (years)'!$F24:$CR24,0))),0) -> 0 | BI24: =IF($A24>0,IF(ISNA(MATCH(BI$5,'Age profile (years)'!$F24:$CR24,0)),0,INDEX('Asset data'!$J24:$CV24,1,MATCH(BI$5,'Age profile (years)'!$F24:$CR24,0))),0) -> 0 | BJ24: =IF($A24>0,IF(ISNA(MATCH(BJ$5,'Age profile (years)'!$F24:$CR24,0)),0,INDEX('Asset data'!$J24:$CV24,1,MATCH(BJ$5,'Age profile (years)'!$F24:$CR24,0))),0) -> 0 | BK24: =IF($A24>0,IF(ISNA(MATCH(BK$5,'Age profile (years)'!$F24:$CR24,0)),0,INDEX('Asset data'!$J24:$CV24,1,MATCH(BK$5,'Age profile (years)'!$F24:$CR24,0))),0) -> 0 | BL24: =IF($A24>0,IF(ISNA(MATCH(BL$5,'Age profile (years)'!$F24:$CR24,0)),0,INDEX('Asset data'!$J24:$CV24,1,MATCH(BL$5,'Age profile (years)'!$F24:$CR24,0))),0) -> 0 | BM24: =IF($A24>0,IF(ISNA(MATCH(BM$5,'Age profile (years)'!$F24:$CR24,0)),0,INDEX('Asset data'!$J24:$CV24,1,MATCH(BM$5,'Age profile (years)'!$F24:$CR24,0))),0) -> 0 | BN24: =IF($A24>0,IF(ISNA(MATCH(BN$5,'Age profile (years)'!$F24:$CR24,0)),0,INDEX('Asset data'!$J24:$CV24,1,MATCH(BN$5,'Age profile (years)'!$F24:$CR24,0))),0) -> 0 | BO24: =IF($A24>0,IF(ISNA(MATCH(BO$5,'Age profile (years)'!$F24:$CR24,0)),0,INDEX('Asset data'!$J24:$CV24,1,MATCH(BO$5,'Age profile (years)'!$F24:$CR24,0))),0) -> 0 | BP24: =IF($A24>0,IF(ISNA(MATCH(BP$5,'Age profile (years)'!$F24:$CR24,0)),0,INDEX('Asset data'!$J24:$CV24,1,MATCH(BP$5,'Age profile (years)'!$F24:$CR24,0))),0) -> 0 | BQ24: =IF($A24>0,IF(ISNA(MATCH(BQ$5,'Age profile (years)'!$F24:$CR24,0)),0,INDEX('Asset data'!$J24:$CV24,1,MATCH(BQ$5,'Age profile (years)'!$F24:$CR24,0))),0) -> 0 | BR24: =IF($A24>0,IF(ISNA(MATCH(BR$5,'Age profile (years)'!$F24:$CR24,0)),0,INDEX('Asset data'!$J24:$CV24,1,MATCH(BR$5,'Age profile (years)'!$F24:$CR24,0))),0) -> 0 | BS24: =IF($A24>0,IF(ISNA(MATCH(BS$5,'Age profile (years)'!$F24:$CR24,0)),0,INDEX('Asset data'!$J24:$CV24,1,MATCH(BS$5,'Age profile (years)'!$F24:$CR24,0))),0) -> 0 | BT24: =IF($A24>0,IF(ISNA(MATCH(BT$5,'Age profile (years)'!$F24:$CR24,0)),0,INDEX('Asset data'!$J24:$CV24,1,MATCH(BT$5,'Age profile (years)'!$F24:$CR24,0))),0) -> 0 | BU24: =IF($A24>0,IF(ISNA(MATCH(BU$5,'Age profile (years)'!$F24:$CR24,0)),0,INDEX('Asset data'!$J24:$CV24,1,MATCH(BU$5,'Age profile (years)'!$F24:$CR24,0))),0) -> 0 | BV24: =IF($A24>0,IF(ISNA(MATCH(BV$5,'Age profile (years)'!$F24:$CR24,0)),0,INDEX('Asset data'!$J24:$CV24,1,MATCH(BV$5,'Age profile (years)'!$F24:$CR24,0))),0) -> 0 | BW24: =IF($A24>0,IF(ISNA(MATCH(BW$5,'Age profile (years)'!$F24:$CR24,0)),0,INDEX('Asset data'!$J24:$CV24,1,MATCH(BW$5,'Age profile (years)'!$F24:$CR24,0))),0) -> 0 | BX24: =IF($A24>0,IF(ISNA(MATCH(BX$5,'Age profile (years)'!$F24:$CR24,0)),0,INDEX('Asset data'!$J24:$CV24,1,MATCH(BX$5,'Age profile (years)'!$F24:$CR24,0))),0) -> 0 | BY24: =IF($A24>0,IF(ISNA(MATCH(BY$5,'Age profile (years)'!$F24:$CR24,0)),0,INDEX('Asset data'!$J24:$CV24,1,MATCH(BY$5,'Age profile (years)'!$F24:$CR24,0))),0) -> 0 | BZ24: =IF($A24>0,IF(ISNA(MATCH(BZ$5,'Age profile (years)'!$F24:$CR24,0)),0,INDEX('Asset data'!$J24:$CV24,1,MATCH(BZ$5,'Age profile (years)'!$F24:$CR24,0))),0) -> 0 | CA24: =IF($A24>0,IF(ISNA(MATCH(CA$5,'Age profile (years)'!$F24:$CR24,0)),0,INDEX('Asset data'!$J24:$CV24,1,MATCH(CA$5,'Age profile (years)'!$F24:$CR24,0))),0) -> 0 | CB24: =IF($A24>0,IF(ISNA(MATCH(CB$5,'Age profile (years)'!$F24:$CR24,0)),0,INDEX('Asset data'!$J24:$CV24,1,MATCH(CB$5,'Age profile (years)'!$F24:$CR24,0))),0) -> 0 | CC24: =IF($A24>0,IF(ISNA(MATCH(CC$5,'Age profile (years)'!$F24:$CR24,0)),0,INDEX('Asset data'!$J24:$CV24,1,MATCH(CC$5,'Age profile (years)'!$F24:$CR24,0))),0) -> 0 | CD24: =IF($A24>0,IF(ISNA(MATCH(CD$5,'Age profile (years)'!$F24:$CR24,0)),0,INDEX('Asset data'!$J24:$CV24,1,MATCH(CD$5,'Age profile (years)'!$F24:$CR24,0))),0) -> 0 | CE24: =IF($A24>0,IF(ISNA(MATCH(CE$5,'Age profile (years)'!$F24:$CR24,0)),0,INDEX('Asset data'!$J24:$CV24,1,MATCH(CE$5,'Age profile (years)'!$F24:$CR24,0))),0) -> 0 | CF24: =IF($A24>0,IF(ISNA(MATCH(CF$5,'Age profile (years)'!$F24:$CR24,0)),0,INDEX('Asset data'!$J24:$CV24,1,MATCH(CF$5,'Age profile (years)'!$F24:$CR24,0))),0) -> 0 | CG24: =IF($A24>0,IF(ISNA(MATCH(CG$5,'Age profile (years)'!$F24:$CR24,0)),0,INDEX('Asset data'!$J24:$CV24,1,MATCH(CG$5,'Age profile (years)'!$F24:$CR24,0))),0) -> 0 | CH24: =IF($A24>0,IF(ISNA(MATCH(CH$5,'Age profile (years)'!$F24:$CR24,0)),0,INDEX('Asset data'!$J24:$CV24,1,MATCH(CH$5,'Age profile (years)'!$F24:$CR24,0))),0) -> 0 | CI24: =IF($A24>0,IF(ISNA(MATCH(CI$5,'Age profile (years)'!$F24:$CR24,0)),0,INDEX('Asset data'!$J24:$CV24,1,MATCH(CI$5,'Age profile (years)'!$F24:$CR24,0))),0) -> 0 | CJ24: =IF($A24>0,IF(ISNA(MATCH(CJ$5,'Age profile (years)'!$F24:$CR24,0)),0,INDEX('Asset data'!$J24:$CV24,1,MATCH(CJ$5,'Age profile (years)'!$F24:$CR24,0))),0) -> 0 | CK24: =IF($A24>0,IF(ISNA(MATCH(CK$5,'Age profile (years)'!$F24:$CR24,0)),0,INDEX('Asset data'!$J24:$CV24,1,MATCH(CK$5,'Age profile (years)'!$F24:$CR24,0))),0) -> 0 | CL24: =IF($A24>0,IF(ISNA(MATCH(CL$5,'Age profile (years)'!$F24:$CR24,0)),0,INDEX('Asset data'!$J24:$CV24,1,MATCH(CL$5,'Age profile (years)'!$F24:$CR24,0))),0) -> 0 | CM24: =IF($A24>0,IF(ISNA(MATCH(CM$5,'Age profile (years)'!$F24:$CR24,0)),0,INDEX('Asset data'!$J24:$CV24,1,MATCH(CM$5,'Age profile (years)'!$F24:$CR24,0))),0) -> 0 | CN24: =IF($A24>0,IF(ISNA(MATCH(CN$5,'Age profile (years)'!$F24:$CR24,0)),0,INDEX('Asset data'!$J24:$CV24,1,MATCH(CN$5,'Age profile (years)'!$F24:$CR24,0))),0) -> 0 | CO24: =IF($A24>0,IF(ISNA(MATCH(CO$5,'Age profile (years)'!$F24:$CR24,0)),0,INDEX('Asset data'!$J24:$CV24,1,MATCH(CO$5,'Age profile (years)'!$F24:$CR24,0))),0) -> 0 | CP24: =IF($A24>0,IF(ISNA(MATCH(CP$5,'Age profile (years)'!$F24:$CR24,0)),0,INDEX('Asset data'!$J24:$CV24,1,MATCH(CP$5,'Age profile (years)'!$F24:$CR24,0))),0) -> 0 | CQ24: =IF($A24>0,IF(ISNA(MATCH(CQ$5,'Age profile (years)'!$F24:$CR24,0)),0,INDEX('Asset data'!$J24:$CV24,1,MATCH(CQ$5,'Age profile (years)'!$F24:$CR24,0))),0) -> 0 | CR24: =IF($A24>0,IF(ISNA(MATCH(CR$5,'Age profile (years)'!$F24:$CR24,0)),0,INDEX('Asset data'!$J24:$CV24,1,MATCH(CR$5,'Age profile (years)'!$F24:$CR24,0))),0) -> 0 | CT24: =IF($A24>0,IF(ISNA(MATCH(F$5,'Age profile (years)'!$F24:$CR24,0)),0,INDEX('Asset data'!$CX24:$GJ24,1,MATCH(F$5,'Age profile (years)'!$F24:$CR24,0))),0) -> 0 | CU24: =IF($A24>0,IF(ISNA(MATCH(G$5,'Age profile (years)'!$F24:$CR24,0)),0,INDEX('Asset data'!$CX24:$GJ24,1,MATCH(G$5,'Age profile (years)'!$F24:$CR24,0))),0) -> 0 | CV24: =IF($A24>0,IF(ISNA(MATCH(H$5,'Age profile (years)'!$F24:$CR24,0)),0,INDEX('Asset data'!$CX24:$GJ24,1,MATCH(H$5,'Age profile (years)'!$F24:$CR24,0))),0) -> 0 | CW24: =IF($A24>0,IF(ISNA(MATCH(I$5,'Age profile (years)'!$F24:$CR24,0)),0,INDEX('Asset data'!$CX24:$GJ24,1,MATCH(I$5,'Age profile (years)'!$F24:$CR24,0))),0) -> 0 | CX24: =IF($A24>0,IF(ISNA(MATCH(J$5,'Age profile (years)'!$F24:$CR24,0)),0,INDEX('Asset data'!$CX24:$GJ24,1,MATCH(J$5,'Age profile (years)'!$F24:$CR24,0))),0) -> 0 | CY24: =IF($A24>0,IF(ISNA(MATCH(K$5,'Age profile (years)'!$F24:$CR24,0)),0,INDEX('Asset data'!$CX24:$GJ24,1,MATCH(K$5,'Age profile (years)'!$F24:$CR24,0))),0) -> 0 | CZ24: =IF($A24>0,IF(ISNA(MATCH(L$5,'Age profile (years)'!$F24:$CR24,0)),0,INDEX('Asset data'!$CX24:$GJ24,1,MATCH(L$5,'Age profile (years)'!$F24:$CR24,0))),0) -> 0 | DA24: =IF($A24>0,IF(ISNA(MATCH(M$5,'Age profile (years)'!$F24:$CR24,0)),0,INDEX('Asset data'!$CX24:$GJ24,1,MATCH(M$5,'Age profile (years)'!$F24:$CR24,0))),0) -> 0 | DB24: =IF($A24>0,IF(ISNA(MATCH(N$5,'Age profile (years)'!$F24:$CR24,0)),0,INDEX('Asset data'!$CX24:$GJ24,1,MATCH(N$5,'Age profile (years)'!$F24:$CR24,0))),0) -> 0 | DC24: =IF($A24>0,IF(ISNA(MATCH(O$5,'Age profile (years)'!$F24:$CR24,0)),0,INDEX('Asset data'!$CX24:$GJ24,1,MATCH(O$5,'Age profile (years)'!$F24:$CR24,0))),0) -> 0 | DD24: =IF($A24>0,IF(ISNA(MATCH(P$5,'Age profile (years)'!$F24:$CR24,0)),0,INDEX('Asset data'!$CX24:$GJ24,1,MATCH(P$5,'Age profile (years)'!$F24:$CR24,0))),0) -> 0 | DE24: =IF($A24>0,IF(ISNA(MATCH(Q$5,'Age profile (years)'!$F24:$CR24,0)),0,INDEX('Asset data'!$CX24:$GJ24,1,MATCH(Q$5,'Age profile (years)'!$F24:$CR24,0))),0) -> 0 | DF24: =IF($A24>0,IF(ISNA(MATCH(R$5,'Age profile (years)'!$F24:$CR24,0)),0,INDEX('Asset data'!$CX24:$GJ24,1,MATCH(R$5,'Age profile (years)'!$F24:$CR24,0))),0) -> 0 | DG24: =IF($A24>0,IF(ISNA(MATCH(S$5,'Age profile (years)'!$F24:$CR24,0)),0,INDEX('Asset data'!$CX24:$GJ24,1,MATCH(S$5,'Age profile (years)'!$F24:$CR24,0))),0) -> 0 | DH24: =IF($A24>0,IF(ISNA(MATCH(T$5,'Age profile (years)'!$F24:$CR24,0)),0,INDEX('Asset data'!$CX24:$GJ24,1,MATCH(T$5,'Age profile (years)'!$F24:$CR24,0))),0) -> 0 | DI24: =IF($A24>0,IF(ISNA(MATCH(U$5,'Age profile (years)'!$F24:$CR24,0)),0,INDEX('Asset data'!$CX24:$GJ24,1,MATCH(U$5,'Age profile (years)'!$F24:$CR24,0))),0) -> 0 | DJ24: =IF($A24>0,IF(ISNA(MATCH(V$5,'Age profile (years)'!$F24:$CR24,0)),0,INDEX('Asset data'!$CX24:$GJ24,1,MATCH(V$5,'Age profile (years)'!$F24:$CR24,0))),0) -> 0 | DK24: =IF($A24>0,IF(ISNA(MATCH(W$5,'Age profile (years)'!$F24:$CR24,0)),0,INDEX('Asset data'!$CX24:$GJ24,1,MATCH(W$5,'Age profile (years)'!$F24:$CR24,0))),0) -> 0 | DL24: =IF($A24>0,IF(ISNA(MATCH(X$5,'Age profile (years)'!$F24:$CR24,0)),0,INDEX('Asset data'!$CX24:$GJ24,1,MATCH(X$5,'Age profile (years)'!$F24:$CR24,0))),0) -> 0 | DM24: =IF($A24>0,IF(ISNA(MATCH(Y$5,'Age profile (years)'!$F24:$CR24,0)),0,INDEX('Asset data'!$CX24:$GJ24,1,MATCH(Y$5,'Age profile (years)'!$F24:$CR24,0))),0) -> 0 | DN24: =IF($A24>0,IF(ISNA(MATCH(Z$5,'Age profile (years)'!$F24:$CR24,0)),0,INDEX('Asset data'!$CX24:$GJ24,1,MATCH(Z$5,'Age profile (years)'!$F24:$CR24,0))),0) -> 0 | DO24: =IF($A24>0,IF(ISNA(MATCH(AA$5,'Age profile (years)'!$F24:$CR24,0)),0,INDEX('Asset data'!$CX24:$GJ24,1,MATCH(AA$5,'Age profile (years)'!$F24:$CR24,0))),0) -> 0 | DP24: =IF($A24>0,IF(ISNA(MATCH(AB$5,'Age profile (years)'!$F24:$CR24,0)),0,INDEX('Asset data'!$CX24:$GJ24,1,MATCH(AB$5,'Age profile (years)'!$F24:$CR24,0))),0) -> 0 | DQ24: =IF($A24>0,IF(ISNA(MATCH(AC$5,'Age profile (years)'!$F24:$CR24,0)),0,INDEX('Asset data'!$CX24:$GJ24,1,MATCH(AC$5,'Age profile (years)'!$F24:$CR24,0))),0) -> 0 | DR24: =IF($A24>0,IF(ISNA(MATCH(AD$5,'Age profile (years)'!$F24:$CR24,0)),0,INDEX('Asset data'!$CX24:$GJ24,1,MATCH(AD$5,'Age profile (years)'!$F24:$CR24,0))),0) -> 0 | DS24: =IF($A24>0,IF(ISNA(MATCH(AE$5,'Age profile (years)'!$F24:$CR24,0)),0,INDEX('Asset data'!$CX24:$GJ24,1,MATCH(AE$5,'Age profile (years)'!$F24:$CR24,0))),0) -> 0 | DT24: =IF($A24>0,IF(ISNA(MATCH(AF$5,'Age profile (years)'!$F24:$CR24,0)),0,INDEX('Asset data'!$CX24:$GJ24,1,MATCH(AF$5,'Age profile (years)'!$F24:$CR24,0))),0) -> 0 | DU24: =IF($A24>0,IF(ISNA(MATCH(AG$5,'Age profile (years)'!$F24:$CR24,0)),0,INDEX('Asset data'!$CX24:$GJ24,1,MATCH(AG$5,'Age profile (years)'!$F24:$CR24,0))),0) -> 0 | DV24: =IF($A24>0,IF(ISNA(MATCH(AH$5,'Age profile (years)'!$F24:$CR24,0)),0,INDEX('Asset data'!$CX24:$GJ24,1,MATCH(AH$5,'Age profile (years)'!$F24:$CR24,0))),0) -> 0 | DW24: =IF($A24>0,IF(ISNA(MATCH(AI$5,'Age profile (years)'!$F24:$CR24,0)),0,INDEX('Asset data'!$CX24:$GJ24,1,MATCH(AI$5,'Age profile (years)'!$F24:$CR24,0))),0) -> 0 | DX24: =IF($A24>0,IF(ISNA(MATCH(AJ$5,'Age profile (years)'!$F24:$CR24,0)),0,INDEX('Asset data'!$CX24:$GJ24,1,MATCH(AJ$5,'Age profile (years)'!$F24:$CR24,0))),0) -> 0 | DY24: =IF($A24>0,IF(ISNA(MATCH(AK$5,'Age profile (years)'!$F24:$CR24,0)),0,INDEX('Asset data'!$CX24:$GJ24,1,MATCH(AK$5,'Age profile (years)'!$F24:$CR24,0))),0) -> 0 | DZ24: =IF($A24>0,IF(ISNA(MATCH(AL$5,'Age profile (years)'!$F24:$CR24,0)),0,INDEX('Asset data'!$CX24:$GJ24,1,MATCH(AL$5,'Age profile (years)'!$F24:$CR24,0))),0) -> 0 | EA24: =IF($A24>0,IF(ISNA(MATCH(AM$5,'Age profile (years)'!$F24:$CR24,0)),0,INDEX('Asset data'!$CX24:$GJ24,1,MATCH(AM$5,'Age profile (years)'!$F24:$CR24,0))),0) -> 0 | EB24: =IF($A24>0,IF(ISNA(MATCH(AN$5,'Age profile (years)'!$F24:$CR24,0)),0,INDEX('Asset data'!$CX24:$GJ24,1,MATCH(AN$5,'Age profile (years)'!$F24:$CR24,0))),0) -> 0 | EC24: =IF($A24>0,IF(ISNA(MATCH(AO$5,'Age profile (years)'!$F24:$CR24,0)),0,INDEX('Asset data'!$CX24:$GJ24,1,MATCH(AO$5,'Age profile (years)'!$F24:$CR24,0))),0) -> 0 | ED24: =IF($A24>0,IF(ISNA(MATCH(AP$5,'Age profile (years)'!$F24:$CR24,0)),0,INDEX('Asset data'!$CX24:$GJ24,1,MATCH(AP$5,'Age profile (years)'!$F24:$CR24,0))),0) -> 0 | EE24: =IF($A24>0,IF(ISNA(MATCH(AQ$5,'Age profile (years)'!$F24:$CR24,0)),0,INDEX('Asset data'!$CX24:$GJ24,1,MATCH(AQ$5,'Age profile (years)'!$F24:$CR24,0))),0) -> 0 | EF24: =IF($A24>0,IF(ISNA(MATCH(AR$5,'Age profile (years)'!$F24:$CR24,0)),0,INDEX('Asset data'!$CX24:$GJ24,1,MATCH(AR$5,'Age profile (years)'!$F24:$CR24,0))),0) -> 0 | EG24: =IF($A24>0,IF(ISNA(MATCH(AS$5,'Age profile (years)'!$F24:$CR24,0)),0,INDEX('Asset data'!$CX24:$GJ24,1,MATCH(AS$5,'Age profile (years)'!$F24:$CR24,0))),0) -> 0 | EH24: =IF($A24>0,IF(ISNA(MATCH(AT$5,'Age profile (years)'!$F24:$CR24,0)),0,INDEX('Asset data'!$CX24:$GJ24,1,MATCH(AT$5,'Age profile (years)'!$F24:$CR24,0))),0) -> 0 | EI24: =IF($A24>0,IF(ISNA(MATCH(AU$5,'Age profile (years)'!$F24:$CR24,0)),0,INDEX('Asset data'!$CX24:$GJ24,1,MATCH(AU$5,'Age profile (years)'!$F24:$CR24,0))),0) -> 0 | EJ24: =IF($A24>0,IF(ISNA(MATCH(AV$5,'Age profile (years)'!$F24:$CR24,0)),0,INDEX('Asset data'!$CX24:$GJ24,1,MATCH(AV$5,'Age profile (years)'!$F24:$CR24,0))),0) -> 0 | EK24: =IF($A24>0,IF(ISNA(MATCH(AW$5,'Age profile (years)'!$F24:$CR24,0)),0,INDEX('Asset data'!$CX24:$GJ24,1,MATCH(AW$5,'Age profile (years)'!$F24:$CR24,0))),0) -> 0 | EL24: =IF($A24>0,IF(ISNA(MATCH(AX$5,'Age profile (years)'!$F24:$CR24,0)),0,INDEX('Asset data'!$CX24:$GJ24,1,MATCH(AX$5,'Age profile (years)'!$F24:$CR24,0))),0) -> 0 | EM24: =IF($A24>0,IF(ISNA(MATCH(AY$5,'Age profile (years)'!$F24:$CR24,0)),0,INDEX('Asset data'!$CX24:$GJ24,1,MATCH(AY$5,'Age profile (years)'!$F24:$CR24,0))),0) -> 0 | EN24: =IF($A24>0,IF(ISNA(MATCH(AZ$5,'Age profile (years)'!$F24:$CR24,0)),0,INDEX('Asset data'!$CX24:$GJ24,1,MATCH(AZ$5,'Age profile (years)'!$F24:$CR24,0))),0) -> 0 | EO24: =IF($A24>0,IF(ISNA(MATCH(BA$5,'Age profile (years)'!$F24:$CR24,0)),0,INDEX('Asset data'!$CX24:$GJ24,1,MATCH(BA$5,'Age profile (years)'!$F24:$CR24,0))),0) -> 0 | EP24: =IF($A24>0,IF(ISNA(MATCH(BB$5,'Age profile (years)'!$F24:$CR24,0)),0,INDEX('Asset data'!$CX24:$GJ24,1,MATCH(BB$5,'Age profile (years)'!$F24:$CR24,0))),0) -> 0 | EQ24: =IF($A24>0,IF(ISNA(MATCH(BC$5,'Age profile (years)'!$F24:$CR24,0)),0,INDEX('Asset data'!$CX24:$GJ24,1,MATCH(BC$5,'Age profile (years)'!$F24:$CR24,0))),0) -> 0 | ER24: =IF($A24>0,IF(ISNA(MATCH(BD$5,'Age profile (years)'!$F24:$CR24,0)),0,INDEX('Asset data'!$CX24:$GJ24,1,MATCH(BD$5,'Age profile (years)'!$F24:$CR24,0))),0) -> 0 | ES24: =IF($A24>0,IF(ISNA(MATCH(BE$5,'Age profile (years)'!$F24:$CR24,0)),0,INDEX('Asset data'!$CX24:$GJ24,1,MATCH(BE$5,'Age profile (years)'!$F24:$CR24,0))),0) -> 0 | ET24: =IF($A24>0,IF(ISNA(MATCH(BF$5,'Age profile (years)'!$F24:$CR24,0)),0,INDEX('Asset data'!$CX24:$GJ24,1,MATCH(BF$5,'Age profile (years)'!$F24:$CR24,0))),0) -> 0 | EU24: =IF($A24>0,IF(ISNA(MATCH(BG$5,'Age profile (years)'!$F24:$CR24,0)),0,INDEX('Asset data'!$CX24:$GJ24,1,MATCH(BG$5,'Age profile (years)'!$F24:$CR24,0))),0) -> 0 | EV24: =IF($A24>0,IF(ISNA(MATCH(BH$5,'Age profile (years)'!$F24:$CR24,0)),0,INDEX('Asset data'!$CX24:$GJ24,1,MATCH(BH$5,'Age profile (years)'!$F24:$CR24,0))),0) -> 0 | EW24: =IF($A24>0,IF(ISNA(MATCH(BI$5,'Age profile (years)'!$F24:$CR24,0)),0,INDEX('Asset data'!$CX24:$GJ24,1,MATCH(BI$5,'Age profile (years)'!$F24:$CR24,0))),0) -> 0 | EX24: =IF($A24>0,IF(ISNA(MATCH(BJ$5,'Age profile (years)'!$F24:$CR24,0)),0,INDEX('Asset data'!$CX24:$GJ24,1,MATCH(BJ$5,'Age profile (years)'!$F24:$CR24,0))),0) -> 0 | EY24: =IF($A24>0,IF(ISNA(MATCH(BK$5,'Age profile (years)'!$F24:$CR24,0)),0,INDEX('Asset data'!$CX24:$GJ24,1,MATCH(BK$5,'Age profile (years)'!$F24:$CR24,0))),0) -> 0 | EZ24: =IF($A24>0,IF(ISNA(MATCH(BL$5,'Age profile (years)'!$F24:$CR24,0)),0,INDEX('Asset data'!$CX24:$GJ24,1,MATCH(BL$5,'Age profile (years)'!$F24:$CR24,0))),0) -> 0 | FA24: =IF($A24>0,IF(ISNA(MATCH(BM$5,'Age profile (years)'!$F24:$CR24,0)),0,INDEX('Asset data'!$CX24:$GJ24,1,MATCH(BM$5,'Age profile (years)'!$F24:$CR24,0))),0) -> 0 | FB24: =IF($A24>0,IF(ISNA(MATCH(BN$5,'Age profile (years)'!$F24:$CR24,0)),0,INDEX('Asset data'!$CX24:$GJ24,1,MATCH(BN$5,'Age profile (years)'!$F24:$CR24,0))),0) -> 0 | FC24: =IF($A24>0,IF(ISNA(MATCH(BO$5,'Age profile (years)'!$F24:$CR24,0)),0,INDEX('Asset data'!$CX24:$GJ24,1,MATCH(BO$5,'Age profile (years)'!$F24:$CR24,0))),0) -> 0 | FD24: =IF($A24>0,IF(ISNA(MATCH(BP$5,'Age profile (years)'!$F24:$CR24,0)),0,INDEX('Asset data'!$CX24:$GJ24,1,MATCH(BP$5,'Age profile (years)'!$F24:$CR24,0))),0) -> 0 | FE24: =IF($A24>0,IF(ISNA(MATCH(BQ$5,'Age profile (years)'!$F24:$CR24,0)),0,INDEX('Asset data'!$CX24:$GJ24,1,MATCH(BQ$5,'Age profile (years)'!$F24:$CR24,0))),0) -> 0 | FF24: =IF($A24>0,IF(ISNA(MATCH(BR$5,'Age profile (years)'!$F24:$CR24,0)),0,INDEX('Asset data'!$CX24:$GJ24,1,MATCH(BR$5,'Age profile (years)'!$F24:$CR24,0))),0) -> 0 | FG24: =IF($A24>0,IF(ISNA(MATCH(BS$5,'Age profile (years)'!$F24:$CR24,0)),0,INDEX('Asset data'!$CX24:$GJ24,1,MATCH(BS$5,'Age profile (years)'!$F24:$CR24,0))),0) -> 0 | FH24: =IF($A24>0,IF(ISNA(MATCH(BT$5,'Age profile (years)'!$F24:$CR24,0)),0,INDEX('Asset data'!$CX24:$GJ24,1,MATCH(BT$5,'Age profile (years)'!$F24:$CR24,0))),0) -> 0 | FI24: =IF($A24>0,IF(ISNA(MATCH(BU$5,'Age profile (years)'!$F24:$CR24,0)),0,INDEX('Asset data'!$CX24:$GJ24,1,MATCH(BU$5,'Age profile (years)'!$F24:$CR24,0))),0) -> 0 | FJ24: =IF($A24>0,IF(ISNA(MATCH(BV$5,'Age profile (years)'!$F24:$CR24,0)),0,INDEX('Asset data'!$CX24:$GJ24,1,MATCH(BV$5,'Age profile (years)'!$F24:$CR24,0))),0) -> 0 | FK24: =IF($A24>0,IF(ISNA(MATCH(BW$5,'Age profile (years)'!$F24:$CR24,0)),0,INDEX('Asset data'!$CX24:$GJ24,1,MATCH(BW$5,'Age profile (years)'!$F24:$CR24,0))),0) -> 0 | FL24: =IF($A24>0,IF(ISNA(MATCH(BX$5,'Age profile (years)'!$F24:$CR24,0)),0,INDEX('Asset data'!$CX24:$GJ24,1,MATCH(BX$5,'Age profile (years)'!$F24:$CR24,0))),0) -> 0 | FM24: =IF($A24>0,IF(ISNA(MATCH(BY$5,'Age profile (years)'!$F24:$CR24,0)),0,INDEX('Asset data'!$CX24:$GJ24,1,MATCH(BY$5,'Age profile (years)'!$F24:$CR24,0))),0) -> 0 | FN24: =IF($A24>0,IF(ISNA(MATCH(BZ$5,'Age profile (years)'!$F24:$CR24,0)),0,INDEX('Asset data'!$CX24:$GJ24,1,MATCH(BZ$5,'Age profile (years)'!$F24:$CR24,0))),0) -> 0 | FO24: =IF($A24>0,IF(ISNA(MATCH(CA$5,'Age profile (years)'!$F24:$CR24,0)),0,INDEX('Asset data'!$CX24:$GJ24,1,MATCH(CA$5,'Age profile (years)'!$F24:$CR24,0))),0) -> 0 | FP24: =IF($A24>0,IF(ISNA(MATCH(CB$5,'Age profile (years)'!$F24:$CR24,0)),0,INDEX('Asset data'!$CX24:$GJ24,1,MATCH(CB$5,'Age profile (years)'!$F24:$CR24,0))),0) -> 0 | FQ24: =IF($A24>0,IF(ISNA(MATCH(CC$5,'Age profile (years)'!$F24:$CR24,0)),0,INDEX('Asset data'!$CX24:$GJ24,1,MATCH(CC$5,'Age profile (years)'!$F24:$CR24,0))),0) -> 0 | FR24: =IF($A24>0,IF(ISNA(MATCH(CD$5,'Age profile (years)'!$F24:$CR24,0)),0,INDEX('Asset data'!$CX24:$GJ24,1,MATCH(CD$5,'Age profile (years)'!$F24:$CR24,0))),0) -> 0 | FS24: =IF($A24>0,IF(ISNA(MATCH(CE$5,'Age profile (years)'!$F24:$CR24,0)),0,INDEX('Asset data'!$CX24:$GJ24,1,MATCH(CE$5,'Age profile (years)'!$F24:$CR24,0))),0) -> 0 | FT24: =IF($A24>0,IF(ISNA(MATCH(CF$5,'Age profile (years)'!$F24:$CR24,0)),0,INDEX('Asset data'!$CX24:$GJ24,1,MATCH(CF$5,'Age profile (years)'!$F24:$CR24,0))),0) -> 0 | FU24: =IF($A24>0,IF(ISNA(MATCH(CG$5,'Age profile (years)'!$F24:$CR24,0)),0,INDEX('Asset data'!$CX24:$GJ24,1,MATCH(CG$5,'Age profile (years)'!$F24:$CR24,0))),0) -> 0 | FV24: =IF($A24>0,IF(ISNA(MATCH(CH$5,'Age profile (years)'!$F24:$CR24,0)),0,INDEX('Asset data'!$CX24:$GJ24,1,MATCH(CH$5,'Age profile (years)'!$F24:$CR24,0))),0) -> 0 | FW24: =IF($A24>0,IF(ISNA(MATCH(CI$5,'Age profile (years)'!$F24:$CR24,0)),0,INDEX('Asset data'!$CX24:$GJ24,1,MATCH(CI$5,'Age profile (years)'!$F24:$CR24,0))),0) -> 0 | FX24: =IF($A24>0,IF(ISNA(MATCH(CJ$5,'Age profile (years)'!$F24:$CR24,0)),0,INDEX('Asset data'!$CX24:$GJ24,1,MATCH(CJ$5,'Age profile (years)'!$F24:$CR24,0))),0) -> 0 | FY24: =IF($A24>0,IF(ISNA(MATCH(CK$5,'Age profile (years)'!$F24:$CR24,0)),0,INDEX('Asset data'!$CX24:$GJ24,1,MATCH(CK$5,'Age profile (years)'!$F24:$CR24,0))),0) -> 0 | FZ24: =IF($A24>0,IF(ISNA(MATCH(CL$5,'Age profile (years)'!$F24:$CR24,0)),0,INDEX('Asset data'!$CX24:$GJ24,1,MATCH(CL$5,'Age profile (years)'!$F24:$CR24,0))),0) -> 0 | GA24: =IF($A24>0,IF(ISNA(MATCH(CM$5,'Age profile (years)'!$F24:$CR24,0)),0,INDEX('Asset data'!$CX24:$GJ24,1,MATCH(CM$5,'Age profile (years)'!$F24:$CR24,0))),0) -> 0 | GB24: =IF($A24>0,IF(ISNA(MATCH(CN$5,'Age profile (years)'!$F24:$CR24,0)),0,INDEX('Asset data'!$CX24:$GJ24,1,MATCH(CN$5,'Age profile (years)'!$F24:$CR24,0))),0) -> 0 | GC24: =IF($A24>0,IF(ISNA(MATCH(CO$5,'Age profile (years)'!$F24:$CR24,0)),0,INDEX('Asset data'!$CX24:$GJ24,1,MATCH(CO$5,'Age profile (years)'!$F24:$CR24,0))),0) -> 0 | GD24: =IF($A24>0,IF(ISNA(MATCH(CP$5,'Age profile (years)'!$F24:$CR24,0)),0,INDEX('Asset data'!$CX24:$GJ24,1,MATCH(CP$5,'Age profile (years)'!$F24:$CR24,0))),0) -> 0 | GE24: =IF($A24>0,IF(ISNA(MATCH(CQ$5,'Age profile (years)'!$F24:$CR24,0)),0,INDEX('Asset data'!$CX24:$GJ24,1,MATCH(CQ$5,'Age profile (years)'!$F24:$CR24,0))),0) -> 0 | GF24: =IF($A24>0,IF(ISNA(MATCH(CR$5,'Age profile (years)'!$F24:$CR24,0)),0,INDEX('Asset data'!$CX24:$GJ24,1,MATCH(CR$5,'Age profile (years)'!$F24:$CR24,0))),0) -> 0
A25: ='Asset data'!A25 -> 2 | B25: ='Asset data'!B25 -> 0 | C25: ='Asset data'!C25 -> 0 | D25: ='Asset data'!E25 -> CB - All Voltages | E25: ='Asset data'!G25 -> 40.54518893 | F25: =IF($A25>0,IF(ISNA(MATCH(F$5,'Age profile (years)'!$F25:$CR25,0)),0,INDEX('Asset data'!$J25:$CV25,1,MATCH(F$5,'Age profile (years)'!$F25:$CR25,0))),0) -> 24 | G25: =IF($A25>0,IF(ISNA(MATCH(G$5,'Age profile (years)'!$F25:$CR25,0)),0,INDEX('Asset data'!$J25:$CV25,1,MATCH(G$5,'Age profile (years)'!$F25:$CR25,0))),0) -> 61 | H25: =IF($A25>0,IF(ISNA(MATCH(H$5,'Age profile (years)'!$F25:$CR25,0)),0,INDEX('Asset data'!$J25:$CV25,1,MATCH(H$5,'Age profile (years)'!$F25:$CR25,0))),0) -> 65 | I25: =IF($A25>0,IF(ISNA(MATCH(I$5,'Age profile (years)'!$F25:$CR25,0)),0,INDEX('Asset data'!$J25:$CV25,1,MATCH(I$5,'Age profile (years)'!$F25:$CR25,0))),0) -> 69 | J25: =IF($A25>0,IF(ISNA(MATCH(J$5,'Age profile (years)'!$F25:$CR25,0)),0,INDEX('Asset data'!$J25:$CV25,1,MATCH(J$5,'Age profile (years)'!$F25:$CR25,0))),0) -> 33 | K25: =IF($A25>0,IF(ISNA(MATCH(K$5,'Age profile (years)'!$F25:$CR25,0)),0,INDEX('Asset data'!$J25:$CV25,1,MATCH(K$5,'Age profile (years)'!$F25:$CR25,0))),0) -> 63 | L25: =IF($A25>0,IF(ISNA(MATCH(L$5,'Age profile (years)'!$F25:$CR25,0)),0,INDEX('Asset data'!$J25:$CV25,1,MATCH(L$5,'Age profile (years)'!$F25:$CR25,0))),0) -> 91 | M25: =IF($A25>0,IF(ISNA(MATCH(M$5,'Age profile (years)'!$F25:$CR25,0)),0,INDEX('Asset data'!$J25:$CV25,1,MATCH(M$5,'Age profile (years)'!$F25:$CR25,0))),0) -> 69 | N25: =IF($A25>0,IF(ISNA(MATCH(N$5,'Age profile (years)'!$F25:$CR25,0)),0,INDEX('Asset data'!$J25:$CV25,1,MATCH(N$5,'Age profile (years)'!$F25:$CR25,0))),0) -> 53 | O25: =IF($A25>0,IF(ISNA(MATCH(O$5,'Age profile (years)'!$F25:$CR25,0)),0,INDEX('Asset data'!$J25:$CV25,1,MATCH(O$5,'Age profile (years)'!$F25:$CR25,0))),0) -> 44 | P25: =IF($A25>0,IF(ISNA(MATCH(P$5,'Age profile (years)'!$F25:$CR25,0)),0,INDEX('Asset data'!$J25:$CV25,1,MATCH(P$5,'Age profile (years)'!$F25:$CR25,0))),0) -> 34 | Q25: =IF($A25>0,IF(ISNA(MATCH(Q$5,'Age profile (years)'!$F25:$CR25,0)),0,INDEX('Asset data'!$J25:$CV25,1,MATCH(Q$5,'Age profile (years)'!$F25:$CR25,0))),0) -> 7 | R25: =IF($A25>0,IF(ISNA(MATCH(R$5,'Age profile (years)'!$F25:$CR25,0)),0,INDEX('Asset data'!$J25:$CV25,1,MATCH(R$5,'Age profile (years)'!$F25:$CR25,0))),0) -> 14 | S25: =IF($A25>0,IF(ISNA(MATCH(S$5,'Age profile (years)'!$F25:$CR25,0)),0,INDEX('Asset data'!$J25:$CV25,1,MATCH(S$5,'Age profile (years)'!$F25:$CR25,0))),0) -> 16 | T25: =IF($A25>0,IF(ISNA(MATCH(T$5,'Age profile (years)'!$F25:$CR25,0)),0,INDEX('Asset data'!$J25:$CV25,1,MATCH(T$5,'Age profile (years)'!$F25:$CR25,0))),0) -> 10 | U25: =IF($A25>0,IF(ISNA(MATCH(U$5,'Age profile (years)'!$F25:$CR25,0)),0,INDEX('Asset data'!$J25:$CV25,1,MATCH(U$5,'Age profile (years)'!$F25:$CR25,0))),0) -> 10 | V25: =IF($A25>0,IF(ISNA(MATCH(V$5,'Age profile (years)'!$F25:$CR25,0)),0,INDEX('Asset data'!$J25:$CV25,1,MATCH(V$5,'Age profile (years)'!$F25:$CR25,0))),0) -> 20 | W25: =IF($A25>0,IF(ISNA(MATCH(W$5,'Age profile (years)'!$F25:$CR25,0)),0,INDEX('Asset data'!$J25:$CV25,1,MATCH(W$5,'Age profile (years)'!$F25:$CR25,0))),0) -> 28 | X25: =IF($A25>0,IF(ISNA(MATCH(X$5,'Age profile (years)'!$F25:$CR25,0)),0,INDEX('Asset data'!$J25:$CV25,1,MATCH(X$5,'Age profile (years)'!$F25:$CR25,0))),0) -> 4 | Y25: =IF($A25>0,IF(ISNA(MATCH(Y$5,'Age profile (years)'!$F25:$CR25,0)),0,INDEX('Asset data'!$J25:$CV25,1,MATCH(Y$5,'Age profile (years)'!$F25:$CR25,0))),0) -> 6 | Z25: =IF($A25>0,IF(ISNA(MATCH(Z$5,'Age profile (years)'!$F25:$CR25,0)),0,INDEX('Asset data'!$J25:$CV25,1,MATCH(Z$5,'Age profile (years)'!$F25:$CR25,0))),0) -> 11 | AA25: =IF($A25>0,IF(ISNA(MATCH(AA$5,'Age profile (years)'!$F25:$CR25,0)),0,INDEX('Asset data'!$J25:$CV25,1,MATCH(AA$5,'Age profile (years)'!$F25:$CR25,0))),0) -> 11 | AB25: =IF($A25>0,IF(ISNA(MATCH(AB$5,'Age profile (years)'!$F25:$CR25,0)),0,INDEX('Asset data'!$J25:$CV25,1,MATCH(AB$5,'Age profile (years)'!$F25:$CR25,0))),0) -> 13 | AC25: =IF($A25>0,IF(ISNA(MATCH(AC$5,'Age profile (years)'!$F25:$CR25,0)),0,INDEX('Asset data'!$J25:$CV25,1,MATCH(AC$5,'Age profile (years)'!$F25:$CR25,0))),0) -> 6 | AD25: =IF($A25>0,IF(ISNA(MATCH(AD$5,'Age profile (years)'!$F25:$CR25,0)),0,INDEX('Asset data'!$J25:$CV25,1,MATCH(AD$5,'Age profile (years)'!$F25:$CR25,0))),0) -> 2 | AE25: =IF($A25>0,IF(ISNA(MATCH(AE$5,'Age profile (years)'!$F25:$CR25,0)),0,INDEX('Asset data'!$J25:$CV25,1,MATCH(AE$5,'Age profile (years)'!$F25:$CR25,0))),0) -> 2 | AF25: =IF($A25>0,IF(ISNA(MATCH(AF$5,'Age profile (years)'!$F25:$CR25,0)),0,INDEX('Asset data'!$J25:$CV25,1,MATCH(AF$5,'Age profile (years)'!$F25:$CR25,0))),0) -> 25 | AG25: =IF($A25>0,IF(ISNA(MATCH(AG$5,'Age profile (years)'!$F25:$CR25,0)),0,INDEX('Asset data'!$J25:$CV25,1,MATCH(AG$5,'Age profile (years)'!$F25:$CR25,0))),0) -> 17 | AH25: =IF($A25>0,IF(ISNA(MATCH(AH$5,'Age profile (years)'!$F25:$CR25,0)),0,INDEX('Asset data'!$J25:$CV25,1,MATCH(AH$5,'Age profile (years)'!$F25:$CR25,0))),0) -> 21 | AI25: =IF($A25>0,IF(ISNA(MATCH(AI$5,'Age profile (years)'!$F25:$CR25,0)),0,INDEX('Asset data'!$J25:$CV25,1,MATCH(AI$5,'Age profile (years)'!$F25:$CR25,0))),0) -> 14 | AJ25: =IF($A25>0,IF(ISNA(MATCH(AJ$5,'Age profile (years)'!$F25:$CR25,0)),0,INDEX('Asset data'!$J25:$CV25,1,MATCH(AJ$5,'Age profile (years)'!$F25:$CR25,0))),0) -> 22 | AK25: =IF($A25>0,IF(ISNA(MATCH(AK$5,'Age profile (years)'!$F25:$CR25,0)),0,INDEX('Asset data'!$J25:$CV25,1,MATCH(AK$5,'Age profile (years)'!$F25:$CR25,0))),0) -> 10 | AL25: =IF($A25>0,IF(ISNA(MATCH(AL$5,'Age profile (years)'!$F25:$CR25,0)),0,INDEX('Asset data'!$J25:$CV25,1,MATCH(AL$5,'Age profile (years)'!$F25:$CR25,0))),0) -> 8 | AM25: =IF($A25>0,IF(ISNA(MATCH(AM$5,'Age profile (years)'!$F25:$CR25,0)),0,INDEX('Asset data'!$J25:$CV25,1,MATCH(AM$5,'Age profile (years)'!$F25:$CR25,0))),0) -> 5 | AN25: =IF($A25>0,IF(ISNA(MATCH(AN$5,'Age profile (years)'!$F25:$CR25,0)),0,INDEX('Asset data'!$J25:$CV25,1,MATCH(AN$5,'Age profile (years)'!$F25:$CR25,0))),0) -> 8 | AO25: =IF($A25>0,IF(ISNA(MATCH(AO$5,'Age profile (years)'!$F25:$CR25,0)),0,INDEX('Asset data'!$J25:$CV25,1,MATCH(AO$5,'Age profile (years)'!$F25:$CR25,0))),0) -> 2 | AP25: =IF($A25>0,IF(ISNA(MATCH(AP$5,'Age profile (years)'!$F25:$CR25,0)),0,INDEX('Asset data'!$J25:$CV25,1,MATCH(AP$5,'Age profile (years)'!$F25:$CR25,0))),0) -> 8 | AQ25: =IF($A25>0,IF(ISNA(MATCH(AQ$5,'Age profile (years)'!$F25:$CR25,0)),0,INDEX('Asset data'!$J25:$CV25,1,MATCH(AQ$5,'Age profile (years)'!$F25:$CR25,0))),0) -> 8 | AR25: =IF($A25>0,IF(ISNA(MATCH(AR$5,'Age profile (years)'!$F25:$CR25,0)),0,INDEX('Asset data'!$J25:$CV25,1,MATCH(AR$5,'Age profile (years)'!$F25:$CR25,0))),0) -> 2 | AS25: =IF($A25>0,IF(ISNA(MATCH(AS$5,'Age profile (years)'!$F25:$CR25,0)),0,INDEX('Asset data'!$J25:$CV25,1,MATCH(AS$5,'Age profile (years)'!$F25:$CR25,0))),0) -> 2 | AT25: =IF($A25>0,IF(ISNA(MATCH(AT$5,'Age profile (years)'!$F25:$CR25,0)),0,INDEX('Asset data'!$J25:$CV25,1,MATCH(AT$5,'Age profile (years)'!$F25:$CR25,0))),0) -> 13 | AU25: =IF($A25>0,IF(ISNA(MATCH(AU$5,'Age profile (years)'!$F25:$CR25,0)),0,INDEX('Asset data'!$J25:$CV25,1,MATCH(AU$5,'Age profile (years)'!$F25:$CR25,0))),0) -> 2 | AV25: =IF($A25>0,IF(ISNA(MATCH(AV$5,'Age profile (years)'!$F25:$CR25,0)),0,INDEX('Asset data'!$J25:$CV25,1,MATCH(AV$5,'Age profile (years)'!$F25:$CR25,0))),0) -> 0 | AW25: =IF($A25>0,IF(ISNA(MATCH(AW$5,'Age profile (years)'!$F25:$CR25,0)),0,INDEX('Asset data'!$J25:$CV25,1,MATCH(AW$5,'Age profile (years)'!$F25:$CR25,0))),0) -> 0 | AX25: =IF($A25>0,IF(ISNA(MATCH(AX$5,'Age profile (years)'!$F25:$CR25,0)),0,INDEX('Asset data'!$J25:$CV25,1,MATCH(AX$5,'Age profile (years)'!$F25:$CR25,0))),0) -> 0 | AY25: =IF($A25>0,IF(ISNA(MATCH(AY$5,'Age profile (years)'!$F25:$CR25,0)),0,INDEX('Asset data'!$J25:$CV25,1,MATCH(AY$5,'Age profile (years)'!$F25:$CR25,0))),0) -> 3 | AZ25: =IF($A25>0,IF(ISNA(MATCH(AZ$5,'Age profile (years)'!$F25:$CR25,0)),0,INDEX('Asset data'!$J25:$CV25,1,MATCH(AZ$5,'Age profile (years)'!$F25:$CR25,0))),0) -> 0 | BA25: =IF($A25>0,IF(ISNA(MATCH(BA$5,'Age profile (years)'!$F25:$CR25,0)),0,INDEX('Asset data'!$J25:$CV25,1,MATCH(BA$5,'Age profile (years)'!$F25:$CR25,0))),0) -> 3 | BB25: =IF($A25>0,IF(ISNA(MATCH(BB$5,'Age profile (years)'!$F25:$CR25,0)),0,INDEX('Asset data'!$J25:$CV25,1,MATCH(BB$5,'Age profile (years)'!$F25:$CR25,0))),0) -> 0 | BC25: =IF($A25>0,IF(ISNA(MATCH(BC$5,'Age profile (years)'!$F25:$CR25,0)),0,INDEX('Asset data'!$J25:$CV25,1,MATCH(BC$5,'Age profile (years)'!$F25:$CR25,0))),0) -> 0 | BD25: =IF($A25>0,IF(ISNA(MATCH(BD$5,'Age profile (years)'!$F25:$CR25,0)),0,INDEX('Asset data'!$J25:$CV25,1,MATCH(BD$5,'Age profile (years)'!$F25:$CR25,0))),0) -> 0 | BE25: =IF($A25>0,IF(ISNA(MATCH(BE$5,'Age profile (years)'!$F25:$CR25,0)),0,INDEX('Asset data'!$J25:$CV25,1,MATCH(BE$5,'Age profile (years)'!$F25:$CR25,0))),0) -> 0 | BF25: =IF($A25>0,IF(ISNA(MATCH(BF$5,'Age profile (years)'!$F25:$CR25,0)),0,INDEX('Asset data'!$J25:$CV25,1,MATCH(BF$5,'Age profile (years)'!$F25:$CR25,0))),0) -> 10 | BG25: =IF($A25>0,IF(ISNA(MATCH(BG$5,'Age profile (years)'!$F25:$CR25,0)),0,INDEX('Asset data'!$J25:$CV25,1,MATCH(BG$5,'Age profile (years)'!$F25:$CR25,0))),0) -> 0 | BH25: =IF($A25>0,IF(ISNA(MATCH(BH$5,'Age profile (years)'!$F25:$CR25,0)),0,INDEX('Asset data'!$J25:$CV25,1,MATCH(BH$5,'Age profile (years)'!$F25:$CR25,0))),0) -> 0 | BI25: =IF($A25>0,IF(ISNA(MATCH(BI$5,'Age profile (years)'!$F25:$CR25,0)),0,INDEX('Asset data'!$J25:$CV25,1,MATCH(BI$5,'Age profile (years)'!$F25:$CR25,0))),0) -> 0 | BJ25: =IF($A25>0,IF(ISNA(MATCH(BJ$5,'Age profile (years)'!$F25:$CR25,0)),0,INDEX('Asset data'!$J25:$CV25,1,MATCH(BJ$5,'Age profile (years)'!$F25:$CR25,0))),0) -> 0 | BK25: =IF($A25>0,IF(ISNA(MATCH(BK$5,'Age profile (years)'!$F25:$CR25,0)),0,INDEX('Asset data'!$J25:$CV25,1,MATCH(BK$5,'Age profile (years)'!$F25:$CR25,0))),0) -> 0 | BL25: =IF($A25>0,IF(ISNA(MATCH(BL$5,'Age profile (years)'!$F25:$CR25,0)),0,INDEX('Asset data'!$J25:$CV25,1,MATCH(BL$5,'Age profile (years)'!$F25:$CR25,0))),0) -> 0 | BM25: =IF($A25>0,IF(ISNA(MATCH(BM$5,'Age profile (years)'!$F25:$CR25,0)),0,INDEX('Asset data'!$J25:$CV25,1,MATCH(BM$5,'Age profile (years)'!$F25:$CR25,0))),0) -> 0 | BN25: =IF($A25>0,IF(ISNA(MATCH(BN$5,'Age profile (years)'!$F25:$CR25,0)),0,INDEX('Asset data'!$J25:$CV25,1,MATCH(BN$5,'Age profile (years)'!$F25:$CR25,0))),0) -> 0 | BO25: =IF($A25>0,IF(ISNA(MATCH(BO$5,'Age profile (years)'!$F25:$CR25,0)),0,INDEX('Asset data'!$J25:$CV25,1,MATCH(BO$5,'Age profile (years)'!$F25:$CR25,0))),0) -> 0 | BP25: =IF($A25>0,IF(ISNA(MATCH(BP$5,'Age profile (years)'!$F25:$CR25,0)),0,INDEX('Asset data'!$J25:$CV25,1,MATCH(BP$5,'Age profile (years)'!$F25:$CR25,0))),0) -> 0 | BQ25: =IF($A25>0,IF(ISNA(MATCH(BQ$5,'Age profile (years)'!$F25:$CR25,0)),0,INDEX('Asset data'!$J25:$CV25,1,MATCH(BQ$5,'Age profile (years)'!$F25:$CR25,0))),0) -> 0 | BR25: =IF($A25>0,IF(ISNA(MATCH(BR$5,'Age profile (years)'!$F25:$CR25,0)),0,INDEX('Asset data'!$J25:$CV25,1,MATCH(BR$5,'Age profile (years)'!$F25:$CR25,0))),0) -> 0 | BS25: =IF($A25>0,IF(ISNA(MATCH(BS$5,'Age profile (years)'!$F25:$CR25,0)),0,INDEX('Asset data'!$J25:$CV25,1,MATCH(BS$5,'Age profile (years)'!$F25:$CR25,0))),0) -> 0 | BT25: =IF($A25>0,IF(ISNA(MATCH(BT$5,'Age profile (years)'!$F25:$CR25,0)),0,INDEX('Asset data'!$J25:$CV25,1,MATCH(BT$5,'Age profile (years)'!$F25:$CR25,0))),0) -> 0 | BU25: =IF($A25>0,IF(ISNA(MATCH(BU$5,'Age profile (years)'!$F25:$CR25,0)),0,INDEX('Asset data'!$J25:$CV25,1,MATCH(BU$5,'Age profile (years)'!$F25:$CR25,0))),0) -> 0 | BV25: =IF($A25>0,IF(ISNA(MATCH(BV$5,'Age profile (years)'!$F25:$CR25,0)),0,INDEX('Asset data'!$J25:$CV25,1,MATCH(BV$5,'Age profile (years)'!$F25:$CR25,0))),0) -> 0 | BW25: =IF($A25>0,IF(ISNA(MATCH(BW$5,'Age profile (years)'!$F25:$CR25,0)),0,INDEX('Asset data'!$J25:$CV25,1,MATCH(BW$5,'Age profile (years)'!$F25:$CR25,0))),0) -> 0 | BX25: =IF($A25>0,IF(ISNA(MATCH(BX$5,'Age profile (years)'!$F25:$CR25,0)),0,INDEX('Asset data'!$J25:$CV25,1,MATCH(BX$5,'Age profile (years)'!$F25:$CR25,0))),0) -> 0 | BY25: =IF($A25>0,IF(ISNA(MATCH(BY$5,'Age profile (years)'!$F25:$CR25,0)),0,INDEX('Asset data'!$J25:$CV25,1,MATCH(BY$5,'Age profile (years)'!$F25:$CR25,0))),0) -> 0 | BZ25: =IF($A25>0,IF(ISNA(MATCH(BZ$5,'Age profile (years)'!$F25:$CR25,0)),0,INDEX('Asset data'!$J25:$CV25,1,MATCH(BZ$5,'Age profile (years)'!$F25:$CR25,0))),0) -> 0 | CA25: =IF($A25>0,IF(ISNA(MATCH(CA$5,'Age profile (years)'!$F25:$CR25,0)),0,INDEX('Asset data'!$J25:$CV25,1,MATCH(CA$5,'Age profile (years)'!$F25:$CR25,0))),0) -> 0 | CB25: =IF($A25>0,IF(ISNA(MATCH(CB$5,'Age profile (years)'!$F25:$CR25,0)),0,INDEX('Asset data'!$J25:$CV25,1,MATCH(CB$5,'Age profile (years)'!$F25:$CR25,0))),0) -> 0 | CC25: =IF($A25>0,IF(ISNA(MATCH(CC$5,'Age profile (years)'!$F25:$CR25,0)),0,INDEX('Asset data'!$J25:$CV25,1,MATCH(CC$5,'Age profile (years)'!$F25:$CR25,0))),0) -> 0 | CD25: =IF($A25>0,IF(ISNA(MATCH(CD$5,'Age profile (years)'!$F25:$CR25,0)),0,INDEX('Asset data'!$J25:$CV25,1,MATCH(CD$5,'Age profile (years)'!$F25:$CR25,0))),0) -> 0 | CE25: =IF($A25>0,IF(ISNA(MATCH(CE$5,'Age profile (years)'!$F25:$CR25,0)),0,INDEX('Asset data'!$J25:$CV25,1,MATCH(CE$5,'Age profile (years)'!$F25:$CR25,0))),0) -> 0 | CF25: =IF($A25>0,IF(ISNA(MATCH(CF$5,'Age profile (years)'!$F25:$CR25,0)),0,INDEX('Asset data'!$J25:$CV25,1,MATCH(CF$5,'Age profile (years)'!$F25:$CR25,0))),0) -> 0 | CG25: =IF($A25>0,IF(ISNA(MATCH(CG$5,'Age profile (years)'!$F25:$CR25,0)),0,INDEX('Asset data'!$J25:$CV25,1,MATCH(CG$5,'Age profile (years)'!$F25:$CR25,0))),0) -> 0 | CH25: =IF($A25>0,IF(ISNA(MATCH(CH$5,'Age profile (years)'!$F25:$CR25,0)),0,INDEX('Asset data'!$J25:$CV25,1,MATCH(CH$5,'Age profile (years)'!$F25:$CR25,0))),0) -> 0 | CI25: =IF($A25>0,IF(ISNA(MATCH(CI$5,'Age profile (years)'!$F25:$CR25,0)),0,INDEX('Asset data'!$J25:$CV25,1,MATCH(CI$5,'Age profile (years)'!$F25:$CR25,0))),0) -> 0 | CJ25: =IF($A25>0,IF(ISNA(MATCH(CJ$5,'Age profile (years)'!$F25:$CR25,0)),0,INDEX('Asset data'!$J25:$CV25,1,MATCH(CJ$5,'Age profile (years)'!$F25:$CR25,0))),0) -> 0 | CK25: =IF($A25>0,IF(ISNA(MATCH(CK$5,'Age profile (years)'!$F25:$CR25,0)),0,INDEX('Asset data'!$J25:$CV25,1,MATCH(CK$5,'Age profile (years)'!$F25:$CR25,0))),0) -> 0 | CL25: =IF($A25>0,IF(ISNA(MATCH(CL$5,'Age profile (years)'!$F25:$CR25,0)),0,INDEX('Asset data'!$J25:$CV25,1,MATCH(CL$5,'Age profile (years)'!$F25:$CR25,0))),0) -> 0 | CM25: =IF($A25>0,IF(ISNA(MATCH(CM$5,'Age profile (years)'!$F25:$CR25,0)),0,INDEX('Asset data'!$J25:$CV25,1,MATCH(CM$5,'Age profile (years)'!$F25:$CR25,0))),0) -> 0 | CN25: =IF($A25>0,IF(ISNA(MATCH(CN$5,'Age profile (years)'!$F25:$CR25,0)),0,INDEX('Asset data'!$J25:$CV25,1,MATCH(CN$5,'Age profile (years)'!$F25:$CR25,0))),0) -> 0 | CO25: =IF($A25>0,IF(ISNA(MATCH(CO$5,'Age profile (years)'!$F25:$CR25,0)),0,INDEX('Asset data'!$J25:$CV25,1,MATCH(CO$5,'Age profile (years)'!$F25:$CR25,0))),0) -> 0 | CP25: =IF($A25>0,IF(ISNA(MATCH(CP$5,'Age profile (years)'!$F25:$CR25,0)),0,INDEX('Asset data'!$J25:$CV25,1,MATCH(CP$5,'Age profile (years)'!$F25:$CR25,0))),0) -> 0 | CQ25: =IF($A25>0,IF(ISNA(MATCH(CQ$5,'Age profile (years)'!$F25:$CR25,0)),0,INDEX('Asset data'!$J25:$CV25,1,MATCH(CQ$5,'Age profile (years)'!$F25:$CR25,0))),0) -> 0 | CR25: =IF($A25>0,IF(ISNA(MATCH(CR$5,'Age profile (years)'!$F25:$CR25,0)),0,INDEX('Asset data'!$J25:$CV25,1,MATCH(CR$5,'Age profile (years)'!$F25:$CR25,0))),0) -> 0 | CT25: =IF($A25>0,IF(ISNA(MATCH(F$5,'Age profile (years)'!$F25:$CR25,0)),0,INDEX('Asset data'!$CX25:$GJ25,1,MATCH(F$5,'Age profile (years)'!$F25:$CR25,0))),0) -> 24 | CU25: =IF($A25>0,IF(ISNA(MATCH(G$5,'Age profile (years)'!$F25:$CR25,0)),0,INDEX('Asset data'!$CX25:$GJ25,1,MATCH(G$5,'Age profile (years)'!$F25:$CR25,0))),0) -> 61 | CV25: =IF($A25>0,IF(ISNA(MATCH(H$5,'Age profile (years)'!$F25:$CR25,0)),0,INDEX('Asset data'!$CX25:$GJ25,1,MATCH(H$5,'Age profile (years)'!$F25:$CR25,0))),0) -> 65 | CW25: =IF($A25>0,IF(ISNA(MATCH(I$5,'Age profile (years)'!$F25:$CR25,0)),0,INDEX('Asset data'!$CX25:$GJ25,1,MATCH(I$5,'Age profile (years)'!$F25:$CR25,0))),0) -> 69 | CX25: =IF($A25>0,IF(ISNA(MATCH(J$5,'Age profile (years)'!$F25:$CR25,0)),0,INDEX('Asset data'!$CX25:$GJ25,1,MATCH(J$5,'Age profile (years)'!$F25:$CR25,0))),0) -> 33 | CY25: =IF($A25>0,IF(ISNA(MATCH(K$5,'Age profile (years)'!$F25:$CR25,0)),0,INDEX('Asset data'!$CX25:$GJ25,1,MATCH(K$5,'Age profile (years)'!$F25:$CR25,0))),0) -> 63 | CZ25: =IF($A25>0,IF(ISNA(MATCH(L$5,'Age profile (years)'!$F25:$CR25,0)),0,INDEX('Asset data'!$CX25:$GJ25,1,MATCH(L$5,'Age profile (years)'!$F25:$CR25,0))),0) -> 91 | DA25: =IF($A25>0,IF(ISNA(MATCH(M$5,'Age profile (years)'!$F25:$CR25,0)),0,INDEX('Asset data'!$CX25:$GJ25,1,MATCH(M$5,'Age profile (years)'!$F25:$CR25,0))),0) -> 69 | DB25: =IF($A25>0,IF(ISNA(MATCH(N$5,'Age profile (years)'!$F25:$CR25,0)),0,INDEX('Asset data'!$CX25:$GJ25,1,MATCH(N$5,'Age profile (years)'!$F25:$CR25,0))),0) -> 53 | DC25: =IF($A25>0,IF(ISNA(MATCH(O$5,'Age profile (years)'!$F25:$CR25,0)),0,INDEX('Asset data'!$CX25:$GJ25,1,MATCH(O$5,'Age profile (years)'!$F25:$CR25,0))),0) -> 44 | DD25: =IF($A25>0,IF(ISNA(MATCH(P$5,'Age profile (years)'!$F25:$CR25,0)),0,INDEX('Asset data'!$CX25:$GJ25,1,MATCH(P$5,'Age profile (years)'!$F25:$CR25,0))),0) -> 34 | DE25: =IF($A25>0,IF(ISNA(MATCH(Q$5,'Age profile (years)'!$F25:$CR25,0)),0,INDEX('Asset data'!$CX25:$GJ25,1,MATCH(Q$5,'Age profile (years)'!$F25:$CR25,0))),0) -> 7 | DF25: =IF($A25>0,IF(ISNA(MATCH(R$5,'Age profile (years)'!$F25:$CR25,0)),0,INDEX('Asset data'!$CX25:$GJ25,1,MATCH(R$5,'Age profile (years)'!$F25:$CR25,0))),0) -> 14 | DG25: =IF($A25>0,IF(ISNA(MATCH(S$5,'Age profile (years)'!$F25:$CR25,0)),0,INDEX('Asset data'!$CX25:$GJ25,1,MATCH(S$5,'Age profile (years)'!$F25:$CR25,0))),0) -> 16 | DH25: =IF($A25>0,IF(ISNA(MATCH(T$5,'Age profile (years)'!$F25:$CR25,0)),0,INDEX('Asset data'!$CX25:$GJ25,1,MATCH(T$5,'Age profile (years)'!$F25:$CR25,0))),0) -> 10 | DI25: =IF($A25>0,IF(ISNA(MATCH(U$5,'Age profile (years)'!$F25:$CR25,0)),0,INDEX('Asset data'!$CX25:$GJ25,1,MATCH(U$5,'Age profile (years)'!$F25:$CR25,0))),0) -> 10 | DJ25: =IF($A25>0,IF(ISNA(MATCH(V$5,'Age profile (years)'!$F25:$CR25,0)),0,INDEX('Asset data'!$CX25:$GJ25,1,MATCH(V$5,'Age profile (years)'!$F25:$CR25,0))),0) -> 20 | DK25: =IF($A25>0,IF(ISNA(MATCH(W$5,'Age profile (years)'!$F25:$CR25,0)),0,INDEX('Asset data'!$CX25:$GJ25,1,MATCH(W$5,'Age profile (years)'!$F25:$CR25,0))),0) -> 28 | DL25: =IF($A25>0,IF(ISNA(MATCH(X$5,'Age profile (years)'!$F25:$CR25,0)),0,INDEX('Asset data'!$CX25:$GJ25,1,MATCH(X$5,'Age profile (years)'!$F25:$CR25,0))),0) -> 4 | DM25: =IF($A25>0,IF(ISNA(MATCH(Y$5,'Age profile (years)'!$F25:$CR25,0)),0,INDEX('Asset data'!$CX25:$GJ25,1,MATCH(Y$5,'Age profile (years)'!$F25:$CR25,0))),0) -> 6 | DN25: =IF($A25>0,IF(ISNA(MATCH(Z$5,'Age profile (years)'!$F25:$CR25,0)),0,INDEX('Asset data'!$CX25:$GJ25,1,MATCH(Z$5,'Age profile (years)'!$F25:$CR25,0))),0) -> 11 | DO25: =IF($A25>0,IF(ISNA(MATCH(AA$5,'Age profile (years)'!$F25:$CR25,0)),0,INDEX('Asset data'!$CX25:$GJ25,1,MATCH(AA$5,'Age profile (years)'!$F25:$CR25,0))),0) -> 11 | DP25: =IF($A25>0,IF(ISNA(MATCH(AB$5,'Age profile (years)'!$F25:$CR25,0)),0,INDEX('Asset data'!$CX25:$GJ25,1,MATCH(AB$5,'Age profile (years)'!$F25:$CR25,0))),0) -> 13 | DQ25: =IF($A25>0,IF(ISNA(MATCH(AC$5,'Age profile (years)'!$F25:$CR25,0)),0,INDEX('Asset data'!$CX25:$GJ25,1,MATCH(AC$5,'Age profile (years)'!$F25:$CR25,0))),0) -> 6 | DR25: =IF($A25>0,IF(ISNA(MATCH(AD$5,'Age profile (years)'!$F25:$CR25,0)),0,INDEX('Asset data'!$CX25:$GJ25,1,MATCH(AD$5,'Age profile (years)'!$F25:$CR25,0))),0) -> 2 | DS25: =IF($A25>0,IF(ISNA(MATCH(AE$5,'Age profile (years)'!$F25:$CR25,0)),0,INDEX('Asset data'!$CX25:$GJ25,1,MATCH(AE$5,'Age profile (years)'!$F25:$CR25,0))),0) -> 2 | DT25: =IF($A25>0,IF(ISNA(MATCH(AF$5,'Age profile (years)'!$F25:$CR25,0)),0,INDEX('Asset data'!$CX25:$GJ25,1,MATCH(AF$5,'Age profile (years)'!$F25:$CR25,0))),0) -> 25 | DU25: =IF($A25>0,IF(ISNA(MATCH(AG$5,'Age profile (years)'!$F25:$CR25,0)),0,INDEX('Asset data'!$CX25:$GJ25,1,MATCH(AG$5,'Age profile (years)'!$F25:$CR25,0))),0) -> 17 | DV25: =IF($A25>0,IF(ISNA(MATCH(AH$5,'Age profile (years)'!$F25:$CR25,0)),0,INDEX('Asset data'!$CX25:$GJ25,1,MATCH(AH$5,'Age profile (years)'!$F25:$CR25,0))),0) -> 21 | DW25: =IF($A25>0,IF(ISNA(MATCH(AI$5,'Age profile (years)'!$F25:$CR25,0)),0,INDEX('Asset data'!$CX25:$GJ25,1,MATCH(AI$5,'Age profile (years)'!$F25:$CR25,0))),0) -> 14 | DX25: =IF($A25>0,IF(ISNA(MATCH(AJ$5,'Age profile (years)'!$F25:$CR25,0)),0,INDEX('Asset data'!$CX25:$GJ25,1,MATCH(AJ$5,'Age profile (years)'!$F25:$CR25,0))),0) -> 22 | DY25: =IF($A25>0,IF(ISNA(MATCH(AK$5,'Age profile (years)'!$F25:$CR25,0)),0,INDEX('Asset data'!$CX25:$GJ25,1,MATCH(AK$5,'Age profile (years)'!$F25:$CR25,0))),0) -> 10 | DZ25: =IF($A25>0,IF(ISNA(MATCH(AL$5,'Age profile (years)'!$F25:$CR25,0)),0,INDEX('Asset data'!$CX25:$GJ25,1,MATCH(AL$5,'Age profile (years)'!$F25:$CR25,0))),0) -> 8 | EA25: =IF($A25>0,IF(ISNA(MATCH(AM$5,'Age profile (years)'!$F25:$CR25,0)),0,INDEX('Asset data'!$CX25:$GJ25,1,MATCH(AM$5,'Age profile (years)'!$F25:$CR25,0))),0) -> 5 | EB25: =IF($A25>0,IF(ISNA(MATCH(AN$5,'Age profile (years)'!$F25:$CR25,0)),0,INDEX('Asset data'!$CX25:$GJ25,1,MATCH(AN$5,'Age profile (years)'!$F25:$CR25,0))),0) -> 8 | EC25: =IF($A25>0,IF(ISNA(MATCH(AO$5,'Age profile (years)'!$F25:$CR25,0)),0,INDEX('Asset data'!$CX25:$GJ25,1,MATCH(AO$5,'Age profile (years)'!$F25:$CR25,0))),0) -> 2 | ED25: =IF($A25>0,IF(ISNA(MATCH(AP$5,'Age profile (years)'!$F25:$CR25,0)),0,INDEX('Asset data'!$CX25:$GJ25,1,MATCH(AP$5,'Age profile (years)'!$F25:$CR25,0))),0) -> 8 | EE25: =IF($A25>0,IF(ISNA(MATCH(AQ$5,'Age profile (years)'!$F25:$CR25,0)),0,INDEX('Asset data'!$CX25:$GJ25,1,MATCH(AQ$5,'Age profile (years)'!$F25:$CR25,0))),0) -> 8 | EF25: =IF($A25>0,IF(ISNA(MATCH(AR$5,'Age profile (years)'!$F25:$CR25,0)),0,INDEX('Asset data'!$CX25:$GJ25,1,MATCH(AR$5,'Age profile (years)'!$F25:$CR25,0))),0) -> 2 | EG25: =IF($A25>0,IF(ISNA(MATCH(AS$5,'Age profile (years)'!$F25:$CR25,0)),0,INDEX('Asset data'!$CX25:$GJ25,1,MATCH(AS$5,'Age profile (years)'!$F25:$CR25,0))),0) -> 2 | EH25: =IF($A25>0,IF(ISNA(MATCH(AT$5,'Age profile (years)'!$F25:$CR25,0)),0,INDEX('Asset data'!$CX25:$GJ25,1,MATCH(AT$5,'Age profile (years)'!$F25:$CR25,0))),0) -> 13 | EI25: =IF($A25>0,IF(ISNA(MATCH(AU$5,'Age profile (years)'!$F25:$CR25,0)),0,INDEX('Asset data'!$CX25:$GJ25,1,MATCH(AU$5,'Age profile (years)'!$F25:$CR25,0))),0) -> 2 | EJ25: =IF($A25>0,IF(ISNA(MATCH(AV$5,'Age profile (years)'!$F25:$CR25,0)),0,INDEX('Asset data'!$CX25:$GJ25,1,MATCH(AV$5,'Age profile (years)'!$F25:$CR25,0))),0) -> 0 | EK25: =IF($A25>0,IF(ISNA(MATCH(AW$5,'Age profile (years)'!$F25:$CR25,0)),0,INDEX('Asset data'!$CX25:$GJ25,1,MATCH(AW$5,'Age profile (years)'!$F25:$CR25,0))),0) -> 0 | EL25: =IF($A25>0,IF(ISNA(MATCH(AX$5,'Age profile (years)'!$F25:$CR25,0)),0,INDEX('Asset data'!$CX25:$GJ25,1,MATCH(AX$5,'Age profile (years)'!$F25:$CR25,0))),0) -> 0 | EM25: =IF($A25>0,IF(ISNA(MATCH(AY$5,'Age profile (years)'!$F25:$CR25,0)),0,INDEX('Asset data'!$CX25:$GJ25,1,MATCH(AY$5,'Age profile (years)'!$F25:$CR25,0))),0) -> 3 | EN25: =IF($A25>0,IF(ISNA(MATCH(AZ$5,'Age profile (years)'!$F25:$CR25,0)),0,INDEX('Asset data'!$CX25:$GJ25,1,MATCH(AZ$5,'Age profile (years)'!$F25:$CR25,0))),0) -> 0 | EO25: =IF($A25>0,IF(ISNA(MATCH(BA$5,'Age profile (years)'!$F25:$CR25,0)),0,INDEX('Asset data'!$CX25:$GJ25,1,MATCH(BA$5,'Age profile (years)'!$F25:$CR25,0))),0) -> 3 | EP25: =IF($A25>0,IF(ISNA(MATCH(BB$5,'Age profile (years)'!$F25:$CR25,0)),0,INDEX('Asset data'!$CX25:$GJ25,1,MATCH(BB$5,'Age profile (years)'!$F25:$CR25,0))),0) -> 0 | EQ25: =IF($A25>0,IF(ISNA(MATCH(BC$5,'Age profile (years)'!$F25:$CR25,0)),0,INDEX('Asset data'!$CX25:$GJ25,1,MATCH(BC$5,'Age profile (years)'!$F25:$CR25,0))),0) -> 0 | ER25: =IF($A25>0,IF(ISNA(MATCH(BD$5,'Age profile (years)'!$F25:$CR25,0)),0,INDEX('Asset data'!$CX25:$GJ25,1,MATCH(BD$5,'Age profile (years)'!$F25:$CR25,0))),0) -> 0 | ES25: =IF($A25>0,IF(ISNA(MATCH(BE$5,'Age profile (years)'!$F25:$CR25,0)),0,INDEX('Asset data'!$CX25:$GJ25,1,MATCH(BE$5,'Age profile (years)'!$F25:$CR25,0))),0) -> 0 | ET25: =IF($A25>0,IF(ISNA(MATCH(BF$5,'Age profile (years)'!$F25:$CR25,0)),0,INDEX('Asset data'!$CX25:$GJ25,1,MATCH(BF$5,'Age profile (years)'!$F25:$CR25,0))),0) -> 10 | EU25: =IF($A25>0,IF(ISNA(MATCH(BG$5,'Age profile (years)'!$F25:$CR25,0)),0,INDEX('Asset data'!$CX25:$GJ25,1,MATCH(BG$5,'Age profile (years)'!$F25:$CR25,0))),0) -> 0 | EV25: =IF($A25>0,IF(ISNA(MATCH(BH$5,'Age profile (years)'!$F25:$CR25,0)),0,INDEX('Asset data'!$CX25:$GJ25,1,MATCH(BH$5,'Age profile (years)'!$F25:$CR25,0))),0) -> 0 | EW25: =IF($A25>0,IF(ISNA(MATCH(BI$5,'Age profile (years)'!$F25:$CR25,0)),0,INDEX('Asset data'!$CX25:$GJ25,1,MATCH(BI$5,'Age profile (years)'!$F25:$CR25,0))),0) -> 0 | EX25: =IF($A25>0,IF(ISNA(MATCH(BJ$5,'Age profile (years)'!$F25:$CR25,0)),0,INDEX('Asset data'!$CX25:$GJ25,1,MATCH(BJ$5,'Age profile (years)'!$F25:$CR25,0))),0) -> 0 | EY25: =IF($A25>0,IF(ISNA(MATCH(BK$5,'Age profile (years)'!$F25:$CR25,0)),0,INDEX('Asset data'!$CX25:$GJ25,1,MATCH(BK$5,'Age profile (years)'!$F25:$CR25,0))),0) -> 0 | EZ25: =IF($A25>0,IF(ISNA(MATCH(BL$5,'Age profile (years)'!$F25:$CR25,0)),0,INDEX('Asset data'!$CX25:$GJ25,1,MATCH(BL$5,'Age profile (years)'!$F25:$CR25,0))),0) -> 0 | FA25: =IF($A25>0,IF(ISNA(MATCH(BM$5,'Age profile (years)'!$F25:$CR25,0)),0,INDEX('Asset data'!$CX25:$GJ25,1,MATCH(BM$5,'Age profile (years)'!$F25:$CR25,0))),0) -> 0 | FB25: =IF($A25>0,IF(ISNA(MATCH(BN$5,'Age profile (years)'!$F25:$CR25,0)),0,INDEX('Asset data'!$CX25:$GJ25,1,MATCH(BN$5,'Age profile (years)'!$F25:$CR25,0))),0) -> 0 | FC25: =IF($A25>0,IF(ISNA(MATCH(BO$5,'Age profile (years)'!$F25:$CR25,0)),0,INDEX('Asset data'!$CX25:$GJ25,1,MATCH(BO$5,'Age profile (years)'!$F25:$CR25,0))),0) -> 0 | FD25: =IF($A25>0,IF(ISNA(MATCH(BP$5,'Age profile (years)'!$F25:$CR25,0)),0,INDEX('Asset data'!$CX25:$GJ25,1,MATCH(BP$5,'Age profile (years)'!$F25:$CR25,0))),0) -> 0 | FE25: =IF($A25>0,IF(ISNA(MATCH(BQ$5,'Age profile (years)'!$F25:$CR25,0)),0,INDEX('Asset data'!$CX25:$GJ25,1,MATCH(BQ$5,'Age profile (years)'!$F25:$CR25,0))),0) -> 0 | FF25: =IF($A25>0,IF(ISNA(MATCH(BR$5,'Age profile (years)'!$F25:$CR25,0)),0,INDEX('Asset data'!$CX25:$GJ25,1,MATCH(BR$5,'Age profile (years)'!$F25:$CR25,0))),0) -> 0 | FG25: =IF($A25>0,IF(ISNA(MATCH(BS$5,'Age profile (years)'!$F25:$CR25,0)),0,INDEX('Asset data'!$CX25:$GJ25,1,MATCH(BS$5,'Age profile (years)'!$F25:$CR25,0))),0) -> 0 | FH25: =IF($A25>0,IF(ISNA(MATCH(BT$5,'Age profile (years)'!$F25:$CR25,0)),0,INDEX('Asset data'!$CX25:$GJ25,1,MATCH(BT$5,'Age profile (years)'!$F25:$CR25,0))),0) -> 0 | FI25: =IF($A25>0,IF(ISNA(MATCH(BU$5,'Age profile (years)'!$F25:$CR25,0)),0,INDEX('Asset data'!$CX25:$GJ25,1,MATCH(BU$5,'Age profile (years)'!$F25:$CR25,0))),0) -> 0 | FJ25: =IF($A25>0,IF(ISNA(MATCH(BV$5,'Age profile (years)'!$F25:$CR25,0)),0,INDEX('Asset data'!$CX25:$GJ25,1,MATCH(BV$5,'Age profile (years)'!$F25:$CR25,0))),0) -> 0 | FK25: =IF($A25>0,IF(ISNA(MATCH(BW$5,'Age profile (years)'!$F25:$CR25,0)),0,INDEX('Asset data'!$CX25:$GJ25,1,MATCH(BW$5,'Age profile (years)'!$F25:$CR25,0))),0) -> 0 | FL25: =IF($A25>0,IF(ISNA(MATCH(BX$5,'Age profile (years)'!$F25:$CR25,0)),0,INDEX('Asset data'!$CX25:$GJ25,1,MATCH(BX$5,'Age profile (years)'!$F25:$CR25,0))),0) -> 0 | FM25: =IF($A25>0,IF(ISNA(MATCH(BY$5,'Age profile (years)'!$F25:$CR25,0)),0,INDEX('Asset data'!$CX25:$GJ25,1,MATCH(BY$5,'Age profile (years)'!$F25:$CR25,0))),0) -> 0 | FN25: =IF($A25>0,IF(ISNA(MATCH(BZ$5,'Age profile (years)'!$F25:$CR25,0)),0,INDEX('Asset data'!$CX25:$GJ25,1,MATCH(BZ$5,'Age profile (years)'!$F25:$CR25,0))),0) -> 0 | FO25: =IF($A25>0,IF(ISNA(MATCH(CA$5,'Age profile (years)'!$F25:$CR25,0)),0,INDEX('Asset data'!$CX25:$GJ25,1,MATCH(CA$5,'Age profile (years)'!$F25:$CR25,0))),0) -> 0 | FP25: =IF($A25>0,IF(ISNA(MATCH(CB$5,'Age profile (years)'!$F25:$CR25,0)),0,INDEX('Asset data'!$CX25:$GJ25,1,MATCH(CB$5,'Age profile (years)'!$F25:$CR25,0))),0) -> 0 | FQ25: =IF($A25>0,IF(ISNA(MATCH(CC$5,'Age profile (years)'!$F25:$CR25,0)),0,INDEX('Asset data'!$CX25:$GJ25,1,MATCH(CC$5,'Age profile (years)'!$F25:$CR25,0))),0) -> 0 | FR25: =IF($A25>0,IF(ISNA(MATCH(CD$5,'Age profile (years)'!$F25:$CR25,0)),0,INDEX('Asset data'!$CX25:$GJ25,1,MATCH(CD$5,'Age profile (years)'!$F25:$CR25,0))),0) -> 0 | FS25: =IF($A25>0,IF(ISNA(MATCH(CE$5,'Age profile (years)'!$F25:$CR25,0)),0,INDEX('Asset data'!$CX25:$GJ25,1,MATCH(CE$5,'Age profile (years)'!$F25:$CR25,0))),0) -> 0 | FT25: =IF($A25>0,IF(ISNA(MATCH(CF$5,'Age profile (years)'!$F25:$CR25,0)),0,INDEX('Asset data'!$CX25:$GJ25,1,MATCH(CF$5,'Age profile (years)'!$F25:$CR25,0))),0) -> 0 | FU25: =IF($A25>0,IF(ISNA(MATCH(CG$5,'Age profile (years)'!$F25:$CR25,0)),0,INDEX('Asset data'!$CX25:$GJ25,1,MATCH(CG$5,'Age profile (years)'!$F25:$CR25,0))),0) -> 0 | FV25: =IF($A25>0,IF(ISNA(MATCH(CH$5,'Age profile (years)'!$F25:$CR25,0)),0,INDEX('Asset data'!$CX25:$GJ25,1,MATCH(CH$5,'Age profile (years)'!$F25:$CR25,0))),0) -> 0 | FW25: =IF($A25>0,IF(ISNA(MATCH(CI$5,'Age profile (years)'!$F25:$CR25,0)),0,INDEX('Asset data'!$CX25:$GJ25,1,MATCH(CI$5,'Age profile (years)'!$F25:$CR25,0))),0) -> 0 | FX25: =IF($A25>0,IF(ISNA(MATCH(CJ$5,'Age profile (years)'!$F25:$CR25,0)),0,INDEX('Asset data'!$CX25:$GJ25,1,MATCH(CJ$5,'Age profile (years)'!$F25:$CR25,0))),0) -> 0 | FY25: =IF($A25>0,IF(ISNA(MATCH(CK$5,'Age profile (years)'!$F25:$CR25,0)),0,INDEX('Asset data'!$CX25:$GJ25,1,MATCH(CK$5,'Age profile (years)'!$F25:$CR25,0))),0) -> 0 | FZ25: =IF($A25>0,IF(ISNA(MATCH(CL$5,'Age profile (years)'!$F25:$CR25,0)),0,INDEX('Asset data'!$CX25:$GJ25,1,MATCH(CL$5,'Age profile (years)'!$F25:$CR25,0))),0) -> 0 | GA25: =IF($A25>0,IF(ISNA(MATCH(CM$5,'Age profile (years)'!$F25:$CR25,0)),0,INDEX('Asset data'!$CX25:$GJ25,1,MATCH(CM$5,'Age profile (years)'!$F25:$CR25,0))),0) -> 0 | GB25: =IF($A25>0,IF(ISNA(MATCH(CN$5,'Age profile (years)'!$F25:$CR25,0)),0,INDEX('Asset data'!$CX25:$GJ25,1,MATCH(CN$5,'Age profile (years)'!$F25:$CR25,0))),0) -> 0 | GC25: =IF($A25>0,IF(ISNA(MATCH(CO$5,'Age profile (years)'!$F25:$CR25,0)),0,INDEX('Asset data'!$CX25:$GJ25,1,MATCH(CO$5,'Age profile (years)'!$F25:$CR25,0))),0) -> 0 | GD25: =IF($A25>0,IF(ISNA(MATCH(CP$5,'Age profile (years)'!$F25:$CR25,0)),0,INDEX('Asset data'!$CX25:$GJ25,1,MATCH(CP$5,'Age profile (years)'!$F25:$CR25,0))),0) -> 0 | GE25: =IF($A25>0,IF(ISNA(MATCH(CQ$5,'Age profile (years)'!$F25:$CR25,0)),0,INDEX('Asset data'!$CX25:$GJ25,1,MATCH(CQ$5,'Age profile (years)'!$F25:$CR25,0))),0) -> 0 | GF25: =IF($A25>0,IF(ISNA(MATCH(CR$5,'Age profile (years)'!$F25:$CR25,0)),0,INDEX('Asset data'!$CX25:$GJ25,1,MATCH(CR$5,'Age profile (years)'!$F25:$CR25,0))),0) -> 0
A26: ='Asset data'!A26 -> 2 | B26: ='Asset data'!B26 -> 0 | C26: ='Asset data'!C26 -> 0 | D26: ='Asset data'!E26 -> Isolator / ES - All Voltages | E26: ='Asset data'!G26 -> 48.84757771 | F26: =IF($A26>0,IF(ISNA(MATCH(F$5,'Age profile (years)'!$F26:$CR26,0)),0,INDEX('Asset data'!$J26:$CV26,1,MATCH(F$5,'Age profile (years)'!$F26:$CR26,0))),0) -> 119 | G26: =IF($A26>0,IF(ISNA(MATCH(G$5,'Age profile (years)'!$F26:$CR26,0)),0,INDEX('Asset data'!$J26:$CV26,1,MATCH(G$5,'Age profile (years)'!$F26:$CR26,0))),0) -> 233 | H26: =IF($A26>0,IF(ISNA(MATCH(H$5,'Age profile (years)'!$F26:$CR26,0)),0,INDEX('Asset data'!$J26:$CV26,1,MATCH(H$5,'Age profile (years)'!$F26:$CR26,0))),0) -> 284 | I26: =IF($A26>0,IF(ISNA(MATCH(I$5,'Age profile (years)'!$F26:$CR26,0)),0,INDEX('Asset data'!$J26:$CV26,1,MATCH(I$5,'Age profile (years)'!$F26:$CR26,0))),0) -> 312 | J26: =IF($A26>0,IF(ISNA(MATCH(J$5,'Age profile (years)'!$F26:$CR26,0)),0,INDEX('Asset data'!$J26:$CV26,1,MATCH(J$5,'Age profile (years)'!$F26:$CR26,0))),0) -> 120 | K26: =IF($A26>0,IF(ISNA(MATCH(K$5,'Age profile (years)'!$F26:$CR26,0)),0,INDEX('Asset data'!$J26:$CV26,1,MATCH(K$5,'Age profile (years)'!$F26:$CR26,0))),0) -> 230 | L26: =IF($A26>0,IF(ISNA(MATCH(L$5,'Age profile (years)'!$F26:$CR26,0)),0,INDEX('Asset data'!$J26:$CV26,1,MATCH(L$5,'Age profile (years)'!$F26:$CR26,0))),0) -> 341 | M26: =IF($A26>0,IF(ISNA(MATCH(M$5,'Age profile (years)'!$F26:$CR26,0)),0,INDEX('Asset data'!$J26:$CV26,1,MATCH(M$5,'Age profile (years)'!$F26:$CR26,0))),0) -> 325 | N26: =IF($A26>0,IF(ISNA(MATCH(N$5,'Age profile (years)'!$F26:$CR26,0)),0,INDEX('Asset data'!$J26:$CV26,1,MATCH(N$5,'Age profile (years)'!$F26:$CR26,0))),0) -> 184 | O26: =IF($A26>0,IF(ISNA(MATCH(O$5,'Age profile (years)'!$F26:$CR26,0)),0,INDEX('Asset data'!$J26:$CV26,1,MATCH(O$5,'Age profile (years)'!$F26:$CR26,0))),0) -> 159 | P26: =IF($A26>0,IF(ISNA(MATCH(P$5,'Age profile (years)'!$F26:$CR26,0)),0,INDEX('Asset data'!$J26:$CV26,1,MATCH(P$5,'Age profile (years)'!$F26:$CR26,0))),0) -> 183 | Q26: =IF($A26>0,IF(ISNA(MATCH(Q$5,'Age profile (years)'!$F26:$CR26,0)),0,INDEX('Asset data'!$J26:$CV26,1,MATCH(Q$5,'Age profile (years)'!$F26:$CR26,0))),0) -> 68 | R26: =IF($A26>0,IF(ISNA(MATCH(R$5,'Age profile (years)'!$F26:$CR26,0)),0,INDEX('Asset data'!$J26:$CV26,1,MATCH(R$5,'Age profile (years)'!$F26:$CR26,0))),0) -> 42 | S26: =IF($A26>0,IF(ISNA(MATCH(S$5,'Age profile (years)'!$F26:$CR26,0)),0,INDEX('Asset data'!$J26:$CV26,1,MATCH(S$5,'Age profile (years)'!$F26:$CR26,0))),0) -> 58 | T26: =IF($A26>0,IF(ISNA(MATCH(T$5,'Age profile (years)'!$F26:$CR26,0)),0,INDEX('Asset data'!$J26:$CV26,1,MATCH(T$5,'Age profile (years)'!$F26:$CR26,0))),0) -> 54 | U26: =IF($A26>0,IF(ISNA(MATCH(U$5,'Age profile (years)'!$F26:$CR26,0)),0,INDEX('Asset data'!$J26:$CV26,1,MATCH(U$5,'Age profile (years)'!$F26:$CR26,0))),0) -> 116 | V26: =IF($A26>0,IF(ISNA(MATCH(V$5,'Age profile (years)'!$F26:$CR26,0)),0,INDEX('Asset data'!$J26:$CV26,1,MATCH(V$5,'Age profile (years)'!$F26:$CR26,0))),0) -> 54 | W26: =IF($A26>0,IF(ISNA(MATCH(W$5,'Age profile (years)'!$F26:$CR26,0)),0,INDEX('Asset data'!$J26:$CV26,1,MATCH(W$5,'Age profile (years)'!$F26:$CR26,0))),0) -> 101 | X26: =IF($A26>0,IF(ISNA(MATCH(X$5,'Age profile (years)'!$F26:$CR26,0)),0,INDEX('Asset data'!$J26:$CV26,1,MATCH(X$5,'Age profile (years)'!$F26:$CR26,0))),0) -> 18 | Y26: =IF($A26>0,IF(ISNA(MATCH(Y$5,'Age profile (years)'!$F26:$CR26,0)),0,INDEX('Asset data'!$J26:$CV26,1,MATCH(Y$5,'Age profile (years)'!$F26:$CR26,0))),0) -> 27 | Z26: =IF($A26>0,IF(ISNA(MATCH(Z$5,'Age profile (years)'!$F26:$CR26,0)),0,INDEX('Asset data'!$J26:$CV26,1,MATCH(Z$5,'Age profile (years)'!$F26:$CR26,0))),0) -> 60 | AA26: =IF($A26>0,IF(ISNA(MATCH(AA$5,'Age profile (years)'!$F26:$CR26,0)),0,INDEX('Asset data'!$J26:$CV26,1,MATCH(AA$5,'Age profile (years)'!$F26:$CR26,0))),0) -> 57 | AB26: =IF($A26>0,IF(ISNA(MATCH(AB$5,'Age profile (years)'!$F26:$CR26,0)),0,INDEX('Asset data'!$J26:$CV26,1,MATCH(AB$5,'Age profile (years)'!$F26:$CR26,0))),0) -> 75 | AC26: =IF($A26>0,IF(ISNA(MATCH(AC$5,'Age profile (years)'!$F26:$CR26,0)),0,INDEX('Asset data'!$J26:$CV26,1,MATCH(AC$5,'Age profile (years)'!$F26:$CR26,0))),0) -> 43 | AD26: =IF($A26>0,IF(ISNA(MATCH(AD$5,'Age profile (years)'!$F26:$CR26,0)),0,INDEX('Asset data'!$J26:$CV26,1,MATCH(AD$5,'Age profile (years)'!$F26:$CR26,0))),0) -> 30 | AE26: =IF($A26>0,IF(ISNA(MATCH(AE$5,'Age profile (years)'!$F26:$CR26,0)),0,INDEX('Asset data'!$J26:$CV26,1,MATCH(AE$5,'Age profile (years)'!$F26:$CR26,0))),0) -> 7 | AF26: =IF($A26>0,IF(ISNA(MATCH(AF$5,'Age profile (years)'!$F26:$CR26,0)),0,INDEX('Asset data'!$J26:$CV26,1,MATCH(AF$5,'Age profile (years)'!$F26:$CR26,0))),0) -> 53 | AG26: =IF($A26>0,IF(ISNA(MATCH(AG$5,'Age profile (years)'!$F26:$CR26,0)),0,INDEX('Asset data'!$J26:$CV26,1,MATCH(AG$5,'Age profile (years)'!$F26:$CR26,0))),0) -> 16 | AH26: =IF($A26>0,IF(ISNA(MATCH(AH$5,'Age profile (years)'!$F26:$CR26,0)),0,INDEX('Asset data'!$J26:$CV26,1,MATCH(AH$5,'Age profile (years)'!$F26:$CR26,0))),0) -> 64 | AI26: =IF($A26>0,IF(ISNA(MATCH(AI$5,'Age profile (years)'!$F26:$CR26,0)),0,INDEX('Asset data'!$J26:$CV26,1,MATCH(AI$5,'Age profile (years)'!$F26:$CR26,0))),0) -> 56 | AJ26: =IF($A26>0,IF(ISNA(MATCH(AJ$5,'Age profile (years)'!$F26:$CR26,0)),0,INDEX('Asset data'!$J26:$CV26,1,MATCH(AJ$5,'Age profile (years)'!$F26:$CR26,0))),0) -> 77 | AK26: =IF($A26>0,IF(ISNA(MATCH(AK$5,'Age profile (years)'!$F26:$CR26,0)),0,INDEX('Asset data'!$J26:$CV26,1,MATCH(AK$5,'Age profile (years)'!$F26:$CR26,0))),0) -> 118 | AL26: =IF($A26>0,IF(ISNA(MATCH(AL$5,'Age profile (years)'!$F26:$CR26,0)),0,INDEX('Asset data'!$J26:$CV26,1,MATCH(AL$5,'Age profile (years)'!$F26:$CR26,0))),0) -> 41 | AM26: =IF($A26>0,IF(ISNA(MATCH(AM$5,'Age profile (years)'!$F26:$CR26,0)),0,INDEX('Asset data'!$J26:$CV26,1,MATCH(AM$5,'Age profile (years)'!$F26:$CR26,0))),0) -> 48 | AN26: =IF($A26>0,IF(ISNA(MATCH(AN$5,'Age profile (years)'!$F26:$CR26,0)),0,INDEX('Asset data'!$J26:$CV26,1,MATCH(AN$5,'Age profile (years)'!$F26:$CR26,0))),0) -> 23 | AO26: =IF($A26>0,IF(ISNA(MATCH(AO$5,'Age profile (years)'!$F26:$CR26,0)),0,INDEX('Asset data'!$J26:$CV26,1,MATCH(AO$5,'Age profile (years)'!$F26:$CR26,0))),0) -> 16 | AP26: =IF($A26>0,IF(ISNA(MATCH(AP$5,'Age profile (years)'!$F26:$CR26,0)),0,INDEX('Asset data'!$J26:$CV26,1,MATCH(AP$5,'Age profile (years)'!$F26:$CR26,0))),0) -> 65 | AQ26: =IF($A26>0,IF(ISNA(MATCH(AQ$5,'Age profile (years)'!$F26:$CR26,0)),0,INDEX('Asset data'!$J26:$CV26,1,MATCH(AQ$5,'Age profile (years)'!$F26:$CR26,0))),0) -> 163 | AR26: =IF($A26>0,IF(ISNA(MATCH(AR$5,'Age profile (years)'!$F26:$CR26,0)),0,INDEX('Asset data'!$J26:$CV26,1,MATCH(AR$5,'Age profile (years)'!$F26:$CR26,0))),0) -> 16 | AS26: =IF($A26>0,IF(ISNA(MATCH(AS$5,'Age profile (years)'!$F26:$CR26,0)),0,INDEX('Asset data'!$J26:$CV26,1,MATCH(AS$5,'Age profile (years)'!$F26:$CR26,0))),0) -> 32 | AT26: =IF($A26>0,IF(ISNA(MATCH(AT$5,'Age profile (years)'!$F26:$CR26,0)),0,INDEX('Asset data'!$J26:$CV26,1,MATCH(AT$5,'Age profile (years)'!$F26:$CR26,0))),0) -> 29 | AU26: =IF($A26>0,IF(ISNA(MATCH(AU$5,'Age profile (years)'!$F26:$CR26,0)),0,INDEX('Asset data'!$J26:$CV26,1,MATCH(AU$5,'Age profile (years)'!$F26:$CR26,0))),0) -> 23 | AV26: =IF($A26>0,IF(ISNA(MATCH(AV$5,'Age profile (years)'!$F26:$CR26,0)),0,INDEX('Asset data'!$J26:$CV26,1,MATCH(AV$5,'Age profile (years)'!$F26:$CR26,0))),0) -> 16 | AW26: =IF($A26>0,IF(ISNA(MATCH(AW$5,'Age profile (years)'!$F26:$CR26,0)),0,INDEX('Asset data'!$J26:$CV26,1,MATCH(AW$5,'Age profile (years)'!$F26:$CR26,0))),0) -> 33 | AX26: =IF($A26>0,IF(ISNA(MATCH(AX$5,'Age profile (years)'!$F26:$CR26,0)),0,INDEX('Asset data'!$J26:$CV26,1,MATCH(AX$5,'Age profile (years)'!$F26:$CR26,0))),0) -> 27 | AY26: =IF($A26>0,IF(ISNA(MATCH(AY$5,'Age profile (years)'!$F26:$CR26,0)),0,INDEX('Asset data'!$J26:$CV26,1,MATCH(AY$5,'Age profile (years)'!$F26:$CR26,0))),0) -> 28 | AZ26: =IF($A26>0,IF(ISNA(MATCH(AZ$5,'Age profile (years)'!$F26:$CR26,0)),0,INDEX('Asset data'!$J26:$CV26,1,MATCH(AZ$5,'Age profile (years)'!$F26:$CR26,0))),0) -> 5 | BA26: =IF($A26>0,IF(ISNA(MATCH(BA$5,'Age profile (years)'!$F26:$CR26,0)),0,INDEX('Asset data'!$J26:$CV26,1,MATCH(BA$5,'Age profile (years)'!$F26:$CR26,0))),0) -> 11 | BB26: =IF($A26>0,IF(ISNA(MATCH(BB$5,'Age profile (years)'!$F26:$CR26,0)),0,INDEX('Asset data'!$J26:$CV26,1,MATCH(BB$5,'Age profile (years)'!$F26:$CR26,0))),0) -> 0 | BC26: =IF($A26>0,IF(ISNA(MATCH(BC$5,'Age profile (years)'!$F26:$CR26,0)),0,INDEX('Asset data'!$J26:$CV26,1,MATCH(BC$5,'Age profile (years)'!$F26:$CR26,0))),0) -> 5 | BD26: =IF($A26>0,IF(ISNA(MATCH(BD$5,'Age profile (years)'!$F26:$CR26,0)),0,INDEX('Asset data'!$J26:$CV26,1,MATCH(BD$5,'Age profile (years)'!$F26:$CR26,0))),0) -> 16 | BE26: =IF($A26>0,IF(ISNA(MATCH(BE$5,'Age profile (years)'!$F26:$CR26,0)),0,INDEX('Asset data'!$J26:$CV26,1,MATCH(BE$5,'Age profile (years)'!$F26:$CR26,0))),0) -> 43 | BF26: =IF($A26>0,IF(ISNA(MATCH(BF$5,'Age profile (years)'!$F26:$CR26,0)),0,INDEX('Asset data'!$J26:$CV26,1,MATCH(BF$5,'Age profile (years)'!$F26:$CR26,0))),0) -> 3 | BG26: =IF($A26>0,IF(ISNA(MATCH(BG$5,'Age profile (years)'!$F26:$CR26,0)),0,INDEX('Asset data'!$J26:$CV26,1,MATCH(BG$5,'Age profile (years)'!$F26:$CR26,0))),0) -> 1 | BH26: =IF($A26>0,IF(ISNA(MATCH(BH$5,'Age profile (years)'!$F26:$CR26,0)),0,INDEX('Asset data'!$J26:$CV26,1,MATCH(BH$5,'Age profile (years)'!$F26:$CR26,0))),0) -> 0 | BI26: =IF($A26>0,IF(ISNA(MATCH(BI$5,'Age profile (years)'!$F26:$CR26,0)),0,INDEX('Asset data'!$J26:$CV26,1,MATCH(BI$5,'Age profile (years)'!$F26:$CR26,0))),0) -> 0 | BJ26: =IF($A26>0,IF(ISNA(MATCH(BJ$5,'Age profile (years)'!$F26:$CR26,0)),0,INDEX('Asset data'!$J26:$CV26,1,MATCH(BJ$5,'Age profile (years)'!$F26:$CR26,0))),0) -> 0 | BK26: =IF($A26>0,IF(ISNA(MATCH(BK$5,'Age profile (years)'!$F26:$CR26,0)),0,INDEX('Asset data'!$J26:$CV26,1,MATCH(BK$5,'Age profile (years)'!$F26:$CR26,0))),0) -> 0 | BL26: =IF($A26>0,IF(ISNA(MATCH(BL$5,'Age profile (years)'!$F26:$CR26,0)),0,INDEX('Asset data'!$J26:$CV26,1,MATCH(BL$5,'Age profile (years)'!$F26:$CR26,0))),0) -> 0 | BM26: =IF($A26>0,IF(ISNA(MATCH(BM$5,'Age profile (years)'!$F26:$CR26,0)),0,INDEX('Asset data'!$J26:$CV26,1,MATCH(BM$5,'Age profile (years)'!$F26:$CR26,0))),0) -> 0 | BN26: =IF($A26>0,IF(ISNA(MATCH(BN$5,'Age profile (years)'!$F26:$CR26,0)),0,INDEX('Asset data'!$J26:$CV26,1,MATCH(BN$5,'Age profile (years)'!$F26:$CR26,0))),0) -> 0 | BO26: =IF($A26>0,IF(ISNA(MATCH(BO$5,'Age profile (years)'!$F26:$CR26,0)),0,INDEX('Asset data'!$J26:$CV26,1,MATCH(BO$5,'Age profile (years)'!$F26:$CR26,0))),0) -> 0 | BP26: =IF($A26>0,IF(ISNA(MATCH(BP$5,'Age profile (years)'!$F26:$CR26,0)),0,INDEX('Asset data'!$J26:$CV26,1,MATCH(BP$5,'Age profile (years)'!$F26:$CR26,0))),0) -> 0 | BQ26: =IF($A26>0,IF(ISNA(MATCH(BQ$5,'Age profile (years)'!$F26:$CR26,0)),0,INDEX('Asset data'!$J26:$CV26,1,MATCH(BQ$5,'Age profile (years)'!$F26:$CR26,0))),0) -> 0 | BR26: =IF($A26>0,IF(ISNA(MATCH(BR$5,'Age profile (years)'!$F26:$CR26,0)),0,INDEX('Asset data'!$J26:$CV26,1,MATCH(BR$5,'Age profile (years)'!$F26:$CR26,0))),0) -> 0 | BS26: =IF($A26>0,IF(ISNA(MATCH(BS$5,'Age profile (years)'!$F26:$CR26,0)),0,INDEX('Asset data'!$J26:$CV26,1,MATCH(BS$5,'Age profile (years)'!$F26:$CR26,0))),0) -> 0 | BT26: =IF($A26>0,IF(ISNA(MATCH(BT$5,'Age profile (years)'!$F26:$CR26,0)),0,INDEX('Asset data'!$J26:$CV26,1,MATCH(BT$5,'Age profile (years)'!$F26:$CR26,0))),0) -> 0 | BU26: =IF($A26>0,IF(ISNA(MATCH(BU$5,'Age profile (years)'!$F26:$CR26,0)),0,INDEX('Asset data'!$J26:$CV26,1,MATCH(BU$5,'Age profile (years)'!$F26:$CR26,0))),0) -> 0 | BV26: =IF($A26>0,IF(ISNA(MATCH(BV$5,'Age profile (years)'!$F26:$CR26,0)),0,INDEX('Asset data'!$J26:$CV26,1,MATCH(BV$5,'Age profile (years)'!$F26:$CR26,0))),0) -> 0 | BW26: =IF($A26>0,IF(ISNA(MATCH(BW$5,'Age profile (years)'!$F26:$CR26,0)),0,INDEX('Asset data'!$J26:$CV26,1,MATCH(BW$5,'Age profile (years)'!$F26:$CR26,0))),0) -> 0 | BX26: =IF($A26>0,IF(ISNA(MATCH(BX$5,'Age profile (years)'!$F26:$CR26,0)),0,INDEX('Asset data'!$J26:$CV26,1,MATCH(BX$5,'Age profile (years)'!$F26:$CR26,0))),0) -> 0 | BY26: =IF($A26>0,IF(ISNA(MATCH(BY$5,'Age profile (years)'!$F26:$CR26,0)),0,INDEX('Asset data'!$J26:$CV26,1,MATCH(BY$5,'Age profile (years)'!$F26:$CR26,0))),0) -> 0 | BZ26: =IF($A26>0,IF(ISNA(MATCH(BZ$5,'Age profile (years)'!$F26:$CR26,0)),0,INDEX('Asset data'!$J26:$CV26,1,MATCH(BZ$5,'Age profile (years)'!$F26:$CR26,0))),0) -> 0 | CA26: =IF($A26>0,IF(ISNA(MATCH(CA$5,'Age profile (years)'!$F26:$CR26,0)),0,INDEX('Asset data'!$J26:$CV26,1,MATCH(CA$5,'Age profile (years)'!$F26:$CR26,0))),0) -> 0 | CB26: =IF($A26>0,IF(ISNA(MATCH(CB$5,'Age profile (years)'!$F26:$CR26,0)),0,INDEX('Asset data'!$J26:$CV26,1,MATCH(CB$5,'Age profile (years)'!$F26:$CR26,0))),0) -> 0 | CC26: =IF($A26>0,IF(ISNA(MATCH(CC$5,'Age profile (years)'!$F26:$CR26,0)),0,INDEX('Asset data'!$J26:$CV26,1,MATCH(CC$5,'Age profile (years)'!$F26:$CR26,0))),0) -> 0 | CD26: =IF($A26>0,IF(ISNA(MATCH(CD$5,'Age profile (years)'!$F26:$CR26,0)),0,INDEX('Asset data'!$J26:$CV26,1,MATCH(CD$5,'Age profile (years)'!$F26:$CR26,0))),0) -> 0 | CE26: =IF($A26>0,IF(ISNA(MATCH(CE$5,'Age profile (years)'!$F26:$CR26,0)),0,INDEX('Asset data'!$J26:$CV26,1,MATCH(CE$5,'Age profile (years)'!$F26:$CR26,0))),0) -> 0 | CF26: =IF($A26>0,IF(ISNA(MATCH(CF$5,'Age profile (years)'!$F26:$CR26,0)),0,INDEX('Asset data'!$J26:$CV26,1,MATCH(CF$5,'Age profile (years)'!$F26:$CR26,0))),0) -> 0 | CG26: =IF($A26>0,IF(ISNA(MATCH(CG$5,'Age profile (years)'!$F26:$CR26,0)),0,INDEX('Asset data'!$J26:$CV26,1,MATCH(CG$5,'Age profile (years)'!$F26:$CR26,0))),0) -> 0 | CH26: =IF($A26>0,IF(ISNA(MATCH(CH$5,'Age profile (years)'!$F26:$CR26,0)),0,INDEX('Asset data'!$J26:$CV26,1,MATCH(CH$5,'Age profile (years)'!$F26:$CR26,0))),0) -> 0 | CI26: =IF($A26>0,IF(ISNA(MATCH(CI$5,'Age profile (years)'!$F26:$CR26,0)),0,INDEX('Asset data'!$J26:$CV26,1,MATCH(CI$5,'Age profile (years)'!$F26:$CR26,0))),0) -> 0 | CJ26: =IF($A26>0,IF(ISNA(MATCH(CJ$5,'Age profile (years)'!$F26:$CR26,0)),0,INDEX('Asset data'!$J26:$CV26,1,MATCH(CJ$5,'Age profile (years)'!$F26:$CR26,0))),0) -> 0 | CK26: =IF($A26>0,IF(ISNA(MATCH(CK$5,'Age profile (years)'!$F26:$CR26,0)),0,INDEX('Asset data'!$J26:$CV26,1,MATCH(CK$5,'Age profile (years)'!$F26:$CR26,0))),0) -> 0 | CL26: =IF($A26>0,IF(ISNA(MATCH(CL$5,'Age profile (years)'!$F26:$CR26,0)),0,INDEX('Asset data'!$J26:$CV26,1,MATCH(CL$5,'Age profile (years)'!$F26:$CR26,0))),0) -> 0 | CM26: =IF($A26>0,IF(ISNA(MATCH(CM$5,'Age profile (years)'!$F26:$CR26,0)),0,INDEX('Asset data'!$J26:$CV26,1,MATCH(CM$5,'Age profile (years)'!$F26:$CR26,0))),0) -> 0 | CN26: =IF($A26>0,IF(ISNA(MATCH(CN$5,'Age profile (years)'!$F26:$CR26,0)),0,INDEX('Asset data'!$J26:$CV26,1,MATCH(CN$5,'Age profile (years)'!$F26:$CR26,0))),0) -> 0 | CO26: =IF($A26>0,IF(ISNA(MATCH(CO$5,'Age profile (years)'!$F26:$CR26,0)),0,INDEX('Asset data'!$J26:$CV26,1,MATCH(CO$5,'Age profile (years)'!$F26:$CR26,0))),0) -> 0 | CP26: =IF($A26>0,IF(ISNA(MATCH(CP$5,'Age profile (years)'!$F26:$CR26,0)),0,INDEX('Asset data'!$J26:$CV26,1,MATCH(CP$5,'Age profile (years)'!$F26:$CR26,0))),0) -> 0 | CQ26: =IF($A26>0,IF(ISNA(MATCH(CQ$5,'Age profile (years)'!$F26:$CR26,0)),0,INDEX('Asset data'!$J26:$CV26,1,MATCH(CQ$5,'Age profile (years)'!$F26:$CR26,0))),0) -> 0 | CR26: =IF($A26>0,IF(ISNA(MATCH(CR$5,'Age profile (years)'!$F26:$CR26,0)),0,INDEX('Asset data'!$J26:$CV26,1,MATCH(CR$5,'Age profile (years)'!$F26:$CR26,0))),0) -> 0 | CT26: =IF($A26>0,IF(ISNA(MATCH(F$5,'Age profile (years)'!$F26:$CR26,0)),0,INDEX('Asset data'!$CX26:$GJ26,1,MATCH(F$5,'Age profile (years)'!$F26:$CR26,0))),0) -> 119 | CU26: =IF($A26>0,IF(ISNA(MATCH(G$5,'Age profile (years)'!$F26:$CR26,0)),0,INDEX('Asset data'!$CX26:$GJ26,1,MATCH(G$5,'Age profile (years)'!$F26:$CR26,0))),0) -> 233 | CV26: =IF($A26>0,IF(ISNA(MATCH(H$5,'Age profile (years)'!$F26:$CR26,0)),0,INDEX('Asset data'!$CX26:$GJ26,1,MATCH(H$5,'Age profile (years)'!$F26:$CR26,0))),0) -> 284 | CW26: =IF($A26>0,IF(ISNA(MATCH(I$5,'Age profile (years)'!$F26:$CR26,0)),0,INDEX('Asset data'!$CX26:$GJ26,1,MATCH(I$5,'Age profile (years)'!$F26:$CR26,0))),0) -> 312 | CX26: =IF($A26>0,IF(ISNA(MATCH(J$5,'Age profile (years)'!$F26:$CR26,0)),0,INDEX('Asset data'!$CX26:$GJ26,1,MATCH(J$5,'Age profile (years)'!$F26:$CR26,0))),0) -> 120 | CY26: =IF($A26>0,IF(ISNA(MATCH(K$5,'Age profile (years)'!$F26:$CR26,0)),0,INDEX('Asset data'!$CX26:$GJ26,1,MATCH(K$5,'Age profile (years)'!$F26:$CR26,0))),0) -> 230 | CZ26: =IF($A26>0,IF(ISNA(MATCH(L$5,'Age profile (years)'!$F26:$CR26,0)),0,INDEX('Asset data'!$CX26:$GJ26,1,MATCH(L$5,'Age profile (years)'!$F26:$CR26,0))),0) -> 341 | DA26: =IF($A26>0,IF(ISNA(MATCH(M$5,'Age profile (years)'!$F26:$CR26,0)),0,INDEX('Asset data'!$CX26:$GJ26,1,MATCH(M$5,'Age profile (years)'!$F26:$CR26,0))),0) -> 325 | DB26: =IF($A26>0,IF(ISNA(MATCH(N$5,'Age profile (years)'!$F26:$CR26,0)),0,INDEX('Asset data'!$CX26:$GJ26,1,MATCH(N$5,'Age profile (years)'!$F26:$CR26,0))),0) -> 184 | DC26: =IF($A26>0,IF(ISNA(MATCH(O$5,'Age profile (years)'!$F26:$CR26,0)),0,INDEX('Asset data'!$CX26:$GJ26,1,MATCH(O$5,'Age profile (years)'!$F26:$CR26,0))),0) -> 159 | DD26: =IF($A26>0,IF(ISNA(MATCH(P$5,'Age profile (years)'!$F26:$CR26,0)),0,INDEX('Asset data'!$CX26:$GJ26,1,MATCH(P$5,'Age profile (years)'!$F26:$CR26,0))),0) -> 183 | DE26: =IF($A26>0,IF(ISNA(MATCH(Q$5,'Age profile (years)'!$F26:$CR26,0)),0,INDEX('Asset data'!$CX26:$GJ26,1,MATCH(Q$5,'Age profile (years)'!$F26:$CR26,0))),0) -> 68 | DF26: =IF($A26>0,IF(ISNA(MATCH(R$5,'Age profile (years)'!$F26:$CR26,0)),0,INDEX('Asset data'!$CX26:$GJ26,1,MATCH(R$5,'Age profile (years)'!$F26:$CR26,0))),0) -> 42 | DG26: =IF($A26>0,IF(ISNA(MATCH(S$5,'Age profile (years)'!$F26:$CR26,0)),0,INDEX('Asset data'!$CX26:$GJ26,1,MATCH(S$5,'Age profile (years)'!$F26:$CR26,0))),0) -> 58 | DH26: =IF($A26>0,IF(ISNA(MATCH(T$5,'Age profile (years)'!$F26:$CR26,0)),0,INDEX('Asset data'!$CX26:$GJ26,1,MATCH(T$5,'Age profile (years)'!$F26:$CR26,0))),0) -> 54 | DI26: =IF($A26>0,IF(ISNA(MATCH(U$5,'Age profile (years)'!$F26:$CR26,0)),0,INDEX('Asset data'!$CX26:$GJ26,1,MATCH(U$5,'Age profile (years)'!$F26:$CR26,0))),0) -> 116 | DJ26: =IF($A26>0,IF(ISNA(MATCH(V$5,'Age profile (years)'!$F26:$CR26,0)),0,INDEX('Asset data'!$CX26:$GJ26,1,MATCH(V$5,'Age profile (years)'!$F26:$CR26,0))),0) -> 54 | DK26: =IF($A26>0,IF(ISNA(MATCH(W$5,'Age profile (years)'!$F26:$CR26,0)),0,INDEX('Asset data'!$CX26:$GJ26,1,MATCH(W$5,'Age profile (years)'!$F26:$CR26,0))),0) -> 101 | DL26: =IF($A26>0,IF(ISNA(MATCH(X$5,'Age profile (years)'!$F26:$CR26,0)),0,INDEX('Asset data'!$CX26:$GJ26,1,MATCH(X$5,'Age profile (years)'!$F26:$CR26,0))),0) -> 18 | DM26: =IF($A26>0,IF(ISNA(MATCH(Y$5,'Age profile (years)'!$F26:$CR26,0)),0,INDEX('Asset data'!$CX26:$GJ26,1,MATCH(Y$5,'Age profile (years)'!$F26:$CR26,0))),0) -> 27 | DN26: =IF($A26>0,IF(ISNA(MATCH(Z$5,'Age profile (years)'!$F26:$CR26,0)),0,INDEX('Asset data'!$CX26:$GJ26,1,MATCH(Z$5,'Age profile (years)'!$F26:$CR26,0))),0) -> 60 | DO26: =IF($A26>0,IF(ISNA(MATCH(AA$5,'Age profile (years)'!$F26:$CR26,0)),0,INDEX('Asset data'!$CX26:$GJ26,1,MATCH(AA$5,'Age profile (years)'!$F26:$CR26,0))),0) -> 57 | DP26: =IF($A26>0,IF(ISNA(MATCH(AB$5,'Age profile (years)'!$F26:$CR26,0)),0,INDEX('Asset data'!$CX26:$GJ26,1,MATCH(AB$5,'Age profile (years)'!$F26:$CR26,0))),0) -> 75 | DQ26: =IF($A26>0,IF(ISNA(MATCH(AC$5,'Age profile (years)'!$F26:$CR26,0)),0,INDEX('Asset data'!$CX26:$GJ26,1,MATCH(AC$5,'Age profile (years)'!$F26:$CR26,0))),0) -> 43 | DR26: =IF($A26>0,IF(ISNA(MATCH(AD$5,'Age profile (years)'!$F26:$CR26,0)),0,INDEX('Asset data'!$CX26:$GJ26,1,MATCH(AD$5,'Age profile (years)'!$F26:$CR26,0))),0) -> 30 | DS26: =IF($A26>0,IF(ISNA(MATCH(AE$5,'Age profile (years)'!$F26:$CR26,0)),0,INDEX('Asset data'!$CX26:$GJ26,1,MATCH(AE$5,'Age profile (years)'!$F26:$CR26,0))),0) -> 7 | DT26: =IF($A26>0,IF(ISNA(MATCH(AF$5,'Age profile (years)'!$F26:$CR26,0)),0,INDEX('Asset data'!$CX26:$GJ26,1,MATCH(AF$5,'Age profile (years)'!$F26:$CR26,0))),0) -> 53 | DU26: =IF($A26>0,IF(ISNA(MATCH(AG$5,'Age profile (years)'!$F26:$CR26,0)),0,INDEX('Asset data'!$CX26:$GJ26,1,MATCH(AG$5,'Age profile (years)'!$F26:$CR26,0))),0) -> 16 | DV26: =IF($A26>0,IF(ISNA(MATCH(AH$5,'Age profile (years)'!$F26:$CR26,0)),0,INDEX('Asset data'!$CX26:$GJ26,1,MATCH(AH$5,'Age profile (years)'!$F26:$CR26,0))),0) -> 64 | DW26: =IF($A26>0,IF(ISNA(MATCH(AI$5,'Age profile (years)'!$F26:$CR26,0)),0,INDEX('Asset data'!$CX26:$GJ26,1,MATCH(AI$5,'Age profile (years)'!$F26:$CR26,0))),0) -> 56 | DX26: =IF($A26>0,IF(ISNA(MATCH(AJ$5,'Age profile (years)'!$F26:$CR26,0)),0,INDEX('Asset data'!$CX26:$GJ26,1,MATCH(AJ$5,'Age profile (years)'!$F26:$CR26,0))),0) -> 77 | DY26: =IF($A26>0,IF(ISNA(MATCH(AK$5,'Age profile (years)'!$F26:$CR26,0)),0,INDEX('Asset data'!$CX26:$GJ26,1,MATCH(AK$5,'Age profile (years)'!$F26:$CR26,0))),0) -> 118 | DZ26: =IF($A26>0,IF(ISNA(MATCH(AL$5,'Age profile (years)'!$F26:$CR26,0)),0,INDEX('Asset data'!$CX26:$GJ26,1,MATCH(AL$5,'Age profile (years)'!$F26:$CR26,0))),0) -> 41 | EA26: =IF($A26>0,IF(ISNA(MATCH(AM$5,'Age profile (years)'!$F26:$CR26,0)),0,INDEX('Asset data'!$CX26:$GJ26,1,MATCH(AM$5,'Age profile (years)'!$F26:$CR26,0))),0) -> 48 | EB26: =IF($A26>0,IF(ISNA(MATCH(AN$5,'Age profile (years)'!$F26:$CR26,0)),0,INDEX('Asset data'!$CX26:$GJ26,1,MATCH(AN$5,'Age profile (years)'!$F26:$CR26,0))),0) -> 23 | EC26: =IF($A26>0,IF(ISNA(MATCH(AO$5,'Age profile (years)'!$F26:$CR26,0)),0,INDEX('Asset data'!$CX26:$GJ26,1,MATCH(AO$5,'Age profile (years)'!$F26:$CR26,0))),0) -> 16 | ED26: =IF($A26>0,IF(ISNA(MATCH(AP$5,'Age profile (years)'!$F26:$CR26,0)),0,INDEX('Asset data'!$CX26:$GJ26,1,MATCH(AP$5,'Age profile (years)'!$F26:$CR26,0))),0) -> 65 | EE26: =IF($A26>0,IF(ISNA(MATCH(AQ$5,'Age profile (years)'!$F26:$CR26,0)),0,INDEX('Asset data'!$CX26:$GJ26,1,MATCH(AQ$5,'Age profile (years)'!$F26:$CR26,0))),0) -> 163 | EF26: =IF($A26>0,IF(ISNA(MATCH(AR$5,'Age profile (years)'!$F26:$CR26,0)),0,INDEX('Asset data'!$CX26:$GJ26,1,MATCH(AR$5,'Age profile (years)'!$F26:$CR26,0))),0) -> 16 | EG26: =IF($A26>0,IF(ISNA(MATCH(AS$5,'Age profile (years)'!$F26:$CR26,0)),0,INDEX('Asset data'!$CX26:$GJ26,1,MATCH(AS$5,'Age profile (years)'!$F26:$CR26,0))),0) -> 32 | EH26: =IF($A26>0,IF(ISNA(MATCH(AT$5,'Age profile (years)'!$F26:$CR26,0)),0,INDEX('Asset data'!$CX26:$GJ26,1,MATCH(AT$5,'Age profile (years)'!$F26:$CR26,0))),0) -> 29 | EI26: =IF($A26>0,IF(ISNA(MATCH(AU$5,'Age profile (years)'!$F26:$CR26,0)),0,INDEX('Asset data'!$CX26:$GJ26,1,MATCH(AU$5,'Age profile (years)'!$F26:$CR26,0))),0) -> 23 | EJ26: =IF($A26>0,IF(ISNA(MATCH(AV$5,'Age profile (years)'!$F26:$CR26,0)),0,INDEX('Asset data'!$CX26:$GJ26,1,MATCH(AV$5,'Age profile (years)'!$F26:$CR26,0))),0) -> 16 | EK26: =IF($A26>0,IF(ISNA(MATCH(AW$5,'Age profile (years)'!$F26:$CR26,0)),0,INDEX('Asset data'!$CX26:$GJ26,1,MATCH(AW$5,'Age profile (years)'!$F26:$CR26,0))),0) -> 33 | EL26: =IF($A26>0,IF(ISNA(MATCH(AX$5,'Age profile (years)'!$F26:$CR26,0)),0,INDEX('Asset data'!$CX26:$GJ26,1,MATCH(AX$5,'Age profile (years)'!$F26:$CR26,0))),0) -> 27 | EM26: =IF($A26>0,IF(ISNA(MATCH(AY$5,'Age profile (years)'!$F26:$CR26,0)),0,INDEX('Asset data'!$CX26:$GJ26,1,MATCH(AY$5,'Age profile (years)'!$F26:$CR26,0))),0) -> 28 | EN26: =IF($A26>0,IF(ISNA(MATCH(AZ$5,'Age profile (years)'!$F26:$CR26,0)),0,INDEX('Asset data'!$CX26:$GJ26,1,MATCH(AZ$5,'Age profile (years)'!$F26:$CR26,0))),0) -> 5 | EO26: =IF($A26>0,IF(ISNA(MATCH(BA$5,'Age profile (years)'!$F26:$CR26,0)),0,INDEX('Asset data'!$CX26:$GJ26,1,MATCH(BA$5,'Age profile (years)'!$F26:$CR26,0))),0) -> 11 | EP26: =IF($A26>0,IF(ISNA(MATCH(BB$5,'Age profile (years)'!$F26:$CR26,0)),0,INDEX('Asset data'!$CX26:$GJ26,1,MATCH(BB$5,'Age profile (years)'!$F26:$CR26,0))),0) -> 0 | EQ26: =IF($A26>0,IF(ISNA(MATCH(BC$5,'Age profile (years)'!$F26:$CR26,0)),0,INDEX('Asset data'!$CX26:$GJ26,1,MATCH(BC$5,'Age profile (years)'!$F26:$CR26,0))),0) -> 5 | ER26: =IF($A26>0,IF(ISNA(MATCH(BD$5,'Age profile (years)'!$F26:$CR26,0)),0,INDEX('Asset data'!$CX26:$GJ26,1,MATCH(BD$5,'Age profile (years)'!$F26:$CR26,0))),0) -> 16 | ES26: =IF($A26>0,IF(ISNA(MATCH(BE$5,'Age profile (years)'!$F26:$CR26,0)),0,INDEX('Asset data'!$CX26:$GJ26,1,MATCH(BE$5,'Age profile (years)'!$F26:$CR26,0))),0) -> 43 | ET26: =IF($A26>0,IF(ISNA(MATCH(BF$5,'Age profile (years)'!$F26:$CR26,0)),0,INDEX('Asset data'!$CX26:$GJ26,1,MATCH(BF$5,'Age profile (years)'!$F26:$CR26,0))),0) -> 3 | EU26: =IF($A26>0,IF(ISNA(MATCH(BG$5,'Age profile (years)'!$F26:$CR26,0)),0,INDEX('Asset data'!$CX26:$GJ26,1,MATCH(BG$5,'Age profile (years)'!$F26:$CR26,0))),0) -> 1 | EV26: =IF($A26>0,IF(ISNA(MATCH(BH$5,'Age profile (years)'!$F26:$CR26,0)),0,INDEX('Asset data'!$CX26:$GJ26,1,MATCH(BH$5,'Age profile (years)'!$F26:$CR26,0))),0) -> 0 | EW26: =IF($A26>0,IF(ISNA(MATCH(BI$5,'Age profile (years)'!$F26:$CR26,0)),0,INDEX('Asset data'!$CX26:$GJ26,1,MATCH(BI$5,'Age profile (years)'!$F26:$CR26,0))),0) -> 0 | EX26: =IF($A26>0,IF(ISNA(MATCH(BJ$5,'Age profile (years)'!$F26:$CR26,0)),0,INDEX('Asset data'!$CX26:$GJ26,1,MATCH(BJ$5,'Age profile (years)'!$F26:$CR26,0))),0) -> 0 | EY26: =IF($A26>0,IF(ISNA(MATCH(BK$5,'Age profile (years)'!$F26:$CR26,0)),0,INDEX('Asset data'!$CX26:$GJ26,1,MATCH(BK$5,'Age profile (years)'!$F26:$CR26,0))),0) -> 0 | EZ26: =IF($A26>0,IF(ISNA(MATCH(BL$5,'Age profile (years)'!$F26:$CR26,0)),0,INDEX('Asset data'!$CX26:$GJ26,1,MATCH(BL$5,'Age profile (years)'!$F26:$CR26,0))),0) -> 0 | FA26: =IF($A26>0,IF(ISNA(MATCH(BM$5,'Age profile (years)'!$F26:$CR26,0)),0,INDEX('Asset data'!$CX26:$GJ26,1,MATCH(BM$5,'Age profile (years)'!$F26:$CR26,0))),0) -> 0 | FB26: =IF($A26>0,IF(ISNA(MATCH(BN$5,'Age profile (years)'!$F26:$CR26,0)),0,INDEX('Asset data'!$CX26:$GJ26,1,MATCH(BN$5,'Age profile (years)'!$F26:$CR26,0))),0) -> 0 | FC26: =IF($A26>0,IF(ISNA(MATCH(BO$5,'Age profile (years)'!$F26:$CR26,0)),0,INDEX('Asset data'!$CX26:$GJ26,1,MATCH(BO$5,'Age profile (years)'!$F26:$CR26,0))),0) -> 0 | FD26: =IF($A26>0,IF(ISNA(MATCH(BP$5,'Age profile (years)'!$F26:$CR26,0)),0,INDEX('Asset data'!$CX26:$GJ26,1,MATCH(BP$5,'Age profile (years)'!$F26:$CR26,0))),0) -> 0 | FE26: =IF($A26>0,IF(ISNA(MATCH(BQ$5,'Age profile (years)'!$F26:$CR26,0)),0,INDEX('Asset data'!$CX26:$GJ26,1,MATCH(BQ$5,'Age profile (years)'!$F26:$CR26,0))),0) -> 0 | FF26: =IF($A26>0,IF(ISNA(MATCH(BR$5,'Age profile (years)'!$F26:$CR26,0)),0,INDEX('Asset data'!$CX26:$GJ26,1,MATCH(BR$5,'Age profile (years)'!$F26:$CR26,0))),0) -> 0 | FG26: =IF($A26>0,IF(ISNA(MATCH(BS$5,'Age profile (years)'!$F26:$CR26,0)),0,INDEX('Asset data'!$CX26:$GJ26,1,MATCH(BS$5,'Age profile (years)'!$F26:$CR26,0))),0) -> 0 | FH26: =IF($A26>0,IF(ISNA(MATCH(BT$5,'Age profile (years)'!$F26:$CR26,0)),0,INDEX('Asset data'!$CX26:$GJ26,1,MATCH(BT$5,'Age profile (years)'!$F26:$CR26,0))),0) -> 0 | FI26: =IF($A26>0,IF(ISNA(MATCH(BU$5,'Age profile (years)'!$F26:$CR26,0)),0,INDEX('Asset data'!$CX26:$GJ26,1,MATCH(BU$5,'Age profile (years)'!$F26:$CR26,0))),0) -> 0 | FJ26: =IF($A26>0,IF(ISNA(MATCH(BV$5,'Age profile (years)'!$F26:$CR26,0)),0,INDEX('Asset data'!$CX26:$GJ26,1,MATCH(BV$5,'Age profile (years)'!$F26:$CR26,0))),0) -> 0 | FK26: =IF($A26>0,IF(ISNA(MATCH(BW$5,'Age profile (years)'!$F26:$CR26,0)),0,INDEX('Asset data'!$CX26:$GJ26,1,MATCH(BW$5,'Age profile (years)'!$F26:$CR26,0))),0) -> 0 | FL26: =IF($A26>0,IF(ISNA(MATCH(BX$5,'Age profile (years)'!$F26:$CR26,0)),0,INDEX('Asset data'!$CX26:$GJ26,1,MATCH(BX$5,'Age profile (years)'!$F26:$CR26,0))),0) -> 0 | FM26: =IF($A26>0,IF(ISNA(MATCH(BY$5,'Age profile (years)'!$F26:$CR26,0)),0,INDEX('Asset data'!$CX26:$GJ26,1,MATCH(BY$5,'Age profile (years)'!$F26:$CR26,0))),0) -> 0 | FN26: =IF($A26>0,IF(ISNA(MATCH(BZ$5,'Age profile (years)'!$F26:$CR26,0)),0,INDEX('Asset data'!$CX26:$GJ26,1,MATCH(BZ$5,'Age profile (years)'!$F26:$CR26,0))),0) -> 0 | FO26: =IF($A26>0,IF(ISNA(MATCH(CA$5,'Age profile (years)'!$F26:$CR26,0)),0,INDEX('Asset data'!$CX26:$GJ26,1,MATCH(CA$5,'Age profile (years)'!$F26:$CR26,0))),0) -> 0 | FP26: =IF($A26>0,IF(ISNA(MATCH(CB$5,'Age profile (years)'!$F26:$CR26,0)),0,INDEX('Asset data'!$CX26:$GJ26,1,MATCH(CB$5,'Age profile (years)'!$F26:$CR26,0))),0) -> 0 | FQ26: =IF($A26>0,IF(ISNA(MATCH(CC$5,'Age profile (years)'!$F26:$CR26,0)),0,INDEX('Asset data'!$CX26:$GJ26,1,MATCH(CC$5,'Age profile (years)'!$F26:$CR26,0))),0) -> 0 | FR26: =IF($A26>0,IF(ISNA(MATCH(CD$5,'Age profile (years)'!$F26:$CR26,0)),0,INDEX('Asset data'!$CX26:$GJ26,1,MATCH(CD$5,'Age profile (years)'!$F26:$CR26,0))),0) -> 0 | FS26: =IF($A26>0,IF(ISNA(MATCH(CE$5,'Age profile (years)'!$F26:$CR26,0)),0,INDEX('Asset data'!$CX26:$GJ26,1,MATCH(CE$5,'Age profile (years)'!$F26:$CR26,0))),0) -> 0 | FT26: =IF($A26>0,IF(ISNA(MATCH(CF$5,'Age profile (years)'!$F26:$CR26,0)),0,INDEX('Asset data'!$CX26:$GJ26,1,MATCH(CF$5,'Age profile (years)'!$F26:$CR26,0))),0) -> 0 | FU26: =IF($A26>0,IF(ISNA(MATCH(CG$5,'Age profile (years)'!$F26:$CR26,0)),0,INDEX('Asset data'!$CX26:$GJ26,1,MATCH(CG$5,'Age profile (years)'!$F26:$CR26,0))),0) -> 0 | FV26: =IF($A26>0,IF(ISNA(MATCH(CH$5,'Age profile (years)'!$F26:$CR26,0)),0,INDEX('Asset data'!$CX26:$GJ26,1,MATCH(CH$5,'Age profile (years)'!$F26:$CR26,0))),0) -> 0 | FW26: =IF($A26>0,IF(ISNA(MATCH(CI$5,'Age profile (years)'!$F26:$CR26,0)),0,INDEX('Asset data'!$CX26:$GJ26,1,MATCH(CI$5,'Age profile (years)'!$F26:$CR26,0))),0) -> 0 | FX26: =IF($A26>0,IF(ISNA(MATCH(CJ$5,'Age profile (years)'!$F26:$CR26,0)),0,INDEX('Asset data'!$CX26:$GJ26,1,MATCH(CJ$5,'Age profile (years)'!$F26:$CR26,0))),0) -> 0 | FY26: =IF($A26>0,IF(ISNA(MATCH(CK$5,'Age profile (years)'!$F26:$CR26,0)),0,INDEX('Asset data'!$CX26:$GJ26,1,MATCH(CK$5,'Age profile (years)'!$F26:$CR26,0))),0) -> 0 | FZ26: =IF($A26>0,IF(ISNA(MATCH(CL$5,'Age profile (years)'!$F26:$CR26,0)),0,INDEX('Asset data'!$CX26:$GJ26,1,MATCH(CL$5,'Age profile (years)'!$F26:$CR26,0))),0) -> 0 | GA26: =IF($A26>0,IF(ISNA(MATCH(CM$5,'Age profile (years)'!$F26:$CR26,0)),0,INDEX('Asset data'!$CX26:$GJ26,1,MATCH(CM$5,'Age profile (years)'!$F26:$CR26,0))),0) -> 0 | GB26: =IF($A26>0,IF(ISNA(MATCH(CN$5,'Age profile (years)'!$F26:$CR26,0)),0,INDEX('Asset data'!$CX26:$GJ26,1,MATCH(CN$5,'Age profile (years)'!$F26:$CR26,0))),0) -> 0 | GC26: =IF($A26>0,IF(ISNA(MATCH(CO$5,'Age profile (years)'!$F26:$CR26,0)),0,INDEX('Asset data'!$CX26:$GJ26,1,MATCH(CO$5,'Age profile (years)'!$F26:$CR26,0))),0) -> 0 | GD26: =IF($A26>0,IF(ISNA(MATCH(CP$5,'Age profile (years)'!$F26:$CR26,0)),0,INDEX('Asset data'!$CX26:$GJ26,1,MATCH(CP$5,'Age profile (years)'!$F26:$CR26,0))),0) -> 0 | GE26: =IF($A26>0,IF(ISNA(MATCH(CQ$5,'Age profile (years)'!$F26:$CR26,0)),0,INDEX('Asset data'!$CX26:$GJ26,1,MATCH(CQ$5,'Age profile (years)'!$F26:$CR26,0))),0) -> 0 | GF26: =IF($A26>0,IF(ISNA(MATCH(CR$5,'Age profile (years)'!$F26:$CR26,0)),0,INDEX('Asset data'!$CX26:$GJ26,1,MATCH(CR$5,'Age profile (years)'!$F26:$CR26,0))),0) -> 0
